Workbook

Sheet AER Amendments
A1: No. | B1: Sheet | C1: Cell | D1: Content | E1: Notes
A2: 1 | B2: I2 RAB | C2: G9:G22 | D2: Closing asset base from draft decision RFM
A3: 2 | B3: I3 CAPEX | C3: J16 | D3: Updated with draft decision RFM numbers
A4: 3 | B4: I3 CAPEX | C4: K10:M23 | D4: Updated with draft decision RFM numbers - correct treatment of movements in provisions
A5: 4 | B5: I3 CAPEX | C5: N21, O21 | D5: Corrected to be consistent with the draft decision RFM
A6: 5 | B6: I3 CAPEX | C6: K31:O44 | D6: Updated with numbers from draft decision RFM
A7: 6 | B7: I3 CAPEX | C7: L55:L67 | D7: Previous values reflect the adjustments in RFM, which is based on the forecast capex for 14-15 from 10-15 RFM and only amends the difference at 19-20. The Depreciation model amends the difference straightaway at 14-15, hence a different adjustment is required. This is same as the approach taken for our recent TasNetworks decision.
A8: 7 | B8: I3 CAPEX | C8: H115:O138 | D8: Workings for the L55:L67 update.
A9: 8 | B9: I4 Dep | C9: B3:D3, C6:G19 | D9: Forecast depreciation updated due to 2019-20 return on debt update
A10: 9 | B10: I5 Reference | C10: I12 | D10: Correct inflation for 2014-15 is 1.32827324478177%
A11: 10 | B11: I5 Reference | C11: M12 | D11: Updated actual inflation for 2018-19 to 1.78412132024979%
A12: 11 | B12: I5 Reference | C12: M9 | D12: Change of label from forecast to actual
A13: 12 | B13: I5 Reference | C13: N12 | D13: Updated forecast inflation for 2019-20 to 2.0%
A14: 13 | B14: I5 Reference | C14: I19 | D14: Corrected 14-15 fixed real time varying nominal vanilla WACC to be consistent with the RFM
A15: 14 | B15: Section 3 Tax | C15: B5,B7 | D15: Modified label to refer to 2020-25 PTRM, not 2015-20 RFM
A16: 15 | B16: Depn|Inputs-Tax | C16: O9:S22 | D16: Input via link to I3 capex sheet the net capex for tax
A17: 16 | B17: Depn|comparison-Tax | C17: C25 | D17: Similar label modification to section 3 label change
A18: 17 | B18: Depn|Calc | C18: G402 | D18: The final year capex trueup relates to an earlier period when vehicle SL were 20 years, not 15 years. Similar errors are made in other asset classes for other final year true ups but do not affect final figures as either no capex occurred in the asset class in the final year or the SL did not change for the asset class across periods. We therefore did not adjust those asset classes.
A20: The AER's draft decision amendments are highlighted in orange unless noted.
A22: SAPN Amendments
A23: 1 | B23: Depn|comparison-Tax | D23: Sheet “Depn|comparison-Tax” has been renamed to “Depn|comparison-Tax – 2020”.
A24: 2 | B24: New Sheet | D24: New sheet “Depn|comparison-Tax – 2015” added, which summarises the Tax Depreciation on opening 1 July 2015 TAB balance, as used in the RFM.

Sheet CoverSheet
B12: =+ModelName -> Regulatory Asset Register | P12: Information Classification: | Q12: =+InfoClassification -> Public
B13: =+A48 -> Data Version | E13: =+_LU_DataVersion -> Jan 2019 Proposal
B14: Structural Version | E14: =+_LU_Version -> 1
B16: Refer to the | C16: Guide | D16: below for further details
A37: Model Guide | C37: (Refer Below)
A38: =+ModelName -> Regulatory Asset Register
A39: ="Version " & _LU_Version -> Version 1
A41: Overview
A42: Organisation name | D42: SA Power Networks
A43: Workbook name | D43: Regulatory Asset Register
A44: Workbook purpose | D44: Detailed Regulatory Asset Register for calculating depreciation
A45: Information Classification | D45: Public | L45: Note the confidentiality of this document.
A46: File name | D46: =MID(CELL("filename"),SEARCH("[",CELL("filename"))+1, SEARCH("]",CELL("filename"))-SEARCH("[",CELL("filename"))-1) -> SAPN - Depreciation Model - 2020-25 Draft Decision.xlsm
A47: File Location | D47: =MID(CELL("filename"),1, SEARCH("[",CELL("filename"))-1) -> T:\AER\QldSA DX 2020-25 resets\Reset Models (PTRM & RFM)\SAPN\02 Draft decision\
A48: Data Version | D48: Jan 2019 Proposal | L48: Input description of the data in this version of the model.
A49: Structural Version | D49: 1 | L49: Input Structural Version of this model (as distinct from the data version).
A50: Model Developer | D50: David Craig | L50: Input name of the Developer of the model - as the reference for assistance for model questions and changes.

Sheet Contents
A1: Table of Contents | F1: =+ModelName -> Regulatory Asset Register
A3: Section | B3: Sheet Title | C3: Sheet Description
B4: Contents
A7: =+Section1!C3 -> 1 | B7: =+Section1!A1 -> Section1 | C7: =+Section1!B5 -> Inputs
B8: =+'I1|Lives '!A1 -> I1|Lives | C8: =+'I1|Lives '!B1 -> Standard Asset lives
B9: ='I2 RAB '!A1 -> I2 RAB | C9: ='I2 RAB '!B1 -> Opening RAB Data - 30 June 2010
B10: ='I3 CAPEX '!A1 -> I3 CAPEX | C10: ='I3 CAPEX '!B1 -> Actual Capex
B11: ='I4|Dep'!A1 -> I4|Dep | C11: ='I4|Dep'!B1 -> Determination Forecast Straight Line Depreciation
B12: =_LU_L1 -> I5|Reference | C12: ='I5|Reference'!B1 -> Lookup and Reference Data
A14: =Section2!C3 -> 2 | B14: =Section2!B5 -> Workings
B15: ='Depn|Inputs'!A1 -> Depn|Inputs | C15: ='Depn|Inputs'!A2 -> Assumptions
B16: ='Depn|Calc'!A1 -> Depn|Calc | C16: ='Depn|Calc'!D1 -> Depreciation Calculations
B17: ='Depn|comparison'!A1 -> Depn|comparison | C17: ='Depn|comparison'!A2 -> SA Power Networks Depreciation - Baseline Output
B18: ='Depn|Existing Assets'!A1 -> Depn|Existing Assets | C18: ='Depn|Existing Assets'!A2 -> SA Power Networks Depreciation - PTRM Inputs
A20: ='Section3 Tax'!C3 -> 3 | B20: ='Section3 Tax'!B5 -> Workings for Tax depreciation on opening 1 July 2020 TAB
B21: ='Depn|Inputs-Tax'!A1 -> Depn|Inputs-Tax | C21: ='Depn|Inputs-Tax'!A2 -> Assumptions and Inputs
B22: ='Depn|Calc-Tax'!A1 -> Depn|Calc-Tax | C22: ='Depn|Calc-Tax'!D1 -> Depreciation Calculations
B23: ='Depn|comparison-Tax - 2020'!A1 -> Depn|comparison-Tax - 2020 | C23: ='Depn|comparison-Tax - 2020'!A2 -> SA Power Networks Depreciation - PTRM Tax Depreciation Inputs

Sheet Section1
A1: =RIGHT(CELL("filename",A1),LEN(CELL("filename",A1))-FIND("]",CELL("filename",A1))) -> Section1
B3: Section | C3: 1
B5: Inputs

Sheet I1|Lives
A1: =RIGHT(CELL("filename",A1),LEN(CELL("filename",A1))-FIND("]",CELL("filename",A1))) -> I1|Lives | B1: Standard Asset lives
B2: Note - Depreciating Asset classes only
C3: Regulatory Lives for Regulatory Period: | H3: Tax Lives for Regulatory Period:
C4: First reg period | D4: Second reg period | E4: Third reg period | F4: Fourth reg period | H4: First reg period | I4: Second reg period | J4: Third reg period | K4: Fourth reg period
B5: Asset Class | C5: 2010-2015 | D5: 2015-2020 | E5: 2020-2025 | F5: 2025-2030 | H5: 2010-2015 | I5: 2015-2020 | J5: 2020-2025 | K5: 2025-2030
B6: Data Source: | C6: [1] | D6: [2] | E6: [3] | H6: [1] | I6: [2] | J6: [3]
B7: =+Asset1 -> Sub-transmission lines | C7: 55 | D7: 55 | E7: 55 | F7: 55 | H7: 47.5 | I7: 47.5 | J7: 47.5
B8: =+Asset2 -> Distribution Lines | C8: 55 | D8: 55 | E8: 55 | F8: 55 | H8: 47.5 | I8: 47.5 | J8: 47.5
B9: =+Asset3 -> Substations | C9: 45 | D9: 45 | E9: 45 | F9: 45 | H9: 40 | I9: 40 | J9: 40
B10: =+Asset4 -> Distribution Transformers | C10: 45 | D10: 45 | E10: 45 | F10: 45 | H10: 40 | I10: 40 | J10: 40
B11: =+Asset5 -> LVS | C11: 55 | D11: 55 | E11: 55 | F11: 55 | H11: 47.5 | I11: 47.5 | J11: 47.5
B12: =+Asset6 -> Communications | C12: 15 | D12: 15 | E12: 15 | F12: 15 | H12: 10 | I12: 10 | J12: 10
B13: =+Asset7 -> Contributions | C13: 40.2 | D13: 40.2 | E13: 40.2 | F13: 40.2 | H13: 43.14435168 | I13: n/a | J13: n/a
B14: =+Asset8 -> Buildings | C14: 40 | D14: 40 | E14: 40 | F14: 40 | H14: 40 | I14: 40 | J14: 40
B15: =+Asset9 -> Vehicles - 15 years | C15: 20 | D15: 15 | E15: 15 | F15: 15 | H15: 15 | I15: 15 | J15: 15
B16: =+Asset10 -> Vehicles - 10 years | C16: 20 | D16: 10 | E16: 10 | F16: 10 | H16: 15 | I16: 15 | J16: 15
B17: =+Asset11 -> Light Vehicles | C17: 5 | D17: 5 | E17: 5 | F17: 5 | H17: 6.7 | I17: 6.7 | J17: 6.7
B18: =+Asset12 -> IT | C18: 5 | D18: 5 | E18: 5 | F18: 5 | H18: 4 | I18: 4 | J18: 4
B19: =+Asset13 -> Plant & Tools/Office Furniture | C19: 10 | D19: 10 | E19: 10 | F19: 10 | H19: 10 | I19: 10 | J19: 10
B20: =+Asset14 -> Equity raising Costs | C20: 52.3339041 | D20: 52.3 | E20: 52.3 | F20: 52.3 | H20: 5 | I20: 5 | J20: 5
B21: =+Asset15 -> Asset15 - Not in Use | C21: n/a | D21: n/a | E21: n/a | F21: n/a | H21: n/a | I21: n/a | J21: n/a | K21: n/a
B22: =+Asset16 -> Asset16 - Not in Use | C22: n/a | D22: n/a | E22: n/a | F22: n/a | H22: n/a | I22: n/a | J22: n/a | K22: n/a
B25: Data Source:
B26: [1] | C26: 2010 AER Determination PTRM (Post Tribunal)
B27: [2] | C27: 2015 AER Preliminary Determination

Sheet I2 RAB
A1: =RIGHT(CELL("filename",A2),LEN(CELL("filename",A2))-FIND("]",CELL("filename",A2))) -> I2 RAB | B1: Opening RAB Data - 30 June 2010
B2: Note - Depreciating Asset classes only
D3: Standard Control Opening Asset Base as at: | E3: 2010-06-30
D5: RAB | I5: Tax Base
A6: Asset No. | B6: Asset Classes - Master List | D6: RAB Value @ 30/6/2010 | E6: Remaining Life | F6: 2015 Opening RAB Value @ 30/6/2015 | G6: 2021 Opening RAB Value @ 30/6/2020 | I6: TAB Value @ 30/6/2009 | J6: Remaining Life @ 30/6/2009 | K6: 2015 Opening TAB Value @ 30/6/2015 | L6: 2021 Opening TAB Value @ 30/6/2020
D7: $June 2010 | F7: $June 2015 | G7: $June 2020 | I7: $Nominal | K7: $Nominal | L7: $Nominal
C8: Data Source: | D8: [1] | E8: [1] | F8: [2] | G8: [3] | I8: [1] | J8: [1] | K8: [3B] | L8: [3B]
A9: Asset1 | B9: Sub-transmission lines | D9: 45.27844253 | E9: 49.8607911 | F9: 166.6982317 | G9: 181.112252 | I9: 38.6447206 | J9: 24.72442434 | K9: 143.6779165 | L9: 135.1238635
A10: Asset2 | B10: Distribution Lines | D10: 1717.359339 | E10: 21.08215483 | F10: 2188.391937 | G10: 1814.499127 | I10: 564.6078899 | J10: 22.41685171 | K10: 987.571532 | L10: 1083.231461
A11: Asset3 | B11: Substations | D11: 456.7136416 | E11: 18.26970082 | F11: 1013.988867 | G11: 1318.093185 | I11: 238.8747596 | J11: 23.53173094 | K11: 759.5841088 | L11: 1037.829941
A12: Asset4 | B12: Distribution Transformers | D12: 415.7332805 | E12: 18.04760151 | F12: 413.7462955 | G12: 361.3672963 | I12: 68.91287994 | J12: 21.51177091 | K12: 129.4603017 | L12: 166.4363931
A13: Asset5 | B13: LVS | D13: 383.2358361 | E13: 14.67110501 | F13: 634.6802896 | G13: 1031.74197 | I13: 306.4727544 | J13: 22.47316444 | K13: 589.9809067 | L13: 1041.736592
A14: Asset6 | B14: Communications | D14: 28.04059677 | E14: 7.96246855 | F14: 29.87875836 | G14: 112.3252758 | I14: 14.10620709 | J14: 7.462972081 | K14: 33.46363907 | L14: 90.43257127
A15: Asset7 | B15: Contributions | D15: -601.246825 | E15: 35.33442563 | F15: -1211.971062 | G15: -1121.116235 | I15: -468.6639972 | J15: 43.14435168 | K15: -538.3313875 | L15: -466.3424744
A16: Asset8 | B16: Buildings | D16: 13.86204821 | E16: 23.4467836 | F16: 23.13823476 | G16: 38.6958979 | I16: -1.089222877 | J16: 31.59299703 | K16: 6.565160232 | L16: 31.56368859
A17: Asset9 | B17: Vehicles - 15 years | D17: 43.44830012 | E17: 7.140074097 | F17: 79.97912995 | G17: 68.1338672 | I17: 26.27911531 | J17: 13.79489658 | K17: 79.47621154 | L17: 58.96932724
A18: Asset10 | B18: Vehicles - 10 years | D18: 0 | E18: 0 | F18: 0 | G18: 16.72024091 | I18: 0 | J18: n/a | K18: 0 | L18: 26.08612147
A19: Asset11 | B19: Light Vehicles | D19: 0 | E19: 7.140074097 | F19: 16.54893594 | G19: 15.56126165 | I19: 10.69838813 | J19: 6.174118372 | K19: 17.71756943 | L19: 24.78608873
A20: Asset12 | B20: IT | D20: 62.44113174 | E20: 4.894110548 | F20: 118.5509008 | G20: 202.1580173 | I20: 51.28713471 | J20: 6 | K20: 159.6914027 | L20: 164.9892563
A21: Asset13 | B21: Plant & Tools/Office Furniture | D21: 24.56329862 | E21: 7.16468158 | F21: 70.43608595 | G21: 77.80788611 | I21: 31.49849768 | J21: 8.871152371 | K21: 81.12020786 | L21: 60.85982815
A22: Asset14 | B22: Equity raising Costs | E22: 0 | F22: 2.748462143 | G22: 16.54736412 | K22: 0.5216172674 | L22: 2.722005371
A23: Asset15 | B23: Asset15 - Not in Use
A24: Asset16 | B24: Asset16 - Not in Use
B26: Total | D26: =SUM(D9:D24) -> 2589.42909 | F26: =SUM(F9:F24) -> 3546.815066 | G26: =SUM(G9:G24) -> 4133.647405 | I26: =SUM(I9:I24) -> 881.6291273 | K26: =SUM(K9:K24) -> 2450.499186 | L26: =SUM(L9:L24) -> 3458.424664
B29: Data Source:
B30: [1] | C30: 2010 Determination PTRM (Post Tribunal)
B31: [2] | C31: RFM for 2010-15
B32: [3] | C32: RFM for 2015-20
B33: [3B] | C33: RFM for 2015-20, worksheet "TAB roll forward", Opening Asset Values, from Row 8

Sheet I3 CAPEX
A1: =RIGHT(CELL("filename",A2),LEN(CELL("filename",A2))-FIND("]",CELL("filename",A2))) -> I3 CAPEX | B1: Actual Capex
F3: Note - data is Real Actual Net Capex, per Actual RAB roll forward sheet of RFM
I5: $'M Nominal
F6: Regulatory Period 1 | I6: 2010-11 | K6: Regulatory Period 2 | N6: 2015-16 | P6: Regulatory Period 3 | S6: 2020-21 | U6: Regulatory Period 4 | X6: 2025-26 | AA6: 2014-15
C7: Asset Class Name | E7: 2009-10 | F7: 2010-11 | G7: 2011-12 | H7: 2012-13 | I7: 2013-14 | J7: 2014-15 | K7: 2015-16 | L7: 2016-17 | M7: 2017-18 | N7: 2018-19 | O7: 2019-20 | P7: 2020-21 | Q7: 2021-22 | R7: 2022-23 | S7: 2023-24 | T7: 2024-25 | U7: 2025-26 | V7: 2026-27 | W7: 2027-28 | X7: 2028-29 | Y7: 2029-30 | AA7: [1] | AB7: [1A]
C8: Capital Expenditure for Tax Base– As Incurred ($m Nominal)
C9: Data Source: | E9: [1] | F9: [1] | G9: [1] | H9: [1] | I9: [1] | J9: [1A] | K9: [7] | L9: [7] | M9: [7] | N9: [7] | O9: [7]
B10: Asset1 | C10: =+Asset1 -> Sub-transmission lines | E10: 4.975 | F10: 22.937 | G10: 39.522 | H10: 6.413 | I10: 6.939 | J10: 17.89254028 | K10: 3.476546835 | L10: 1.618500422 | M10: 1.360541962 | N10: 2.972552325 | O10: 2.951292633 | AA10: 13.7409996 | AB10: 17.89254028
B11: Asset2 | C11: =+Asset2 -> Distribution Lines | E11: 118.056 | F11: 77.063 | G11: 128.23 | H11: 89.537 | I11: 68.101 | J11: 77.92136758 | K11: -138.379592 | L11: 115.8239572 | M11: 76.94959299 | N11: 116.081812 | O11: 115.2790637 | AA11: 135.4100927 | AB11: 77.92136758
B12: Asset3 | C12: =+Asset3 -> Substations | E12: 50.773 | F12: 60.027 | G12: 161.892 | H12: 83.007 | I12: 94.369 | J12: 88.32059198 | K12: 209.4162354 | L12: 33.86253721 | M12: 64.10925501 | N12: 63.23685902 | O12: 62.75011769 | AA12: 89.51403491 | AB12: 88.32059198
B13: Asset4 | C13: =+Asset4 -> Distribution Transformers | E13: 11.6 | F13: 19.227 | G13: 14.471 | H13: 13.111 | I13: 16.761 | J13: 10.131 | K13: 40.62096777 | L13: 4.529163561 | M13: 7.59446982 | N13: 7.961691143 | O13: 7.902901928 | AA13: 10.95752226 | AB13: 10.131
B14: Asset5 | C14: =+Asset5 -> LVS | E14: 45.96 | F14: 49.126 | G14: 52.504 | H14: 75.843 | I14: 93.002 | J14: 66.339 | K14: 99.79106059 | L14: 82.15150277 | M14: 144.1053985 | N14: 128.0708356 | O14: 127.0566144 | AA14: 54.89969913 | AB14: 66.339
B15: Asset6 | C15: =+Asset6 -> Communications | E15: 1.471 | F15: 0.21 | G15: 0.688 | H15: 1.669 | I15: 9.072 | J15: 12.58543249 | K15: 12.98243233 | L15: 9.049780174 | M15: 29.29215912 | N15: 20.30722776 | O15: 20.13446225 | AA15: 5.035096449 | AB15: 12.58543249
B16: Asset7 | C16: =+Asset7 -> Contributions | E16: -152.519 | J16: -65.594 | K16: 0 | L16: 0 | M16: 0 | N16: 0 | O16: 0
B17: Asset8 | C17: =+Asset8 -> Buildings | E17: 0 | F17: 0.391 | G17: 6.08 | H17: 0.155 | I17: 0.058 | J17: 0.09239235781 | K17: 0 | L17: 0 | M17: 0 | N17: 10.84833073 | O17: 15.24300015 | AA17: 3.387295 | AB17: 0.09239235781
B18: Asset9 | C18: =+Asset9 -> Vehicles - 15 years | E18: 0.417 | F18: 11.886 | G18: 9.278 | H18: 12.183 | I18: 12.751 | J18: 18.48880603 | K18: 4.57745824 | L18: 1.318144732 | M18: 2.105535163 | N18: 3.572969173 | O18: 3.532785418 | AA18: 16.790249 | AB18: 18.48880603
B19: Asset10 | C19: =+Asset10 -> Vehicles - 10 years | J19: 0 | K19: 2.696110337 | L19: 6.246119294 | M19: 6.981253658 | N19: 6.742603341 | O19: 6.670419141 | AB19: 0
B20: Asset11 | C20: =+Asset11 -> Light Vehicles | E20: 0 | F20: 8.848 | G20: 3.455 | H20: 4.727 | I20: 4.732 | J20: 3.549609222 | K20: 5.17267946 | L20: 3.73546861 | M20: 6.9645845 | N20: 7.659830498 | O20: 7.574830472 | AA20: 4.682766041 | AB20: 5.937609222
B21: Asset12 | C21: =+Asset12 -> IT | E21: 0.401 | F21: 7.088 | G21: 34.873 | H21: 27.531 | I21: 38.399 | J21: 56.48994638 | K21: 40.85338292 | L21: 52.50307871 | M21: 61.47757043 | N21: 64.56049051 | O21: 70.98322006 | AA21: 45.49717 | AB21: 56.48994638
B22: Asset13 | C22: =+Asset13 -> Plant & Tools/Office Furniture | E22: 0.327 | F22: 10.375 | G22: 18.516 | H22: 16.319 | I22: 10.128 | J22: 18.98879271 | K22: 9.295408555 | L22: 9.225397674 | M22: 13.90928562 | N22: 4.977747995 | O22: 4.827000339 | AA22: 9.712859 | AB22: 18.98879271
B23: Asset14 | C23: =+Asset14 -> Equity raising Costs | F23: 2.608086337 | K23: 13.61110651
B24: Asset15 | C24: =+Asset15 -> Asset15 - Not in Use
B25: Asset16 | C25: =+Asset16 -> Asset16 - Not in Use
B26: Total | E26: =SUM(E10:E25) -> 81.461 | F26: 269.7860863 | G26: 469.509 | H26: 330.495 | I26: 354.312 | J26: 305.205479 | K26: 304.113797 | L26: 320.0636504 | M26: 414.8496468 | N26: 436.9929501 | O26: 444.9057082 | P26: 0 | Q26: 0 | R26: 0 | S26: 0 | T26: 0 | U26: 0 | V26: 0 | W26: 0 | X26: 0 | Y26: 0
J27: =SUM(F26:J26) -> 1729.307565 | O27: =SUM(K26:O26) -> 1920.925752 | T27: =SUM(P26:T26) -> 0 | Y27: =SUM(U26:Y26) -> 0
C29: Net Capital Expenditure – As Incurred ($m Real) with half year WACC | I29: $'M Real June | J29: =LEFT(F7,4) -> 2010 | N29: $'M Real June | O29: =LEFT(K7,4) -> 2015 | S29: $'M Real June | T29: =LEFT(P7,4) -> 2020
E30: Data Source: [2] | J30: [2A]
B31: Asset1 | C31: =+Asset1 -> Sub-transmission lines | F31: 23.44717127 | G31: 38.76655554 | H31: 6.220555384 | I31: 6.580365201 | J31: =J10*(1+'I5|Reference'!$I$19)^0.5/conv_2015_2010 -> 16.35601405 | K31: 3.521181138 | L31: 1.610507536 | M31: 1.33691039 | N31: 2.863819384 | O31: 2.795887704
B32: Asset2 | C32: =+Asset2 -> Distribution Lines | F32: 78.77705712 | G32: 125.7789438 | H32: 86.85012746 | I32: 64.5812726 | J32: =J11*(1+'I5|Reference'!$I$19)^0.5/conv_2015_2010 -> 71.22985125 | K32: -180.8347976 | L32: 82.89336203 | M32: 47.62985658 | N32: 76.536737 | O32: 76.75325453
B33: Asset3 | C33: =+Asset3 -> Substations | F33: 61.36213758 | G33: 158.7975105 | H33: 80.51608308 | I33: 89.49163909 | J33: =J12*(1+'I5|Reference'!$I$19)^0.5/conv_2015_2010 -> 80.73603973 | K33: 212.1048653 | L33: 30.7005874 | M33: 60.2451554 | N33: 58.80426544 | O33: 57.49717946
B34: Asset4 | C34: =+Asset4 -> Distribution Transformers | F34: 19.65465239 | G34: 14.19439363 | H34: 12.71755834 | I34: 15.89472563 | J34: =J13*(1+'I5|Reference'!$I$19)^0.5/conv_2015_2010 -> 9.260997919 | K34: 39.04690107 | L34: 2.508943658 | M34: 6.56235176 | N34: 5.930536887 | O34: 5.886988567
B35: Asset5 | C35: =+Asset5 -> LVS | F35: 50.21867444 | G35: 51.50041071 | H35: 73.56706409 | I35: 88.19529102 | J35: =J14*(1+'I5|Reference'!$I$19)^0.5/conv_2015_2010 -> 60.64212229 | K35: 83.44679539 | L35: 66.47452706 | M35: 120.8964902 | N35: 104.456889 | O35: 102.9617453
B36: Asset6 | C36: =+Asset6 -> Communications | F36: 0.2146708796 | G36: 0.6748492033 | H36: 1.618915786 | I36: 8.603123375 | J36: =J15*(1+'I5|Reference'!$I$19)^0.5/conv_2015_2010 -> 11.50465543 | K36: 13.14910973 | L36: 9.005088271 | M36: 28.78337676 | N36: 19.56441003 | O36: 19.07425065
B37: Asset7 | C37: =+Asset7 -> Contributions | F37: -112.1675791 | G37: -89.47342991 | H37: -69.76760745 | I37: -78.41625572 | J37: =J16*(1+'I5|Reference'!$I$19)^0.5/conv_2015_2010 -> -59.96109935 | K37: 0 | L37: 0 | M37: 0 | N37: 0 | O37: 0
B38: Asset8 | C38: =+Asset8 -> Buildings | F38: 0.399696733 | G38: 5.963783657 | H38: 0.15034868 | I38: 0.05500233199 | J38: =J17*(1+'I5|Reference'!$I$19)^0.5/conv_2015_2010 -> 0.08445814168 | K38: 0 | L38: 0 | M38: 0 | N38: 10.45150983 | O38: 14.44035614
B39: Asset9 | C39: =+Asset9 -> Vehicles - 15 years | F39: 12.15037179 | G39: 9.10065539 | H39: 11.81740624 | I39: 12.09197819 | J39: =J18*(1+'I5|Reference'!$I$19)^0.5/conv_2015_2010 -> 16.90107533 | K39: 4.636226802 | L39: 1.311635138 | M39: 2.06896363 | N39: 3.442273594 | O39: 3.346761077
B40: Asset10 | C40: =+Asset10 -> Vehicles - 10 years | K40: 2.730724858 | L40: 6.215273135 | M40: 6.85999463 | N40: 6.495965768 | O40: 6.319177789
B41: Asset11 | C41: =+Asset11 -> Light Vehicles | F41: 9.044799728 | G41: 3.388959298 | H41: 4.585149743 | I41: 4.487431637 | J41: =J20*(1+'I5|Reference'!$I$19)^0.5/conv_2015_2010 -> 3.244785669 | K41: 5.239089882 | L41: 3.717021178 | M41: 6.843615002 | N41: 7.379641689 | O41: 7.175965927
B42: Asset12 | C42: =+Asset12 -> IT | F42: 7.245653308 | G42: 34.20641899 | H42: 26.70483553 | I42: 36.41438872 | J42: =J21*(1+'I5|Reference'!$I$19)^0.5/conv_2015_2010 -> 51.63885854 | K42: 41.37788679 | L42: 52.24379479 | M42: 60.40975212 | N42: 62.19893343 | O42: 67.2454876
B43: Asset13 | C43: =+Asset13 -> Plant & Tools/Office Furniture | F43: 10.6057637 | G43: 18.16207536 | H43: 15.82929102 | I43: 9.604545144 | J43: =J22*(1+'I5|Reference'!$I$19)^0.5/conv_2015_2010 -> 17.35812553 | K43: 9.414749412 | L43: 9.179838492 | M43: 13.66769198 | N43: 4.795667035 | O43: 4.572827088
B44: Asset14 | C44: =+Asset14 -> Equity raising Costs | F44: 2.666096134 | K44: 13.78585527
B45: Asset15 | C45: =+Asset15 -> Asset15 - Not in Use
B46: Asset16 | C46: =+Asset16 -> Asset16 - Not in Use
B47: Asset30 | C47: Equity raising costs
F48: =SUM(F31:F46) -> 163.619166 | G48: 371.0611262 | H48: 250.8097279 | I48: 257.5835072 | J48: 278.9958845 | K48: 247.618588 | L48: 265.8605787 | M48: 355.3041585 | N48: 362.9206491 | O48: 368.0698818 | P48: =SUM(P31:P47) -> 0 | Q48: 0 | R48: 0 | S48: 0 | T48: 0 | U48: 0 | V48: 0 | W48: 0 | X48: 0 | Y48: 0
J49: =SUM(F48:J48) -> 1322.069412 | O49: =SUM(K48:O48) -> 1599.773856 | T49: =SUM(P48:T48) -> 0 | Y49: =SUM(U48:Y48) -> 0
C52: Other RAB Adjustments - end of final year of RCP | E52: Per RFM: | F52: Difference Between Actual and Forecast Net Capex | G52: Return on Difference - Net Capex | H52: Reallocation of 2014-15 interim WIP balance | I52: Opening RAB Adjustment $2015 | J52: WIP Adjustment $2010 | L52: Return on Difference - Net Capex | O52: Opening RAB Adjustment $2020
F53: 2009-10 | G53: 2009-10 | L53: 2014-15
E54: Data Source: | F54: [3] | G54: [4] | H54: [5] | L54: [4A]
B55: Asset1 | C55: =+Asset1 -> Sub-transmission lines | F55: 1.496364434 | G55: 0.8652763065 | H55: 24.40015854 | I55: =SUM(F55:G55) -> 2.361640741 | J55: =H55/conv_2015_2010 -> 21.41504567 | L55: =M118 -> 0.8963004392 | O55: =SUM(K55:N55) -> 0.8963004392 | T55: =SUM(P55:S55) -> 0 | Y55: =SUM(U55:X55) -> 0
B56: Asset2 | C56: =+Asset2 -> Distribution Lines | F56: 56.66687242 | G56: 32.76775426 | H56: 108.2785732 | I56: =SUM(F56:G56) -> 89.43462668 | J56: 95.03178375 | L56: =M119 -> -12.41157764 | O56: =SUM(K56:N56) -> -12.41157764 | T56: =SUM(P56:S56) -> 0 | Y56: =SUM(U56:X56) -> 0
B57: Asset3 | C57: =+Asset3 -> Substations | F57: 19.71952154 | G57: 11.40286041 | H57: 102.482853 | I57: 31.12238195 | J57: 89.94511136 | L57: -0.2576593856 | O57: -0.2576593856 | T57: 0 | Y57: 0
B58: Asset4 | C58: =+Asset4 -> Distribution Transformers | F58: -3.91702761 | G58: -2.265030567 | H58: 5.803360372 | I58: -6.182058177 | J58: 5.093377865 | L58: -0.1784427325 | O58: -0.1784427325 | T58: 0 | Y58: 0
B59: Asset5 | C59: =+Asset5 -> LVS | F59: -7.888910193 | G59: -4.561781153 | H59: 22.99331403 | I59: -12.45069135 | J59: 20.18031437 | L59: 2.46969768 | O59: 2.46969768 | T59: 0 | Y59: 0
B60: Asset6 | C60: =+Asset6 -> Communications | F60: -4.191123569 | G60: -2.423527209 | H60: 8.285204051 | I60: -6.614650778 | J60: 7.271593045 | L60: 1.630086281 | O60: 1.630086281 | T60: 0 | Y60: 0
B61: Asset7 | C61: =+Asset7 -> Contributions | F61: -122.6272201 | G61: -70.90948279 | H61: 0 | I61: -193.5367029 | J61: 0 | L61: 0.8664481553 | O61: 0.8664481553 | T61: 0 | Y61: 0
B62: Asset8 | C62: =+Asset8 -> Buildings | F62: -0.4598198193 | G62: -0.2658919083 | H62: 1.2206089 | I62: -0.7257117276 | J62: =H62/conv_2015_2010 -> 1.071279734 | L62: -0.7113558339 | O62: =SUM(K62:N62) -> -0.7113558339 | T62: 0 | Y62: 0
B63: Asset9 | C63: =+Asset9 -> Vehicles - 15 years | F63: -3.056715981 | G63: -1.767553314 | H63: 8.410505078 | I63: -4.824269295 | J63: 7.381564758 | L63: 0.3667114275 | O63: 0.3667114275 | T63: 0 | Y63: 0
B64: Asset10 | C64: =+Asset10 -> Vehicles - 10 years | I64: 0 | J64: 0 | L64: 0 | O64: 0 | T64: 0 | Y64: 0
B65: Asset11 | C65: =+Asset11 -> Light Vehicles | F65: 0 | H65: 1.091362467 | I65: 0 | J65: 0.9578452953 | L65: -0.244643864 | O65: -0.244643864 | T65: 0 | Y65: 0
B66: Asset12 | C66: =+Asset12 -> IT | F66: -31.9193873 | G66: -18.45746191 | H66: 54.11459335 | I66: -50.37684921 | J66: 47.4942196 | L66: 2.373294891 | O66: 2.373294891 | T66: 0 | Y66: 0
B67: Asset13 | C67: =+Asset13 -> Plant & Tools/Office Furniture | F67: -2.759736337 | G67: -1.595824126 | H67: 10.98078446 | I67: -4.355560463 | J67: 9.637396427 | L67: 2.002635669 | O67: 2.002635669 | T67: 0 | Y67: 0
B68: Asset14 | C68: =+Asset14 -> Equity raising Costs | O68: =SUM(K68:N68) -> 0 | T68: 0 | Y68: 0
B69: Asset15 | C69: =+Asset15 -> Asset15 - Not in Use | O69: =SUM(K69:N69) -> 0 | T69: 0 | Y69: 0
B70: Asset16 | C70: =+Asset16 -> Asset16 - Not in Use | O70: 0 | T70: 0 | Y70: 0
F71: =SUM(F55:F70) -> -98.93718253 | G71: -57.210662 | H71: 348.0613174 | I71: -156.1478445 | J71: 305.4795319 | L71: -3.198504915 | M71: 0 | N71: 0 | O71: -3.198504915 | P71: 0 | Q71: 0 | R71: 0 | S71: 0 | T71: 0 | U71: 0 | V71: 0 | W71: 0 | X71: 0 | Y71: 0
O72: =SUM(K71:O71) -> -6.397009831 | T72: =SUM(P71:T71) -> 0 | Y72: =SUM(U71:Y71) -> 0
C74: Other TAB Adjustments - end of final year of RCP | H74: Reallocation of 2014-15 interim WIP balance | J74: Total closing 2014/15 Adjustment $2015
E75: Data Source: | H75: [6]
B76: Asset1 | C76: =+Asset1 -> Sub-transmission lines | H76: 21.10021629 | J76: =SUM(F76:I76) -> 21.10021629 | O76: =SUM(K76:N76) -> 0 | T76: =SUM(P76:S76) -> 0 | Y76: =SUM(U76:X76) -> 0
B77: Asset2 | C77: =+Asset2 -> Distribution Lines | H77: 47.39472561 | J77: =SUM(F77:I77) -> 47.39472561 | O77: =SUM(K77:N77) -> 0 | T77: =SUM(P77:S77) -> 0 | Y77: =SUM(U77:X77) -> 0
B78: Asset3 | C78: =+Asset3 -> Substations | H78: 74.22861768 | J78: 74.22861768 | O78: 0 | T78: 0 | Y78: 0
B79: Asset4 | C79: =+Asset4 -> Distribution Transformers | H79: 0 | J79: 0 | O79: 0 | T79: 0 | Y79: 0
B80: Asset5 | C80: =+Asset5 -> LVS | H80: 0 | J80: 0 | O80: 0 | T80: 0 | Y80: 0
B81: Asset6 | C81: =+Asset6 -> Communications | H81: 7.269856096 | J81: 7.269856096 | O81: 0 | T81: 0 | Y81: 0
B82: Asset7 | C82: =+Asset7 -> Contributions | H82: 0 | J82: 0 | O82: 0 | T82: 0 | Y82: 0
B83: Asset8 | C83: =+Asset8 -> Buildings | H83: 1.175430438 | J83: 1.175430438 | O83: 0 | T83: 0 | Y83: 0
B84: Asset9 | C84: =+Asset9 -> Vehicles - 15 years | H84: 7.261886109 | J84: 7.261886109 | O84: 0 | T84: 0 | Y84: 0
B85: Asset10 | C85: =+Asset10 -> Vehicles - 10 years | J85: 0 | O85: 0 | T85: 0 | Y85: 0
B86: Asset11 | C86: =+Asset11 -> Light Vehicles | H86: 1.05096781 | J86: 1.05096781 | O86: 0 | T86: 0 | Y86: 0
B87: Asset12 | C87: =+Asset12 -> IT | H87: 51.91845628 | J87: 51.91845628 | O87: 0 | T87: 0 | Y87: 0
B88: Asset13 | C88: =+Asset13 -> Plant & Tools/Office Furniture | H88: 10.41681252 | J88: 10.41681252 | O88: 0 | T88: 0 | Y88: 0
B89: Asset14 | C89: =+Asset14 -> Equity raising Costs | J89: 0 | O89: 0 | T89: 0 | Y89: 0
B90: Asset15 | C90: =+Asset15 -> Asset15 - Not in Use | J90: 0 | O90: 0 | T90: 0 | Y90: 0
B91: Asset16 | C91: =+Asset16 -> Asset16 - Not in Use | J91: 0 | O91: 0 | T91: 0 | Y91: 0
F92: =SUM(F76:F91) -> 0 | G92: 0 | H92: 221.8169688 | I92: 0 | J92: 221.8169688 | K92: 0 | L92: 0 | M92: 0 | N92: 0 | O92: 0 | P92: 0 | Q92: 0 | R92: 0 | S92: 0 | T92: 0 | U92: 0 | V92: 0 | W92: 0 | X92: 0 | Y92: 0
O93: =SUM(K92:O92) -> 0 | T93: =SUM(P92:T92) -> 0 | Y93: =SUM(U92:Y92) -> 0
B95: Data Source:
B100: [1] | C100: RFM for 2010-15, "Tax value roll forward" worksheet
C101: Capex for TAB is Nominal Net Capex, excluding half year capitalised WACC
B102: [1A] | C102: RFM for 2015-20 "RFM input" worksheet, From Cell G41 (including disposals)
B103: [2] | C103: RFM for 2010-15 "Actual RAB roll forward" worksheet
C104: Capex for RAB is Real Net Capex (in Opening RCP dollars), includes half year capitalised WACC.
B106: [3] | C106: RFM for 2010-15 "Total actual RAB roll forward" worksheet, From Cell L231
B107: [4] | C107: RFM for 2010-15 "Total actual RAB roll forward" worksheet, From Cell L263
B108: [5] | C108: WIP adjustment from "SAPN L.3_PUBLIC_Roll Forward Model -Schedules.xlsx" worksheet W7, cells C13-C28
B109: [6] | C109: WIP adjustment from "SAPN L.3_PUBLIC_Roll Forward Model -Schedules.xlsx" worksheet W7, cells C34-C49
B110: [3A] | C110: RFM for 2015-20 "Total RAB roll forward" worksheet, From Cell L234
B111: [4A] | C111: RFM for 2015-20 "Total RAB roll forward" worksheet, From Cell L266
B112: [7] | C112: RFM for 2015-20 "TAB roll forward" worksheet, Actual Net Capex From Cell H40
K115: 2014-15
K116: Difference Between Actual and Forecast Net Capex | M116: Return on Difference - Net Capex
K117: Nominal | L117: Real 2020 | M117: Real 2020
J118: Sub-transmission lines | K118: 4.324063999 | L118: =K118*'Depn|Inputs'!$S$15 -> 4.689766226 | M118: =L118*($O$138-1) -> 0.8963004392
J119: Distribution Lines | K119: -59.87775271 | L119: =K119*'Depn|Inputs'!$S$15 -> -64.94183769 | M119: =L119*($O$138-1) -> -12.41157764
J120: Substations | K120: -1.243038187 | L120: =K120*'Depn|Inputs'!$S$15 -> -1.348166565 | M120: -0.2576593856
J121: Distribution Transformers | K121: -0.8608695943 | L121: =K121*'Depn|Inputs'!$S$15 -> -0.9336765481 | M121: -0.1784427325
J122: LVS | K122: 11.91467767 | L122: =K122*'Depn|Inputs'!$S$15 -> 12.92234642 | M122: 2.46969768
J123: Communications | K123: 7.864101248 | L123: =K123*'Depn|Inputs'!$S$15 -> 8.529197635 | M123: 1.630086281
J124: Contributions | K124: 4.180046234 | L124: =K124*'Depn|Inputs'!$S$15 -> 4.533568342 | M124: 0.8664481553
J125: Buildings | K125: -3.431827117 | L125: =K125*'Depn|Inputs'!$S$15 -> -3.722069542 | M125: -0.7113558339
J126: Vehicles - 15 years | K126: 1.769143038 | L126: =K126*'Depn|Inputs'!$S$15 -> 1.918766066 | M126: 0.3667114275
J127: Vehicles - 10 years | K127: 0 | L127: =K127*'Depn|Inputs'!$S$15 -> 0 | M127: 0
J128: Light Vehicles | K128: -1.1802468 | L128: =K128*'Depn|Inputs'!$S$15 -> -1.280064676 | M128: -0.244643864
J129: IT | K129: 11.4495972 | L129: =K129*'Depn|Inputs'!$S$15 -> 12.41793236 | M129: 2.373294891
J130: Plant & Tools/Office Furniture | K130: 9.661408631 | L130: =K130*'Depn|Inputs'!$S$15 -> 10.47851001 | M130: 2.002635669
J131: Equity raising Costs | K131: 0 | L131: =K131*'Depn|Inputs'!$S$15 -> 0 | M131: 0
J132: Asset15 - Not in Use
J133: Asset16 - Not in Use
K134: -15.43069639 | L134: =SUM(L118:L133) -> -16.73572797 | M134: =SUM(M118:M133) -> -3.198504915
K136: 2015-16 | L136: 2016-17 | M136: 2017-18 | N136: 2018-19 | O136: 2019-20
J137: Real Vanilla WACC | K137: 0.03578536585 | L137: 0.03595746513 | M137: 0.03585754204 | N137: 0.03540510057 | O137: 0.03498222709
J138: 1 | K138: =J138*(1+K137) -> 1.035785366 | L138: =K138*(1+L137) -> 1.073029582 | M138: 1.111505785 | N138: 1.150858759 | O138: 1.191118362

Sheet I4|Dep
A1: =RIGHT(CELL("filename",A1),LEN(CELL("filename",A1))-FIND("]",CELL("filename",A1))) -> I4|Dep | B1: Determination Forecast Straight Line Depreciation
B3: Source: 2015 Determination PTRM, 2019-20 RoD update | G3: $'M June 2015
C4: 2015-16 | D4: 2016-17 | E4: 2017-18 | F4: 2018-19 | G4: 2019-20
B6: =+Asset1 -> Sub-transmission lines | C6: 3.30967236 | D6: 3.49486927 | E6: 3.723680336 | F6: 3.785198193 | G6: 3.800115006
B7: =+Asset2 -> Distribution Lines | C7: 105.1018115 | D7: 108.1041857 | E7: 111.7253031 | F7: 115.5806367 | G7: 119.4179844
B8: =+Asset3 -> Substations | C8: 43.0332953 | D8: 44.02600096 | E8: 44.82181814 | F8: 45.60108028 | G8: 46.27019621
B9: =+Asset4 -> Distribution Transformers | C9: 27.60273463 | D9: 27.98256101 | E9: 28.383332 | F9: 28.81085613 | G9: 29.26024653
B10: =+Asset5 -> LVS | C10: 35.9287052 | D10: 36.02862604 | E10: 36.12744668 | F10: 36.22677599 | G10: 36.3328633
B11: =+Asset6 -> Communications | C11: 5.018910787 | D11: 6.01427573 | E11: 6.72669662 | F11: 3.68459764 | G11: 4.165035392
B12: =+Asset7 -> Contributions | C12: -36.17865079 | D12: -36.17865079 | E12: -36.17865079 | F12: -36.17865079 | G12: -36.17865079
B13: =+Asset8 -> Buildings | C13: 0.9492782718 | D13: 1.313234575 | E13: 1.679125855 | F13: 2.044874783 | G13: 2.410368473
B14: =+Asset9 -> Vehicles - 15 years | C14: 10.34633411 | D14: 10.52140262 | E14: 4.929338946 | F14: 4.26010435 | G14: 4.488838103
B15: =+Asset10 -> Vehicles - 10 years | C15: 0 | D15: 2.060022905 | E15: 3.036947524 | F15: 3.581098856 | G15: 4.566062238
B16: =+Asset11 -> Light Vehicles | C16: 6.00374517 | D16: 5.818373028 | E16: 6.320055065 | F16: 6.512545099 | G16: 6.58538688
B17: =+Asset12 -> IT | C17: -6.18087362 | D17: 54.89284857 | E17: 58.37360944 | F17: 61.29250408 | G17: 61.90393587
B18: =+Asset13 -> Plant & Tools/Office Furniture | C18: 11.19735782 | D18: 11.99946025 | E18: 9.514646738 | F18: 9.509509881 | G18: 10.12995387
B19: =+Asset14 -> Equity raising Costs | C19: 0.05686406248 | D19: 0.3195220366 | E19: 0.3195220366 | F19: 0.3195220366 | G19: 0.3195220366
B20: =+Asset15 -> Asset15 - Not in Use
B21: =+Asset16 -> Asset16 - Not in Use
C23: =SUM(C6:C22) -> 206.1891848 | D23: =SUM(D6:D22) -> 276.3967319 | E23: =SUM(E6:E22) -> 279.5028717 | F23: =SUM(F6:F22) -> 285.0306532 | G23: =SUM(G6:G22) -> 293.4718575

Sheet I5|Reference
A1: =RIGHT(CELL("filename",A1),LEN(CELL("filename",A1))-FIND("]",CELL("filename",A1))) -> I5|Reference | B1: Lookup and Reference Data
D3: 2009-10 | E3: 2010-11 | F3: 2011-12 | G3: 2012-13 | H3: 2013-14 | I3: 2014-15 | J3: 2015-16 | K3: 2016-17 | L3: 2017-18 | M3: 2018-19 | N3: 2019-20 | O3: 2020-21 | P3: 2021-22 | Q3: 2022-23 | R3: 2023-24 | S3: 2024-25
E4: 1 | F4: 2 | G4: 3 | H4: 4 | I4: 5 | J4: 6 | K4: 7 | L4: 8 | M4: 9 | N4: 10 | O4: 11 | P4: 12 | Q4: 13 | R4: 14 | S4: 15
B5: Forecast CPI | C5: 0.0247
B9: Actual or forecast CPI: | E9: Actual | F9: Actual | G9: Actual | H9: Actual | I9: Actual | J9: Actual | K9: Actual | L9: Actual | M9: Actual | N9: Forecast | O9: Forecast | P9: Forecast | Q9: Forecast | R9: Forecast | S9: Forecast
B12: Actual CPI to Date | D12: 0.0289 | E12: 0.0333 | F12: 0.0158 | G12: 0.025 | H12: 0.0293 | I12: 0.01328273245 | J12: 0.01688555347 | K12: 0.0147601476 | L12: 0.01909090909 | M12: 0.0178412132 | N12: 0.02 | O12: =$C$5 -> 0.0247 | P12: 0.0247 | Q12: 0.0247 | R12: 0.0247 | S12: 0.0247
B13: Actual CPI Escalation factor to Date + future @ PTRM | E13: =+E12 -> 0.0333 | F13: =(1+E13)*(1+F12)-1 -> 0.04962614 | G13: =(1+F13)*(1+G12)-1 -> 0.0758667935 | H13: 0.1073896905 | I13: 0.1220988515 | J13: =(1+I13)*(1+J12)-1 -> 0.1410461117 | K13: =(1+J13)*(1+K12)-1 -> 0.1578881207 | L13: =(1+K13)*(1+L12)-1 -> 0.1799932576 | M13: =(1+L13)*(1+M12)-1 -> 0.2010457688 | N13: =(1+M13)*(1+N12)-1 -> 0.2250666842 | O13: =(1+N13)*(1+O12)-1 -> 0.2553258313 | P13: =(1+O13)*(1+P12)-1 -> 0.2863323794 | Q13: =(1+P13)*(1+Q12)-1 -> 0.3181047891 | R13: =(1+Q13)*(1+R12)-1 -> 0.3506619774 | S13: =(1+R13)*(1+S12)-1 -> 0.3840233283
B14: (ie if no actual CPI index input, uses PTRM CPI)
B19: Nominal vanilla WACC (fixed real time varying) | C19: Per 2015-2020 RFM | I19: 0.08482136313

Sheet Section2
A1: =RIGHT(CELL("filename",A1),LEN(CELL("filename",A1))-FIND("]",CELL("filename",A1))) -> Section2
B3: Section | C3: =+Section1!C3+1 -> 2
B5: Workings

Sheet Depn|Inputs
A1: =RIGHT(CELL("filename",A1),LEN(CELL("filename",A1))-FIND("]",CELL("filename",A1))) -> Depn|Inputs | E1: Per 2015 EDPR PTRM | G1: Per 2020 EDPR RFM
A2: Assumptions
C5: General Assumptions
E7: First reg period | F7: Second reg period | G7: Third reg period | H7: Fourth reg period
C8: Base year $ | E8: 2010 | F8: 2015 | G8: 2020 | H8: 2025
C10: Escalation Inputs
C12: Inflation | E12: Source | I12: 2009-10 | J12: 2010-11 | K12: 2011-12 | L12: 2012-13 | M12: 2013-14 | N12: 2014-15 | O12: 2015-16 | P12: 2016-17 | Q12: 2017-18 | R12: 2018-19 | S12: 2019-20 | T12: 2020-21 | U12: 2021-22 | V12: 2022-23 | W12: 2023-24 | X12: 2024-25
C13: Actual Inflation | E13: =_LU_L1 -> I5|Reference | I13: ='I5|Reference'!D12 -> 0.0289 | J13: ='I5|Reference'!E12 -> 0.0333 | K13: ='I5|Reference'!F12 -> 0.0158 | L13: ='I5|Reference'!G12 -> 0.025 | M13: ='I5|Reference'!H12 -> 0.0293 | N13: ='I5|Reference'!I12 -> 0.01328273245 | O13: ='I5|Reference'!J12 -> 0.01688555347 | P13: ='I5|Reference'!K12 -> 0.0147601476 | Q13: ='I5|Reference'!L12 -> 0.01909090909 | R13: ='I5|Reference'!M12 -> 0.0178412132 | S13: ='I5|Reference'!N12 -> 0.02 | T13: ='I5|Reference'!O12 -> 0.0247 | U13: ='I5|Reference'!P12 -> 0.0247 | V13: ='I5|Reference'!Q12 -> 0.0247 | W13: ='I5|Reference'!R12 -> 0.0247 | X13: ='I5|Reference'!S12 -> 0.0247
C14: Cumulative inflation (one year lagged)-2010 | E14: As per RFM | I14: 1 | J14: =(I14*(1+I13)) -> 1.0289 | K14: =(J14*(1+J13)) -> 1.06316237 | L14: 1.079960335 | M14: 1.106959344 | N14: 1.139393253 | O14: 1.154527508 | P14: 1.174022344 | Q14: 1.191351087 | R14: 1.214095063 | S14: 1.235755992 | T14: 1.260471111 | U14: 1.291604748 | V14: 1.323507385 | W14: 1.356198018 | X14: 1.389696109
C15: Cumulative inflation (one year lagged)-2015 | E15: As per RFM | N15: 1 | O15: =(N15*(1+N13)) -> 1.013282732 | P15: =(O15*(1+O13)) -> 1.030392572 | Q15: 1.045601319 | R15: 1.065562798 | S15: 1.084573731 | T15: 1.106265206 | U15: 1.133589957 | V15: 1.161589629 | W15: 1.190280892 | X15: 1.21968083
C16: ="Conversion from $ 2010 to $ "&second_reg_period -> Conversion from $ 2010 to $ 2015 | D16: conv_2015_2010 | I16: =N14/$I$14 -> 1.139393253
C17: ="Conversion from $ "&first_reg_period&" to $ "&third_reg_period -> Conversion from $ 2010 to $ 2020 | D17: conv_2020_2010 | I17: =S14/$I$14 -> 1.235755992
C18: ="Conversion from $ "&first_reg_period&" to $ "&fourth_reg_period -> Conversion from $ 2010 to $ 2025 | D18: conv_2025_2010 | I18: =X14/$I$14 -> 1.389696109
C20: Capex
C22: 2011-20 Net Capex | D22: Source | E22: Unit | F22: Basis | J22: =J$12 -> 2010-11 | K22: =K$12 -> 2011-12 | L22: 2012-13 | M22: 2013-14 | N22: 2014-15 | O22: 2015-16 | P22: 2016-17 | Q22: 2017-18 | R22: 2018-19 | S22: 2019-20 | T22: 2020-21 | U22: 2021-22 | V22: 2022-23 | W22: 2023-24 | X22: 2024-25
C24: =Asset1 -> Sub-transmission lines | D24: ='I3 CAPEX '!$A$1 -> I3 CAPEX | E24: $m | F24: Real 2010 | J24: ='I3 CAPEX '!F31 -> 23.44717127 | K24: ='I3 CAPEX '!G31 -> 38.76655554 | L24: ='I3 CAPEX '!H31 -> 6.220555384 | M24: ='I3 CAPEX '!I31 -> 6.580365201 | N24: ='I3 CAPEX '!J31+'I3 CAPEX '!J55 -> 37.77105972 | O24: ='I3 CAPEX '!K31/conv_2015_2010 -> 3.090400202 | P24: ='I3 CAPEX '!L31/conv_2015_2010 -> 1.413478211 | Q24: ='I3 CAPEX '!M31/conv_2015_2010 -> 1.173352911 | R24: ='I3 CAPEX '!N31/conv_2015_2010 -> 2.513460017 | S24: ='I3 CAPEX '!O31/conv_2015_2010 -> 2.453839091 | T24: ='I3 CAPEX '!P31/conv_2020_2010 -> 0 | U24: ='I3 CAPEX '!Q31/conv_2020_2010 -> 0 | V24: ='I3 CAPEX '!R31/conv_2020_2010 -> 0 | W24: ='I3 CAPEX '!S31/conv_2020_2010 -> 0 | X24: ='I3 CAPEX '!T31/conv_2020_2010 -> 0
C25: =Asset2 -> Distribution Lines | D25: ='I3 CAPEX '!$A$1 -> I3 CAPEX | E25: $m | F25: Real 2010 | J25: ='I3 CAPEX '!F32 -> 78.77705712 | K25: ='I3 CAPEX '!G32 -> 125.7789438 | L25: ='I3 CAPEX '!H32 -> 86.85012746 | M25: ='I3 CAPEX '!I32 -> 64.5812726 | N25: ='I3 CAPEX '!J32+'I3 CAPEX '!J56 -> 166.261635 | O25: ='I3 CAPEX '!K32/conv_2015_2010 -> -158.7114872 | P25: ='I3 CAPEX '!L32/conv_2015_2010 -> 72.7521967 | Q25: ='I3 CAPEX '!M32/conv_2015_2010 -> 41.80282486 | R25: ='I3 CAPEX '!N32/conv_2015_2010 -> 67.17324052 | S25: ='I3 CAPEX '!O32/conv_2015_2010 -> 67.36326932 | T25: ='I3 CAPEX '!P32/conv_2020_2010 -> 0 | U25: ='I3 CAPEX '!Q32/conv_2020_2010 -> 0 | V25: ='I3 CAPEX '!R32/conv_2020_2010 -> 0 | W25: ='I3 CAPEX '!S32/conv_2020_2010 -> 0 | X25: ='I3 CAPEX '!T32/conv_2020_2010 -> 0
C26: =Asset3 -> Substations | D26: ='I3 CAPEX '!$A$1 -> I3 CAPEX | E26: $m | F26: Real 2010 | J26: ='I3 CAPEX '!F33 -> 61.36213758 | K26: ='I3 CAPEX '!G33 -> 158.7975105 | L26: ='I3 CAPEX '!H33 -> 80.51608308 | M26: ='I3 CAPEX '!I33 -> 89.49163909 | N26: ='I3 CAPEX '!J33+'I3 CAPEX '!J57 -> 170.6811511 | O26: ='I3 CAPEX '!K33/conv_2015_2010 -> 186.155978 | P26: ='I3 CAPEX '!L33/conv_2015_2010 -> 26.94468071 | Q26: ='I3 CAPEX '!M33/conv_2015_2010 -> 52.87476932 | R26: ='I3 CAPEX '!N33/conv_2015_2010 -> 51.61015769 | S26: ='I3 CAPEX '!O33/conv_2015_2010 -> 50.46298047 | T26: ='I3 CAPEX '!P33/conv_2020_2010 -> 0 | U26: ='I3 CAPEX '!Q33/conv_2020_2010 -> 0 | V26: ='I3 CAPEX '!R33/conv_2020_2010 -> 0 | W26: ='I3 CAPEX '!S33/conv_2020_2010 -> 0 | X26: ='I3 CAPEX '!T33/conv_2020_2010 -> 0
C27: =Asset4 -> Distribution Transformers | D27: ='I3 CAPEX '!$A$1 -> I3 CAPEX | E27: $m | F27: Real 2010 | J27: ='I3 CAPEX '!F34 -> 19.65465239 | K27: ='I3 CAPEX '!G34 -> 14.19439363 | L27: ='I3 CAPEX '!H34 -> 12.71755834 | M27: ='I3 CAPEX '!I34 -> 15.89472563 | N27: ='I3 CAPEX '!J34+'I3 CAPEX '!J58 -> 14.35437578 | O27: ='I3 CAPEX '!K34/conv_2015_2010 -> 34.26990723 | P27: ='I3 CAPEX '!L34/conv_2015_2010 -> 2.201999751 | Q27: ='I3 CAPEX '!M34/conv_2015_2010 -> 5.759514325 | R27: ='I3 CAPEX '!N34/conv_2015_2010 -> 5.204995618 | S27: ='I3 CAPEX '!O34/conv_2015_2010 -> 5.166774995 | T27: ='I3 CAPEX '!P34/conv_2020_2010 -> 0 | U27: ='I3 CAPEX '!Q34/conv_2020_2010 -> 0 | V27: ='I3 CAPEX '!R34/conv_2020_2010 -> 0 | W27: ='I3 CAPEX '!S34/conv_2020_2010 -> 0 | X27: ='I3 CAPEX '!T34/conv_2020_2010 -> 0
C28: =Asset5 -> LVS | D28: ='I3 CAPEX '!$A$1 -> I3 CAPEX | E28: $m | F28: Real 2010 | J28: ='I3 CAPEX '!F35 -> 50.21867444 | K28: ='I3 CAPEX '!G35 -> 51.50041071 | L28: ='I3 CAPEX '!H35 -> 73.56706409 | M28: ='I3 CAPEX '!I35 -> 88.19529102 | N28: ='I3 CAPEX '!J35+'I3 CAPEX '!J59 -> 80.82243666 | O28: ='I3 CAPEX '!K35/conv_2015_2010 -> 73.23792307 | P28: ='I3 CAPEX '!L35/conv_2015_2010 -> 58.3420403 | Q28: ='I3 CAPEX '!M35/conv_2015_2010 -> 106.1060261 | R28: ='I3 CAPEX '!N35/conv_2015_2010 -> 91.67764399 | S28: ='I3 CAPEX '!O35/conv_2015_2010 -> 90.365416 | T28: ='I3 CAPEX '!P35/conv_2020_2010 -> 0 | U28: ='I3 CAPEX '!Q35/conv_2020_2010 -> 0 | V28: ='I3 CAPEX '!R35/conv_2020_2010 -> 0 | W28: ='I3 CAPEX '!S35/conv_2020_2010 -> 0 | X28: ='I3 CAPEX '!T35/conv_2020_2010 -> 0
C29: =Asset6 -> Communications | D29: ='I3 CAPEX '!$A$1 -> I3 CAPEX | E29: $m | F29: Real 2010 | J29: ='I3 CAPEX '!F36 -> 0.2146708796 | K29: ='I3 CAPEX '!G36 -> 0.6748492033 | L29: ='I3 CAPEX '!H36 -> 1.618915786 | M29: ='I3 CAPEX '!I36 -> 8.603123375 | N29: ='I3 CAPEX '!J36+'I3 CAPEX '!J60 -> 18.77624847 | O29: ='I3 CAPEX '!K36/conv_2015_2010 -> 11.54044901 | P29: ='I3 CAPEX '!L36/conv_2015_2010 -> 7.903406704 | Q29: ='I3 CAPEX '!M36/conv_2015_2010 -> 25.26202142 | R29: ='I3 CAPEX '!N36/conv_2015_2010 -> 17.17090213 | S29: ='I3 CAPEX '!O36/conv_2015_2010 -> 16.7407088 | T29: ='I3 CAPEX '!P36/conv_2020_2010 -> 0 | U29: ='I3 CAPEX '!Q36/conv_2020_2010 -> 0 | V29: ='I3 CAPEX '!R36/conv_2020_2010 -> 0 | W29: ='I3 CAPEX '!S36/conv_2020_2010 -> 0 | X29: ='I3 CAPEX '!T36/conv_2020_2010 -> 0
C30: =Asset7 -> Contributions | D30: ='I3 CAPEX '!$A$1 -> I3 CAPEX | E30: $m | F30: Real 2010 | J30: ='I3 CAPEX '!F37 -> -112.1675791 | K30: ='I3 CAPEX '!G37 -> -89.47342991 | L30: ='I3 CAPEX '!H37 -> -69.76760745 | M30: ='I3 CAPEX '!I37 -> -78.41625572 | N30: ='I3 CAPEX '!J37+'I3 CAPEX '!J61 -> -59.96109935 | O30: ='I3 CAPEX '!K37/conv_2015_2010 -> 0 | P30: ='I3 CAPEX '!L37/conv_2015_2010 -> 0 | Q30: ='I3 CAPEX '!M37/conv_2015_2010 -> 0 | R30: ='I3 CAPEX '!N37/conv_2015_2010 -> 0 | S30: ='I3 CAPEX '!O37/conv_2015_2010 -> 0 | T30: ='I3 CAPEX '!P37/conv_2020_2010 -> 0 | U30: ='I3 CAPEX '!Q37/conv_2020_2010 -> 0 | V30: ='I3 CAPEX '!R37/conv_2020_2010 -> 0 | W30: ='I3 CAPEX '!S37/conv_2020_2010 -> 0 | X30: ='I3 CAPEX '!T37/conv_2020_2010 -> 0
C31: =Asset8 -> Buildings | D31: ='I3 CAPEX '!$A$1 -> I3 CAPEX | E31: $m | F31: Real 2010 | J31: ='I3 CAPEX '!F38 -> 0.399696733 | K31: ='I3 CAPEX '!G38 -> 5.963783657 | L31: ='I3 CAPEX '!H38 -> 0.15034868 | M31: ='I3 CAPEX '!I38 -> 0.05500233199 | N31: ='I3 CAPEX '!J38+'I3 CAPEX '!J62 -> 1.155737875 | O31: ='I3 CAPEX '!K38/conv_2015_2010 -> 0 | P31: ='I3 CAPEX '!L38/conv_2015_2010 -> 0 | Q31: ='I3 CAPEX '!M38/conv_2015_2010 -> 0 | R31: ='I3 CAPEX '!N38/conv_2015_2010 -> 9.172873196 | S31: ='I3 CAPEX '!O38/conv_2015_2010 -> 12.67372447 | T31: ='I3 CAPEX '!P41/conv_2020_2010 -> 0 | U31: ='I3 CAPEX '!Q41/conv_2020_2010 -> 0 | V31: ='I3 CAPEX '!R41/conv_2020_2010 -> 0 | W31: ='I3 CAPEX '!S41/conv_2020_2010 -> 0 | X31: ='I3 CAPEX '!T41/conv_2020_2010 -> 0
C32: =Asset9 -> Vehicles - 15 years | D32: ='I3 CAPEX '!$A$1 -> I3 CAPEX | E32: $m | F32: Real 2010 | J32: ='I3 CAPEX '!F39 -> 12.15037179 | K32: ='I3 CAPEX '!G39 -> 9.10065539 | L32: ='I3 CAPEX '!H39 -> 11.81740624 | M32: ='I3 CAPEX '!I39 -> 12.09197819 | N32: ='I3 CAPEX '!J39+'I3 CAPEX '!J63 -> 24.28264009 | O32: ='I3 CAPEX '!K39/conv_2015_2010 -> 4.069031295 | P32: ='I3 CAPEX '!L39/conv_2015_2010 -> 1.151169831 | Q32: ='I3 CAPEX '!M39/conv_2015_2010 -> 1.815846833 | R32: ='I3 CAPEX '!N39/conv_2015_2010 -> 3.021146199 | S32: ='I3 CAPEX '!O39/conv_2015_2010 -> 2.937318673 | T32: ='I3 CAPEX '!P42/conv_2020_2010 -> 0 | U32: ='I3 CAPEX '!Q42/conv_2020_2010 -> 0 | V32: ='I3 CAPEX '!R42/conv_2020_2010 -> 0 | W32: ='I3 CAPEX '!S42/conv_2020_2010 -> 0 | X32: ='I3 CAPEX '!T42/conv_2020_2010 -> 0
C33: =Asset10 -> Vehicles - 10 years | D33: ='I3 CAPEX '!$A$1 -> I3 CAPEX | E33: $m | F33: Real 2010 | J33: ='I3 CAPEX '!F40 -> 0 | K33: ='I3 CAPEX '!G40 -> 0 | L33: ='I3 CAPEX '!H40 -> 0 | M33: ='I3 CAPEX '!I40 -> 0 | N33: ='I3 CAPEX '!J40+'I3 CAPEX '!J64 -> 0 | O33: ='I3 CAPEX '!K40/conv_2015_2010 -> 2.396648262 | P33: ='I3 CAPEX '!L40/conv_2015_2010 -> 5.454897263 | Q33: ='I3 CAPEX '!M40/conv_2015_2010 -> 6.020743597 | R33: ='I3 CAPEX '!N40/conv_2015_2010 -> 5.701249988 | S33: ='I3 CAPEX '!O40/conv_2015_2010 -> 5.546090232 | T33: ='I3 CAPEX '!P43/conv_2020_2010 -> 0 | U33: ='I3 CAPEX '!Q43/conv_2020_2010 -> 0 | V33: ='I3 CAPEX '!R43/conv_2020_2010 -> 0 | W33: ='I3 CAPEX '!S43/conv_2020_2010 -> 0 | X33: ='I3 CAPEX '!T43/conv_2020_2010 -> 0
C34: =Asset11 -> Light Vehicles | D34: ='I3 CAPEX '!$A$1 -> I3 CAPEX | E34: $m | F34: Real 2010 | J34: ='I3 CAPEX '!F41 -> 9.044799728 | K34: ='I3 CAPEX '!G41 -> 3.388959298 | L34: ='I3 CAPEX '!H41 -> 4.585149743 | M34: ='I3 CAPEX '!I41 -> 4.487431637 | N34: ='I3 CAPEX '!J41+'I3 CAPEX '!J65 -> 4.202630965 | O34: ='I3 CAPEX '!K41/conv_2015_2010 -> 4.598140168 | P34: ='I3 CAPEX '!L41/conv_2015_2010 -> 3.262281192 | Q34: ='I3 CAPEX '!M41/conv_2015_2010 -> 6.006367851 | R34: ='I3 CAPEX '!N41/conv_2015_2010 -> 6.476817088 | S34: ='I3 CAPEX '!O41/conv_2015_2010 -> 6.298058998 | T34: ='I3 CAPEX '!P44/conv_2020_2010 -> 0 | U34: ='I3 CAPEX '!Q44/conv_2020_2010 -> 0 | V34: ='I3 CAPEX '!R44/conv_2020_2010 -> 0 | W34: ='I3 CAPEX '!S44/conv_2020_2010 -> 0 | X34: ='I3 CAPEX '!T44/conv_2020_2010 -> 0
C35: =Asset12 -> IT | D35: ='I3 CAPEX '!$A$1 -> I3 CAPEX | E35: $m | F35: Real 2010 | J35: ='I3 CAPEX '!F42 -> 7.245653308 | K35: ='I3 CAPEX '!G42 -> 34.20641899 | L35: ='I3 CAPEX '!H42 -> 26.70483553 | M35: ='I3 CAPEX '!I42 -> 36.41438872 | N35: ='I3 CAPEX '!J42+'I3 CAPEX '!J66 -> 99.13307814 | O35: ='I3 CAPEX '!K42/conv_2015_2010 -> 36.3157204 | P35: ='I3 CAPEX '!L42/conv_2015_2010 -> 45.85229434 | Q35: ='I3 CAPEX '!M42/conv_2015_2010 -> 53.0192293 | R35: ='I3 CAPEX '!N42/conv_2015_2010 -> 54.58952235 | S35: ='I3 CAPEX '!O42/conv_2015_2010 -> 59.01868161 | T35: ='I3 CAPEX '!P45/conv_2020_2010 -> 0 | U35: ='I3 CAPEX '!Q45/conv_2020_2010 -> 0 | V35: ='I3 CAPEX '!R45/conv_2020_2010 -> 0 | W35: ='I3 CAPEX '!S45/conv_2020_2010 -> 0 | X35: ='I3 CAPEX '!T45/conv_2020_2010 -> 0
C36: =Asset13 -> Plant & Tools/Office Furniture | D36: ='I3 CAPEX '!$A$1 -> I3 CAPEX | E36: $m | F36: Real 2010 | J36: ='I3 CAPEX '!F43 -> 10.6057637 | K36: ='I3 CAPEX '!G43 -> 18.16207536 | L36: ='I3 CAPEX '!H43 -> 15.82929102 | M36: ='I3 CAPEX '!I43 -> 9.604545144 | N36: ='I3 CAPEX '!J43+'I3 CAPEX '!J67 -> 26.99552196 | O36: ='I3 CAPEX '!K43/conv_2015_2010 -> 8.262949943 | P36: ='I3 CAPEX '!L43/conv_2015_2010 -> 8.056778001 | Q36: ='I3 CAPEX '!M43/conv_2015_2010 -> 11.99558796 | R36: ='I3 CAPEX '!N43/conv_2015_2010 -> 4.208965627 | S36: ='I3 CAPEX '!O43/conv_2015_2010 -> 4.013387895 | T36: ='I3 CAPEX '!P46/conv_2020_2010 -> 0 | U36: ='I3 CAPEX '!Q46/conv_2020_2010 -> 0 | V36: ='I3 CAPEX '!R46/conv_2020_2010 -> 0 | W36: ='I3 CAPEX '!S46/conv_2020_2010 -> 0 | X36: ='I3 CAPEX '!T46/conv_2020_2010 -> 0
C37: =Asset14 -> Equity raising Costs | D37: ='I3 CAPEX '!$A$1 -> I3 CAPEX | E37: $m | F37: Real 2010 | J37: ='I3 CAPEX '!F44 -> 2.666096134 | K37: ='I3 CAPEX '!G44 -> 0 | L37: ='I3 CAPEX '!H44 -> 0 | M37: ='I3 CAPEX '!I44 -> 0 | N37: ='I3 CAPEX '!J44/conv_2015_2010 -> 0 | O37: ='I3 CAPEX '!K44/conv_2015_2010 -> 12.09929516 | P37: ='I3 CAPEX '!L44/conv_2015_2010 -> 0 | Q37: ='I3 CAPEX '!M44/conv_2015_2010 -> 0 | R37: ='I3 CAPEX '!N44/conv_2015_2010 -> 0 | S37: ='I3 CAPEX '!O44/conv_2015_2010 -> 0 | T37: ='I3 CAPEX '!P47/conv_2020_2010 -> 0 | U37: ='I3 CAPEX '!Q47/conv_2020_2010 -> 0 | V37: ='I3 CAPEX '!R47/conv_2020_2010 -> 0 | W37: ='I3 CAPEX '!S47/conv_2020_2010 -> 0 | X37: ='I3 CAPEX '!T47/conv_2020_2010 -> 0
C38: =Asset15 -> Asset15 - Not in Use | D38: ='I3 CAPEX '!$A$1 -> I3 CAPEX | E38: $m | F38: Real 2010 | J38: ='I3 CAPEX '!F45 -> 0 | K38: ='I3 CAPEX '!G45 -> 0 | L38: ='I3 CAPEX '!H45 -> 0 | M38: ='I3 CAPEX '!I45 -> 0 | N38: ='I3 CAPEX '!J45/conv_2015_2010 -> 0 | O38: ='I3 CAPEX '!K45/conv_2015_2010 -> 0 | P38: ='I3 CAPEX '!L45/conv_2015_2010 -> 0 | Q38: ='I3 CAPEX '!M45/conv_2015_2010 -> 0 | R38: ='I3 CAPEX '!N45/conv_2015_2010 -> 0 | S38: ='I3 CAPEX '!O45/conv_2015_2010 -> 0 | T38: ='I3 CAPEX '!P48/conv_2020_2010 -> 0 | U38: ='I3 CAPEX '!Q48/conv_2020_2010 -> 0 | V38: ='I3 CAPEX '!R48/conv_2020_2010 -> 0 | W38: ='I3 CAPEX '!S48/conv_2020_2010 -> 0 | X38: ='I3 CAPEX '!T48/conv_2020_2010 -> 0
C39: =Asset16 -> Asset16 - Not in Use | D39: ='I3 CAPEX '!$A$1 -> I3 CAPEX | E39: $m | F39: Real 2010 | J39: ='I3 CAPEX '!F46 -> 0 | K39: ='I3 CAPEX '!G46 -> 0 | L39: ='I3 CAPEX '!H46 -> 0 | M39: ='I3 CAPEX '!I46 -> 0 | N39: ='I3 CAPEX '!J46/conv_2015_2010 -> 0 | O39: ='I3 CAPEX '!K46/conv_2015_2010 -> 0 | P39: ='I3 CAPEX '!L46/conv_2015_2010 -> 0 | Q39: ='I3 CAPEX '!M46/conv_2015_2010 -> 0 | R39: ='I3 CAPEX '!N46/conv_2015_2010 -> 0 | S39: ='I3 CAPEX '!O46/conv_2015_2010 -> 0 | T39: ='I3 CAPEX '!P49/conv_2020_2010 -> 0 | U39: ='I3 CAPEX '!Q49/conv_2020_2010 -> 0 | V39: ='I3 CAPEX '!R49/conv_2020_2010 -> 0 | W39: ='I3 CAPEX '!S49/conv_2020_2010 -> 0 | X39: ='I3 CAPEX '!T49/conv_2020_2010 -> 0
C43: Depreciation
C45: PTRM Forecast depreciation | D45: Source | E45: Unit | F45: Basis | J45: =J$12 -> 2010-11 | K45: =K$12 -> 2011-12 | L45: 2012-13 | M45: 2013-14 | N45: 2014-15 | O45: 2015-16 | P45: 2016-17 | Q45: 2017-18 | R45: 2018-19 | S45: 2019-20 | T45: 2020-21 | U45: 2021-22 | V45: 2022-23 | W45: 2023-24 | X45: 2024-25
C47: =Asset1 -> Sub-transmission lines | D47: ='I4|Dep'!$A$1 -> I4|Dep | E47: $m | F47: Real 2015 | O47: ='I4|Dep'!C6 -> 3.30967236 | P47: ='I4|Dep'!D6 -> 3.49486927 | Q47: ='I4|Dep'!E6 -> 3.723680336 | R47: ='I4|Dep'!F6 -> 3.785198193 | S47: ='I4|Dep'!G6 -> 3.800115006
C48: =Asset2 -> Distribution Lines | D48: ='I4|Dep'!$A$1 -> I4|Dep | E48: $m | F48: Real 2015 | O48: ='I4|Dep'!C7 -> 105.1018115 | P48: ='I4|Dep'!D7 -> 108.1041857 | Q48: ='I4|Dep'!E7 -> 111.7253031 | R48: ='I4|Dep'!F7 -> 115.5806367 | S48: ='I4|Dep'!G7 -> 119.4179844
C49: =Asset3 -> Substations | D49: ='I4|Dep'!$A$1 -> I4|Dep | E49: $m | F49: Real 2015 | O49: ='I4|Dep'!C8 -> 43.0332953 | P49: ='I4|Dep'!D8 -> 44.02600096 | Q49: ='I4|Dep'!E8 -> 44.82181814 | R49: ='I4|Dep'!F8 -> 45.60108028 | S49: ='I4|Dep'!G8 -> 46.27019621
C50: =Asset4 -> Distribution Transformers | D50: ='I4|Dep'!$A$1 -> I4|Dep | E50: $m | F50: Real 2015 | O50: ='I4|Dep'!C9 -> 27.60273463 | P50: ='I4|Dep'!D9 -> 27.98256101 | Q50: ='I4|Dep'!E9 -> 28.383332 | R50: ='I4|Dep'!F9 -> 28.81085613 | S50: ='I4|Dep'!G9 -> 29.26024653
C51: =Asset5 -> LVS | D51: ='I4|Dep'!$A$1 -> I4|Dep | E51: $m | F51: Real 2015 | O51: ='I4|Dep'!C10 -> 35.9287052 | P51: ='I4|Dep'!D10 -> 36.02862604 | Q51: ='I4|Dep'!E10 -> 36.12744668 | R51: ='I4|Dep'!F10 -> 36.22677599 | S51: ='I4|Dep'!G10 -> 36.3328633
C52: =Asset6 -> Communications | D52: ='I4|Dep'!$A$1 -> I4|Dep | E52: $m | F52: Real 2015 | O52: ='I4|Dep'!C11 -> 5.018910787 | P52: ='I4|Dep'!D11 -> 6.01427573 | Q52: ='I4|Dep'!E11 -> 6.72669662 | R52: ='I4|Dep'!F11 -> 3.68459764 | S52: ='I4|Dep'!G11 -> 4.165035392
C53: =Asset7 -> Contributions | D53: ='I4|Dep'!$A$1 -> I4|Dep | E53: $m | F53: Real 2015 | O53: ='I4|Dep'!C12 -> -36.17865079 | P53: ='I4|Dep'!D12 -> -36.17865079 | Q53: ='I4|Dep'!E12 -> -36.17865079 | R53: ='I4|Dep'!F12 -> -36.17865079 | S53: ='I4|Dep'!G12 -> -36.17865079
C54: =Asset8 -> Buildings | D54: ='I4|Dep'!$A$1 -> I4|Dep | E54: $m | F54: Real 2015 | O54: ='I4|Dep'!C13 -> 0.9492782718 | P54: ='I4|Dep'!D13 -> 1.313234575 | Q54: ='I4|Dep'!E13 -> 1.679125855 | R54: ='I4|Dep'!F13 -> 2.044874783 | S54: ='I4|Dep'!G13 -> 2.410368473
C55: =Asset9 -> Vehicles - 15 years | D55: ='I4|Dep'!$A$1 -> I4|Dep | E55: $m | F55: Real 2015 | O55: ='I4|Dep'!C14 -> 10.34633411 | P55: ='I4|Dep'!D14 -> 10.52140262 | Q55: ='I4|Dep'!E14 -> 4.929338946 | R55: ='I4|Dep'!F14 -> 4.26010435 | S55: ='I4|Dep'!G14 -> 4.488838103
C56: =Asset10 -> Vehicles - 10 years | D56: ='I4|Dep'!$A$1 -> I4|Dep | E56: $m | F56: Real 2015 | O56: ='I4|Dep'!C15 -> 0 | P56: ='I4|Dep'!D15 -> 2.060022905 | Q56: ='I4|Dep'!E15 -> 3.036947524 | R56: ='I4|Dep'!F15 -> 3.581098856 | S56: ='I4|Dep'!G15 -> 4.566062238
C57: =Asset11 -> Light Vehicles | D57: ='I4|Dep'!$A$1 -> I4|Dep | E57: $m | F57: Real 2015 | O57: ='I4|Dep'!C16 -> 6.00374517 | P57: ='I4|Dep'!D16 -> 5.818373028 | Q57: ='I4|Dep'!E16 -> 6.320055065 | R57: ='I4|Dep'!F16 -> 6.512545099 | S57: ='I4|Dep'!G16 -> 6.58538688
C58: =Asset12 -> IT | D58: ='I4|Dep'!$A$1 -> I4|Dep | E58: $m | F58: Real 2015 | O58: ='I4|Dep'!C17 -> -6.18087362 | P58: ='I4|Dep'!D17 -> 54.89284857 | Q58: ='I4|Dep'!E17 -> 58.37360944 | R58: ='I4|Dep'!F17 -> 61.29250408 | S58: ='I4|Dep'!G17 -> 61.90393587
C59: =Asset13 -> Plant & Tools/Office Furniture | D59: ='I4|Dep'!$A$1 -> I4|Dep | E59: $m | F59: Real 2015 | O59: ='I4|Dep'!C18 -> 11.19735782 | P59: ='I4|Dep'!D18 -> 11.99946025 | Q59: ='I4|Dep'!E18 -> 9.514646738 | R59: ='I4|Dep'!F18 -> 9.509509881 | S59: ='I4|Dep'!G18 -> 10.12995387
C60: =Asset14 -> Equity raising Costs | D60: ='I4|Dep'!$A$1 -> I4|Dep | E60: $m | F60: Real 2015 | O60: ='I4|Dep'!C19 -> 0.05686406248 | P60: ='I4|Dep'!D19 -> 0.3195220366 | Q60: ='I4|Dep'!E19 -> 0.3195220366 | R60: ='I4|Dep'!F19 -> 0.3195220366 | S60: ='I4|Dep'!G19 -> 0.3195220366
C61: =Asset15 -> Asset15 - Not in Use | D61: ='I4|Dep'!$A$1 -> I4|Dep | E61: $m | F61: Real 2015 | O61: ='I4|Dep'!C20 -> 0 | P61: ='I4|Dep'!D20 -> 0 | Q61: ='I4|Dep'!E20 -> 0 | R61: ='I4|Dep'!F20 -> 0 | S61: ='I4|Dep'!G20 -> 0
C62: =Asset16 -> Asset16 - Not in Use | D62: ='I4|Dep'!$A$1 -> I4|Dep | E62: $m | F62: Real 2015 | O62: ='I4|Dep'!C21 -> 0 | P62: ='I4|Dep'!D21 -> 0 | Q62: ='I4|Dep'!E21 -> 0 | R62: ='I4|Dep'!F21 -> 0 | S62: ='I4|Dep'!G21 -> 0
C65: RAB roll-forward
C68: Total 2015 Adjustment for final 2010 capex/ Total 2020 Adjustment for final 2015 capex | D68: Source | E68: Unit | F68: Basis | J68: =J$12 -> 2010-11 | K68: =K$12 -> 2011-12 | L68: 2012-13 | M68: 2013-14 | N68: 2014-15 | O68: 2015-16 | P68: 2016-17 | Q68: 2017-18 | R68: 2018-19 | S68: 2019-20
C70: =Asset1 -> Sub-transmission lines | D70: ='I3 CAPEX '!$A$1 -> I3 CAPEX | E70: $m | F70: Nominal | N70: ='I3 CAPEX '!I55 -> 2.361640741 | S70: ='I3 CAPEX '!O55 -> 0.8963004392
C71: =Asset2 -> Distribution Lines | D71: ='I3 CAPEX '!$A$1 -> I3 CAPEX | E71: $m | F71: Nominal | N71: ='I3 CAPEX '!I56 -> 89.43462668 | S71: ='I3 CAPEX '!O56 -> -12.41157764
C72: =Asset3 -> Substations | D72: ='I3 CAPEX '!$A$1 -> I3 CAPEX | E72: $m | F72: Nominal | N72: ='I3 CAPEX '!I57 -> 31.12238195 | S72: ='I3 CAPEX '!O57 -> -0.2576593856
C73: =Asset4 -> Distribution Transformers | D73: ='I3 CAPEX '!$A$1 -> I3 CAPEX | E73: $m | F73: Nominal | N73: ='I3 CAPEX '!I58 -> -6.182058177 | S73: ='I3 CAPEX '!O58 -> -0.1784427325
C74: =Asset5 -> LVS | D74: ='I3 CAPEX '!$A$1 -> I3 CAPEX | E74: $m | F74: Nominal | N74: ='I3 CAPEX '!I59 -> -12.45069135 | S74: ='I3 CAPEX '!O59 -> 2.46969768
C75: =Asset6 -> Communications | D75: ='I3 CAPEX '!$A$1 -> I3 CAPEX | E75: $m | F75: Nominal | N75: ='I3 CAPEX '!I60 -> -6.614650778 | S75: ='I3 CAPEX '!O60 -> 1.630086281
C76: =Asset7 -> Contributions | D76: ='I3 CAPEX '!$A$1 -> I3 CAPEX | E76: $m | F76: Nominal | N76: ='I3 CAPEX '!I61 -> -193.5367029 | S76: ='I3 CAPEX '!O61 -> 0.8664481553
C77: =Asset8 -> Buildings | D77: ='I3 CAPEX '!$A$1 -> I3 CAPEX | E77: $m | F77: Nominal | N77: ='I3 CAPEX '!I62 -> -0.7257117276 | S77: ='I3 CAPEX '!O62 -> -0.7113558339
C78: =Asset9 -> Vehicles - 15 years | D78: ='I3 CAPEX '!$A$1 -> I3 CAPEX | E78: $m | F78: Nominal | N78: ='I3 CAPEX '!I63 -> -4.824269295 | S78: ='I3 CAPEX '!O63 -> 0.3667114275
C79: =Asset10 -> Vehicles - 10 years | D79: ='I3 CAPEX '!$A$1 -> I3 CAPEX | E79: $m | F79: Nominal | N79: ='I3 CAPEX '!I64 -> 0 | S79: ='I3 CAPEX '!O64 -> 0
C80: =Asset11 -> Light Vehicles | D80: ='I3 CAPEX '!$A$1 -> I3 CAPEX | E80: $m | F80: Nominal | N80: ='I3 CAPEX '!I65 -> 0 | S80: ='I3 CAPEX '!O65 -> -0.244643864
C81: =Asset12 -> IT | D81: ='I3 CAPEX '!$A$1 -> I3 CAPEX | E81: $m | F81: Nominal | N81: ='I3 CAPEX '!I66 -> -50.37684921 | S81: ='I3 CAPEX '!O66 -> 2.373294891
C82: =Asset13 -> Plant & Tools/Office Furniture | D82: ='I3 CAPEX '!$A$1 -> I3 CAPEX | E82: $m | F82: Nominal | N82: ='I3 CAPEX '!I67 -> -4.355560463 | S82: ='I3 CAPEX '!O67 -> 2.002635669
C83: =Asset14 -> Equity raising Costs | D83: ='I3 CAPEX '!$A$1 -> I3 CAPEX | E83: $m | F83: Nominal
C84: =Asset15 -> Asset15 - Not in Use | D84: ='I3 CAPEX '!$A$1 -> I3 CAPEX | E84: $m | F84: Nominal
C85: =Asset16 -> Asset16 - Not in Use | D85: ='I3 CAPEX '!$A$1 -> I3 CAPEX | E85: $m | F85: Nominal
C86: Total | D86: Calculated | E86: $m | F86: Nominal | N86: =SUM(N70:N85) -> -156.1478445 | S86: =SUM(S70:S85) -> -3.198504915

Sheet Depn|Calc
A1: =RIGHT(CELL("filename",A1),LEN(CELL("filename",A1))-FIND("]",CELL("filename",A1))) -> Depn|Calc | D1: Depreciation Calculations | H1: Section check | I1: =IF(COUNTIF($A13:$A442,"OK")=COUNTA($A12:$A442),"OK","Check") -> Check
B3: Year | H3: Year ended June 30: | I3: 2010 | J3: =I3+1 -> 2011 | K3: =J3+1 -> 2012 | L3: 2013 | M3: 2014 | N3: 2015 | O3: 2016 | P3: 2017 | Q3: 2018 | R3: 2019 | S3: 2020 | T3: 2021 | U3: 2022 | V3: 2023 | W3: 2024 | X3: 2025 | Y3: 2026 | Z3: 2027 | AA3: 2028 | AB3: 2029 | AC3: 2030 | AD3: 2031 | AE3: 2032 | AF3: 2033 | AG3: 2034 | AH3: 2035 | AI3: 2036 | AJ3: 2037 | AK3: 2038 | AL3: 2039 | AM3: 2040 | AN3: 2041 | AO3: 2042 | AP3: 2043 | AQ3: 2044 | AR3: 2045 | AS3: 2046 | AT3: 2047 | AU3: 2048 | AV3: 2049 | AW3: 2050 | AX3: 2051 | AY3: 2052 | AZ3: 2053 | BA3: 2054 | BB3: 2055 | BC3: 2056 | BD3: 2057 | BE3: 2058 | BF3: 2059 | BG3: 2060 | BH3: 2061 | BI3: 2062 | BJ3: 2063 | BK3: 2064 | BL3: 2065 | BM3: 2066 | BN3: 2067 | BO3: 2068 | BP3: 2069 | BQ3: 2070 | BR3: =BQ3+1 -> 2071 | BS3: =BR3+1 -> 2072 | BT3: =BS3+1 -> 2073 | BU3: =BT3+1 -> 2074 | BV3: =BU3+1 -> 2075
D5: Total Depreciation | E5: $m Real 2010 | J5: =SUMIF($D$17:$D$774, $D5, J$17:J$774) -> 165.8928937 | K5: 172.676151 | L5: 188.2072163 | M5: 200.1168225 | N5: 212.374839 | O5: 185.8835262 | P5: 240.7603716 | Q5: 239.8472236 | R5: 248.208353 | S5: 259.0041929 | T5: 260.9448354 | U5: 249.9789372 | V5: 238.3398146 | W5: 224.9517661 | X5: 203.1867107 | Y5: 170.1497585 | Z5: 169.0694873 | AA5: 167.6733298 | AB5: 125.5685869 | AC5: 116.1654109 | AD5: 114.1080744 | AE5: 37.69195106 | AF5: 29.9409202 | AG5: 27.21778982 | AH5: 25.00290999 | AI5: 22.45712611 | AJ5: 22.45712611 | AK5: 22.45712611 | AL5: 22.45712611 | AM5: 22.45712611 | AN5: 22.45712611 | AO5: 22.45712611 | AP5: =SUMIF($D$17:$D$774, $D5, AP$17:AP$774) -> 22.45712611 | AQ5: 22.45712611 | AR5: 22.45712611 | AS5: 33.78246873 | AT5: 39.47301966 | AU5: 39.47301966 | AV5: 39.47301966 | AW5: 39.47301966 | AX5: 43.35165949 | AY5: 46.53896817 | AZ5: 48.728487 | BA5: 50.55827983 | BB5: 52.46452979 | BC5: 53.47230629 | BD5: 51.96626331 | BE5: 48.12199878 | BF5: 46.05014008 | BG5: 43.35248383 | BH5: 38.15088075 | BI5: 33.25252774 | BJ5: 32.60482373 | BK5: 31.26790609 | BL5: 29.98833673 | BM5: 27.35935101 | BN5: 24.58766187 | BO5: 20.65955441 | BP5: 17.46783634 | BQ5: 14.50103442 | BR5: 9.468247712 | BS5: 10.96612342 | BT5: 8.556892234 | BU5: 5.846306708 | BV5: 2.912409535
D6: Capex | E6: $m Real 2010 | J6: =SUMIF($C$17:$C$774, $D6, J$17:J$774) -> 163.619166 | K6: 371.0611262 | L6: 250.8097279 | M6: 257.5835072 | N6: 584.4754164 | O6: 217.3249556 | P6: 233.335223 | Q6: 311.8362845 | R6: 318.5209744 | S6: 323.0402506 | T6: 0 | U6: 0 | V6: 0 | W6: 0 | X6: 0 | Y6: 0 | Z6: 0 | AA6: 0 | AB6: 0 | AC6: 0 | AD6: 0 | AE6: 0 | AF6: 0 | AG6: 0 | AH6: 0 | AI6: 0 | AJ6: 0 | AK6: 0 | AL6: 0 | AM6: 0 | AN6: 0 | AO6: 0 | AP6: =SUMIF($C$17:$C$774, $D6, AP$17:AP$774) -> 0 | AQ6: 0 | AR6: 0 | AS6: 0 | AT6: 0 | AU6: 0 | AV6: 0 | AW6: 0 | AX6: 0 | AY6: 0 | AZ6: 0 | BA6: 0 | BB6: 0 | BC6: 0 | BD6: 0 | BE6: 0 | BF6: 0 | BG6: 0 | BH6: 0 | BI6: 0 | BJ6: 0 | BK6: 0 | BL6: 0 | BM6: 0 | BN6: 0 | BO6: 0 | BP6: 0 | BQ6: 0 | BR6: 0 | BS6: 0 | BT6: 0 | BU6: 0 | BV6: 0
D8: Existing Assets Closing RAB | E8: $m Real 2010 | I8: =SUMIF($D$17:$D$439, $D8, I$17:I$439) -> 2502.42466 | J8: =SUMIF($D$17:$D$774, $D8, J$17:J$774) -> 2423.536197 | K8: 2257.643303 | L8: 2091.750409 | M8: 1925.857515 | N8: 1761.315604 | O8: 1608.181133 | P8: 1455.046662 | Q8: 1310.14092 | R8: 1170.041565 | S8: 1029.942209 | T8: =SUMIF($D$17:$D$774, $D8, T$17:T$774) -> 889.8428537 | U8: 749.7434983 | V8: 609.6441429 | W8: 469.5447875 | X8: 338.036765 | Y8: 224.0592209 | Z8: 110.0816767 | AA8: -3.895867392 | AB8: -77.67822946 | AC8: -143.6219786 | AD8: =SUMIF($D$17:$D$774, $D8, AD$17:AD$774) -> -209.5657278 | AE8: -200.7415043 | AF8: -185.2249211 | AG8: -169.3812691 | AH8: -153.2734727 | AI8: -137.1656763 | AJ8: -121.0578799 | AK8: -104.9500835 | AL8: -88.84228715 | AM8: -72.73449076 | AN8: =SUMIF($D$17:$D$774, $D8, AN$17:AN$774) -> -56.62669437 | AO8: -40.51889798 | AP8: -24.41110159 | AQ8: -8.3033052 | AR8: 7.804491191 | AS8: 12.58694496 | AT8: 11.67884781 | AU8: 10.77075065 | AV8: 9.862653496 | AW8: 8.954556342 | AX8: =SUMIF($D$17:$D$774, $D8, AX$17:AX$774) -> 8.046459187 | AY8: 7.138362032 | AZ8: 6.230264878 | BA8: 5.322167723 | BB8: 4.414070568 | BC8: 3.505973413 | BD8: 2.597876259 | BE8: 1.689779104 | BF8: 0.7816819492 | BG8: -6.683542608e-14 | BH8: =SUMIF($D$17:$D$774, $D8, BH$17:BH$774) -> -6.683542608e-14 | BI8: -6.683542608e-14 | BJ8: -6.683542608e-14 | BK8: -6.683542608e-14 | BL8: -6.683542608e-14 | BM8: -6.683542608e-14 | BN8: -6.683542608e-14 | BO8: -6.683542608e-14 | BP8: -6.683542608e-14 | BQ8: -6.683542608e-14 | BR8: -6.683542608e-14 | BS8: -6.683542608e-14 | BT8: -6.683542608e-14 | BU8: -6.683542608e-14 | BV8: -6.683542608e-14
D9: Capex Closing RAB | E9: $m Real 2010 | J9: 163.619166 | K9: 527.8970348 | L9: 756.3924402 | M9: 979.7520186 | N9: 1516.394507 | O9: 1652.225551 | P9: 1793.403767 | Q9: 2005.767464 | R9: 2211.648334 | S9: 2411.252641 | T9: 2288.687205 | U9: 2175.365118 | V9: 2073.682153 | W9: 1985.387237 | X9: 1910.266043 | Y9: 1850.90775 | Z9: 1792.629727 | AA9: 1735.747863 | AB9: 1680.775559 | AC9: 1627.367818 | AD9: 1576.167775 | AE9: 1526.615882 | AF9: 1478.122661 | AG9: 1432.025501 | AH9: 1387.879077 | AI9: 1346.258653 | AJ9: 1304.63823 | AK9: 1263.017806 | AL9: 1221.397382 | AM9: 1179.776958 | AN9: 1138.156534 | AO9: 1096.536111 | AP9: 1054.915687 | AQ9: 1013.295263 | AR9: 971.6748394 | AS9: 930.0544156 | AT9: 888.4339919 | AU9: 846.8135681 | AV9: 805.1931443 | AW9: 763.5727205 | AX9: 721.9522968 | AY9: 678.1096748 | AZ9: 632.077534 | BA9: 584.2156004 | BB9: 534.4474168 | BC9: 483.1247403 | BD9: 433.304123 | BE9: 387.3277702 | BF9: 343.4232761 | BG9: 302.0900231 | BH9: 265.1855138 | BI9: 233.1793574 | BJ9: 201.8209051 | BK9: 171.7993705 | BL9: 143.0574052 | BM9: 115.5516567 | BN9: 90.81759729 | BO9: 70.01164537 | BP9: 52.39741153 | BQ9: 37.74997961 | BR9: 28.2817319 | BS9: 17.31560848 | BT9: 8.758716243 | BU9: 2.912409535 | BV9: -3.968492202e-13
D10: Total Closing RAB | E10: $m Real 2010 | I10: =SUM(I8:I9) -> 2502.42466 | J10: =SUM(J8:J9) -> 2587.155363 | K10: =SUM(K8:K9) -> 2785.540338 | L10: 2848.142849 | M10: 2905.609534 | N10: 3277.710111 | O10: 3260.406684 | P10: 3248.450429 | Q10: 3315.908384 | R10: 3381.689899 | S10: 3441.19485 | T10: 3178.530059 | U10: 2925.108616 | V10: 2683.326296 | W10: 2454.932024 | X10: 2248.302808 | Y10: 2074.96697 | Z10: 1902.711404 | AA10: 1731.851995 | AB10: 1603.097329 | AC10: 1483.745839 | AD10: 1366.602047 | AE10: 1325.874378 | AF10: 1292.89774 | AG10: 1262.644232 | AH10: 1234.605604 | AI10: 1209.092977 | AJ10: 1183.58035 | AK10: 1158.067722 | AL10: 1132.555095 | AM10: 1107.042467 | AN10: 1081.52984 | AO10: 1056.017213 | AP10: 1030.504585 | AQ10: 1004.991958 | AR10: 979.4793306 | AS10: 942.6413606 | AT10: 900.1128397 | AU10: 857.5843187 | AV10: 815.0557978 | AW10: 772.5272769 | AX10: 729.998756 | AY10: 685.2480368 | AZ10: 638.3077989 | BA10: 589.5377681 | BB10: 538.8614873 | BC10: 486.6307137 | BD10: 435.9019992 | BE10: 389.0175493 | BF10: 344.2049581 | BG10: 302.0900231 | BH10: 265.1855138 | BI10: 233.1793574 | BJ10: 201.8209051 | BK10: 171.7993705 | BL10: 143.0574052 | BM10: 115.5516567 | BN10: 90.81759729 | BO10: 70.01164537 | BP10: 52.39741153 | BQ10: 37.74997961 | BR10: =SUM(BR8:BR9) -> 28.2817319 | BS10: =SUM(BS8:BS9) -> 17.31560848 | BT10: =SUM(BT8:BT9) -> 8.758716243 | BU10: =SUM(BU8:BU9) -> 2.912409535 | BV10: =SUM(BV8:BV9) -> -4.636846462e-13
A13: =IF(COUNTA($J13:$BV13)=COUNTIF($J13:$BV13,"OK"),"OK","Check") -> OK | D13: Check- Total Depreciation | J13: =IF(ROUND(J5-SUM(J$60,J$107,J$154,J$201,J$248,J$295,J$342,J$389,J$436,J483,J530,J577,J624,J671,J718,J765),2)=0,"Ok","Check") -> Ok | K13: Ok | L13: Ok | M13: Ok | N13: Ok | O13: Ok | P13: Ok | Q13: Ok | R13: Ok | S13: Ok | T13: Ok | U13: Ok | V13: Ok | W13: Ok | X13: Ok | Y13: Ok | Z13: Ok | AA13: Ok | AB13: Ok | AC13: Ok | AD13: Ok | AE13: Ok | AF13: Ok | AG13: Ok | AH13: Ok | AI13: Ok | AJ13: Ok | AK13: Ok | AL13: Ok | AM13: Ok | AN13: Ok | AO13: Ok | AP13: =IF(ROUND(AP5-SUM(AP$60,AP$107,AP$154,AP$201,AP$248,AP$295,AP$342,AP$389,AP$436,AP483,AP530,AP577,AP624,AP671,AP718,AP765),2)=0,"Ok","Check") -> Ok | AQ13: Ok | AR13: Ok | AS13: Ok | AT13: Ok | AU13: Ok | AV13: Ok | AW13: Ok | AX13: Ok | AY13: Ok | AZ13: Ok | BA13: Ok | BB13: Ok | BC13: Ok | BD13: Ok | BE13: Ok | BF13: Ok | BG13: Ok | BH13: Ok | BI13: Ok | BJ13: Ok | BK13: Ok | BL13: Ok | BM13: Ok | BN13: Ok | BO13: Ok | BP13: Ok | BQ13: Ok | BR13: Ok | BS13: Ok | BT13: Ok | BU13: Ok | BV13: Ok
A14: =IF(COUNTA($J14:$BV14)=COUNTIF($J14:$BV14,"OK"),"OK","Check") -> OK | D14: Check- Capex | J14: =IF(ROUND(J6-SUM(J28,J75,J122,J169,J216,J263,J310,J357,J404,J451,J498,J545,J592,J639,J686,J733),2)=0,"Ok","Check") -> Ok | K14: Ok | L14: Ok | M14: Ok | N14: Ok | O14: Ok | P14: Ok | Q14: Ok | R14: Ok | S14: Ok | T14: Ok | U14: Ok | V14: Ok | W14: Ok | X14: Ok | Y14: Ok | Z14: Ok | AA14: Ok | AB14: Ok | AC14: Ok | AD14: Ok | AE14: Ok | AF14: Ok | AG14: Ok | AH14: Ok | AI14: Ok | AJ14: Ok | AK14: Ok | AL14: Ok | AM14: Ok | AN14: Ok | AO14: Ok | AP14: =IF(ROUND(AP6-SUM(AP28,AP75,AP122,AP169,AP216,AP263,AP310,AP357,AP404,AP451,AP498,AP545,AP592,AP639,AP686,AP733),2)=0,"Ok","Check") -> Ok | AQ14: Ok | AR14: Ok | AS14: Ok | AT14: Ok | AU14: Ok | AV14: Ok | AW14: Ok | AX14: Ok | AY14: Ok | AZ14: Ok | BA14: Ok | BB14: Ok | BC14: Ok | BD14: Ok | BE14: Ok | BF14: Ok | BG14: Ok | BH14: Ok | BI14: Ok | BJ14: Ok | BK14: Ok | BL14: Ok | BM14: Ok | BN14: Ok | BO14: Ok | BP14: Ok | BQ14: Ok | BR14: Ok | BS14: Ok | BT14: Ok | BU14: Ok | BV14: Ok
A15: =IF(COUNTA($J15:$BV15)=COUNTIF($J15:$BV15,"OK"),"OK","Check") -> OK | D15: Check- Closing RAB | J15: =IF(ROUND(J10-SUM(J$62,J$109,J$156,J$203,J$250,J$297,J$344,J$391,J$438,J485,J532,J579,J626,J673,J720,J767),2)=0,"Ok","Check") -> Ok | K15: Ok | L15: Ok | M15: Ok | N15: Ok | O15: Ok | P15: Ok | Q15: Ok | R15: Ok | S15: Ok | T15: Ok | U15: Ok | V15: Ok | W15: Ok | X15: Ok | Y15: Ok | Z15: Ok | AA15: Ok | AB15: Ok | AC15: Ok | AD15: Ok | AE15: Ok | AF15: Ok | AG15: Ok | AH15: Ok | AI15: Ok | AJ15: Ok | AK15: Ok | AL15: Ok | AM15: Ok | AN15: Ok | AO15: Ok | AP15: =IF(ROUND(AP10-SUM(AP$62,AP$109,AP$156,AP$203,AP$250,AP$297,AP$344,AP$391,AP$438,AP485,AP532,AP579,AP626,AP673,AP720,AP767),2)=0,"Ok","Check") -> Ok | AQ15: Ok | AR15: Ok | AS15: Ok | AT15: Ok | AU15: Ok | AV15: Ok | AW15: Ok | AX15: Ok | AY15: Ok | AZ15: Ok | BA15: Ok | BB15: Ok | BC15: Ok | BD15: Ok | BE15: Ok | BF15: Ok | BG15: Ok | BH15: Ok | BI15: Ok | BJ15: Ok | BK15: Ok | BL15: Ok | BM15: Ok | BN15: Ok | BO15: Ok | BP15: Ok | BQ15: Ok | BR15: Ok | BS15: Ok | BT15: Ok | BU15: Ok | BV15: Ok
A17: 1 | B17: =INDIRECT(CONCATENATE("Asset",A17)) -> Sub-transmission lines | H17: Year ended June 30: | I17: 2010 | J17: =I17+1 -> 2011 | K17: =J17+1 -> 2012 | L17: =K17+1 -> 2013 | M17: =L17+1 -> 2014 | N17: =M17+1 -> 2015 | O17: =N17+1 -> 2016 | P17: =O17+1 -> 2017 | Q17: =P17+1 -> 2018 | R17: =Q17+1 -> 2019 | S17: =R17+1 -> 2020 | T17: =S17+1 -> 2021 | U17: =T17+1 -> 2022 | V17: =U17+1 -> 2023 | W17: =V17+1 -> 2024 | X17: =W17+1 -> 2025 | Y17: =X17+1 -> 2026 | Z17: =Y17+1 -> 2027 | AA17: =Z17+1 -> 2028 | AB17: =AA17+1 -> 2029 | AC17: =AB17+1 -> 2030 | AD17: =AC17+1 -> 2031 | AE17: =AD17+1 -> 2032 | AF17: =AE17+1 -> 2033 | AG17: =AF17+1 -> 2034 | AH17: =AG17+1 -> 2035 | AI17: =AH17+1 -> 2036 | AJ17: =AI17+1 -> 2037 | AK17: =AJ17+1 -> 2038 | AL17: =AK17+1 -> 2039 | AM17: =AL17+1 -> 2040 | AN17: =AM17+1 -> 2041 | AO17: =AN17+1 -> 2042 | AP17: =AO17+1 -> 2043 | AQ17: =AP17+1 -> 2044 | AR17: =AQ17+1 -> 2045 | AS17: =AR17+1 -> 2046 | AT17: =AS17+1 -> 2047 | AU17: =AT17+1 -> 2048 | AV17: =AU17+1 -> 2049 | AW17: =AV17+1 -> 2050 | AX17: =AW17+1 -> 2051 | AY17: =AX17+1 -> 2052 | AZ17: =AY17+1 -> 2053 | BA17: =AZ17+1 -> 2054 | BB17: =BA17+1 -> 2055 | BC17: =BB17+1 -> 2056 | BD17: =BC17+1 -> 2057 | BE17: =BD17+1 -> 2058 | BF17: =BE17+1 -> 2059 | BG17: =BF17+1 -> 2060 | BH17: =BG17+1 -> 2061 | BI17: =BH17+1 -> 2062 | BJ17: =BI17+1 -> 2063 | BK17: =BJ17+1 -> 2064 | BL17: =BK17+1 -> 2065 | BM17: =BL17+1 -> 2066 | BN17: =BM17+1 -> 2067 | BO17: =BN17+1 -> 2068 | BP17: =BO17+1 -> 2069 | BQ17: =BP17+1 -> 2070 | BR17: =BQ17+1 -> 2071 | BS17: =BR17+1 -> 2072 | BT17: =BS17+1 -> 2073 | BU17: =BT17+1 -> 2074 | BV17: =BU17+1 -> 2075
C19: Existing Assets at 2010 | G19: Remain life
D20: Depreciation on Existing Opening RAB | E20: $m Real 2010 | G20: =INDEX('I2 RAB '!$E$9:$E$24,A17) -> 49.8607911 | J20: =IF(OR($G20=0,$G20="n/a"),0,IF($I21>0,(MIN($I21/$G20, $I21-SUM($I20:I20))),(MAX($I21/$G20, $I21-SUM($I20:I20))))) -> 0.9080971547 | K20: =IF(OR($G20=0,$G20="n/a"),0,IF($I21>0,(MIN($I21/$G20, $I21-SUM($I20:J20))),(MAX($I21/$G20, $I21-SUM($I20:J20))))) -> 0.9080971547 | L20: =IF(OR($G20=0,$G20="n/a"),0,IF($I21>0,(MIN($I21/$G20, $I21-SUM($I20:K20))),(MAX($I21/$G20, $I21-SUM($I20:K20))))) -> 0.9080971547 | M20: =IF(OR($G20=0,$G20="n/a"),0,IF($I21>0,(MIN($I21/$G20, $I21-SUM($I20:L20))),(MAX($I21/$G20, $I21-SUM($I20:L20))))) -> 0.9080971547 | N20: =IF(OR($G20=0,$G20="n/a"),0,IF($I21>0,(MIN($I21/$G20, $I21-SUM($I20:M20))),(MAX($I21/$G20, $I21-SUM($I20:M20))))) -> 0.9080971547 | O20: =IF(OR($G20=0,$G20="n/a"),0,IF($I21>0,(MIN($I21/$G20, $I21-SUM($I20:N20))),(MAX($I21/$G20, $I21-SUM($I20:N20))))) -> 0.9080971547 | P20: =IF(OR($G20=0,$G20="n/a"),0,IF($I21>0,(MIN($I21/$G20, $I21-SUM($I20:O20))),(MAX($I21/$G20, $I21-SUM($I20:O20))))) -> 0.9080971547 | Q20: =IF(OR($G20=0,$G20="n/a"),0,IF($I21>0,(MIN($I21/$G20, $I21-SUM($I20:P20))),(MAX($I21/$G20, $I21-SUM($I20:P20))))) -> 0.9080971547 | R20: =IF(OR($G20=0,$G20="n/a"),0,IF($I21>0,(MIN($I21/$G20, $I21-SUM($I20:Q20))),(MAX($I21/$G20, $I21-SUM($I20:Q20))))) -> 0.9080971547 | S20: =IF(OR($G20=0,$G20="n/a"),0,IF($I21>0,(MIN($I21/$G20, $I21-SUM($I20:R20))),(MAX($I21/$G20, $I21-SUM($I20:R20))))) -> 0.9080971547 | T20: =IF(OR($G20=0,$G20="n/a"),0,IF($I21>0,(MIN($I21/$G20, $I21-SUM($I20:S20))),(MAX($I21/$G20, $I21-SUM($I20:S20))))) -> 0.9080971547 | U20: =IF(OR($G20=0,$G20="n/a"),0,IF($I21>0,(MIN($I21/$G20, $I21-SUM($I20:T20))),(MAX($I21/$G20, $I21-SUM($I20:T20))))) -> 0.9080971547 | V20: =IF(OR($G20=0,$G20="n/a"),0,IF($I21>0,(MIN($I21/$G20, $I21-SUM($I20:U20))),(MAX($I21/$G20, $I21-SUM($I20:U20))))) -> 0.9080971547 | W20: =IF(OR($G20=0,$G20="n/a"),0,IF($I21>0,(MIN($I21/$G20, $I21-SUM($I20:V20))),(MAX($I21/$G20, $I21-SUM($I20:V20))))) -> 0.9080971547 | X20: =IF(OR($G20=0,$G20="n/a"),0,IF($I21>0,(MIN($I21/$G20, $I21-SUM($I20:W20))),(MAX($I21/$G20, $I21-SUM($I20:W20))))) -> 0.9080971547 | Y20: =IF(OR($G20=0,$G20="n/a"),0,IF($I21>0,(MIN($I21/$G20, $I21-SUM($I20:X20))),(MAX($I21/$G20, $I21-SUM($I20:X20))))) -> 0.9080971547 | Z20: =IF(OR($G20=0,$G20="n/a"),0,IF($I21>0,(MIN($I21/$G20, $I21-SUM($I20:Y20))),(MAX($I21/$G20, $I21-SUM($I20:Y20))))) -> 0.9080971547 | AA20: =IF(OR($G20=0,$G20="n/a"),0,IF($I21>0,(MIN($I21/$G20, $I21-SUM($I20:Z20))),(MAX($I21/$G20, $I21-SUM($I20:Z20))))) -> 0.9080971547 | AB20: =IF(OR($G20=0,$G20="n/a"),0,IF($I21>0,(MIN($I21/$G20, $I21-SUM($I20:AA20))),(MAX($I21/$G20, $I21-SUM($I20:AA20))))) -> 0.9080971547 | AC20: =IF(OR($G20=0,$G20="n/a"),0,IF($I21>0,(MIN($I21/$G20, $I21-SUM($I20:AB20))),(MAX($I21/$G20, $I21-SUM($I20:AB20))))) -> 0.9080971547 | AD20: =IF(OR($G20=0,$G20="n/a"),0,IF($I21>0,(MIN($I21/$G20, $I21-SUM($I20:AC20))),(MAX($I21/$G20, $I21-SUM($I20:AC20))))) -> 0.9080971547 | AE20: =IF(OR($G20=0,$G20="n/a"),0,IF($I21>0,(MIN($I21/$G20, $I21-SUM($I20:AD20))),(MAX($I21/$G20, $I21-SUM($I20:AD20))))) -> 0.9080971547 | AF20: =IF(OR($G20=0,$G20="n/a"),0,IF($I21>0,(MIN($I21/$G20, $I21-SUM($I20:AE20))),(MAX($I21/$G20, $I21-SUM($I20:AE20))))) -> 0.9080971547 | AG20: =IF(OR($G20=0,$G20="n/a"),0,IF($I21>0,(MIN($I21/$G20, $I21-SUM($I20:AF20))),(MAX($I21/$G20, $I21-SUM($I20:AF20))))) -> 0.9080971547 | AH20: =IF(OR($G20=0,$G20="n/a"),0,IF($I21>0,(MIN($I21/$G20, $I21-SUM($I20:AG20))),(MAX($I21/$G20, $I21-SUM($I20:AG20))))) -> 0.9080971547 | AI20: =IF(OR($G20=0,$G20="n/a"),0,IF($I21>0,(MIN($I21/$G20, $I21-SUM($I20:AH20))),(MAX($I21/$G20, $I21-SUM($I20:AH20))))) -> 0.9080971547 | AJ20: =IF(OR($G20=0,$G20="n/a"),0,IF($I21>0,(MIN($I21/$G20, $I21-SUM($I20:AI20))),(MAX($I21/$G20, $I21-SUM($I20:AI20))))) -> 0.9080971547 | AK20: =IF(OR($G20=0,$G20="n/a"),0,IF($I21>0,(MIN($I21/$G20, $I21-SUM($I20:AJ20))),(MAX($I21/$G20, $I21-SUM($I20:AJ20))))) -> 0.9080971547 | AL20: =IF(OR($G20=0,$G20="n/a"),0,IF($I21>0,(MIN($I21/$G20, $I21-SUM($I20:AK20))),(MAX($I21/$G20, $I21-SUM($I20:AK20))))) -> 0.9080971547 | AM20: =IF(OR($G20=0,$G20="n/a"),0,IF($I21>0,(MIN($I21/$G20, $I21-SUM($I20:AL20))),(MAX($I21/$G20, $I21-SUM($I20:AL20))))) -> 0.9080971547 | AN20: =IF(OR($G20=0,$G20="n/a"),0,IF($I21>0,(MIN($I21/$G20, $I21-SUM($I20:AM20))),(MAX($I21/$G20, $I21-SUM($I20:AM20))))) -> 0.9080971547 | AO20: =IF(OR($G20=0,$G20="n/a"),0,IF($I21>0,(MIN($I21/$G20, $I21-SUM($I20:AN20))),(MAX($I21/$G20, $I21-SUM($I20:AN20))))) -> 0.9080971547 | AP20: =IF(OR($G20=0,$G20="n/a"),0,IF($I21>0,(MIN($I21/$G20, $I21-SUM($I20:AO20))),(MAX($I21/$G20, $I21-SUM($I20:AO20))))) -> 0.9080971547 | AQ20: =IF(OR($G20=0,$G20="n/a"),0,IF($I21>0,(MIN($I21/$G20, $I21-SUM($I20:AP20))),(MAX($I21/$G20, $I21-SUM($I20:AP20))))) -> 0.9080971547 | AR20: =IF(OR($G20=0,$G20="n/a"),0,IF($I21>0,(MIN($I21/$G20, $I21-SUM($I20:AQ20))),(MAX($I21/$G20, $I21-SUM($I20:AQ20))))) -> 0.9080971547 | AS20: =IF(OR($G20=0,$G20="n/a"),0,IF($I21>0,(MIN($I21/$G20, $I21-SUM($I20:AR20))),(MAX($I21/$G20, $I21-SUM($I20:AR20))))) -> 0.9080971547 | AT20: =IF(OR($G20=0,$G20="n/a"),0,IF($I21>0,(MIN($I21/$G20, $I21-SUM($I20:AS20))),(MAX($I21/$G20, $I21-SUM($I20:AS20))))) -> 0.9080971547 | AU20: =IF(OR($G20=0,$G20="n/a"),0,IF($I21>0,(MIN($I21/$G20, $I21-SUM($I20:AT20))),(MAX($I21/$G20, $I21-SUM($I20:AT20))))) -> 0.9080971547 | AV20: =IF(OR($G20=0,$G20="n/a"),0,IF($I21>0,(MIN($I21/$G20, $I21-SUM($I20:AU20))),(MAX($I21/$G20, $I21-SUM($I20:AU20))))) -> 0.9080971547 | AW20: =IF(OR($G20=0,$G20="n/a"),0,IF($I21>0,(MIN($I21/$G20, $I21-SUM($I20:AV20))),(MAX($I21/$G20, $I21-SUM($I20:AV20))))) -> 0.9080971547 | AX20: =IF(OR($G20=0,$G20="n/a"),0,IF($I21>0,(MIN($I21/$G20, $I21-SUM($I20:AW20))),(MAX($I21/$G20, $I21-SUM($I20:AW20))))) -> 0.9080971547 | AY20: =IF(OR($G20=0,$G20="n/a"),0,IF($I21>0,(MIN($I21/$G20, $I21-SUM($I20:AX20))),(MAX($I21/$G20, $I21-SUM($I20:AX20))))) -> 0.9080971547 | AZ20: =IF(OR($G20=0,$G20="n/a"),0,IF($I21>0,(MIN($I21/$G20, $I21-SUM($I20:AY20))),(MAX($I21/$G20, $I21-SUM($I20:AY20))))) -> 0.9080971547 | BA20: =IF(OR($G20=0,$G20="n/a"),0,IF($I21>0,(MIN($I21/$G20, $I21-SUM($I20:AZ20))),(MAX($I21/$G20, $I21-SUM($I20:AZ20))))) -> 0.9080971547 | BB20: =IF(OR($G20=0,$G20="n/a"),0,IF($I21>0,(MIN($I21/$G20, $I21-SUM($I20:BA20))),(MAX($I21/$G20, $I21-SUM($I20:BA20))))) -> 0.9080971547 | BC20: =IF(OR($G20=0,$G20="n/a"),0,IF($I21>0,(MIN($I21/$G20, $I21-SUM($I20:BB20))),(MAX($I21/$G20, $I21-SUM($I20:BB20))))) -> 0.9080971547 | BD20: =IF(OR($G20=0,$G20="n/a"),0,IF($I21>0,(MIN($I21/$G20, $I21-SUM($I20:BC20))),(MAX($I21/$G20, $I21-SUM($I20:BC20))))) -> 0.9080971547 | BE20: =IF(OR($G20=0,$G20="n/a"),0,IF($I21>0,(MIN($I21/$G20, $I21-SUM($I20:BD20))),(MAX($I21/$G20, $I21-SUM($I20:BD20))))) -> 0.9080971547 | BF20: =IF(OR($G20=0,$G20="n/a"),0,IF($I21>0,(MIN($I21/$G20, $I21-SUM($I20:BE20))),(MAX($I21/$G20, $I21-SUM($I20:BE20))))) -> 0.9080971547 | BG20: =IF(OR($G20=0,$G20="n/a"),0,IF($I21>0,(MIN($I21/$G20, $I21-SUM($I20:BF20))),(MAX($I21/$G20, $I21-SUM($I20:BF20))))) -> 0.7816819492 | BH20: =IF(OR($G20=0,$G20="n/a"),0,IF($I21>0,(MIN($I21/$G20, $I21-SUM($I20:BG20))),(MAX($I21/$G20, $I21-SUM($I20:BG20))))) -> 0 | BI20: =IF(OR($G20=0,$G20="n/a"),0,IF($I21>0,(MIN($I21/$G20, $I21-SUM($I20:BH20))),(MAX($I21/$G20, $I21-SUM($I20:BH20))))) -> 0 | BJ20: =IF(OR($G20=0,$G20="n/a"),0,IF($I21>0,(MIN($I21/$G20, $I21-SUM($I20:BI20))),(MAX($I21/$G20, $I21-SUM($I20:BI20))))) -> 0 | BK20: =IF(OR($G20=0,$G20="n/a"),0,IF($I21>0,(MIN($I21/$G20, $I21-SUM($I20:BJ20))),(MAX($I21/$G20, $I21-SUM($I20:BJ20))))) -> 0 | BL20: =IF(OR($G20=0,$G20="n/a"),0,IF($I21>0,(MIN($I21/$G20, $I21-SUM($I20:BK20))),(MAX($I21/$G20, $I21-SUM($I20:BK20))))) -> 0 | BM20: =IF(OR($G20=0,$G20="n/a"),0,IF($I21>0,(MIN($I21/$G20, $I21-SUM($I20:BL20))),(MAX($I21/$G20, $I21-SUM($I20:BL20))))) -> 0 | BN20: =IF(OR($G20=0,$G20="n/a"),0,IF($I21>0,(MIN($I21/$G20, $I21-SUM($I20:BM20))),(MAX($I21/$G20, $I21-SUM($I20:BM20))))) -> 0 | BO20: =IF(OR($G20=0,$G20="n/a"),0,IF($I21>0,(MIN($I21/$G20, $I21-SUM($I20:BN20))),(MAX($I21/$G20, $I21-SUM($I20:BN20))))) -> 0 | BP20: =IF(OR($G20=0,$G20="n/a"),0,IF($I21>0,(MIN($I21/$G20, $I21-SUM($I20:BO20))),(MAX($I21/$G20, $I21-SUM($I20:BO20))))) -> 0 | BQ20: =IF(OR($G20=0,$G20="n/a"),0,IF($I21>0,(MIN($I21/$G20, $I21-SUM($I20:BP20))),(MAX($I21/$G20, $I21-SUM($I20:BP20))))) -> 0 | BR20: =IF(OR($G20=0,$G20="n/a"),0,IF($I21>0,(MIN($I21/$G20, $I21-SUM($I20:BQ20))),(MAX($I21/$G20, $I21-SUM($I20:BQ20))))) -> 0 | BS20: =IF(OR($G20=0,$G20="n/a"),0,IF($I21>0,(MIN($I21/$G20, $I21-SUM($I20:BR20))),(MAX($I21/$G20, $I21-SUM($I20:BR20))))) -> 0 | BT20: =IF(OR($G20=0,$G20="n/a"),0,IF($I21>0,(MIN($I21/$G20, $I21-SUM($I20:BS20))),(MAX($I21/$G20, $I21-SUM($I20:BS20))))) -> 0 | BU20: =IF(OR($G20=0,$G20="n/a"),0,IF($I21>0,(MIN($I21/$G20, $I21-SUM($I20:BT20))),(MAX($I21/$G20, $I21-SUM($I20:BT20))))) -> 0 | BV20: =IF(OR($G20=0,$G20="n/a"),0,IF($I21>0,(MIN($I21/$G20, $I21-SUM($I20:BU20))),(MAX($I21/$G20, $I21-SUM($I20:BU20))))) -> 0
D21: Existing Assets Closing RAB | E21: $m Real 2010 | I21: =INDEX('I2 RAB '!$D$9:$D$24,A17) -> 45.27844253 | J21: =I21-J20 -> 44.37034538 | K21: 43.46224822 | L21: 42.55415107 | M21: 41.64605391 | N21: 40.73795676 | O21: 39.8298596 | P21: 38.92176245 | Q21: 38.01366529 | R21: 37.10556814 | S21: 36.19747098 | T21: 35.28937383 | U21: 34.38127667 | V21: 33.47317952 | W21: 32.56508236 | X21: 31.65698521 | Y21: 30.74888806 | Z21: 29.8407909 | AA21: 28.93269375 | AB21: 28.02459659 | AC21: 27.11649944 | AD21: 26.20840228 | AE21: 25.30030513 | AF21: 24.39220797 | AG21: 23.48411082 | AH21: 22.57601366 | AI21: 21.66791651 | AJ21: 20.75981935 | AK21: 19.8517222 | AL21: 18.94362504 | AM21: 18.03552789 | AN21: 17.12743073 | AO21: 16.21933358 | AP21: =AO21-AP20 -> 15.31123642 | AQ21: 14.40313927 | AR21: 13.49504212 | AS21: 12.58694496 | AT21: 11.67884781 | AU21: 10.77075065 | AV21: 9.862653496 | AW21: 8.954556342 | AX21: 8.046459187 | AY21: 7.138362032 | AZ21: 6.230264878 | BA21: 5.322167723 | BB21: 4.414070568 | BC21: 3.505973413 | BD21: 2.597876259 | BE21: 1.689779104 | BF21: 0.7816819492 | BG21: 0 | BH21: 0 | BI21: 0 | BJ21: 0 | BK21: 0 | BL21: 0 | BM21: 0 | BN21: 0 | BO21: 0 | BP21: 0 | BQ21: 0 | BR21: 0 | BS21: 0 | BT21: 0 | BU21: 0 | BV21: =BU21-BV20 -> 0
C23: New capex
C24: Year 5 capex adjustment | G24: Std life | H24: Capex | N24: =INDEX('Depn|Inputs'!$N$70:$N$85,MATCH($B17,'Depn|Inputs'!$C$70:$C$85,0))/conv_2015_2010 -> 2.072717857 | S24: =INDEX('Depn|Inputs'!$S$70:$S$85,MATCH($B17,'Depn|Inputs'!$C$70:$C$85,0))/conv_2020_2010 -> 0.7253053558
D25: 2010 adj capex | E25: $m Real 2010 | G25: =G29 -> 55 | H25: =N24 -> 2.072717857 | O25: =IF($G25="n/a",0,IF(O$3-$N$3>$G25-5,$H25-SUM($J25:N25),$H25/($G25-5))) -> 0.04145435714 | P25: =IF($G25="n/a",0,IF(P$3-$N$3>$G25-5,$H25-SUM($J25:O25),$H25/($G25-5))) -> 0.04145435714 | Q25: =IF($G25="n/a",0,IF(Q$3-$N$3>$G25-5,$H25-SUM($J25:P25),$H25/($G25-5))) -> 0.04145435714 | R25: =IF($G25="n/a",0,IF(R$3-$N$3>$G25-5,$H25-SUM($J25:Q25),$H25/($G25-5))) -> 0.04145435714 | S25: =IF($G25="n/a",0,IF(S$3-$N$3>$G25-5,$H25-SUM($J25:R25),$H25/($G25-5))) -> 0.04145435714 | T25: =IF($G25="n/a",0,IF(T$3-$N$3>$G25-5,$H25-SUM($J25:S25),$H25/($G25-5))) -> 0.04145435714 | U25: =IF($G25="n/a",0,IF(U$3-$N$3>$G25-5,$H25-SUM($J25:T25),$H25/($G25-5))) -> 0.04145435714 | V25: =IF($G25="n/a",0,IF(V$3-$N$3>$G25-5,$H25-SUM($J25:U25),$H25/($G25-5))) -> 0.04145435714 | W25: =IF($G25="n/a",0,IF(W$3-$N$3>$G25-5,$H25-SUM($J25:V25),$H25/($G25-5))) -> 0.04145435714 | X25: =IF($G25="n/a",0,IF(X$3-$N$3>$G25-5,$H25-SUM($J25:W25),$H25/($G25-5))) -> 0.04145435714 | Y25: =IF($G25="n/a",0,IF(Y$3-$N$3>$G25-5,$H25-SUM($J25:X25),$H25/($G25-5))) -> 0.04145435714 | Z25: =IF($G25="n/a",0,IF(Z$3-$N$3>$G25-5,$H25-SUM($J25:Y25),$H25/($G25-5))) -> 0.04145435714 | AA25: =IF($G25="n/a",0,IF(AA$3-$N$3>$G25-5,$H25-SUM($J25:Z25),$H25/($G25-5))) -> 0.04145435714 | AB25: =IF($G25="n/a",0,IF(AB$3-$N$3>$G25-5,$H25-SUM($J25:AA25),$H25/($G25-5))) -> 0.04145435714 | AC25: =IF($G25="n/a",0,IF(AC$3-$N$3>$G25-5,$H25-SUM($J25:AB25),$H25/($G25-5))) -> 0.04145435714 | AD25: =IF($G25="n/a",0,IF(AD$3-$N$3>$G25-5,$H25-SUM($J25:AC25),$H25/($G25-5))) -> 0.04145435714 | AE25: =IF($G25="n/a",0,IF(AE$3-$N$3>$G25-5,$H25-SUM($J25:AD25),$H25/($G25-5))) -> 0.04145435714 | AF25: =IF($G25="n/a",0,IF(AF$3-$N$3>$G25-5,$H25-SUM($J25:AE25),$H25/($G25-5))) -> 0.04145435714 | AG25: =IF($G25="n/a",0,IF(AG$3-$N$3>$G25-5,$H25-SUM($J25:AF25),$H25/($G25-5))) -> 0.04145435714 | AH25: =IF($G25="n/a",0,IF(AH$3-$N$3>$G25-5,$H25-SUM($J25:AG25),$H25/($G25-5))) -> 0.04145435714 | AI25: =IF($G25="n/a",0,IF(AI$3-$N$3>$G25-5,$H25-SUM($J25:AH25),$H25/($G25-5))) -> 0.04145435714 | AJ25: =IF($G25="n/a",0,IF(AJ$3-$N$3>$G25-5,$H25-SUM($J25:AI25),$H25/($G25-5))) -> 0.04145435714 | AK25: =IF($G25="n/a",0,IF(AK$3-$N$3>$G25-5,$H25-SUM($J25:AJ25),$H25/($G25-5))) -> 0.04145435714 | AL25: =IF($G25="n/a",0,IF(AL$3-$N$3>$G25-5,$H25-SUM($J25:AK25),$H25/($G25-5))) -> 0.04145435714 | AM25: =IF($G25="n/a",0,IF(AM$3-$N$3>$G25-5,$H25-SUM($J25:AL25),$H25/($G25-5))) -> 0.04145435714 | AN25: =IF($G25="n/a",0,IF(AN$3-$N$3>$G25-5,$H25-SUM($J25:AM25),$H25/($G25-5))) -> 0.04145435714 | AO25: =IF($G25="n/a",0,IF(AO$3-$N$3>$G25-5,$H25-SUM($J25:AN25),$H25/($G25-5))) -> 0.04145435714 | AP25: =IF($G25="n/a",0,IF(AP$3-$N$3>$G25-5,$H25-SUM($J25:AO25),$H25/($G25-5))) -> 0.04145435714 | AQ25: =IF($G25="n/a",0,IF(AQ$3-$N$3>$G25-5,$H25-SUM($J25:AP25),$H25/($G25-5))) -> 0.04145435714 | AR25: =IF($G25="n/a",0,IF(AR$3-$N$3>$G25-5,$H25-SUM($J25:AQ25),$H25/($G25-5))) -> 0.04145435714 | AS25: =IF($G25="n/a",0,IF(AS$3-$N$3>$G25-5,$H25-SUM($J25:AR25),$H25/($G25-5))) -> 0.04145435714 | AT25: =IF($G25="n/a",0,IF(AT$3-$N$3>$G25-5,$H25-SUM($J25:AS25),$H25/($G25-5))) -> 0.04145435714 | AU25: =IF($G25="n/a",0,IF(AU$3-$N$3>$G25-5,$H25-SUM($J25:AT25),$H25/($G25-5))) -> 0.04145435714 | AV25: =IF($G25="n/a",0,IF(AV$3-$N$3>$G25-5,$H25-SUM($J25:AU25),$H25/($G25-5))) -> 0.04145435714 | AW25: =IF($G25="n/a",0,IF(AW$3-$N$3>$G25-5,$H25-SUM($J25:AV25),$H25/($G25-5))) -> 0.04145435714 | AX25: =IF($G25="n/a",0,IF(AX$3-$N$3>$G25-5,$H25-SUM($J25:AW25),$H25/($G25-5))) -> 0.04145435714 | AY25: =IF($G25="n/a",0,IF(AY$3-$N$3>$G25-5,$H25-SUM($J25:AX25),$H25/($G25-5))) -> 0.04145435714 | AZ25: =IF($G25="n/a",0,IF(AZ$3-$N$3>$G25-5,$H25-SUM($J25:AY25),$H25/($G25-5))) -> 0.04145435714 | BA25: =IF($G25="n/a",0,IF(BA$3-$N$3>$G25-5,$H25-SUM($J25:AZ25),$H25/($G25-5))) -> 0.04145435714 | BB25: =IF($G25="n/a",0,IF(BB$3-$N$3>$G25-5,$H25-SUM($J25:BA25),$H25/($G25-5))) -> 0.04145435714 | BC25: =IF($G25="n/a",0,IF(BC$3-$N$3>$G25-5,$H25-SUM($J25:BB25),$H25/($G25-5))) -> 0.04145435714 | BD25: =IF($G25="n/a",0,IF(BD$3-$N$3>$G25-5,$H25-SUM($J25:BC25),$H25/($G25-5))) -> 0.04145435714 | BE25: =IF($G25="n/a",0,IF(BE$3-$N$3>$G25-5,$H25-SUM($J25:BD25),$H25/($G25-5))) -> 0.04145435714 | BF25: =IF($G25="n/a",0,IF(BF$3-$N$3>$G25-5,$H25-SUM($J25:BE25),$H25/($G25-5))) -> 0.04145435714 | BG25: =IF($G25="n/a",0,IF(BG$3-$N$3>$G25-5,$H25-SUM($J25:BF25),$H25/($G25-5))) -> 0.04145435714 | BH25: =IF($G25="n/a",0,IF(BH$3-$N$3>$G25-5,$H25-SUM($J25:BG25),$H25/($G25-5))) -> 0.04145435714 | BI25: =IF($G25="n/a",0,IF(BI$3-$N$3>$G25-5,$H25-SUM($J25:BH25),$H25/($G25-5))) -> 0.04145435714 | BJ25: =IF($G25="n/a",0,IF(BJ$3-$N$3>$G25-5,$H25-SUM($J25:BI25),$H25/($G25-5))) -> 0.04145435714 | BK25: =IF($G25="n/a",0,IF(BK$3-$N$3>$G25-5,$H25-SUM($J25:BJ25),$H25/($G25-5))) -> 0.04145435714 | BL25: =IF($G25="n/a",0,IF(BL$3-$N$3>$G25-5,$H25-SUM($J25:BK25),$H25/($G25-5))) -> 0.04145435714 | BM25: =IF($G25="n/a",0,IF(BM$3-$N$3>$G25-5,$H25-SUM($J25:BL25),$H25/($G25-5))) -> 1.33226763e-15 | BN25: =IF($G25="n/a",0,IF(BN$3-$N$3>$G25-5,$H25-SUM($J25:BM25),$H25/($G25-5))) -> 0 | BO25: =IF($G25="n/a",0,IF(BO$3-$N$3>$G25-5,$H25-SUM($J25:BN25),$H25/($G25-5))) -> 0 | BP25: =IF($G25="n/a",0,IF(BP$3-$N$3>$G25-5,$H25-SUM($J25:BO25),$H25/($G25-5))) -> 0 | BQ25: =IF($G25="n/a",0,IF(BQ$3-$N$3>$G25-5,$H25-SUM($J25:BP25),$H25/($G25-5))) -> 0 | BR25: =IF($G25="n/a",0,IF(BR$3-$N$3>$G25-5,$H25-SUM($J25:BQ25),$H25/($G25-5))) -> 0 | BS25: =IF($G25="n/a",0,IF(BS$3-$N$3>$G25-5,$H25-SUM($J25:BR25),$H25/($G25-5))) -> 0 | BT25: =IF($G25="n/a",0,IF(BT$3-$N$3>$G25-5,$H25-SUM($J25:BS25),$H25/($G25-5))) -> 0 | BU25: =IF($G25="n/a",0,IF(BU$3-$N$3>$G25-5,$H25-SUM($J25:BT25),$H25/($G25-5))) -> 0 | BV25: =IF($G25="n/a",0,IF(BV$3-$N$3>$G25-5,$H25-SUM($J25:BU25),$H25/($G25-5))) -> 0
D26: 2015 adj capex | E26: $m Real 2010 | G26: =G34 -> 55 | H26: =S24 -> 0.7253053558 | T26: =IF($G26="n/a",0,IF(T$3-$S$3>$G26-5,$H26-SUM($J26:S26),$H26/($G26-5))) -> 0.01450610712 | U26: =IF($G26="n/a",0,IF(U$3-$S$3>$G26-5,$H26-SUM($J26:T26),$H26/($G26-5))) -> 0.01450610712 | V26: =IF($G26="n/a",0,IF(V$3-$S$3>$G26-5,$H26-SUM($J26:U26),$H26/($G26-5))) -> 0.01450610712 | W26: =IF($G26="n/a",0,IF(W$3-$S$3>$G26-5,$H26-SUM($J26:V26),$H26/($G26-5))) -> 0.01450610712 | X26: =IF($G26="n/a",0,IF(X$3-$S$3>$G26-5,$H26-SUM($J26:W26),$H26/($G26-5))) -> 0.01450610712 | Y26: =IF($G26="n/a",0,IF(Y$3-$S$3>$G26-5,$H26-SUM($J26:X26),$H26/($G26-5))) -> 0.01450610712 | Z26: =IF($G26="n/a",0,IF(Z$3-$S$3>$G26-5,$H26-SUM($J26:Y26),$H26/($G26-5))) -> 0.01450610712 | AA26: =IF($G26="n/a",0,IF(AA$3-$S$3>$G26-5,$H26-SUM($J26:Z26),$H26/($G26-5))) -> 0.01450610712 | AB26: =IF($G26="n/a",0,IF(AB$3-$S$3>$G26-5,$H26-SUM($J26:AA26),$H26/($G26-5))) -> 0.01450610712 | AC26: =IF($G26="n/a",0,IF(AC$3-$S$3>$G26-5,$H26-SUM($J26:AB26),$H26/($G26-5))) -> 0.01450610712 | AD26: =IF($G26="n/a",0,IF(AD$3-$S$3>$G26-5,$H26-SUM($J26:AC26),$H26/($G26-5))) -> 0.01450610712 | AE26: =IF($G26="n/a",0,IF(AE$3-$S$3>$G26-5,$H26-SUM($J26:AD26),$H26/($G26-5))) -> 0.01450610712 | AF26: =IF($G26="n/a",0,IF(AF$3-$S$3>$G26-5,$H26-SUM($J26:AE26),$H26/($G26-5))) -> 0.01450610712 | AG26: =IF($G26="n/a",0,IF(AG$3-$S$3>$G26-5,$H26-SUM($J26:AF26),$H26/($G26-5))) -> 0.01450610712 | AH26: =IF($G26="n/a",0,IF(AH$3-$S$3>$G26-5,$H26-SUM($J26:AG26),$H26/($G26-5))) -> 0.01450610712 | AI26: =IF($G26="n/a",0,IF(AI$3-$S$3>$G26-5,$H26-SUM($J26:AH26),$H26/($G26-5))) -> 0.01450610712 | AJ26: =IF($G26="n/a",0,IF(AJ$3-$S$3>$G26-5,$H26-SUM($J26:AI26),$H26/($G26-5))) -> 0.01450610712 | AK26: =IF($G26="n/a",0,IF(AK$3-$S$3>$G26-5,$H26-SUM($J26:AJ26),$H26/($G26-5))) -> 0.01450610712 | AL26: =IF($G26="n/a",0,IF(AL$3-$S$3>$G26-5,$H26-SUM($J26:AK26),$H26/($G26-5))) -> 0.01450610712 | AM26: =IF($G26="n/a",0,IF(AM$3-$S$3>$G26-5,$H26-SUM($J26:AL26),$H26/($G26-5))) -> 0.01450610712 | AN26: =IF($G26="n/a",0,IF(AN$3-$S$3>$G26-5,$H26-SUM($J26:AM26),$H26/($G26-5))) -> 0.01450610712 | AO26: =IF($G26="n/a",0,IF(AO$3-$S$3>$G26-5,$H26-SUM($J26:AN26),$H26/($G26-5))) -> 0.01450610712 | AP26: =IF($G26="n/a",0,IF(AP$3-$S$3>$G26-5,$H26-SUM($J26:AO26),$H26/($G26-5))) -> 0.01450610712 | AQ26: =IF($G26="n/a",0,IF(AQ$3-$S$3>$G26-5,$H26-SUM($J26:AP26),$H26/($G26-5))) -> 0.01450610712 | AR26: =IF($G26="n/a",0,IF(AR$3-$S$3>$G26-5,$H26-SUM($J26:AQ26),$H26/($G26-5))) -> 0.01450610712 | AS26: =IF($G26="n/a",0,IF(AS$3-$S$3>$G26-5,$H26-SUM($J26:AR26),$H26/($G26-5))) -> 0.01450610712 | AT26: =IF($G26="n/a",0,IF(AT$3-$S$3>$G26-5,$H26-SUM($J26:AS26),$H26/($G26-5))) -> 0.01450610712 | AU26: =IF($G26="n/a",0,IF(AU$3-$S$3>$G26-5,$H26-SUM($J26:AT26),$H26/($G26-5))) -> 0.01450610712 | AV26: =IF($G26="n/a",0,IF(AV$3-$S$3>$G26-5,$H26-SUM($J26:AU26),$H26/($G26-5))) -> 0.01450610712 | AW26: =IF($G26="n/a",0,IF(AW$3-$S$3>$G26-5,$H26-SUM($J26:AV26),$H26/($G26-5))) -> 0.01450610712 | AX26: =IF($G26="n/a",0,IF(AX$3-$S$3>$G26-5,$H26-SUM($J26:AW26),$H26/($G26-5))) -> 0.01450610712 | AY26: =IF($G26="n/a",0,IF(AY$3-$S$3>$G26-5,$H26-SUM($J26:AX26),$H26/($G26-5))) -> 0.01450610712 | AZ26: =IF($G26="n/a",0,IF(AZ$3-$S$3>$G26-5,$H26-SUM($J26:AY26),$H26/($G26-5))) -> 0.01450610712 | BA26: =IF($G26="n/a",0,IF(BA$3-$S$3>$G26-5,$H26-SUM($J26:AZ26),$H26/($G26-5))) -> 0.01450610712 | BB26: =IF($G26="n/a",0,IF(BB$3-$S$3>$G26-5,$H26-SUM($J26:BA26),$H26/($G26-5))) -> 0.01450610712 | BC26: =IF($G26="n/a",0,IF(BC$3-$S$3>$G26-5,$H26-SUM($J26:BB26),$H26/($G26-5))) -> 0.01450610712 | BD26: =IF($G26="n/a",0,IF(BD$3-$S$3>$G26-5,$H26-SUM($J26:BC26),$H26/($G26-5))) -> 0.01450610712 | BE26: =IF($G26="n/a",0,IF(BE$3-$S$3>$G26-5,$H26-SUM($J26:BD26),$H26/($G26-5))) -> 0.01450610712 | BF26: =IF($G26="n/a",0,IF(BF$3-$S$3>$G26-5,$H26-SUM($J26:BE26),$H26/($G26-5))) -> 0.01450610712 | BG26: =IF($G26="n/a",0,IF(BG$3-$S$3>$G26-5,$H26-SUM($J26:BF26),$H26/($G26-5))) -> 0.01450610712 | BH26: =IF($G26="n/a",0,IF(BH$3-$S$3>$G26-5,$H26-SUM($J26:BG26),$H26/($G26-5))) -> 0.01450610712 | BI26: =IF($G26="n/a",0,IF(BI$3-$S$3>$G26-5,$H26-SUM($J26:BH26),$H26/($G26-5))) -> 0.01450610712 | BJ26: =IF($G26="n/a",0,IF(BJ$3-$S$3>$G26-5,$H26-SUM($J26:BI26),$H26/($G26-5))) -> 0.01450610712 | BK26: =IF($G26="n/a",0,IF(BK$3-$S$3>$G26-5,$H26-SUM($J26:BJ26),$H26/($G26-5))) -> 0.01450610712 | BL26: =IF($G26="n/a",0,IF(BL$3-$S$3>$G26-5,$H26-SUM($J26:BK26),$H26/($G26-5))) -> 0.01450610712 | BM26: =IF($G26="n/a",0,IF(BM$3-$S$3>$G26-5,$H26-SUM($J26:BL26),$H26/($G26-5))) -> 0.01450610712 | BN26: =IF($G26="n/a",0,IF(BN$3-$S$3>$G26-5,$H26-SUM($J26:BM26),$H26/($G26-5))) -> 0.01450610712 | BO26: =IF($G26="n/a",0,IF(BO$3-$S$3>$G26-5,$H26-SUM($J26:BN26),$H26/($G26-5))) -> 0.01450610712 | BP26: =IF($G26="n/a",0,IF(BP$3-$S$3>$G26-5,$H26-SUM($J26:BO26),$H26/($G26-5))) -> 0.01450610712 | BQ26: =IF($G26="n/a",0,IF(BQ$3-$S$3>$G26-5,$H26-SUM($J26:BP26),$H26/($G26-5))) -> 0.01450610712 | BR26: =IF($G26="n/a",0,IF(BR$3-$S$3>$G26-5,$H26-SUM($J26:BQ26),$H26/($G26-5))) -> -5.551115123e-16 | BS26: =IF($G26="n/a",0,IF(BS$3-$S$3>$G26-5,$H26-SUM($J26:BR26),$H26/($G26-5))) -> 0 | BT26: =IF($G26="n/a",0,IF(BT$3-$S$3>$G26-5,$H26-SUM($J26:BS26),$H26/($G26-5))) -> 0 | BU26: =IF($G26="n/a",0,IF(BU$3-$S$3>$G26-5,$H26-SUM($J26:BT26),$H26/($G26-5))) -> 0 | BV26: =IF($G26="n/a",0,IF(BV$3-$S$3>$G26-5,$H26-SUM($J26:BU26),$H26/($G26-5))) -> 0
E27: $m Real 2010
A28: =IF(COUNTA($BW29:$BW58)=COUNTIF($BW29:$BW58,"OK"),"OK","Check") -> OK | C28: Capex | E28: $m Real 2010 | G28: Std life | H28: Capex | J28: =INDEX('Depn|Inputs'!J$24:J$39,MATCH($B17,'Depn|Inputs'!$C$24:$C$39,0)) -> 23.44717127 | K28: =INDEX('Depn|Inputs'!K$24:K$39,MATCH($B17,'Depn|Inputs'!$C$24:$C$39,0)) -> 38.76655554 | L28: =INDEX('Depn|Inputs'!L$24:L$39,MATCH($B17,'Depn|Inputs'!$C$24:$C$39,0)) -> 6.220555384 | M28: =INDEX('Depn|Inputs'!M$24:M$39,MATCH($B17,'Depn|Inputs'!$C$24:$C$39,0)) -> 6.580365201 | N28: =INDEX('Depn|Inputs'!N$24:N$39,MATCH($B17,'Depn|Inputs'!$C$24:$C$39,0)) -> 37.77105972 | O28: =INDEX('Depn|Inputs'!O$24:O$39,MATCH($B17,'Depn|Inputs'!$C$24:$C$39,0)) -> 3.090400202 | P28: =INDEX('Depn|Inputs'!P$24:P$39,MATCH($B17,'Depn|Inputs'!$C$24:$C$39,0)) -> 1.413478211 | Q28: =INDEX('Depn|Inputs'!Q$24:Q$39,MATCH($B17,'Depn|Inputs'!$C$24:$C$39,0)) -> 1.173352911 | R28: =INDEX('Depn|Inputs'!R$24:R$39,MATCH($B17,'Depn|Inputs'!$C$24:$C$39,0)) -> 2.513460017 | S28: =INDEX('Depn|Inputs'!S$24:S$39,MATCH($B17,'Depn|Inputs'!$C$24:$C$39,0)) -> 2.453839091 | T28: =INDEX('Depn|Inputs'!T$24:T$39,MATCH($B17,'Depn|Inputs'!$C$24:$C$39,0)) -> 0 | U28: =INDEX('Depn|Inputs'!U$24:U$39,MATCH($B17,'Depn|Inputs'!$C$24:$C$39,0)) -> 0 | V28: =INDEX('Depn|Inputs'!V$24:V$39,MATCH($B17,'Depn|Inputs'!$C$24:$C$39,0)) -> 0 | W28: =INDEX('Depn|Inputs'!W$24:W$39,MATCH($B17,'Depn|Inputs'!$C$24:$C$39,0)) -> 0 | X28: =INDEX('Depn|Inputs'!X$24:X$39,MATCH($B17,'Depn|Inputs'!$C$24:$C$39,0)) -> 0 | Y28: =INDEX('Depn|Inputs'!Y$24:Y$39,MATCH($B17,'Depn|Inputs'!$C$24:$C$39,0)) -> 0 | Z28: =INDEX('Depn|Inputs'!Z$24:Z$39,MATCH($B17,'Depn|Inputs'!$C$24:$C$39,0)) -> 0 | AA28: =INDEX('Depn|Inputs'!AA$24:AA$39,MATCH($B17,'Depn|Inputs'!$C$24:$C$39,0)) -> 0 | AB28: =INDEX('Depn|Inputs'!AB$24:AB$39,MATCH($B17,'Depn|Inputs'!$C$24:$C$39,0)) -> 0 | AC28: =INDEX('Depn|Inputs'!AC$24:AC$39,MATCH($B17,'Depn|Inputs'!$C$24:$C$39,0)) -> 0 | AD28: =INDEX('Depn|Inputs'!AD$24:AD$39,MATCH($B17,'Depn|Inputs'!$C$24:$C$39,0)) -> 0 | AE28: =INDEX('Depn|Inputs'!AE$24:AE$39,MATCH($B17,'Depn|Inputs'!$C$24:$C$39,0)) -> 0 | AF28: =INDEX('Depn|Inputs'!AF$24:AF$39,MATCH($B17,'Depn|Inputs'!$C$24:$C$39,0)) -> 0 | AG28: =INDEX('Depn|Inputs'!AG$24:AG$39,MATCH($B17,'Depn|Inputs'!$C$24:$C$39,0)) -> 0 | AH28: =INDEX('Depn|Inputs'!AH$24:AH$39,MATCH($B17,'Depn|Inputs'!$C$24:$C$39,0)) -> 0 | AI28: =INDEX('Depn|Inputs'!AI$24:AI$39,MATCH($B17,'Depn|Inputs'!$C$24:$C$39,0)) -> 0 | AJ28: =INDEX('Depn|Inputs'!AJ$24:AJ$39,MATCH($B17,'Depn|Inputs'!$C$24:$C$39,0)) -> 0 | AK28: =INDEX('Depn|Inputs'!AK$24:AK$39,MATCH($B17,'Depn|Inputs'!$C$24:$C$39,0)) -> 0 | AL28: =INDEX('Depn|Inputs'!AL$24:AL$39,MATCH($B17,'Depn|Inputs'!$C$24:$C$39,0)) -> 0 | AM28: =INDEX('Depn|Inputs'!AM$24:AM$39,MATCH($B17,'Depn|Inputs'!$C$24:$C$39,0)) -> 0 | AN28: =INDEX('Depn|Inputs'!AN$24:AN$39,MATCH($B17,'Depn|Inputs'!$C$24:$C$39,0)) -> 0 | AO28: =INDEX('Depn|Inputs'!AO$24:AO$39,MATCH($B17,'Depn|Inputs'!$C$24:$C$39,0)) -> 0 | AP28: =INDEX('Depn|Inputs'!AP$24:AP$39,MATCH($B17,'Depn|Inputs'!$C$24:$C$39,0)) -> 0 | AQ28: =INDEX('Depn|Inputs'!AQ$24:AQ$39,MATCH($B17,'Depn|Inputs'!$C$24:$C$39,0)) -> 0 | AR28: =INDEX('Depn|Inputs'!AR$24:AR$39,MATCH($B17,'Depn|Inputs'!$C$24:$C$39,0)) -> 0 | AS28: =INDEX('Depn|Inputs'!AS$24:AS$39,MATCH($B17,'Depn|Inputs'!$C$24:$C$39,0)) -> 0 | AT28: =INDEX('Depn|Inputs'!AT$24:AT$39,MATCH($B17,'Depn|Inputs'!$C$24:$C$39,0)) -> 0 | AU28: =INDEX('Depn|Inputs'!AU$24:AU$39,MATCH($B17,'Depn|Inputs'!$C$24:$C$39,0)) -> 0 | AV28: =INDEX('Depn|Inputs'!AV$24:AV$39,MATCH($B17,'Depn|Inputs'!$C$24:$C$39,0)) -> 0 | AW28: =INDEX('Depn|Inputs'!AW$24:AW$39,MATCH($B17,'Depn|Inputs'!$C$24:$C$39,0)) -> 0 | AX28: =INDEX('Depn|Inputs'!AX$24:AX$39,MATCH($B17,'Depn|Inputs'!$C$24:$C$39,0)) -> 0 | AY28: =INDEX('Depn|Inputs'!AY$24:AY$39,MATCH($B17,'Depn|Inputs'!$C$24:$C$39,0)) -> 0 | AZ28: =INDEX('Depn|Inputs'!AZ$24:AZ$39,MATCH($B17,'Depn|Inputs'!$C$24:$C$39,0)) -> 0 | BA28: =INDEX('Depn|Inputs'!BA$24:BA$39,MATCH($B17,'Depn|Inputs'!$C$24:$C$39,0)) -> 0 | BB28: =INDEX('Depn|Inputs'!BB$24:BB$39,MATCH($B17,'Depn|Inputs'!$C$24:$C$39,0)) -> 0 | BC28: =INDEX('Depn|Inputs'!BC$24:BC$39,MATCH($B17,'Depn|Inputs'!$C$24:$C$39,0)) -> 0 | BD28: =INDEX('Depn|Inputs'!BD$24:BD$39,MATCH($B17,'Depn|Inputs'!$C$24:$C$39,0)) -> 0 | BE28: =INDEX('Depn|Inputs'!BE$24:BE$39,MATCH($B17,'Depn|Inputs'!$C$24:$C$39,0)) -> 0 | BF28: =INDEX('Depn|Inputs'!BF$24:BF$39,MATCH($B17,'Depn|Inputs'!$C$24:$C$39,0)) -> 0 | BG28: =INDEX('Depn|Inputs'!BG$24:BG$39,MATCH($B17,'Depn|Inputs'!$C$24:$C$39,0)) -> 0 | BH28: =INDEX('Depn|Inputs'!BH$24:BH$39,MATCH($B17,'Depn|Inputs'!$C$24:$C$39,0)) -> 0 | BI28: =INDEX('Depn|Inputs'!BI$24:BI$39,MATCH($B17,'Depn|Inputs'!$C$24:$C$39,0)) -> 0 | BJ28: =INDEX('Depn|Inputs'!BJ$24:BJ$39,MATCH($B17,'Depn|Inputs'!$C$24:$C$39,0)) -> 0 | BK28: =INDEX('Depn|Inputs'!BK$24:BK$39,MATCH($B17,'Depn|Inputs'!$C$24:$C$39,0)) -> 0 | BL28: =INDEX('Depn|Inputs'!BL$24:BL$39,MATCH($B17,'Depn|Inputs'!$C$24:$C$39,0)) -> 0 | BM28: =INDEX('Depn|Inputs'!BM$24:BM$39,MATCH($B17,'Depn|Inputs'!$C$24:$C$39,0)) -> 0 | BN28: =INDEX('Depn|Inputs'!BN$24:BN$39,MATCH($B17,'Depn|Inputs'!$C$24:$C$39,0)) -> 0 | BO28: =INDEX('Depn|Inputs'!BO$24:BO$39,MATCH($B17,'Depn|Inputs'!$C$24:$C$39,0)) -> 0 | BP28: =INDEX('Depn|Inputs'!BP$24:BP$39,MATCH($B17,'Depn|Inputs'!$C$24:$C$39,0)) -> 0 | BQ28: =INDEX('Depn|Inputs'!BQ$24:BQ$39,MATCH($B17,'Depn|Inputs'!$C$24:$C$39,0)) -> 0 | BR28: =INDEX('Depn|Inputs'!BR$24:BR$39,MATCH($B17,'Depn|Inputs'!$C$24:$C$39,0)) -> 0 | BS28: =INDEX('Depn|Inputs'!BS$24:BS$39,MATCH($B17,'Depn|Inputs'!$C$24:$C$39,0)) -> 0 | BT28: =INDEX('Depn|Inputs'!BT$24:BT$39,MATCH($B17,'Depn|Inputs'!$C$24:$C$39,0)) -> 0 | BU28: =INDEX('Depn|Inputs'!BU$24:BU$39,MATCH($B17,'Depn|Inputs'!$C$24:$C$39,0)) -> 0 | BV28: =INDEX('Depn|Inputs'!BV$24:BV$39,MATCH($B17,'Depn|Inputs'!$C$24:$C$39,0)) -> 0
D29: 2011 | E29: $m Real 2010 | G29: =INDEX('I1|Lives '!$C$7:$C$22,A17) -> 55 | H29: =J28 -> 23.44717127 | J29: =IF(OR(J$3<=$D29,$G29="n/a"),0,IF(SUM($D29,$G29)>J$3,$H29/$G29,$H29-SUM($I29:I29))) -> 0 | K29: =IF(OR(K$3<=$D29,$G29="n/a"),0,IF(SUM($D29,$G29)>K$3,$H29/$G29,$H29-SUM($I29:J29))) -> 0.4263122048 | L29: =IF(OR(L$3<=$D29,$G29="n/a"),0,IF(SUM($D29,$G29)>L$3,$H29/$G29,$H29-SUM($I29:K29))) -> 0.4263122048 | M29: =IF(OR(M$3<=$D29,$G29="n/a"),0,IF(SUM($D29,$G29)>M$3,$H29/$G29,$H29-SUM($I29:L29))) -> 0.4263122048 | N29: =IF(OR(N$3<=$D29,$G29="n/a"),0,IF(SUM($D29,$G29)>N$3,$H29/$G29,$H29-SUM($I29:M29))) -> 0.4263122048 | O29: =IF(OR(O$3<=$D29,$G29="n/a"),0,IF(SUM($D29,$G29)>O$3,$H29/$G29,$H29-SUM($I29:N29))) -> 0.4263122048 | P29: =IF(OR(P$3<=$D29,$G29="n/a"),0,IF(SUM($D29,$G29)>P$3,$H29/$G29,$H29-SUM($I29:O29))) -> 0.4263122048 | Q29: =IF(OR(Q$3<=$D29,$G29="n/a"),0,IF(SUM($D29,$G29)>Q$3,$H29/$G29,$H29-SUM($I29:P29))) -> 0.4263122048 | R29: =IF(OR(R$3<=$D29,$G29="n/a"),0,IF(SUM($D29,$G29)>R$3,$H29/$G29,$H29-SUM($I29:Q29))) -> 0.4263122048 | S29: =IF(OR(S$3<=$D29,$G29="n/a"),0,IF(SUM($D29,$G29)>S$3,$H29/$G29,$H29-SUM($I29:R29))) -> 0.4263122048 | T29: =IF(OR(T$3<=$D29,$G29="n/a"),0,IF(SUM($D29,$G29)>T$3,$H29/$G29,$H29-SUM($I29:S29))) -> 0.4263122048 | U29: =IF(OR(U$3<=$D29,$G29="n/a"),0,IF(SUM($D29,$G29)>U$3,$H29/$G29,$H29-SUM($I29:T29))) -> 0.4263122048 | V29: =IF(OR(V$3<=$D29,$G29="n/a"),0,IF(SUM($D29,$G29)>V$3,$H29/$G29,$H29-SUM($I29:U29))) -> 0.4263122048 | W29: =IF(OR(W$3<=$D29,$G29="n/a"),0,IF(SUM($D29,$G29)>W$3,$H29/$G29,$H29-SUM($I29:V29))) -> 0.4263122048 | X29: =IF(OR(X$3<=$D29,$G29="n/a"),0,IF(SUM($D29,$G29)>X$3,$H29/$G29,$H29-SUM($I29:W29))) -> 0.4263122048 | Y29: =IF(OR(Y$3<=$D29,$G29="n/a"),0,IF(SUM($D29,$G29)>Y$3,$H29/$G29,$H29-SUM($I29:X29))) -> 0.4263122048 | Z29: =IF(OR(Z$3<=$D29,$G29="n/a"),0,IF(SUM($D29,$G29)>Z$3,$H29/$G29,$H29-SUM($I29:Y29))) -> 0.4263122048 | AA29: =IF(OR(AA$3<=$D29,$G29="n/a"),0,IF(SUM($D29,$G29)>AA$3,$H29/$G29,$H29-SUM($I29:Z29))) -> 0.4263122048 | AB29: =IF(OR(AB$3<=$D29,$G29="n/a"),0,IF(SUM($D29,$G29)>AB$3,$H29/$G29,$H29-SUM($I29:AA29))) -> 0.4263122048 | AC29: =IF(OR(AC$3<=$D29,$G29="n/a"),0,IF(SUM($D29,$G29)>AC$3,$H29/$G29,$H29-SUM($I29:AB29))) -> 0.4263122048 | AD29: =IF(OR(AD$3<=$D29,$G29="n/a"),0,IF(SUM($D29,$G29)>AD$3,$H29/$G29,$H29-SUM($I29:AC29))) -> 0.4263122048 | AE29: =IF(OR(AE$3<=$D29,$G29="n/a"),0,IF(SUM($D29,$G29)>AE$3,$H29/$G29,$H29-SUM($I29:AD29))) -> 0.4263122048 | AF29: =IF(OR(AF$3<=$D29,$G29="n/a"),0,IF(SUM($D29,$G29)>AF$3,$H29/$G29,$H29-SUM($I29:AE29))) -> 0.4263122048 | AG29: =IF(OR(AG$3<=$D29,$G29="n/a"),0,IF(SUM($D29,$G29)>AG$3,$H29/$G29,$H29-SUM($I29:AF29))) -> 0.4263122048 | AH29: =IF(OR(AH$3<=$D29,$G29="n/a"),0,IF(SUM($D29,$G29)>AH$3,$H29/$G29,$H29-SUM($I29:AG29))) -> 0.4263122048 | AI29: =IF(OR(AI$3<=$D29,$G29="n/a"),0,IF(SUM($D29,$G29)>AI$3,$H29/$G29,$H29-SUM($I29:AH29))) -> 0.4263122048 | AJ29: =IF(OR(AJ$3<=$D29,$G29="n/a"),0,IF(SUM($D29,$G29)>AJ$3,$H29/$G29,$H29-SUM($I29:AI29))) -> 0.4263122048 | AK29: =IF(OR(AK$3<=$D29,$G29="n/a"),0,IF(SUM($D29,$G29)>AK$3,$H29/$G29,$H29-SUM($I29:AJ29))) -> 0.4263122048 | AL29: =IF(OR(AL$3<=$D29,$G29="n/a"),0,IF(SUM($D29,$G29)>AL$3,$H29/$G29,$H29-SUM($I29:AK29))) -> 0.4263122048 | AM29: =IF(OR(AM$3<=$D29,$G29="n/a"),0,IF(SUM($D29,$G29)>AM$3,$H29/$G29,$H29-SUM($I29:AL29))) -> 0.4263122048 | AN29: =IF(OR(AN$3<=$D29,$G29="n/a"),0,IF(SUM($D29,$G29)>AN$3,$H29/$G29,$H29-SUM($I29:AM29))) -> 0.4263122048 | AO29: =IF(OR(AO$3<=$D29,$G29="n/a"),0,IF(SUM($D29,$G29)>AO$3,$H29/$G29,$H29-SUM($I29:AN29))) -> 0.4263122048 | AP29: =IF(OR(AP$3<=$D29,$G29="n/a"),0,IF(SUM($D29,$G29)>AP$3,$H29/$G29,$H29-SUM($I29:AO29))) -> 0.4263122048 | AQ29: =IF(OR(AQ$3<=$D29,$G29="n/a"),0,IF(SUM($D29,$G29)>AQ$3,$H29/$G29,$H29-SUM($I29:AP29))) -> 0.4263122048 | AR29: =IF(OR(AR$3<=$D29,$G29="n/a"),0,IF(SUM($D29,$G29)>AR$3,$H29/$G29,$H29-SUM($I29:AQ29))) -> 0.4263122048 | AS29: =IF(OR(AS$3<=$D29,$G29="n/a"),0,IF(SUM($D29,$G29)>AS$3,$H29/$G29,$H29-SUM($I29:AR29))) -> 0.4263122048 | AT29: =IF(OR(AT$3<=$D29,$G29="n/a"),0,IF(SUM($D29,$G29)>AT$3,$H29/$G29,$H29-SUM($I29:AS29))) -> 0.4263122048 | AU29: =IF(OR(AU$3<=$D29,$G29="n/a"),0,IF(SUM($D29,$G29)>AU$3,$H29/$G29,$H29-SUM($I29:AT29))) -> 0.4263122048 | AV29: =IF(OR(AV$3<=$D29,$G29="n/a"),0,IF(SUM($D29,$G29)>AV$3,$H29/$G29,$H29-SUM($I29:AU29))) -> 0.4263122048 | AW29: =IF(OR(AW$3<=$D29,$G29="n/a"),0,IF(SUM($D29,$G29)>AW$3,$H29/$G29,$H29-SUM($I29:AV29))) -> 0.4263122048 | AX29: =IF(OR(AX$3<=$D29,$G29="n/a"),0,IF(SUM($D29,$G29)>AX$3,$H29/$G29,$H29-SUM($I29:AW29))) -> 0.4263122048 | AY29: =IF(OR(AY$3<=$D29,$G29="n/a"),0,IF(SUM($D29,$G29)>AY$3,$H29/$G29,$H29-SUM($I29:AX29))) -> 0.4263122048 | AZ29: =IF(OR(AZ$3<=$D29,$G29="n/a"),0,IF(SUM($D29,$G29)>AZ$3,$H29/$G29,$H29-SUM($I29:AY29))) -> 0.4263122048 | BA29: =IF(OR(BA$3<=$D29,$G29="n/a"),0,IF(SUM($D29,$G29)>BA$3,$H29/$G29,$H29-SUM($I29:AZ29))) -> 0.4263122048 | BB29: =IF(OR(BB$3<=$D29,$G29="n/a"),0,IF(SUM($D29,$G29)>BB$3,$H29/$G29,$H29-SUM($I29:BA29))) -> 0.4263122048 | BC29: =IF(OR(BC$3<=$D29,$G29="n/a"),0,IF(SUM($D29,$G29)>BC$3,$H29/$G29,$H29-SUM($I29:BB29))) -> 0.4263122048 | BD29: =IF(OR(BD$3<=$D29,$G29="n/a"),0,IF(SUM($D29,$G29)>BD$3,$H29/$G29,$H29-SUM($I29:BC29))) -> 0.4263122048 | BE29: =IF(OR(BE$3<=$D29,$G29="n/a"),0,IF(SUM($D29,$G29)>BE$3,$H29/$G29,$H29-SUM($I29:BD29))) -> 0.4263122048 | BF29: =IF(OR(BF$3<=$D29,$G29="n/a"),0,IF(SUM($D29,$G29)>BF$3,$H29/$G29,$H29-SUM($I29:BE29))) -> 0.4263122048 | BG29: =IF(OR(BG$3<=$D29,$G29="n/a"),0,IF(SUM($D29,$G29)>BG$3,$H29/$G29,$H29-SUM($I29:BF29))) -> 0.4263122048 | BH29: =IF(OR(BH$3<=$D29,$G29="n/a"),0,IF(SUM($D29,$G29)>BH$3,$H29/$G29,$H29-SUM($I29:BG29))) -> 0.4263122048 | BI29: =IF(OR(BI$3<=$D29,$G29="n/a"),0,IF(SUM($D29,$G29)>BI$3,$H29/$G29,$H29-SUM($I29:BH29))) -> 0.4263122048 | BJ29: =IF(OR(BJ$3<=$D29,$G29="n/a"),0,IF(SUM($D29,$G29)>BJ$3,$H29/$G29,$H29-SUM($I29:BI29))) -> 0.4263122048 | BK29: =IF(OR(BK$3<=$D29,$G29="n/a"),0,IF(SUM($D29,$G29)>BK$3,$H29/$G29,$H29-SUM($I29:BJ29))) -> 0.4263122048 | BL29: =IF(OR(BL$3<=$D29,$G29="n/a"),0,IF(SUM($D29,$G29)>BL$3,$H29/$G29,$H29-SUM($I29:BK29))) -> 0.4263122048 | BM29: =IF(OR(BM$3<=$D29,$G29="n/a"),0,IF(SUM($D29,$G29)>BM$3,$H29/$G29,$H29-SUM($I29:BL29))) -> 0.4263122048 | BN29: =IF(OR(BN$3<=$D29,$G29="n/a"),0,IF(SUM($D29,$G29)>BN$3,$H29/$G29,$H29-SUM($I29:BM29))) -> 0 | BO29: =IF(OR(BO$3<=$D29,$G29="n/a"),0,IF(SUM($D29,$G29)>BO$3,$H29/$G29,$H29-SUM($I29:BN29))) -> 0 | BP29: =IF(OR(BP$3<=$D29,$G29="n/a"),0,IF(SUM($D29,$G29)>BP$3,$H29/$G29,$H29-SUM($I29:BO29))) -> 0 | BQ29: =IF(OR(BQ$3<=$D29,$G29="n/a"),0,IF(SUM($D29,$G29)>BQ$3,$H29/$G29,$H29-SUM($I29:BP29))) -> 0 | BR29: =IF(OR(BR$3<=$D29,$G29="n/a"),0,IF(SUM($D29,$G29)>BR$3,$H29/$G29,$H29-SUM($I29:BQ29))) -> 0 | BS29: =IF(OR(BS$3<=$D29,$G29="n/a"),0,IF(SUM($D29,$G29)>BS$3,$H29/$G29,$H29-SUM($I29:BR29))) -> 0 | BT29: =IF(OR(BT$3<=$D29,$G29="n/a"),0,IF(SUM($D29,$G29)>BT$3,$H29/$G29,$H29-SUM($I29:BS29))) -> 0 | BU29: =IF(OR(BU$3<=$D29,$G29="n/a"),0,IF(SUM($D29,$G29)>BU$3,$H29/$G29,$H29-SUM($I29:BT29))) -> 0 | BV29: =IF(OR(BV$3<=$D29,$G29="n/a"),0,IF(SUM($D29,$G29)>BV$3,$H29/$G29,$H29-SUM($I29:BU29))) -> 0 | BW29: =IF(OR(ROUND(H29-SUM($J29:$BV29),2)=0,G29="n/a"),"Ok","Check") -> Ok
D30: =D29+1 -> 2012 | E30: $m Real 2010 | G30: =G29 -> 55 | H30: =K28 -> 38.76655554 | J30: =IF(OR(J$3<=$D30,$G30="n/a"),0,IF(SUM($D30,$G30)>J$3,$H30/$G30,$H30-SUM($I30:I30))) -> 0 | K30: =IF(OR(K$3<=$D30,$G30="n/a"),0,IF(SUM($D30,$G30)>K$3,$H30/$G30,$H30-SUM($I30:J30))) -> 0 | L30: =IF(OR(L$3<=$D30,$G30="n/a"),0,IF(SUM($D30,$G30)>L$3,$H30/$G30,$H30-SUM($I30:K30))) -> 0.7048464644 | M30: =IF(OR(M$3<=$D30,$G30="n/a"),0,IF(SUM($D30,$G30)>M$3,$H30/$G30,$H30-SUM($I30:L30))) -> 0.7048464644 | N30: =IF(OR(N$3<=$D30,$G30="n/a"),0,IF(SUM($D30,$G30)>N$3,$H30/$G30,$H30-SUM($I30:M30))) -> 0.7048464644 | O30: =IF(OR(O$3<=$D30,$G30="n/a"),0,IF(SUM($D30,$G30)>O$3,$H30/$G30,$H30-SUM($I30:N30))) -> 0.7048464644 | P30: =IF(OR(P$3<=$D30,$G30="n/a"),0,IF(SUM($D30,$G30)>P$3,$H30/$G30,$H30-SUM($I30:O30))) -> 0.7048464644 | Q30: =IF(OR(Q$3<=$D30,$G30="n/a"),0,IF(SUM($D30,$G30)>Q$3,$H30/$G30,$H30-SUM($I30:P30))) -> 0.7048464644 | R30: =IF(OR(R$3<=$D30,$G30="n/a"),0,IF(SUM($D30,$G30)>R$3,$H30/$G30,$H30-SUM($I30:Q30))) -> 0.7048464644 | S30: =IF(OR(S$3<=$D30,$G30="n/a"),0,IF(SUM($D30,$G30)>S$3,$H30/$G30,$H30-SUM($I30:R30))) -> 0.7048464644 | T30: =IF(OR(T$3<=$D30,$G30="n/a"),0,IF(SUM($D30,$G30)>T$3,$H30/$G30,$H30-SUM($I30:S30))) -> 0.7048464644 | U30: =IF(OR(U$3<=$D30,$G30="n/a"),0,IF(SUM($D30,$G30)>U$3,$H30/$G30,$H30-SUM($I30:T30))) -> 0.7048464644 | V30: =IF(OR(V$3<=$D30,$G30="n/a"),0,IF(SUM($D30,$G30)>V$3,$H30/$G30,$H30-SUM($I30:U30))) -> 0.7048464644 | W30: =IF(OR(W$3<=$D30,$G30="n/a"),0,IF(SUM($D30,$G30)>W$3,$H30/$G30,$H30-SUM($I30:V30))) -> 0.7048464644 | X30: =IF(OR(X$3<=$D30,$G30="n/a"),0,IF(SUM($D30,$G30)>X$3,$H30/$G30,$H30-SUM($I30:W30))) -> 0.7048464644 | Y30: =IF(OR(Y$3<=$D30,$G30="n/a"),0,IF(SUM($D30,$G30)>Y$3,$H30/$G30,$H30-SUM($I30:X30))) -> 0.7048464644 | Z30: =IF(OR(Z$3<=$D30,$G30="n/a"),0,IF(SUM($D30,$G30)>Z$3,$H30/$G30,$H30-SUM($I30:Y30))) -> 0.7048464644 | AA30: =IF(OR(AA$3<=$D30,$G30="n/a"),0,IF(SUM($D30,$G30)>AA$3,$H30/$G30,$H30-SUM($I30:Z30))) -> 0.7048464644 | AB30: =IF(OR(AB$3<=$D30,$G30="n/a"),0,IF(SUM($D30,$G30)>AB$3,$H30/$G30,$H30-SUM($I30:AA30))) -> 0.7048464644 | AC30: =IF(OR(AC$3<=$D30,$G30="n/a"),0,IF(SUM($D30,$G30)>AC$3,$H30/$G30,$H30-SUM($I30:AB30))) -> 0.7048464644 | AD30: =IF(OR(AD$3<=$D30,$G30="n/a"),0,IF(SUM($D30,$G30)>AD$3,$H30/$G30,$H30-SUM($I30:AC30))) -> 0.7048464644 | AE30: =IF(OR(AE$3<=$D30,$G30="n/a"),0,IF(SUM($D30,$G30)>AE$3,$H30/$G30,$H30-SUM($I30:AD30))) -> 0.7048464644 | AF30: =IF(OR(AF$3<=$D30,$G30="n/a"),0,IF(SUM($D30,$G30)>AF$3,$H30/$G30,$H30-SUM($I30:AE30))) -> 0.7048464644 | AG30: =IF(OR(AG$3<=$D30,$G30="n/a"),0,IF(SUM($D30,$G30)>AG$3,$H30/$G30,$H30-SUM($I30:AF30))) -> 0.7048464644 | AH30: =IF(OR(AH$3<=$D30,$G30="n/a"),0,IF(SUM($D30,$G30)>AH$3,$H30/$G30,$H30-SUM($I30:AG30))) -> 0.7048464644 | AI30: =IF(OR(AI$3<=$D30,$G30="n/a"),0,IF(SUM($D30,$G30)>AI$3,$H30/$G30,$H30-SUM($I30:AH30))) -> 0.7048464644 | AJ30: =IF(OR(AJ$3<=$D30,$G30="n/a"),0,IF(SUM($D30,$G30)>AJ$3,$H30/$G30,$H30-SUM($I30:AI30))) -> 0.7048464644 | AK30: =IF(OR(AK$3<=$D30,$G30="n/a"),0,IF(SUM($D30,$G30)>AK$3,$H30/$G30,$H30-SUM($I30:AJ30))) -> 0.7048464644 | AL30: =IF(OR(AL$3<=$D30,$G30="n/a"),0,IF(SUM($D30,$G30)>AL$3,$H30/$G30,$H30-SUM($I30:AK30))) -> 0.7048464644 | AM30: =IF(OR(AM$3<=$D30,$G30="n/a"),0,IF(SUM($D30,$G30)>AM$3,$H30/$G30,$H30-SUM($I30:AL30))) -> 0.7048464644 | AN30: =IF(OR(AN$3<=$D30,$G30="n/a"),0,IF(SUM($D30,$G30)>AN$3,$H30/$G30,$H30-SUM($I30:AM30))) -> 0.7048464644 | AO30: =IF(OR(AO$3<=$D30,$G30="n/a"),0,IF(SUM($D30,$G30)>AO$3,$H30/$G30,$H30-SUM($I30:AN30))) -> 0.7048464644 | AP30: =IF(OR(AP$3<=$D30,$G30="n/a"),0,IF(SUM($D30,$G30)>AP$3,$H30/$G30,$H30-SUM($I30:AO30))) -> 0.7048464644 | AQ30: =IF(OR(AQ$3<=$D30,$G30="n/a"),0,IF(SUM($D30,$G30)>AQ$3,$H30/$G30,$H30-SUM($I30:AP30))) -> 0.7048464644 | AR30: =IF(OR(AR$3<=$D30,$G30="n/a"),0,IF(SUM($D30,$G30)>AR$3,$H30/$G30,$H30-SUM($I30:AQ30))) -> 0.7048464644 | AS30: =IF(OR(AS$3<=$D30,$G30="n/a"),0,IF(SUM($D30,$G30)>AS$3,$H30/$G30,$H30-SUM($I30:AR30))) -> 0.7048464644 | AT30: =IF(OR(AT$3<=$D30,$G30="n/a"),0,IF(SUM($D30,$G30)>AT$3,$H30/$G30,$H30-SUM($I30:AS30))) -> 0.7048464644 | AU30: =IF(OR(AU$3<=$D30,$G30="n/a"),0,IF(SUM($D30,$G30)>AU$3,$H30/$G30,$H30-SUM($I30:AT30))) -> 0.7048464644 | AV30: =IF(OR(AV$3<=$D30,$G30="n/a"),0,IF(SUM($D30,$G30)>AV$3,$H30/$G30,$H30-SUM($I30:AU30))) -> 0.7048464644 | AW30: =IF(OR(AW$3<=$D30,$G30="n/a"),0,IF(SUM($D30,$G30)>AW$3,$H30/$G30,$H30-SUM($I30:AV30))) -> 0.7048464644 | AX30: =IF(OR(AX$3<=$D30,$G30="n/a"),0,IF(SUM($D30,$G30)>AX$3,$H30/$G30,$H30-SUM($I30:AW30))) -> 0.7048464644 | AY30: =IF(OR(AY$3<=$D30,$G30="n/a"),0,IF(SUM($D30,$G30)>AY$3,$H30/$G30,$H30-SUM($I30:AX30))) -> 0.7048464644 | AZ30: =IF(OR(AZ$3<=$D30,$G30="n/a"),0,IF(SUM($D30,$G30)>AZ$3,$H30/$G30,$H30-SUM($I30:AY30))) -> 0.7048464644 | BA30: =IF(OR(BA$3<=$D30,$G30="n/a"),0,IF(SUM($D30,$G30)>BA$3,$H30/$G30,$H30-SUM($I30:AZ30))) -> 0.7048464644 | BB30: =IF(OR(BB$3<=$D30,$G30="n/a"),0,IF(SUM($D30,$G30)>BB$3,$H30/$G30,$H30-SUM($I30:BA30))) -> 0.7048464644 | BC30: =IF(OR(BC$3<=$D30,$G30="n/a"),0,IF(SUM($D30,$G30)>BC$3,$H30/$G30,$H30-SUM($I30:BB30))) -> 0.7048464644 | BD30: =IF(OR(BD$3<=$D30,$G30="n/a"),0,IF(SUM($D30,$G30)>BD$3,$H30/$G30,$H30-SUM($I30:BC30))) -> 0.7048464644 | BE30: =IF(OR(BE$3<=$D30,$G30="n/a"),0,IF(SUM($D30,$G30)>BE$3,$H30/$G30,$H30-SUM($I30:BD30))) -> 0.7048464644 | BF30: =IF(OR(BF$3<=$D30,$G30="n/a"),0,IF(SUM($D30,$G30)>BF$3,$H30/$G30,$H30-SUM($I30:BE30))) -> 0.7048464644 | BG30: =IF(OR(BG$3<=$D30,$G30="n/a"),0,IF(SUM($D30,$G30)>BG$3,$H30/$G30,$H30-SUM($I30:BF30))) -> 0.7048464644 | BH30: =IF(OR(BH$3<=$D30,$G30="n/a"),0,IF(SUM($D30,$G30)>BH$3,$H30/$G30,$H30-SUM($I30:BG30))) -> 0.7048464644 | BI30: =IF(OR(BI$3<=$D30,$G30="n/a"),0,IF(SUM($D30,$G30)>BI$3,$H30/$G30,$H30-SUM($I30:BH30))) -> 0.7048464644 | BJ30: =IF(OR(BJ$3<=$D30,$G30="n/a"),0,IF(SUM($D30,$G30)>BJ$3,$H30/$G30,$H30-SUM($I30:BI30))) -> 0.7048464644 | BK30: =IF(OR(BK$3<=$D30,$G30="n/a"),0,IF(SUM($D30,$G30)>BK$3,$H30/$G30,$H30-SUM($I30:BJ30))) -> 0.7048464644 | BL30: =IF(OR(BL$3<=$D30,$G30="n/a"),0,IF(SUM($D30,$G30)>BL$3,$H30/$G30,$H30-SUM($I30:BK30))) -> 0.7048464644 | BM30: =IF(OR(BM$3<=$D30,$G30="n/a"),0,IF(SUM($D30,$G30)>BM$3,$H30/$G30,$H30-SUM($I30:BL30))) -> 0.7048464644 | BN30: =IF(OR(BN$3<=$D30,$G30="n/a"),0,IF(SUM($D30,$G30)>BN$3,$H30/$G30,$H30-SUM($I30:BM30))) -> 0.7048464644 | BO30: =IF(OR(BO$3<=$D30,$G30="n/a"),0,IF(SUM($D30,$G30)>BO$3,$H30/$G30,$H30-SUM($I30:BN30))) -> 0 | BP30: =IF(OR(BP$3<=$D30,$G30="n/a"),0,IF(SUM($D30,$G30)>BP$3,$H30/$G30,$H30-SUM($I30:BO30))) -> 0 | BQ30: =IF(OR(BQ$3<=$D30,$G30="n/a"),0,IF(SUM($D30,$G30)>BQ$3,$H30/$G30,$H30-SUM($I30:BP30))) -> 0 | BR30: =IF(OR(BR$3<=$D30,$G30="n/a"),0,IF(SUM($D30,$G30)>BR$3,$H30/$G30,$H30-SUM($I30:BQ30))) -> 0 | BS30: =IF(OR(BS$3<=$D30,$G30="n/a"),0,IF(SUM($D30,$G30)>BS$3,$H30/$G30,$H30-SUM($I30:BR30))) -> 0 | BT30: =IF(OR(BT$3<=$D30,$G30="n/a"),0,IF(SUM($D30,$G30)>BT$3,$H30/$G30,$H30-SUM($I30:BS30))) -> 0 | BU30: =IF(OR(BU$3<=$D30,$G30="n/a"),0,IF(SUM($D30,$G30)>BU$3,$H30/$G30,$H30-SUM($I30:BT30))) -> 0 | BV30: =IF(OR(BV$3<=$D30,$G30="n/a"),0,IF(SUM($D30,$G30)>BV$3,$H30/$G30,$H30-SUM($I30:BU30))) -> 0 | BW30: =IF(OR(ROUND(H30-SUM($J30:$BV30),2)=0,G30="n/a"),"Ok","Check") -> Ok
D31: =D30+1 -> 2013 | E31: $m Real 2010 | G31: =G30 -> 55 | H31: =L28 -> 6.220555384 | J31: =IF(OR(J$3<=$D31,$G31="n/a"),0,IF(SUM($D31,$G31)>J$3,$H31/$G31,$H31-SUM($I31:I31))) -> 0 | K31: =IF(OR(K$3<=$D31,$G31="n/a"),0,IF(SUM($D31,$G31)>K$3,$H31/$G31,$H31-SUM($I31:J31))) -> 0 | L31: =IF(OR(L$3<=$D31,$G31="n/a"),0,IF(SUM($D31,$G31)>L$3,$H31/$G31,$H31-SUM($I31:K31))) -> 0 | M31: =IF(OR(M$3<=$D31,$G31="n/a"),0,IF(SUM($D31,$G31)>M$3,$H31/$G31,$H31-SUM($I31:L31))) -> 0.113101007 | N31: =IF(OR(N$3<=$D31,$G31="n/a"),0,IF(SUM($D31,$G31)>N$3,$H31/$G31,$H31-SUM($I31:M31))) -> 0.113101007 | O31: =IF(OR(O$3<=$D31,$G31="n/a"),0,IF(SUM($D31,$G31)>O$3,$H31/$G31,$H31-SUM($I31:N31))) -> 0.113101007 | P31: =IF(OR(P$3<=$D31,$G31="n/a"),0,IF(SUM($D31,$G31)>P$3,$H31/$G31,$H31-SUM($I31:O31))) -> 0.113101007 | Q31: =IF(OR(Q$3<=$D31,$G31="n/a"),0,IF(SUM($D31,$G31)>Q$3,$H31/$G31,$H31-SUM($I31:P31))) -> 0.113101007 | R31: =IF(OR(R$3<=$D31,$G31="n/a"),0,IF(SUM($D31,$G31)>R$3,$H31/$G31,$H31-SUM($I31:Q31))) -> 0.113101007 | S31: =IF(OR(S$3<=$D31,$G31="n/a"),0,IF(SUM($D31,$G31)>S$3,$H31/$G31,$H31-SUM($I31:R31))) -> 0.113101007 | T31: =IF(OR(T$3<=$D31,$G31="n/a"),0,IF(SUM($D31,$G31)>T$3,$H31/$G31,$H31-SUM($I31:S31))) -> 0.113101007 | U31: =IF(OR(U$3<=$D31,$G31="n/a"),0,IF(SUM($D31,$G31)>U$3,$H31/$G31,$H31-SUM($I31:T31))) -> 0.113101007 | V31: =IF(OR(V$3<=$D31,$G31="n/a"),0,IF(SUM($D31,$G31)>V$3,$H31/$G31,$H31-SUM($I31:U31))) -> 0.113101007 | W31: =IF(OR(W$3<=$D31,$G31="n/a"),0,IF(SUM($D31,$G31)>W$3,$H31/$G31,$H31-SUM($I31:V31))) -> 0.113101007 | X31: =IF(OR(X$3<=$D31,$G31="n/a"),0,IF(SUM($D31,$G31)>X$3,$H31/$G31,$H31-SUM($I31:W31))) -> 0.113101007 | Y31: =IF(OR(Y$3<=$D31,$G31="n/a"),0,IF(SUM($D31,$G31)>Y$3,$H31/$G31,$H31-SUM($I31:X31))) -> 0.113101007 | Z31: =IF(OR(Z$3<=$D31,$G31="n/a"),0,IF(SUM($D31,$G31)>Z$3,$H31/$G31,$H31-SUM($I31:Y31))) -> 0.113101007 | AA31: =IF(OR(AA$3<=$D31,$G31="n/a"),0,IF(SUM($D31,$G31)>AA$3,$H31/$G31,$H31-SUM($I31:Z31))) -> 0.113101007 | AB31: =IF(OR(AB$3<=$D31,$G31="n/a"),0,IF(SUM($D31,$G31)>AB$3,$H31/$G31,$H31-SUM($I31:AA31))) -> 0.113101007 | AC31: =IF(OR(AC$3<=$D31,$G31="n/a"),0,IF(SUM($D31,$G31)>AC$3,$H31/$G31,$H31-SUM($I31:AB31))) -> 0.113101007 | AD31: =IF(OR(AD$3<=$D31,$G31="n/a"),0,IF(SUM($D31,$G31)>AD$3,$H31/$G31,$H31-SUM($I31:AC31))) -> 0.113101007 | AE31: =IF(OR(AE$3<=$D31,$G31="n/a"),0,IF(SUM($D31,$G31)>AE$3,$H31/$G31,$H31-SUM($I31:AD31))) -> 0.113101007 | AF31: =IF(OR(AF$3<=$D31,$G31="n/a"),0,IF(SUM($D31,$G31)>AF$3,$H31/$G31,$H31-SUM($I31:AE31))) -> 0.113101007 | AG31: =IF(OR(AG$3<=$D31,$G31="n/a"),0,IF(SUM($D31,$G31)>AG$3,$H31/$G31,$H31-SUM($I31:AF31))) -> 0.113101007 | AH31: =IF(OR(AH$3<=$D31,$G31="n/a"),0,IF(SUM($D31,$G31)>AH$3,$H31/$G31,$H31-SUM($I31:AG31))) -> 0.113101007 | AI31: =IF(OR(AI$3<=$D31,$G31="n/a"),0,IF(SUM($D31,$G31)>AI$3,$H31/$G31,$H31-SUM($I31:AH31))) -> 0.113101007 | AJ31: =IF(OR(AJ$3<=$D31,$G31="n/a"),0,IF(SUM($D31,$G31)>AJ$3,$H31/$G31,$H31-SUM($I31:AI31))) -> 0.113101007 | AK31: =IF(OR(AK$3<=$D31,$G31="n/a"),0,IF(SUM($D31,$G31)>AK$3,$H31/$G31,$H31-SUM($I31:AJ31))) -> 0.113101007 | AL31: =IF(OR(AL$3<=$D31,$G31="n/a"),0,IF(SUM($D31,$G31)>AL$3,$H31/$G31,$H31-SUM($I31:AK31))) -> 0.113101007 | AM31: =IF(OR(AM$3<=$D31,$G31="n/a"),0,IF(SUM($D31,$G31)>AM$3,$H31/$G31,$H31-SUM($I31:AL31))) -> 0.113101007 | AN31: =IF(OR(AN$3<=$D31,$G31="n/a"),0,IF(SUM($D31,$G31)>AN$3,$H31/$G31,$H31-SUM($I31:AM31))) -> 0.113101007 | AO31: =IF(OR(AO$3<=$D31,$G31="n/a"),0,IF(SUM($D31,$G31)>AO$3,$H31/$G31,$H31-SUM($I31:AN31))) -> 0.113101007 | AP31: =IF(OR(AP$3<=$D31,$G31="n/a"),0,IF(SUM($D31,$G31)>AP$3,$H31/$G31,$H31-SUM($I31:AO31))) -> 0.113101007 | AQ31: =IF(OR(AQ$3<=$D31,$G31="n/a"),0,IF(SUM($D31,$G31)>AQ$3,$H31/$G31,$H31-SUM($I31:AP31))) -> 0.113101007 | AR31: =IF(OR(AR$3<=$D31,$G31="n/a"),0,IF(SUM($D31,$G31)>AR$3,$H31/$G31,$H31-SUM($I31:AQ31))) -> 0.113101007 | AS31: =IF(OR(AS$3<=$D31,$G31="n/a"),0,IF(SUM($D31,$G31)>AS$3,$H31/$G31,$H31-SUM($I31:AR31))) -> 0.113101007 | AT31: =IF(OR(AT$3<=$D31,$G31="n/a"),0,IF(SUM($D31,$G31)>AT$3,$H31/$G31,$H31-SUM($I31:AS31))) -> 0.113101007 | AU31: =IF(OR(AU$3<=$D31,$G31="n/a"),0,IF(SUM($D31,$G31)>AU$3,$H31/$G31,$H31-SUM($I31:AT31))) -> 0.113101007 | AV31: =IF(OR(AV$3<=$D31,$G31="n/a"),0,IF(SUM($D31,$G31)>AV$3,$H31/$G31,$H31-SUM($I31:AU31))) -> 0.113101007 | AW31: =IF(OR(AW$3<=$D31,$G31="n/a"),0,IF(SUM($D31,$G31)>AW$3,$H31/$G31,$H31-SUM($I31:AV31))) -> 0.113101007 | AX31: =IF(OR(AX$3<=$D31,$G31="n/a"),0,IF(SUM($D31,$G31)>AX$3,$H31/$G31,$H31-SUM($I31:AW31))) -> 0.113101007 | AY31: =IF(OR(AY$3<=$D31,$G31="n/a"),0,IF(SUM($D31,$G31)>AY$3,$H31/$G31,$H31-SUM($I31:AX31))) -> 0.113101007 | AZ31: =IF(OR(AZ$3<=$D31,$G31="n/a"),0,IF(SUM($D31,$G31)>AZ$3,$H31/$G31,$H31-SUM($I31:AY31))) -> 0.113101007 | BA31: =IF(OR(BA$3<=$D31,$G31="n/a"),0,IF(SUM($D31,$G31)>BA$3,$H31/$G31,$H31-SUM($I31:AZ31))) -> 0.113101007 | BB31: =IF(OR(BB$3<=$D31,$G31="n/a"),0,IF(SUM($D31,$G31)>BB$3,$H31/$G31,$H31-SUM($I31:BA31))) -> 0.113101007 | BC31: =IF(OR(BC$3<=$D31,$G31="n/a"),0,IF(SUM($D31,$G31)>BC$3,$H31/$G31,$H31-SUM($I31:BB31))) -> 0.113101007 | BD31: =IF(OR(BD$3<=$D31,$G31="n/a"),0,IF(SUM($D31,$G31)>BD$3,$H31/$G31,$H31-SUM($I31:BC31))) -> 0.113101007 | BE31: =IF(OR(BE$3<=$D31,$G31="n/a"),0,IF(SUM($D31,$G31)>BE$3,$H31/$G31,$H31-SUM($I31:BD31))) -> 0.113101007 | BF31: =IF(OR(BF$3<=$D31,$G31="n/a"),0,IF(SUM($D31,$G31)>BF$3,$H31/$G31,$H31-SUM($I31:BE31))) -> 0.113101007 | BG31: =IF(OR(BG$3<=$D31,$G31="n/a"),0,IF(SUM($D31,$G31)>BG$3,$H31/$G31,$H31-SUM($I31:BF31))) -> 0.113101007 | BH31: =IF(OR(BH$3<=$D31,$G31="n/a"),0,IF(SUM($D31,$G31)>BH$3,$H31/$G31,$H31-SUM($I31:BG31))) -> 0.113101007 | BI31: =IF(OR(BI$3<=$D31,$G31="n/a"),0,IF(SUM($D31,$G31)>BI$3,$H31/$G31,$H31-SUM($I31:BH31))) -> 0.113101007 | BJ31: =IF(OR(BJ$3<=$D31,$G31="n/a"),0,IF(SUM($D31,$G31)>BJ$3,$H31/$G31,$H31-SUM($I31:BI31))) -> 0.113101007 | BK31: =IF(OR(BK$3<=$D31,$G31="n/a"),0,IF(SUM($D31,$G31)>BK$3,$H31/$G31,$H31-SUM($I31:BJ31))) -> 0.113101007 | BL31: =IF(OR(BL$3<=$D31,$G31="n/a"),0,IF(SUM($D31,$G31)>BL$3,$H31/$G31,$H31-SUM($I31:BK31))) -> 0.113101007 | BM31: =IF(OR(BM$3<=$D31,$G31="n/a"),0,IF(SUM($D31,$G31)>BM$3,$H31/$G31,$H31-SUM($I31:BL31))) -> 0.113101007 | BN31: =IF(OR(BN$3<=$D31,$G31="n/a"),0,IF(SUM($D31,$G31)>BN$3,$H31/$G31,$H31-SUM($I31:BM31))) -> 0.113101007 | BO31: =IF(OR(BO$3<=$D31,$G31="n/a"),0,IF(SUM($D31,$G31)>BO$3,$H31/$G31,$H31-SUM($I31:BN31))) -> 0.113101007 | BP31: =IF(OR(BP$3<=$D31,$G31="n/a"),0,IF(SUM($D31,$G31)>BP$3,$H31/$G31,$H31-SUM($I31:BO31))) -> 0 | BQ31: =IF(OR(BQ$3<=$D31,$G31="n/a"),0,IF(SUM($D31,$G31)>BQ$3,$H31/$G31,$H31-SUM($I31:BP31))) -> 0 | BR31: =IF(OR(BR$3<=$D31,$G31="n/a"),0,IF(SUM($D31,$G31)>BR$3,$H31/$G31,$H31-SUM($I31:BQ31))) -> 0 | BS31: =IF(OR(BS$3<=$D31,$G31="n/a"),0,IF(SUM($D31,$G31)>BS$3,$H31/$G31,$H31-SUM($I31:BR31))) -> 0 | BT31: =IF(OR(BT$3<=$D31,$G31="n/a"),0,IF(SUM($D31,$G31)>BT$3,$H31/$G31,$H31-SUM($I31:BS31))) -> 0 | BU31: =IF(OR(BU$3<=$D31,$G31="n/a"),0,IF(SUM($D31,$G31)>BU$3,$H31/$G31,$H31-SUM($I31:BT31))) -> 0 | BV31: =IF(OR(BV$3<=$D31,$G31="n/a"),0,IF(SUM($D31,$G31)>BV$3,$H31/$G31,$H31-SUM($I31:BU31))) -> 0 | BW31: Ok
D32: 2014 | E32: $m Real 2010 | G32: =G31 -> 55 | H32: =M28 -> 6.580365201 | J32: =IF(OR(J$3<=$D32,$G32="n/a"),0,IF(SUM($D32,$G32)>J$3,$H32/$G32,$H32-SUM($I32:I32))) -> 0 | K32: =IF(OR(K$3<=$D32,$G32="n/a"),0,IF(SUM($D32,$G32)>K$3,$H32/$G32,$H32-SUM($I32:J32))) -> 0 | L32: =IF(OR(L$3<=$D32,$G32="n/a"),0,IF(SUM($D32,$G32)>L$3,$H32/$G32,$H32-SUM($I32:K32))) -> 0 | M32: =IF(OR(M$3<=$D32,$G32="n/a"),0,IF(SUM($D32,$G32)>M$3,$H32/$G32,$H32-SUM($I32:L32))) -> 0 | N32: =IF(OR(N$3<=$D32,$G32="n/a"),0,IF(SUM($D32,$G32)>N$3,$H32/$G32,$H32-SUM($I32:M32))) -> 0.1196430037 | O32: =IF(OR(O$3<=$D32,$G32="n/a"),0,IF(SUM($D32,$G32)>O$3,$H32/$G32,$H32-SUM($I32:N32))) -> 0.1196430037 | P32: =IF(OR(P$3<=$D32,$G32="n/a"),0,IF(SUM($D32,$G32)>P$3,$H32/$G32,$H32-SUM($I32:O32))) -> 0.1196430037 | Q32: =IF(OR(Q$3<=$D32,$G32="n/a"),0,IF(SUM($D32,$G32)>Q$3,$H32/$G32,$H32-SUM($I32:P32))) -> 0.1196430037 | R32: =IF(OR(R$3<=$D32,$G32="n/a"),0,IF(SUM($D32,$G32)>R$3,$H32/$G32,$H32-SUM($I32:Q32))) -> 0.1196430037 | S32: =IF(OR(S$3<=$D32,$G32="n/a"),0,IF(SUM($D32,$G32)>S$3,$H32/$G32,$H32-SUM($I32:R32))) -> 0.1196430037 | T32: =IF(OR(T$3<=$D32,$G32="n/a"),0,IF(SUM($D32,$G32)>T$3,$H32/$G32,$H32-SUM($I32:S32))) -> 0.1196430037 | U32: =IF(OR(U$3<=$D32,$G32="n/a"),0,IF(SUM($D32,$G32)>U$3,$H32/$G32,$H32-SUM($I32:T32))) -> 0.1196430037 | V32: =IF(OR(V$3<=$D32,$G32="n/a"),0,IF(SUM($D32,$G32)>V$3,$H32/$G32,$H32-SUM($I32:U32))) -> 0.1196430037 | W32: =IF(OR(W$3<=$D32,$G32="n/a"),0,IF(SUM($D32,$G32)>W$3,$H32/$G32,$H32-SUM($I32:V32))) -> 0.1196430037 | X32: =IF(OR(X$3<=$D32,$G32="n/a"),0,IF(SUM($D32,$G32)>X$3,$H32/$G32,$H32-SUM($I32:W32))) -> 0.1196430037 | Y32: =IF(OR(Y$3<=$D32,$G32="n/a"),0,IF(SUM($D32,$G32)>Y$3,$H32/$G32,$H32-SUM($I32:X32))) -> 0.1196430037 | Z32: =IF(OR(Z$3<=$D32,$G32="n/a"),0,IF(SUM($D32,$G32)>Z$3,$H32/$G32,$H32-SUM($I32:Y32))) -> 0.1196430037 | AA32: =IF(OR(AA$3<=$D32,$G32="n/a"),0,IF(SUM($D32,$G32)>AA$3,$H32/$G32,$H32-SUM($I32:Z32))) -> 0.1196430037 | AB32: =IF(OR(AB$3<=$D32,$G32="n/a"),0,IF(SUM($D32,$G32)>AB$3,$H32/$G32,$H32-SUM($I32:AA32))) -> 0.1196430037 | AC32: =IF(OR(AC$3<=$D32,$G32="n/a"),0,IF(SUM($D32,$G32)>AC$3,$H32/$G32,$H32-SUM($I32:AB32))) -> 0.1196430037 | AD32: =IF(OR(AD$3<=$D32,$G32="n/a"),0,IF(SUM($D32,$G32)>AD$3,$H32/$G32,$H32-SUM($I32:AC32))) -> 0.1196430037 | AE32: =IF(OR(AE$3<=$D32,$G32="n/a"),0,IF(SUM($D32,$G32)>AE$3,$H32/$G32,$H32-SUM($I32:AD32))) -> 0.1196430037 | AF32: =IF(OR(AF$3<=$D32,$G32="n/a"),0,IF(SUM($D32,$G32)>AF$3,$H32/$G32,$H32-SUM($I32:AE32))) -> 0.1196430037 | AG32: =IF(OR(AG$3<=$D32,$G32="n/a"),0,IF(SUM($D32,$G32)>AG$3,$H32/$G32,$H32-SUM($I32:AF32))) -> 0.1196430037 | AH32: =IF(OR(AH$3<=$D32,$G32="n/a"),0,IF(SUM($D32,$G32)>AH$3,$H32/$G32,$H32-SUM($I32:AG32))) -> 0.1196430037 | AI32: =IF(OR(AI$3<=$D32,$G32="n/a"),0,IF(SUM($D32,$G32)>AI$3,$H32/$G32,$H32-SUM($I32:AH32))) -> 0.1196430037 | AJ32: =IF(OR(AJ$3<=$D32,$G32="n/a"),0,IF(SUM($D32,$G32)>AJ$3,$H32/$G32,$H32-SUM($I32:AI32))) -> 0.1196430037 | AK32: =IF(OR(AK$3<=$D32,$G32="n/a"),0,IF(SUM($D32,$G32)>AK$3,$H32/$G32,$H32-SUM($I32:AJ32))) -> 0.1196430037 | AL32: =IF(OR(AL$3<=$D32,$G32="n/a"),0,IF(SUM($D32,$G32)>AL$3,$H32/$G32,$H32-SUM($I32:AK32))) -> 0.1196430037 | AM32: =IF(OR(AM$3<=$D32,$G32="n/a"),0,IF(SUM($D32,$G32)>AM$3,$H32/$G32,$H32-SUM($I32:AL32))) -> 0.1196430037 | AN32: =IF(OR(AN$3<=$D32,$G32="n/a"),0,IF(SUM($D32,$G32)>AN$3,$H32/$G32,$H32-SUM($I32:AM32))) -> 0.1196430037 | AO32: =IF(OR(AO$3<=$D32,$G32="n/a"),0,IF(SUM($D32,$G32)>AO$3,$H32/$G32,$H32-SUM($I32:AN32))) -> 0.1196430037 | AP32: =IF(OR(AP$3<=$D32,$G32="n/a"),0,IF(SUM($D32,$G32)>AP$3,$H32/$G32,$H32-SUM($I32:AO32))) -> 0.1196430037 | AQ32: =IF(OR(AQ$3<=$D32,$G32="n/a"),0,IF(SUM($D32,$G32)>AQ$3,$H32/$G32,$H32-SUM($I32:AP32))) -> 0.1196430037 | AR32: =IF(OR(AR$3<=$D32,$G32="n/a"),0,IF(SUM($D32,$G32)>AR$3,$H32/$G32,$H32-SUM($I32:AQ32))) -> 0.1196430037 | AS32: =IF(OR(AS$3<=$D32,$G32="n/a"),0,IF(SUM($D32,$G32)>AS$3,$H32/$G32,$H32-SUM($I32:AR32))) -> 0.1196430037 | AT32: =IF(OR(AT$3<=$D32,$G32="n/a"),0,IF(SUM($D32,$G32)>AT$3,$H32/$G32,$H32-SUM($I32:AS32))) -> 0.1196430037 | AU32: =IF(OR(AU$3<=$D32,$G32="n/a"),0,IF(SUM($D32,$G32)>AU$3,$H32/$G32,$H32-SUM($I32:AT32))) -> 0.1196430037 | AV32: =IF(OR(AV$3<=$D32,$G32="n/a"),0,IF(SUM($D32,$G32)>AV$3,$H32/$G32,$H32-SUM($I32:AU32))) -> 0.1196430037 | AW32: =IF(OR(AW$3<=$D32,$G32="n/a"),0,IF(SUM($D32,$G32)>AW$3,$H32/$G32,$H32-SUM($I32:AV32))) -> 0.1196430037 | AX32: =IF(OR(AX$3<=$D32,$G32="n/a"),0,IF(SUM($D32,$G32)>AX$3,$H32/$G32,$H32-SUM($I32:AW32))) -> 0.1196430037 | AY32: =IF(OR(AY$3<=$D32,$G32="n/a"),0,IF(SUM($D32,$G32)>AY$3,$H32/$G32,$H32-SUM($I32:AX32))) -> 0.1196430037 | AZ32: =IF(OR(AZ$3<=$D32,$G32="n/a"),0,IF(SUM($D32,$G32)>AZ$3,$H32/$G32,$H32-SUM($I32:AY32))) -> 0.1196430037 | BA32: =IF(OR(BA$3<=$D32,$G32="n/a"),0,IF(SUM($D32,$G32)>BA$3,$H32/$G32,$H32-SUM($I32:AZ32))) -> 0.1196430037 | BB32: =IF(OR(BB$3<=$D32,$G32="n/a"),0,IF(SUM($D32,$G32)>BB$3,$H32/$G32,$H32-SUM($I32:BA32))) -> 0.1196430037 | BC32: =IF(OR(BC$3<=$D32,$G32="n/a"),0,IF(SUM($D32,$G32)>BC$3,$H32/$G32,$H32-SUM($I32:BB32))) -> 0.1196430037 | BD32: =IF(OR(BD$3<=$D32,$G32="n/a"),0,IF(SUM($D32,$G32)>BD$3,$H32/$G32,$H32-SUM($I32:BC32))) -> 0.1196430037 | BE32: =IF(OR(BE$3<=$D32,$G32="n/a"),0,IF(SUM($D32,$G32)>BE$3,$H32/$G32,$H32-SUM($I32:BD32))) -> 0.1196430037 | BF32: =IF(OR(BF$3<=$D32,$G32="n/a"),0,IF(SUM($D32,$G32)>BF$3,$H32/$G32,$H32-SUM($I32:BE32))) -> 0.1196430037 | BG32: =IF(OR(BG$3<=$D32,$G32="n/a"),0,IF(SUM($D32,$G32)>BG$3,$H32/$G32,$H32-SUM($I32:BF32))) -> 0.1196430037 | BH32: =IF(OR(BH$3<=$D32,$G32="n/a"),0,IF(SUM($D32,$G32)>BH$3,$H32/$G32,$H32-SUM($I32:BG32))) -> 0.1196430037 | BI32: =IF(OR(BI$3<=$D32,$G32="n/a"),0,IF(SUM($D32,$G32)>BI$3,$H32/$G32,$H32-SUM($I32:BH32))) -> 0.1196430037 | BJ32: =IF(OR(BJ$3<=$D32,$G32="n/a"),0,IF(SUM($D32,$G32)>BJ$3,$H32/$G32,$H32-SUM($I32:BI32))) -> 0.1196430037 | BK32: =IF(OR(BK$3<=$D32,$G32="n/a"),0,IF(SUM($D32,$G32)>BK$3,$H32/$G32,$H32-SUM($I32:BJ32))) -> 0.1196430037 | BL32: =IF(OR(BL$3<=$D32,$G32="n/a"),0,IF(SUM($D32,$G32)>BL$3,$H32/$G32,$H32-SUM($I32:BK32))) -> 0.1196430037 | BM32: =IF(OR(BM$3<=$D32,$G32="n/a"),0,IF(SUM($D32,$G32)>BM$3,$H32/$G32,$H32-SUM($I32:BL32))) -> 0.1196430037 | BN32: =IF(OR(BN$3<=$D32,$G32="n/a"),0,IF(SUM($D32,$G32)>BN$3,$H32/$G32,$H32-SUM($I32:BM32))) -> 0.1196430037 | BO32: =IF(OR(BO$3<=$D32,$G32="n/a"),0,IF(SUM($D32,$G32)>BO$3,$H32/$G32,$H32-SUM($I32:BN32))) -> 0.1196430037 | BP32: =IF(OR(BP$3<=$D32,$G32="n/a"),0,IF(SUM($D32,$G32)>BP$3,$H32/$G32,$H32-SUM($I32:BO32))) -> 0.1196430037 | BQ32: =IF(OR(BQ$3<=$D32,$G32="n/a"),0,IF(SUM($D32,$G32)>BQ$3,$H32/$G32,$H32-SUM($I32:BP32))) -> 0 | BR32: =IF(OR(BR$3<=$D32,$G32="n/a"),0,IF(SUM($D32,$G32)>BR$3,$H32/$G32,$H32-SUM($I32:BQ32))) -> 0 | BS32: =IF(OR(BS$3<=$D32,$G32="n/a"),0,IF(SUM($D32,$G32)>BS$3,$H32/$G32,$H32-SUM($I32:BR32))) -> 0 | BT32: =IF(OR(BT$3<=$D32,$G32="n/a"),0,IF(SUM($D32,$G32)>BT$3,$H32/$G32,$H32-SUM($I32:BS32))) -> 0 | BU32: =IF(OR(BU$3<=$D32,$G32="n/a"),0,IF(SUM($D32,$G32)>BU$3,$H32/$G32,$H32-SUM($I32:BT32))) -> 0 | BV32: =IF(OR(BV$3<=$D32,$G32="n/a"),0,IF(SUM($D32,$G32)>BV$3,$H32/$G32,$H32-SUM($I32:BU32))) -> 0 | BW32: Ok
D33: 2015 | E33: $m Real 2010 | G33: =G32 -> 55 | H33: =N28 -> 37.77105972 | J33: =IF(OR(J$3<=$D33,$G33="n/a"),0,IF(SUM($D33,$G33)>J$3,$H33/$G33,$H33-SUM($I33:I33))) -> 0 | K33: =IF(OR(K$3<=$D33,$G33="n/a"),0,IF(SUM($D33,$G33)>K$3,$H33/$G33,$H33-SUM($I33:J33))) -> 0 | L33: =IF(OR(L$3<=$D33,$G33="n/a"),0,IF(SUM($D33,$G33)>L$3,$H33/$G33,$H33-SUM($I33:K33))) -> 0 | M33: =IF(OR(M$3<=$D33,$G33="n/a"),0,IF(SUM($D33,$G33)>M$3,$H33/$G33,$H33-SUM($I33:L33))) -> 0 | N33: =IF(OR(N$3<=$D33,$G33="n/a"),0,IF(SUM($D33,$G33)>N$3,$H33/$G33,$H33-SUM($I33:M33))) -> 0 | O33: =IF(OR(O$3<=$D33,$G33="n/a"),0,IF(SUM($D33,$G33)>O$3,$H33/$G33,$H33-SUM($I33:N33))) -> 0.6867465403 | P33: =IF(OR(P$3<=$D33,$G33="n/a"),0,IF(SUM($D33,$G33)>P$3,$H33/$G33,$H33-SUM($I33:O33))) -> 0.6867465403 | Q33: =IF(OR(Q$3<=$D33,$G33="n/a"),0,IF(SUM($D33,$G33)>Q$3,$H33/$G33,$H33-SUM($I33:P33))) -> 0.6867465403 | R33: =IF(OR(R$3<=$D33,$G33="n/a"),0,IF(SUM($D33,$G33)>R$3,$H33/$G33,$H33-SUM($I33:Q33))) -> 0.6867465403 | S33: =IF(OR(S$3<=$D33,$G33="n/a"),0,IF(SUM($D33,$G33)>S$3,$H33/$G33,$H33-SUM($I33:R33))) -> 0.6867465403 | T33: =IF(OR(T$3<=$D33,$G33="n/a"),0,IF(SUM($D33,$G33)>T$3,$H33/$G33,$H33-SUM($I33:S33))) -> 0.6867465403 | U33: =IF(OR(U$3<=$D33,$G33="n/a"),0,IF(SUM($D33,$G33)>U$3,$H33/$G33,$H33-SUM($I33:T33))) -> 0.6867465403 | V33: =IF(OR(V$3<=$D33,$G33="n/a"),0,IF(SUM($D33,$G33)>V$3,$H33/$G33,$H33-SUM($I33:U33))) -> 0.6867465403 | W33: =IF(OR(W$3<=$D33,$G33="n/a"),0,IF(SUM($D33,$G33)>W$3,$H33/$G33,$H33-SUM($I33:V33))) -> 0.6867465403 | X33: =IF(OR(X$3<=$D33,$G33="n/a"),0,IF(SUM($D33,$G33)>X$3,$H33/$G33,$H33-SUM($I33:W33))) -> 0.6867465403 | Y33: =IF(OR(Y$3<=$D33,$G33="n/a"),0,IF(SUM($D33,$G33)>Y$3,$H33/$G33,$H33-SUM($I33:X33))) -> 0.6867465403 | Z33: =IF(OR(Z$3<=$D33,$G33="n/a"),0,IF(SUM($D33,$G33)>Z$3,$H33/$G33,$H33-SUM($I33:Y33))) -> 0.6867465403 | AA33: =IF(OR(AA$3<=$D33,$G33="n/a"),0,IF(SUM($D33,$G33)>AA$3,$H33/$G33,$H33-SUM($I33:Z33))) -> 0.6867465403 | AB33: =IF(OR(AB$3<=$D33,$G33="n/a"),0,IF(SUM($D33,$G33)>AB$3,$H33/$G33,$H33-SUM($I33:AA33))) -> 0.6867465403 | AC33: =IF(OR(AC$3<=$D33,$G33="n/a"),0,IF(SUM($D33,$G33)>AC$3,$H33/$G33,$H33-SUM($I33:AB33))) -> 0.6867465403 | AD33: =IF(OR(AD$3<=$D33,$G33="n/a"),0,IF(SUM($D33,$G33)>AD$3,$H33/$G33,$H33-SUM($I33:AC33))) -> 0.6867465403 | AE33: =IF(OR(AE$3<=$D33,$G33="n/a"),0,IF(SUM($D33,$G33)>AE$3,$H33/$G33,$H33-SUM($I33:AD33))) -> 0.6867465403 | AF33: =IF(OR(AF$3<=$D33,$G33="n/a"),0,IF(SUM($D33,$G33)>AF$3,$H33/$G33,$H33-SUM($I33:AE33))) -> 0.6867465403 | AG33: =IF(OR(AG$3<=$D33,$G33="n/a"),0,IF(SUM($D33,$G33)>AG$3,$H33/$G33,$H33-SUM($I33:AF33))) -> 0.6867465403 | AH33: =IF(OR(AH$3<=$D33,$G33="n/a"),0,IF(SUM($D33,$G33)>AH$3,$H33/$G33,$H33-SUM($I33:AG33))) -> 0.6867465403 | AI33: =IF(OR(AI$3<=$D33,$G33="n/a"),0,IF(SUM($D33,$G33)>AI$3,$H33/$G33,$H33-SUM($I33:AH33))) -> 0.6867465403 | AJ33: =IF(OR(AJ$3<=$D33,$G33="n/a"),0,IF(SUM($D33,$G33)>AJ$3,$H33/$G33,$H33-SUM($I33:AI33))) -> 0.6867465403 | AK33: =IF(OR(AK$3<=$D33,$G33="n/a"),0,IF(SUM($D33,$G33)>AK$3,$H33/$G33,$H33-SUM($I33:AJ33))) -> 0.6867465403 | AL33: =IF(OR(AL$3<=$D33,$G33="n/a"),0,IF(SUM($D33,$G33)>AL$3,$H33/$G33,$H33-SUM($I33:AK33))) -> 0.6867465403 | AM33: =IF(OR(AM$3<=$D33,$G33="n/a"),0,IF(SUM($D33,$G33)>AM$3,$H33/$G33,$H33-SUM($I33:AL33))) -> 0.6867465403 | AN33: =IF(OR(AN$3<=$D33,$G33="n/a"),0,IF(SUM($D33,$G33)>AN$3,$H33/$G33,$H33-SUM($I33:AM33))) -> 0.6867465403 | AO33: =IF(OR(AO$3<=$D33,$G33="n/a"),0,IF(SUM($D33,$G33)>AO$3,$H33/$G33,$H33-SUM($I33:AN33))) -> 0.6867465403 | AP33: =IF(OR(AP$3<=$D33,$G33="n/a"),0,IF(SUM($D33,$G33)>AP$3,$H33/$G33,$H33-SUM($I33:AO33))) -> 0.6867465403 | AQ33: =IF(OR(AQ$3<=$D33,$G33="n/a"),0,IF(SUM($D33,$G33)>AQ$3,$H33/$G33,$H33-SUM($I33:AP33))) -> 0.6867465403 | AR33: =IF(OR(AR$3<=$D33,$G33="n/a"),0,IF(SUM($D33,$G33)>AR$3,$H33/$G33,$H33-SUM($I33:AQ33))) -> 0.6867465403 | AS33: =IF(OR(AS$3<=$D33,$G33="n/a"),0,IF(SUM($D33,$G33)>AS$3,$H33/$G33,$H33-SUM($I33:AR33))) -> 0.6867465403 | AT33: =IF(OR(AT$3<=$D33,$G33="n/a"),0,IF(SUM($D33,$G33)>AT$3,$H33/$G33,$H33-SUM($I33:AS33))) -> 0.6867465403 | AU33: =IF(OR(AU$3<=$D33,$G33="n/a"),0,IF(SUM($D33,$G33)>AU$3,$H33/$G33,$H33-SUM($I33:AT33))) -> 0.6867465403 | AV33: =IF(OR(AV$3<=$D33,$G33="n/a"),0,IF(SUM($D33,$G33)>AV$3,$H33/$G33,$H33-SUM($I33:AU33))) -> 0.6867465403 | AW33: =IF(OR(AW$3<=$D33,$G33="n/a"),0,IF(SUM($D33,$G33)>AW$3,$H33/$G33,$H33-SUM($I33:AV33))) -> 0.6867465403 | AX33: =IF(OR(AX$3<=$D33,$G33="n/a"),0,IF(SUM($D33,$G33)>AX$3,$H33/$G33,$H33-SUM($I33:AW33))) -> 0.6867465403 | AY33: =IF(OR(AY$3<=$D33,$G33="n/a"),0,IF(SUM($D33,$G33)>AY$3,$H33/$G33,$H33-SUM($I33:AX33))) -> 0.6867465403 | AZ33: =IF(OR(AZ$3<=$D33,$G33="n/a"),0,IF(SUM($D33,$G33)>AZ$3,$H33/$G33,$H33-SUM($I33:AY33))) -> 0.6867465403 | BA33: =IF(OR(BA$3<=$D33,$G33="n/a"),0,IF(SUM($D33,$G33)>BA$3,$H33/$G33,$H33-SUM($I33:AZ33))) -> 0.6867465403 | BB33: =IF(OR(BB$3<=$D33,$G33="n/a"),0,IF(SUM($D33,$G33)>BB$3,$H33/$G33,$H33-SUM($I33:BA33))) -> 0.6867465403 | BC33: =IF(OR(BC$3<=$D33,$G33="n/a"),0,IF(SUM($D33,$G33)>BC$3,$H33/$G33,$H33-SUM($I33:BB33))) -> 0.6867465403 | BD33: =IF(OR(BD$3<=$D33,$G33="n/a"),0,IF(SUM($D33,$G33)>BD$3,$H33/$G33,$H33-SUM($I33:BC33))) -> 0.6867465403 | BE33: =IF(OR(BE$3<=$D33,$G33="n/a"),0,IF(SUM($D33,$G33)>BE$3,$H33/$G33,$H33-SUM($I33:BD33))) -> 0.6867465403 | BF33: =IF(OR(BF$3<=$D33,$G33="n/a"),0,IF(SUM($D33,$G33)>BF$3,$H33/$G33,$H33-SUM($I33:BE33))) -> 0.6867465403 | BG33: =IF(OR(BG$3<=$D33,$G33="n/a"),0,IF(SUM($D33,$G33)>BG$3,$H33/$G33,$H33-SUM($I33:BF33))) -> 0.6867465403 | BH33: =IF(OR(BH$3<=$D33,$G33="n/a"),0,IF(SUM($D33,$G33)>BH$3,$H33/$G33,$H33-SUM($I33:BG33))) -> 0.6867465403 | BI33: =IF(OR(BI$3<=$D33,$G33="n/a"),0,IF(SUM($D33,$G33)>BI$3,$H33/$G33,$H33-SUM($I33:BH33))) -> 0.6867465403 | BJ33: =IF(OR(BJ$3<=$D33,$G33="n/a"),0,IF(SUM($D33,$G33)>BJ$3,$H33/$G33,$H33-SUM($I33:BI33))) -> 0.6867465403 | BK33: =IF(OR(BK$3<=$D33,$G33="n/a"),0,IF(SUM($D33,$G33)>BK$3,$H33/$G33,$H33-SUM($I33:BJ33))) -> 0.6867465403 | BL33: =IF(OR(BL$3<=$D33,$G33="n/a"),0,IF(SUM($D33,$G33)>BL$3,$H33/$G33,$H33-SUM($I33:BK33))) -> 0.6867465403 | BM33: =IF(OR(BM$3<=$D33,$G33="n/a"),0,IF(SUM($D33,$G33)>BM$3,$H33/$G33,$H33-SUM($I33:BL33))) -> 0.6867465403 | BN33: =IF(OR(BN$3<=$D33,$G33="n/a"),0,IF(SUM($D33,$G33)>BN$3,$H33/$G33,$H33-SUM($I33:BM33))) -> 0.6867465403 | BO33: =IF(OR(BO$3<=$D33,$G33="n/a"),0,IF(SUM($D33,$G33)>BO$3,$H33/$G33,$H33-SUM($I33:BN33))) -> 0.6867465403 | BP33: =IF(OR(BP$3<=$D33,$G33="n/a"),0,IF(SUM($D33,$G33)>BP$3,$H33/$G33,$H33-SUM($I33:BO33))) -> 0.6867465403 | BQ33: =IF(OR(BQ$3<=$D33,$G33="n/a"),0,IF(SUM($D33,$G33)>BQ$3,$H33/$G33,$H33-SUM($I33:BP33))) -> 0.6867465403 | BR33: =IF(OR(BR$3<=$D33,$G33="n/a"),0,IF(SUM($D33,$G33)>BR$3,$H33/$G33,$H33-SUM($I33:BQ33))) -> 0 | BS33: =IF(OR(BS$3<=$D33,$G33="n/a"),0,IF(SUM($D33,$G33)>BS$3,$H33/$G33,$H33-SUM($I33:BR33))) -> 0 | BT33: =IF(OR(BT$3<=$D33,$G33="n/a"),0,IF(SUM($D33,$G33)>BT$3,$H33/$G33,$H33-SUM($I33:BS33))) -> 0 | BU33: =IF(OR(BU$3<=$D33,$G33="n/a"),0,IF(SUM($D33,$G33)>BU$3,$H33/$G33,$H33-SUM($I33:BT33))) -> 0 | BV33: =IF(OR(BV$3<=$D33,$G33="n/a"),0,IF(SUM($D33,$G33)>BV$3,$H33/$G33,$H33-SUM($I33:BU33))) -> 0 | BW33: Ok
D34: 2016 | E34: $m Real 2010 | G34: =INDEX('I1|Lives '!$D$7:$D$22,A17) -> 55 | H34: =O28 -> 3.090400202 | J34: =IF(OR(J$3<=$D34,$G34="n/a"),0,IF(SUM($D34,$G34)>J$3,$H34/$G34,$H34-SUM($I34:I34))) -> 0 | K34: =IF(OR(K$3<=$D34,$G34="n/a"),0,IF(SUM($D34,$G34)>K$3,$H34/$G34,$H34-SUM($I34:J34))) -> 0 | L34: =IF(OR(L$3<=$D34,$G34="n/a"),0,IF(SUM($D34,$G34)>L$3,$H34/$G34,$H34-SUM($I34:K34))) -> 0 | M34: =IF(OR(M$3<=$D34,$G34="n/a"),0,IF(SUM($D34,$G34)>M$3,$H34/$G34,$H34-SUM($I34:L34))) -> 0 | N34: =IF(OR(N$3<=$D34,$G34="n/a"),0,IF(SUM($D34,$G34)>N$3,$H34/$G34,$H34-SUM($I34:M34))) -> 0 | O34: =IF(OR(O$3<=$D34,$G34="n/a"),0,IF(SUM($D34,$G34)>O$3,$H34/$G34,$H34-SUM($I34:N34))) -> 0 | P34: =IF(OR(P$3<=$D34,$G34="n/a"),0,IF(SUM($D34,$G34)>P$3,$H34/$G34,$H34-SUM($I34:O34))) -> 0.05618909458 | Q34: =IF(OR(Q$3<=$D34,$G34="n/a"),0,IF(SUM($D34,$G34)>Q$3,$H34/$G34,$H34-SUM($I34:P34))) -> 0.05618909458 | R34: =IF(OR(R$3<=$D34,$G34="n/a"),0,IF(SUM($D34,$G34)>R$3,$H34/$G34,$H34-SUM($I34:Q34))) -> 0.05618909458 | S34: =IF(OR(S$3<=$D34,$G34="n/a"),0,IF(SUM($D34,$G34)>S$3,$H34/$G34,$H34-SUM($I34:R34))) -> 0.05618909458 | T34: =IF(OR(T$3<=$D34,$G34="n/a"),0,IF(SUM($D34,$G34)>T$3,$H34/$G34,$H34-SUM($I34:S34))) -> 0.05618909458 | U34: =IF(OR(U$3<=$D34,$G34="n/a"),0,IF(SUM($D34,$G34)>U$3,$H34/$G34,$H34-SUM($I34:T34))) -> 0.05618909458 | V34: =IF(OR(V$3<=$D34,$G34="n/a"),0,IF(SUM($D34,$G34)>V$3,$H34/$G34,$H34-SUM($I34:U34))) -> 0.05618909458 | W34: =IF(OR(W$3<=$D34,$G34="n/a"),0,IF(SUM($D34,$G34)>W$3,$H34/$G34,$H34-SUM($I34:V34))) -> 0.05618909458 | X34: =IF(OR(X$3<=$D34,$G34="n/a"),0,IF(SUM($D34,$G34)>X$3,$H34/$G34,$H34-SUM($I34:W34))) -> 0.05618909458 | Y34: =IF(OR(Y$3<=$D34,$G34="n/a"),0,IF(SUM($D34,$G34)>Y$3,$H34/$G34,$H34-SUM($I34:X34))) -> 0.05618909458 | Z34: =IF(OR(Z$3<=$D34,$G34="n/a"),0,IF(SUM($D34,$G34)>Z$3,$H34/$G34,$H34-SUM($I34:Y34))) -> 0.05618909458 | AA34: =IF(OR(AA$3<=$D34,$G34="n/a"),0,IF(SUM($D34,$G34)>AA$3,$H34/$G34,$H34-SUM($I34:Z34))) -> 0.05618909458 | AB34: =IF(OR(AB$3<=$D34,$G34="n/a"),0,IF(SUM($D34,$G34)>AB$3,$H34/$G34,$H34-SUM($I34:AA34))) -> 0.05618909458 | AC34: =IF(OR(AC$3<=$D34,$G34="n/a"),0,IF(SUM($D34,$G34)>AC$3,$H34/$G34,$H34-SUM($I34:AB34))) -> 0.05618909458 | AD34: =IF(OR(AD$3<=$D34,$G34="n/a"),0,IF(SUM($D34,$G34)>AD$3,$H34/$G34,$H34-SUM($I34:AC34))) -> 0.05618909458 | AE34: =IF(OR(AE$3<=$D34,$G34="n/a"),0,IF(SUM($D34,$G34)>AE$3,$H34/$G34,$H34-SUM($I34:AD34))) -> 0.05618909458 | AF34: =IF(OR(AF$3<=$D34,$G34="n/a"),0,IF(SUM($D34,$G34)>AF$3,$H34/$G34,$H34-SUM($I34:AE34))) -> 0.05618909458 | AG34: =IF(OR(AG$3<=$D34,$G34="n/a"),0,IF(SUM($D34,$G34)>AG$3,$H34/$G34,$H34-SUM($I34:AF34))) -> 0.05618909458 | AH34: =IF(OR(AH$3<=$D34,$G34="n/a"),0,IF(SUM($D34,$G34)>AH$3,$H34/$G34,$H34-SUM($I34:AG34))) -> 0.05618909458 | AI34: =IF(OR(AI$3<=$D34,$G34="n/a"),0,IF(SUM($D34,$G34)>AI$3,$H34/$G34,$H34-SUM($I34:AH34))) -> 0.05618909458 | AJ34: =IF(OR(AJ$3<=$D34,$G34="n/a"),0,IF(SUM($D34,$G34)>AJ$3,$H34/$G34,$H34-SUM($I34:AI34))) -> 0.05618909458 | AK34: =IF(OR(AK$3<=$D34,$G34="n/a"),0,IF(SUM($D34,$G34)>AK$3,$H34/$G34,$H34-SUM($I34:AJ34))) -> 0.05618909458 | AL34: =IF(OR(AL$3<=$D34,$G34="n/a"),0,IF(SUM($D34,$G34)>AL$3,$H34/$G34,$H34-SUM($I34:AK34))) -> 0.05618909458 | AM34: =IF(OR(AM$3<=$D34,$G34="n/a"),0,IF(SUM($D34,$G34)>AM$3,$H34/$G34,$H34-SUM($I34:AL34))) -> 0.05618909458 | AN34: =IF(OR(AN$3<=$D34,$G34="n/a"),0,IF(SUM($D34,$G34)>AN$3,$H34/$G34,$H34-SUM($I34:AM34))) -> 0.05618909458 | AO34: =IF(OR(AO$3<=$D34,$G34="n/a"),0,IF(SUM($D34,$G34)>AO$3,$H34/$G34,$H34-SUM($I34:AN34))) -> 0.05618909458 | AP34: =IF(OR(AP$3<=$D34,$G34="n/a"),0,IF(SUM($D34,$G34)>AP$3,$H34/$G34,$H34-SUM($I34:AO34))) -> 0.05618909458 | AQ34: =IF(OR(AQ$3<=$D34,$G34="n/a"),0,IF(SUM($D34,$G34)>AQ$3,$H34/$G34,$H34-SUM($I34:AP34))) -> 0.05618909458 | AR34: =IF(OR(AR$3<=$D34,$G34="n/a"),0,IF(SUM($D34,$G34)>AR$3,$H34/$G34,$H34-SUM($I34:AQ34))) -> 0.05618909458 | AS34: =IF(OR(AS$3<=$D34,$G34="n/a"),0,IF(SUM($D34,$G34)>AS$3,$H34/$G34,$H34-SUM($I34:AR34))) -> 0.05618909458 | AT34: =IF(OR(AT$3<=$D34,$G34="n/a"),0,IF(SUM($D34,$G34)>AT$3,$H34/$G34,$H34-SUM($I34:AS34))) -> 0.05618909458 | AU34: =IF(OR(AU$3<=$D34,$G34="n/a"),0,IF(SUM($D34,$G34)>AU$3,$H34/$G34,$H34-SUM($I34:AT34))) -> 0.05618909458 | AV34: =IF(OR(AV$3<=$D34,$G34="n/a"),0,IF(SUM($D34,$G34)>AV$3,$H34/$G34,$H34-SUM($I34:AU34))) -> 0.05618909458 | AW34: =IF(OR(AW$3<=$D34,$G34="n/a"),0,IF(SUM($D34,$G34)>AW$3,$H34/$G34,$H34-SUM($I34:AV34))) -> 0.05618909458 | AX34: =IF(OR(AX$3<=$D34,$G34="n/a"),0,IF(SUM($D34,$G34)>AX$3,$H34/$G34,$H34-SUM($I34:AW34))) -> 0.05618909458 | AY34: =IF(OR(AY$3<=$D34,$G34="n/a"),0,IF(SUM($D34,$G34)>AY$3,$H34/$G34,$H34-SUM($I34:AX34))) -> 0.05618909458 | AZ34: =IF(OR(AZ$3<=$D34,$G34="n/a"),0,IF(SUM($D34,$G34)>AZ$3,$H34/$G34,$H34-SUM($I34:AY34))) -> 0.05618909458 | BA34: =IF(OR(BA$3<=$D34,$G34="n/a"),0,IF(SUM($D34,$G34)>BA$3,$H34/$G34,$H34-SUM($I34:AZ34))) -> 0.05618909458 | BB34: =IF(OR(BB$3<=$D34,$G34="n/a"),0,IF(SUM($D34,$G34)>BB$3,$H34/$G34,$H34-SUM($I34:BA34))) -> 0.05618909458 | BC34: =IF(OR(BC$3<=$D34,$G34="n/a"),0,IF(SUM($D34,$G34)>BC$3,$H34/$G34,$H34-SUM($I34:BB34))) -> 0.05618909458 | BD34: =IF(OR(BD$3<=$D34,$G34="n/a"),0,IF(SUM($D34,$G34)>BD$3,$H34/$G34,$H34-SUM($I34:BC34))) -> 0.05618909458 | BE34: =IF(OR(BE$3<=$D34,$G34="n/a"),0,IF(SUM($D34,$G34)>BE$3,$H34/$G34,$H34-SUM($I34:BD34))) -> 0.05618909458 | BF34: =IF(OR(BF$3<=$D34,$G34="n/a"),0,IF(SUM($D34,$G34)>BF$3,$H34/$G34,$H34-SUM($I34:BE34))) -> 0.05618909458 | BG34: =IF(OR(BG$3<=$D34,$G34="n/a"),0,IF(SUM($D34,$G34)>BG$3,$H34/$G34,$H34-SUM($I34:BF34))) -> 0.05618909458 | BH34: =IF(OR(BH$3<=$D34,$G34="n/a"),0,IF(SUM($D34,$G34)>BH$3,$H34/$G34,$H34-SUM($I34:BG34))) -> 0.05618909458 | BI34: =IF(OR(BI$3<=$D34,$G34="n/a"),0,IF(SUM($D34,$G34)>BI$3,$H34/$G34,$H34-SUM($I34:BH34))) -> 0.05618909458 | BJ34: =IF(OR(BJ$3<=$D34,$G34="n/a"),0,IF(SUM($D34,$G34)>BJ$3,$H34/$G34,$H34-SUM($I34:BI34))) -> 0.05618909458 | BK34: =IF(OR(BK$3<=$D34,$G34="n/a"),0,IF(SUM($D34,$G34)>BK$3,$H34/$G34,$H34-SUM($I34:BJ34))) -> 0.05618909458 | BL34: =IF(OR(BL$3<=$D34,$G34="n/a"),0,IF(SUM($D34,$G34)>BL$3,$H34/$G34,$H34-SUM($I34:BK34))) -> 0.05618909458 | BM34: =IF(OR(BM$3<=$D34,$G34="n/a"),0,IF(SUM($D34,$G34)>BM$3,$H34/$G34,$H34-SUM($I34:BL34))) -> 0.05618909458 | BN34: =IF(OR(BN$3<=$D34,$G34="n/a"),0,IF(SUM($D34,$G34)>BN$3,$H34/$G34,$H34-SUM($I34:BM34))) -> 0.05618909458 | BO34: =IF(OR(BO$3<=$D34,$G34="n/a"),0,IF(SUM($D34,$G34)>BO$3,$H34/$G34,$H34-SUM($I34:BN34))) -> 0.05618909458 | BP34: =IF(OR(BP$3<=$D34,$G34="n/a"),0,IF(SUM($D34,$G34)>BP$3,$H34/$G34,$H34-SUM($I34:BO34))) -> 0.05618909458 | BQ34: =IF(OR(BQ$3<=$D34,$G34="n/a"),0,IF(SUM($D34,$G34)>BQ$3,$H34/$G34,$H34-SUM($I34:BP34))) -> 0.05618909458 | BR34: =IF(OR(BR$3<=$D34,$G34="n/a"),0,IF(SUM($D34,$G34)>BR$3,$H34/$G34,$H34-SUM($I34:BQ34))) -> 0.05618909458 | BS34: =IF(OR(BS$3<=$D34,$G34="n/a"),0,IF(SUM($D34,$G34)>BS$3,$H34/$G34,$H34-SUM($I34:BR34))) -> 0 | BT34: =IF(OR(BT$3<=$D34,$G34="n/a"),0,IF(SUM($D34,$G34)>BT$3,$H34/$G34,$H34-SUM($I34:BS34))) -> 0 | BU34: =IF(OR(BU$3<=$D34,$G34="n/a"),0,IF(SUM($D34,$G34)>BU$3,$H34/$G34,$H34-SUM($I34:BT34))) -> 0 | BV34: =IF(OR(BV$3<=$D34,$G34="n/a"),0,IF(SUM($D34,$G34)>BV$3,$H34/$G34,$H34-SUM($I34:BU34))) -> 0 | BW34: Ok
D35: 2017 | E35: $m Real 2010 | G35: =G34 -> 55 | H35: =P28 -> 1.413478211 | J35: =IF(OR(J$3<=$D35,$G35="n/a"),0,IF(SUM($D35,$G35)>J$3,$H35/$G35,$H35-SUM($I35:I35))) -> 0 | K35: =IF(OR(K$3<=$D35,$G35="n/a"),0,IF(SUM($D35,$G35)>K$3,$H35/$G35,$H35-SUM($I35:J35))) -> 0 | L35: =IF(OR(L$3<=$D35,$G35="n/a"),0,IF(SUM($D35,$G35)>L$3,$H35/$G35,$H35-SUM($I35:K35))) -> 0 | M35: =IF(OR(M$3<=$D35,$G35="n/a"),0,IF(SUM($D35,$G35)>M$3,$H35/$G35,$H35-SUM($I35:L35))) -> 0 | N35: =IF(OR(N$3<=$D35,$G35="n/a"),0,IF(SUM($D35,$G35)>N$3,$H35/$G35,$H35-SUM($I35:M35))) -> 0 | O35: =IF(OR(O$3<=$D35,$G35="n/a"),0,IF(SUM($D35,$G35)>O$3,$H35/$G35,$H35-SUM($I35:N35))) -> 0 | P35: =IF(OR(P$3<=$D35,$G35="n/a"),0,IF(SUM($D35,$G35)>P$3,$H35/$G35,$H35-SUM($I35:O35))) -> 0 | Q35: =IF(OR(Q$3<=$D35,$G35="n/a"),0,IF(SUM($D35,$G35)>Q$3,$H35/$G35,$H35-SUM($I35:P35))) -> 0.02569960383 | R35: =IF(OR(R$3<=$D35,$G35="n/a"),0,IF(SUM($D35,$G35)>R$3,$H35/$G35,$H35-SUM($I35:Q35))) -> 0.02569960383 | S35: =IF(OR(S$3<=$D35,$G35="n/a"),0,IF(SUM($D35,$G35)>S$3,$H35/$G35,$H35-SUM($I35:R35))) -> 0.02569960383 | T35: =IF(OR(T$3<=$D35,$G35="n/a"),0,IF(SUM($D35,$G35)>T$3,$H35/$G35,$H35-SUM($I35:S35))) -> 0.02569960383 | U35: =IF(OR(U$3<=$D35,$G35="n/a"),0,IF(SUM($D35,$G35)>U$3,$H35/$G35,$H35-SUM($I35:T35))) -> 0.02569960383 | V35: =IF(OR(V$3<=$D35,$G35="n/a"),0,IF(SUM($D35,$G35)>V$3,$H35/$G35,$H35-SUM($I35:U35))) -> 0.02569960383 | W35: =IF(OR(W$3<=$D35,$G35="n/a"),0,IF(SUM($D35,$G35)>W$3,$H35/$G35,$H35-SUM($I35:V35))) -> 0.02569960383 | X35: =IF(OR(X$3<=$D35,$G35="n/a"),0,IF(SUM($D35,$G35)>X$3,$H35/$G35,$H35-SUM($I35:W35))) -> 0.02569960383 | Y35: =IF(OR(Y$3<=$D35,$G35="n/a"),0,IF(SUM($D35,$G35)>Y$3,$H35/$G35,$H35-SUM($I35:X35))) -> 0.02569960383 | Z35: =IF(OR(Z$3<=$D35,$G35="n/a"),0,IF(SUM($D35,$G35)>Z$3,$H35/$G35,$H35-SUM($I35:Y35))) -> 0.02569960383 | AA35: =IF(OR(AA$3<=$D35,$G35="n/a"),0,IF(SUM($D35,$G35)>AA$3,$H35/$G35,$H35-SUM($I35:Z35))) -> 0.02569960383 | AB35: =IF(OR(AB$3<=$D35,$G35="n/a"),0,IF(SUM($D35,$G35)>AB$3,$H35/$G35,$H35-SUM($I35:AA35))) -> 0.02569960383 | AC35: =IF(OR(AC$3<=$D35,$G35="n/a"),0,IF(SUM($D35,$G35)>AC$3,$H35/$G35,$H35-SUM($I35:AB35))) -> 0.02569960383 | AD35: =IF(OR(AD$3<=$D35,$G35="n/a"),0,IF(SUM($D35,$G35)>AD$3,$H35/$G35,$H35-SUM($I35:AC35))) -> 0.02569960383 | AE35: =IF(OR(AE$3<=$D35,$G35="n/a"),0,IF(SUM($D35,$G35)>AE$3,$H35/$G35,$H35-SUM($I35:AD35))) -> 0.02569960383 | AF35: =IF(OR(AF$3<=$D35,$G35="n/a"),0,IF(SUM($D35,$G35)>AF$3,$H35/$G35,$H35-SUM($I35:AE35))) -> 0.02569960383 | AG35: =IF(OR(AG$3<=$D35,$G35="n/a"),0,IF(SUM($D35,$G35)>AG$3,$H35/$G35,$H35-SUM($I35:AF35))) -> 0.02569960383 | AH35: =IF(OR(AH$3<=$D35,$G35="n/a"),0,IF(SUM($D35,$G35)>AH$3,$H35/$G35,$H35-SUM($I35:AG35))) -> 0.02569960383 | AI35: =IF(OR(AI$3<=$D35,$G35="n/a"),0,IF(SUM($D35,$G35)>AI$3,$H35/$G35,$H35-SUM($I35:AH35))) -> 0.02569960383 | AJ35: =IF(OR(AJ$3<=$D35,$G35="n/a"),0,IF(SUM($D35,$G35)>AJ$3,$H35/$G35,$H35-SUM($I35:AI35))) -> 0.02569960383 | AK35: =IF(OR(AK$3<=$D35,$G35="n/a"),0,IF(SUM($D35,$G35)>AK$3,$H35/$G35,$H35-SUM($I35:AJ35))) -> 0.02569960383 | AL35: =IF(OR(AL$3<=$D35,$G35="n/a"),0,IF(SUM($D35,$G35)>AL$3,$H35/$G35,$H35-SUM($I35:AK35))) -> 0.02569960383 | AM35: =IF(OR(AM$3<=$D35,$G35="n/a"),0,IF(SUM($D35,$G35)>AM$3,$H35/$G35,$H35-SUM($I35:AL35))) -> 0.02569960383 | AN35: =IF(OR(AN$3<=$D35,$G35="n/a"),0,IF(SUM($D35,$G35)>AN$3,$H35/$G35,$H35-SUM($I35:AM35))) -> 0.02569960383 | AO35: =IF(OR(AO$3<=$D35,$G35="n/a"),0,IF(SUM($D35,$G35)>AO$3,$H35/$G35,$H35-SUM($I35:AN35))) -> 0.02569960383 | AP35: =IF(OR(AP$3<=$D35,$G35="n/a"),0,IF(SUM($D35,$G35)>AP$3,$H35/$G35,$H35-SUM($I35:AO35))) -> 0.02569960383 | AQ35: =IF(OR(AQ$3<=$D35,$G35="n/a"),0,IF(SUM($D35,$G35)>AQ$3,$H35/$G35,$H35-SUM($I35:AP35))) -> 0.02569960383 | AR35: =IF(OR(AR$3<=$D35,$G35="n/a"),0,IF(SUM($D35,$G35)>AR$3,$H35/$G35,$H35-SUM($I35:AQ35))) -> 0.02569960383 | AS35: =IF(OR(AS$3<=$D35,$G35="n/a"),0,IF(SUM($D35,$G35)>AS$3,$H35/$G35,$H35-SUM($I35:AR35))) -> 0.02569960383 | AT35: =IF(OR(AT$3<=$D35,$G35="n/a"),0,IF(SUM($D35,$G35)>AT$3,$H35/$G35,$H35-SUM($I35:AS35))) -> 0.02569960383 | AU35: =IF(OR(AU$3<=$D35,$G35="n/a"),0,IF(SUM($D35,$G35)>AU$3,$H35/$G35,$H35-SUM($I35:AT35))) -> 0.02569960383 | AV35: =IF(OR(AV$3<=$D35,$G35="n/a"),0,IF(SUM($D35,$G35)>AV$3,$H35/$G35,$H35-SUM($I35:AU35))) -> 0.02569960383 | AW35: =IF(OR(AW$3<=$D35,$G35="n/a"),0,IF(SUM($D35,$G35)>AW$3,$H35/$G35,$H35-SUM($I35:AV35))) -> 0.02569960383 | AX35: =IF(OR(AX$3<=$D35,$G35="n/a"),0,IF(SUM($D35,$G35)>AX$3,$H35/$G35,$H35-SUM($I35:AW35))) -> 0.02569960383 | AY35: =IF(OR(AY$3<=$D35,$G35="n/a"),0,IF(SUM($D35,$G35)>AY$3,$H35/$G35,$H35-SUM($I35:AX35))) -> 0.02569960383 | AZ35: =IF(OR(AZ$3<=$D35,$G35="n/a"),0,IF(SUM($D35,$G35)>AZ$3,$H35/$G35,$H35-SUM($I35:AY35))) -> 0.02569960383 | BA35: =IF(OR(BA$3<=$D35,$G35="n/a"),0,IF(SUM($D35,$G35)>BA$3,$H35/$G35,$H35-SUM($I35:AZ35))) -> 0.02569960383 | BB35: =IF(OR(BB$3<=$D35,$G35="n/a"),0,IF(SUM($D35,$G35)>BB$3,$H35/$G35,$H35-SUM($I35:BA35))) -> 0.02569960383 | BC35: =IF(OR(BC$3<=$D35,$G35="n/a"),0,IF(SUM($D35,$G35)>BC$3,$H35/$G35,$H35-SUM($I35:BB35))) -> 0.02569960383 | BD35: =IF(OR(BD$3<=$D35,$G35="n/a"),0,IF(SUM($D35,$G35)>BD$3,$H35/$G35,$H35-SUM($I35:BC35))) -> 0.02569960383 | BE35: =IF(OR(BE$3<=$D35,$G35="n/a"),0,IF(SUM($D35,$G35)>BE$3,$H35/$G35,$H35-SUM($I35:BD35))) -> 0.02569960383 | BF35: =IF(OR(BF$3<=$D35,$G35="n/a"),0,IF(SUM($D35,$G35)>BF$3,$H35/$G35,$H35-SUM($I35:BE35))) -> 0.02569960383 | BG35: =IF(OR(BG$3<=$D35,$G35="n/a"),0,IF(SUM($D35,$G35)>BG$3,$H35/$G35,$H35-SUM($I35:BF35))) -> 0.02569960383 | BH35: =IF(OR(BH$3<=$D35,$G35="n/a"),0,IF(SUM($D35,$G35)>BH$3,$H35/$G35,$H35-SUM($I35:BG35))) -> 0.02569960383 | BI35: =IF(OR(BI$3<=$D35,$G35="n/a"),0,IF(SUM($D35,$G35)>BI$3,$H35/$G35,$H35-SUM($I35:BH35))) -> 0.02569960383 | BJ35: =IF(OR(BJ$3<=$D35,$G35="n/a"),0,IF(SUM($D35,$G35)>BJ$3,$H35/$G35,$H35-SUM($I35:BI35))) -> 0.02569960383 | BK35: =IF(OR(BK$3<=$D35,$G35="n/a"),0,IF(SUM($D35,$G35)>BK$3,$H35/$G35,$H35-SUM($I35:BJ35))) -> 0.02569960383 | BL35: =IF(OR(BL$3<=$D35,$G35="n/a"),0,IF(SUM($D35,$G35)>BL$3,$H35/$G35,$H35-SUM($I35:BK35))) -> 0.02569960383 | BM35: =IF(OR(BM$3<=$D35,$G35="n/a"),0,IF(SUM($D35,$G35)>BM$3,$H35/$G35,$H35-SUM($I35:BL35))) -> 0.02569960383 | BN35: =IF(OR(BN$3<=$D35,$G35="n/a"),0,IF(SUM($D35,$G35)>BN$3,$H35/$G35,$H35-SUM($I35:BM35))) -> 0.02569960383 | BO35: =IF(OR(BO$3<=$D35,$G35="n/a"),0,IF(SUM($D35,$G35)>BO$3,$H35/$G35,$H35-SUM($I35:BN35))) -> 0.02569960383 | BP35: =IF(OR(BP$3<=$D35,$G35="n/a"),0,IF(SUM($D35,$G35)>BP$3,$H35/$G35,$H35-SUM($I35:BO35))) -> 0.02569960383 | BQ35: =IF(OR(BQ$3<=$D35,$G35="n/a"),0,IF(SUM($D35,$G35)>BQ$3,$H35/$G35,$H35-SUM($I35:BP35))) -> 0.02569960383 | BR35: =IF(OR(BR$3<=$D35,$G35="n/a"),0,IF(SUM($D35,$G35)>BR$3,$H35/$G35,$H35-SUM($I35:BQ35))) -> 0.02569960383 | BS35: =IF(OR(BS$3<=$D35,$G35="n/a"),0,IF(SUM($D35,$G35)>BS$3,$H35/$G35,$H35-SUM($I35:BR35))) -> 0.02569960383 | BT35: =IF(OR(BT$3<=$D35,$G35="n/a"),0,IF(SUM($D35,$G35)>BT$3,$H35/$G35,$H35-SUM($I35:BS35))) -> 0 | BU35: =IF(OR(BU$3<=$D35,$G35="n/a"),0,IF(SUM($D35,$G35)>BU$3,$H35/$G35,$H35-SUM($I35:BT35))) -> 0 | BV35: =IF(OR(BV$3<=$D35,$G35="n/a"),0,IF(SUM($D35,$G35)>BV$3,$H35/$G35,$H35-SUM($I35:BU35))) -> 0 | BW35: Ok
D36: 2018 | E36: $m Real 2010 | G36: =G35 -> 55 | H36: =Q28 -> 1.173352911 | J36: =IF(OR(J$3<=$D36,$G36="n/a"),0,IF(SUM($D36,$G36)>J$3,$H36/$G36,$H36-SUM($I36:I36))) -> 0 | K36: =IF(OR(K$3<=$D36,$G36="n/a"),0,IF(SUM($D36,$G36)>K$3,$H36/$G36,$H36-SUM($I36:J36))) -> 0 | L36: =IF(OR(L$3<=$D36,$G36="n/a"),0,IF(SUM($D36,$G36)>L$3,$H36/$G36,$H36-SUM($I36:K36))) -> 0 | M36: =IF(OR(M$3<=$D36,$G36="n/a"),0,IF(SUM($D36,$G36)>M$3,$H36/$G36,$H36-SUM($I36:L36))) -> 0 | N36: =IF(OR(N$3<=$D36,$G36="n/a"),0,IF(SUM($D36,$G36)>N$3,$H36/$G36,$H36-SUM($I36:M36))) -> 0 | O36: =IF(OR(O$3<=$D36,$G36="n/a"),0,IF(SUM($D36,$G36)>O$3,$H36/$G36,$H36-SUM($I36:N36))) -> 0 | P36: =IF(OR(P$3<=$D36,$G36="n/a"),0,IF(SUM($D36,$G36)>P$3,$H36/$G36,$H36-SUM($I36:O36))) -> 0 | Q36: =IF(OR(Q$3<=$D36,$G36="n/a"),0,IF(SUM($D36,$G36)>Q$3,$H36/$G36,$H36-SUM($I36:P36))) -> 0 | R36: =IF(OR(R$3<=$D36,$G36="n/a"),0,IF(SUM($D36,$G36)>R$3,$H36/$G36,$H36-SUM($I36:Q36))) -> 0.02133368929 | S36: =IF(OR(S$3<=$D36,$G36="n/a"),0,IF(SUM($D36,$G36)>S$3,$H36/$G36,$H36-SUM($I36:R36))) -> 0.02133368929 | T36: =IF(OR(T$3<=$D36,$G36="n/a"),0,IF(SUM($D36,$G36)>T$3,$H36/$G36,$H36-SUM($I36:S36))) -> 0.02133368929 | U36: =IF(OR(U$3<=$D36,$G36="n/a"),0,IF(SUM($D36,$G36)>U$3,$H36/$G36,$H36-SUM($I36:T36))) -> 0.02133368929 | V36: =IF(OR(V$3<=$D36,$G36="n/a"),0,IF(SUM($D36,$G36)>V$3,$H36/$G36,$H36-SUM($I36:U36))) -> 0.02133368929 | W36: =IF(OR(W$3<=$D36,$G36="n/a"),0,IF(SUM($D36,$G36)>W$3,$H36/$G36,$H36-SUM($I36:V36))) -> 0.02133368929 | X36: =IF(OR(X$3<=$D36,$G36="n/a"),0,IF(SUM($D36,$G36)>X$3,$H36/$G36,$H36-SUM($I36:W36))) -> 0.02133368929 | Y36: =IF(OR(Y$3<=$D36,$G36="n/a"),0,IF(SUM($D36,$G36)>Y$3,$H36/$G36,$H36-SUM($I36:X36))) -> 0.02133368929 | Z36: =IF(OR(Z$3<=$D36,$G36="n/a"),0,IF(SUM($D36,$G36)>Z$3,$H36/$G36,$H36-SUM($I36:Y36))) -> 0.02133368929 | AA36: =IF(OR(AA$3<=$D36,$G36="n/a"),0,IF(SUM($D36,$G36)>AA$3,$H36/$G36,$H36-SUM($I36:Z36))) -> 0.02133368929 | AB36: =IF(OR(AB$3<=$D36,$G36="n/a"),0,IF(SUM($D36,$G36)>AB$3,$H36/$G36,$H36-SUM($I36:AA36))) -> 0.02133368929 | AC36: =IF(OR(AC$3<=$D36,$G36="n/a"),0,IF(SUM($D36,$G36)>AC$3,$H36/$G36,$H36-SUM($I36:AB36))) -> 0.02133368929 | AD36: =IF(OR(AD$3<=$D36,$G36="n/a"),0,IF(SUM($D36,$G36)>AD$3,$H36/$G36,$H36-SUM($I36:AC36))) -> 0.02133368929 | AE36: =IF(OR(AE$3<=$D36,$G36="n/a"),0,IF(SUM($D36,$G36)>AE$3,$H36/$G36,$H36-SUM($I36:AD36))) -> 0.02133368929 | AF36: =IF(OR(AF$3<=$D36,$G36="n/a"),0,IF(SUM($D36,$G36)>AF$3,$H36/$G36,$H36-SUM($I36:AE36))) -> 0.02133368929 | AG36: =IF(OR(AG$3<=$D36,$G36="n/a"),0,IF(SUM($D36,$G36)>AG$3,$H36/$G36,$H36-SUM($I36:AF36))) -> 0.02133368929 | AH36: =IF(OR(AH$3<=$D36,$G36="n/a"),0,IF(SUM($D36,$G36)>AH$3,$H36/$G36,$H36-SUM($I36:AG36))) -> 0.02133368929 | AI36: =IF(OR(AI$3<=$D36,$G36="n/a"),0,IF(SUM($D36,$G36)>AI$3,$H36/$G36,$H36-SUM($I36:AH36))) -> 0.02133368929 | AJ36: =IF(OR(AJ$3<=$D36,$G36="n/a"),0,IF(SUM($D36,$G36)>AJ$3,$H36/$G36,$H36-SUM($I36:AI36))) -> 0.02133368929 | AK36: =IF(OR(AK$3<=$D36,$G36="n/a"),0,IF(SUM($D36,$G36)>AK$3,$H36/$G36,$H36-SUM($I36:AJ36))) -> 0.02133368929 | AL36: =IF(OR(AL$3<=$D36,$G36="n/a"),0,IF(SUM($D36,$G36)>AL$3,$H36/$G36,$H36-SUM($I36:AK36))) -> 0.02133368929 | AM36: =IF(OR(AM$3<=$D36,$G36="n/a"),0,IF(SUM($D36,$G36)>AM$3,$H36/$G36,$H36-SUM($I36:AL36))) -> 0.02133368929 | AN36: =IF(OR(AN$3<=$D36,$G36="n/a"),0,IF(SUM($D36,$G36)>AN$3,$H36/$G36,$H36-SUM($I36:AM36))) -> 0.02133368929 | AO36: =IF(OR(AO$3<=$D36,$G36="n/a"),0,IF(SUM($D36,$G36)>AO$3,$H36/$G36,$H36-SUM($I36:AN36))) -> 0.02133368929 | AP36: =IF(OR(AP$3<=$D36,$G36="n/a"),0,IF(SUM($D36,$G36)>AP$3,$H36/$G36,$H36-SUM($I36:AO36))) -> 0.02133368929 | AQ36: =IF(OR(AQ$3<=$D36,$G36="n/a"),0,IF(SUM($D36,$G36)>AQ$3,$H36/$G36,$H36-SUM($I36:AP36))) -> 0.02133368929 | AR36: =IF(OR(AR$3<=$D36,$G36="n/a"),0,IF(SUM($D36,$G36)>AR$3,$H36/$G36,$H36-SUM($I36:AQ36))) -> 0.02133368929 | AS36: =IF(OR(AS$3<=$D36,$G36="n/a"),0,IF(SUM($D36,$G36)>AS$3,$H36/$G36,$H36-SUM($I36:AR36))) -> 0.02133368929 | AT36: =IF(OR(AT$3<=$D36,$G36="n/a"),0,IF(SUM($D36,$G36)>AT$3,$H36/$G36,$H36-SUM($I36:AS36))) -> 0.02133368929 | AU36: =IF(OR(AU$3<=$D36,$G36="n/a"),0,IF(SUM($D36,$G36)>AU$3,$H36/$G36,$H36-SUM($I36:AT36))) -> 0.02133368929 | AV36: =IF(OR(AV$3<=$D36,$G36="n/a"),0,IF(SUM($D36,$G36)>AV$3,$H36/$G36,$H36-SUM($I36:AU36))) -> 0.02133368929 | AW36: =IF(OR(AW$3<=$D36,$G36="n/a"),0,IF(SUM($D36,$G36)>AW$3,$H36/$G36,$H36-SUM($I36:AV36))) -> 0.02133368929 | AX36: =IF(OR(AX$3<=$D36,$G36="n/a"),0,IF(SUM($D36,$G36)>AX$3,$H36/$G36,$H36-SUM($I36:AW36))) -> 0.02133368929 | AY36: =IF(OR(AY$3<=$D36,$G36="n/a"),0,IF(SUM($D36,$G36)>AY$3,$H36/$G36,$H36-SUM($I36:AX36))) -> 0.02133368929 | AZ36: =IF(OR(AZ$3<=$D36,$G36="n/a"),0,IF(SUM($D36,$G36)>AZ$3,$H36/$G36,$H36-SUM($I36:AY36))) -> 0.02133368929 | BA36: =IF(OR(BA$3<=$D36,$G36="n/a"),0,IF(SUM($D36,$G36)>BA$3,$H36/$G36,$H36-SUM($I36:AZ36))) -> 0.02133368929 | BB36: =IF(OR(BB$3<=$D36,$G36="n/a"),0,IF(SUM($D36,$G36)>BB$3,$H36/$G36,$H36-SUM($I36:BA36))) -> 0.02133368929 | BC36: =IF(OR(BC$3<=$D36,$G36="n/a"),0,IF(SUM($D36,$G36)>BC$3,$H36/$G36,$H36-SUM($I36:BB36))) -> 0.02133368929 | BD36: =IF(OR(BD$3<=$D36,$G36="n/a"),0,IF(SUM($D36,$G36)>BD$3,$H36/$G36,$H36-SUM($I36:BC36))) -> 0.02133368929 | BE36: =IF(OR(BE$3<=$D36,$G36="n/a"),0,IF(SUM($D36,$G36)>BE$3,$H36/$G36,$H36-SUM($I36:BD36))) -> 0.02133368929 | BF36: =IF(OR(BF$3<=$D36,$G36="n/a"),0,IF(SUM($D36,$G36)>BF$3,$H36/$G36,$H36-SUM($I36:BE36))) -> 0.02133368929 | BG36: =IF(OR(BG$3<=$D36,$G36="n/a"),0,IF(SUM($D36,$G36)>BG$3,$H36/$G36,$H36-SUM($I36:BF36))) -> 0.02133368929 | BH36: =IF(OR(BH$3<=$D36,$G36="n/a"),0,IF(SUM($D36,$G36)>BH$3,$H36/$G36,$H36-SUM($I36:BG36))) -> 0.02133368929 | BI36: =IF(OR(BI$3<=$D36,$G36="n/a"),0,IF(SUM($D36,$G36)>BI$3,$H36/$G36,$H36-SUM($I36:BH36))) -> 0.02133368929 | BJ36: =IF(OR(BJ$3<=$D36,$G36="n/a"),0,IF(SUM($D36,$G36)>BJ$3,$H36/$G36,$H36-SUM($I36:BI36))) -> 0.02133368929 | BK36: =IF(OR(BK$3<=$D36,$G36="n/a"),0,IF(SUM($D36,$G36)>BK$3,$H36/$G36,$H36-SUM($I36:BJ36))) -> 0.02133368929 | BL36: =IF(OR(BL$3<=$D36,$G36="n/a"),0,IF(SUM($D36,$G36)>BL$3,$H36/$G36,$H36-SUM($I36:BK36))) -> 0.02133368929 | BM36: =IF(OR(BM$3<=$D36,$G36="n/a"),0,IF(SUM($D36,$G36)>BM$3,$H36/$G36,$H36-SUM($I36:BL36))) -> 0.02133368929 | BN36: =IF(OR(BN$3<=$D36,$G36="n/a"),0,IF(SUM($D36,$G36)>BN$3,$H36/$G36,$H36-SUM($I36:BM36))) -> 0.02133368929 | BO36: =IF(OR(BO$3<=$D36,$G36="n/a"),0,IF(SUM($D36,$G36)>BO$3,$H36/$G36,$H36-SUM($I36:BN36))) -> 0.02133368929 | BP36: =IF(OR(BP$3<=$D36,$G36="n/a"),0,IF(SUM($D36,$G36)>BP$3,$H36/$G36,$H36-SUM($I36:BO36))) -> 0.02133368929 | BQ36: =IF(OR(BQ$3<=$D36,$G36="n/a"),0,IF(SUM($D36,$G36)>BQ$3,$H36/$G36,$H36-SUM($I36:BP36))) -> 0.02133368929 | BR36: =IF(OR(BR$3<=$D36,$G36="n/a"),0,IF(SUM($D36,$G36)>BR$3,$H36/$G36,$H36-SUM($I36:BQ36))) -> 0.02133368929 | BS36: =IF(OR(BS$3<=$D36,$G36="n/a"),0,IF(SUM($D36,$G36)>BS$3,$H36/$G36,$H36-SUM($I36:BR36))) -> 0.02133368929 | BT36: =IF(OR(BT$3<=$D36,$G36="n/a"),0,IF(SUM($D36,$G36)>BT$3,$H36/$G36,$H36-SUM($I36:BS36))) -> 0.02133368929 | BU36: =IF(OR(BU$3<=$D36,$G36="n/a"),0,IF(SUM($D36,$G36)>BU$3,$H36/$G36,$H36-SUM($I36:BT36))) -> 0 | BV36: =IF(OR(BV$3<=$D36,$G36="n/a"),0,IF(SUM($D36,$G36)>BV$3,$H36/$G36,$H36-SUM($I36:BU36))) -> 0 | BW36: Ok
D37: 2019 | E37: $m Real 2010 | G37: =G36 -> 55 | H37: =R28 -> 2.513460017 | J37: =IF(OR(J$3<=$D37,$G37="n/a"),0,IF(SUM($D37,$G37)>J$3,$H37/$G37,$H37-SUM($I37:I37))) -> 0 | K37: =IF(OR(K$3<=$D37,$G37="n/a"),0,IF(SUM($D37,$G37)>K$3,$H37/$G37,$H37-SUM($I37:J37))) -> 0 | L37: =IF(OR(L$3<=$D37,$G37="n/a"),0,IF(SUM($D37,$G37)>L$3,$H37/$G37,$H37-SUM($I37:K37))) -> 0 | M37: =IF(OR(M$3<=$D37,$G37="n/a"),0,IF(SUM($D37,$G37)>M$3,$H37/$G37,$H37-SUM($I37:L37))) -> 0 | N37: =IF(OR(N$3<=$D37,$G37="n/a"),0,IF(SUM($D37,$G37)>N$3,$H37/$G37,$H37-SUM($I37:M37))) -> 0 | O37: =IF(OR(O$3<=$D37,$G37="n/a"),0,IF(SUM($D37,$G37)>O$3,$H37/$G37,$H37-SUM($I37:N37))) -> 0 | P37: =IF(OR(P$3<=$D37,$G37="n/a"),0,IF(SUM($D37,$G37)>P$3,$H37/$G37,$H37-SUM($I37:O37))) -> 0 | Q37: =IF(OR(Q$3<=$D37,$G37="n/a"),0,IF(SUM($D37,$G37)>Q$3,$H37/$G37,$H37-SUM($I37:P37))) -> 0 | R37: =IF(OR(R$3<=$D37,$G37="n/a"),0,IF(SUM($D37,$G37)>R$3,$H37/$G37,$H37-SUM($I37:Q37))) -> 0 | S37: =IF(OR(S$3<=$D37,$G37="n/a"),0,IF(SUM($D37,$G37)>S$3,$H37/$G37,$H37-SUM($I37:R37))) -> 0.04569927304 | T37: =IF(OR(T$3<=$D37,$G37="n/a"),0,IF(SUM($D37,$G37)>T$3,$H37/$G37,$H37-SUM($I37:S37))) -> 0.04569927304 | U37: =IF(OR(U$3<=$D37,$G37="n/a"),0,IF(SUM($D37,$G37)>U$3,$H37/$G37,$H37-SUM($I37:T37))) -> 0.04569927304 | V37: =IF(OR(V$3<=$D37,$G37="n/a"),0,IF(SUM($D37,$G37)>V$3,$H37/$G37,$H37-SUM($I37:U37))) -> 0.04569927304 | W37: =IF(OR(W$3<=$D37,$G37="n/a"),0,IF(SUM($D37,$G37)>W$3,$H37/$G37,$H37-SUM($I37:V37))) -> 0.04569927304 | X37: =IF(OR(X$3<=$D37,$G37="n/a"),0,IF(SUM($D37,$G37)>X$3,$H37/$G37,$H37-SUM($I37:W37))) -> 0.04569927304 | Y37: =IF(OR(Y$3<=$D37,$G37="n/a"),0,IF(SUM($D37,$G37)>Y$3,$H37/$G37,$H37-SUM($I37:X37))) -> 0.04569927304 | Z37: =IF(OR(Z$3<=$D37,$G37="n/a"),0,IF(SUM($D37,$G37)>Z$3,$H37/$G37,$H37-SUM($I37:Y37))) -> 0.04569927304 | AA37: =IF(OR(AA$3<=$D37,$G37="n/a"),0,IF(SUM($D37,$G37)>AA$3,$H37/$G37,$H37-SUM($I37:Z37))) -> 0.04569927304 | AB37: =IF(OR(AB$3<=$D37,$G37="n/a"),0,IF(SUM($D37,$G37)>AB$3,$H37/$G37,$H37-SUM($I37:AA37))) -> 0.04569927304 | AC37: =IF(OR(AC$3<=$D37,$G37="n/a"),0,IF(SUM($D37,$G37)>AC$3,$H37/$G37,$H37-SUM($I37:AB37))) -> 0.04569927304 | AD37: =IF(OR(AD$3<=$D37,$G37="n/a"),0,IF(SUM($D37,$G37)>AD$3,$H37/$G37,$H37-SUM($I37:AC37))) -> 0.04569927304 | AE37: =IF(OR(AE$3<=$D37,$G37="n/a"),0,IF(SUM($D37,$G37)>AE$3,$H37/$G37,$H37-SUM($I37:AD37))) -> 0.04569927304 | AF37: =IF(OR(AF$3<=$D37,$G37="n/a"),0,IF(SUM($D37,$G37)>AF$3,$H37/$G37,$H37-SUM($I37:AE37))) -> 0.04569927304 | AG37: =IF(OR(AG$3<=$D37,$G37="n/a"),0,IF(SUM($D37,$G37)>AG$3,$H37/$G37,$H37-SUM($I37:AF37))) -> 0.04569927304 | AH37: =IF(OR(AH$3<=$D37,$G37="n/a"),0,IF(SUM($D37,$G37)>AH$3,$H37/$G37,$H37-SUM($I37:AG37))) -> 0.04569927304 | AI37: =IF(OR(AI$3<=$D37,$G37="n/a"),0,IF(SUM($D37,$G37)>AI$3,$H37/$G37,$H37-SUM($I37:AH37))) -> 0.04569927304 | AJ37: =IF(OR(AJ$3<=$D37,$G37="n/a"),0,IF(SUM($D37,$G37)>AJ$3,$H37/$G37,$H37-SUM($I37:AI37))) -> 0.04569927304 | AK37: =IF(OR(AK$3<=$D37,$G37="n/a"),0,IF(SUM($D37,$G37)>AK$3,$H37/$G37,$H37-SUM($I37:AJ37))) -> 0.04569927304 | AL37: =IF(OR(AL$3<=$D37,$G37="n/a"),0,IF(SUM($D37,$G37)>AL$3,$H37/$G37,$H37-SUM($I37:AK37))) -> 0.04569927304 | AM37: =IF(OR(AM$3<=$D37,$G37="n/a"),0,IF(SUM($D37,$G37)>AM$3,$H37/$G37,$H37-SUM($I37:AL37))) -> 0.04569927304 | AN37: =IF(OR(AN$3<=$D37,$G37="n/a"),0,IF(SUM($D37,$G37)>AN$3,$H37/$G37,$H37-SUM($I37:AM37))) -> 0.04569927304 | AO37: =IF(OR(AO$3<=$D37,$G37="n/a"),0,IF(SUM($D37,$G37)>AO$3,$H37/$G37,$H37-SUM($I37:AN37))) -> 0.04569927304 | AP37: =IF(OR(AP$3<=$D37,$G37="n/a"),0,IF(SUM($D37,$G37)>AP$3,$H37/$G37,$H37-SUM($I37:AO37))) -> 0.04569927304 | AQ37: =IF(OR(AQ$3<=$D37,$G37="n/a"),0,IF(SUM($D37,$G37)>AQ$3,$H37/$G37,$H37-SUM($I37:AP37))) -> 0.04569927304 | AR37: =IF(OR(AR$3<=$D37,$G37="n/a"),0,IF(SUM($D37,$G37)>AR$3,$H37/$G37,$H37-SUM($I37:AQ37))) -> 0.04569927304 | AS37: =IF(OR(AS$3<=$D37,$G37="n/a"),0,IF(SUM($D37,$G37)>AS$3,$H37/$G37,$H37-SUM($I37:AR37))) -> 0.04569927304 | AT37: =IF(OR(AT$3<=$D37,$G37="n/a"),0,IF(SUM($D37,$G37)>AT$3,$H37/$G37,$H37-SUM($I37:AS37))) -> 0.04569927304 | AU37: =IF(OR(AU$3<=$D37,$G37="n/a"),0,IF(SUM($D37,$G37)>AU$3,$H37/$G37,$H37-SUM($I37:AT37))) -> 0.04569927304 | AV37: =IF(OR(AV$3<=$D37,$G37="n/a"),0,IF(SUM($D37,$G37)>AV$3,$H37/$G37,$H37-SUM($I37:AU37))) -> 0.04569927304 | AW37: =IF(OR(AW$3<=$D37,$G37="n/a"),0,IF(SUM($D37,$G37)>AW$3,$H37/$G37,$H37-SUM($I37:AV37))) -> 0.04569927304 | AX37: =IF(OR(AX$3<=$D37,$G37="n/a"),0,IF(SUM($D37,$G37)>AX$3,$H37/$G37,$H37-SUM($I37:AW37))) -> 0.04569927304 | AY37: =IF(OR(AY$3<=$D37,$G37="n/a"),0,IF(SUM($D37,$G37)>AY$3,$H37/$G37,$H37-SUM($I37:AX37))) -> 0.04569927304 | AZ37: =IF(OR(AZ$3<=$D37,$G37="n/a"),0,IF(SUM($D37,$G37)>AZ$3,$H37/$G37,$H37-SUM($I37:AY37))) -> 0.04569927304 | BA37: =IF(OR(BA$3<=$D37,$G37="n/a"),0,IF(SUM($D37,$G37)>BA$3,$H37/$G37,$H37-SUM($I37:AZ37))) -> 0.04569927304 | BB37: =IF(OR(BB$3<=$D37,$G37="n/a"),0,IF(SUM($D37,$G37)>BB$3,$H37/$G37,$H37-SUM($I37:BA37))) -> 0.04569927304 | BC37: =IF(OR(BC$3<=$D37,$G37="n/a"),0,IF(SUM($D37,$G37)>BC$3,$H37/$G37,$H37-SUM($I37:BB37))) -> 0.04569927304 | BD37: =IF(OR(BD$3<=$D37,$G37="n/a"),0,IF(SUM($D37,$G37)>BD$3,$H37/$G37,$H37-SUM($I37:BC37))) -> 0.04569927304 | BE37: =IF(OR(BE$3<=$D37,$G37="n/a"),0,IF(SUM($D37,$G37)>BE$3,$H37/$G37,$H37-SUM($I37:BD37))) -> 0.04569927304 | BF37: =IF(OR(BF$3<=$D37,$G37="n/a"),0,IF(SUM($D37,$G37)>BF$3,$H37/$G37,$H37-SUM($I37:BE37))) -> 0.04569927304 | BG37: =IF(OR(BG$3<=$D37,$G37="n/a"),0,IF(SUM($D37,$G37)>BG$3,$H37/$G37,$H37-SUM($I37:BF37))) -> 0.04569927304 | BH37: =IF(OR(BH$3<=$D37,$G37="n/a"),0,IF(SUM($D37,$G37)>BH$3,$H37/$G37,$H37-SUM($I37:BG37))) -> 0.04569927304 | BI37: =IF(OR(BI$3<=$D37,$G37="n/a"),0,IF(SUM($D37,$G37)>BI$3,$H37/$G37,$H37-SUM($I37:BH37))) -> 0.04569927304 | BJ37: =IF(OR(BJ$3<=$D37,$G37="n/a"),0,IF(SUM($D37,$G37)>BJ$3,$H37/$G37,$H37-SUM($I37:BI37))) -> 0.04569927304 | BK37: =IF(OR(BK$3<=$D37,$G37="n/a"),0,IF(SUM($D37,$G37)>BK$3,$H37/$G37,$H37-SUM($I37:BJ37))) -> 0.04569927304 | BL37: =IF(OR(BL$3<=$D37,$G37="n/a"),0,IF(SUM($D37,$G37)>BL$3,$H37/$G37,$H37-SUM($I37:BK37))) -> 0.04569927304 | BM37: =IF(OR(BM$3<=$D37,$G37="n/a"),0,IF(SUM($D37,$G37)>BM$3,$H37/$G37,$H37-SUM($I37:BL37))) -> 0.04569927304 | BN37: =IF(OR(BN$3<=$D37,$G37="n/a"),0,IF(SUM($D37,$G37)>BN$3,$H37/$G37,$H37-SUM($I37:BM37))) -> 0.04569927304 | BO37: =IF(OR(BO$3<=$D37,$G37="n/a"),0,IF(SUM($D37,$G37)>BO$3,$H37/$G37,$H37-SUM($I37:BN37))) -> 0.04569927304 | BP37: =IF(OR(BP$3<=$D37,$G37="n/a"),0,IF(SUM($D37,$G37)>BP$3,$H37/$G37,$H37-SUM($I37:BO37))) -> 0.04569927304 | BQ37: =IF(OR(BQ$3<=$D37,$G37="n/a"),0,IF(SUM($D37,$G37)>BQ$3,$H37/$G37,$H37-SUM($I37:BP37))) -> 0.04569927304 | BR37: =IF(OR(BR$3<=$D37,$G37="n/a"),0,IF(SUM($D37,$G37)>BR$3,$H37/$G37,$H37-SUM($I37:BQ37))) -> 0.04569927304 | BS37: =IF(OR(BS$3<=$D37,$G37="n/a"),0,IF(SUM($D37,$G37)>BS$3,$H37/$G37,$H37-SUM($I37:BR37))) -> 0.04569927304 | BT37: =IF(OR(BT$3<=$D37,$G37="n/a"),0,IF(SUM($D37,$G37)>BT$3,$H37/$G37,$H37-SUM($I37:BS37))) -> 0.04569927304 | BU37: =IF(OR(BU$3<=$D37,$G37="n/a"),0,IF(SUM($D37,$G37)>BU$3,$H37/$G37,$H37-SUM($I37:BT37))) -> 0.04569927304 | BV37: =IF(OR(BV$3<=$D37,$G37="n/a"),0,IF(SUM($D37,$G37)>BV$3,$H37/$G37,$H37-SUM($I37:BU37))) -> 0 | BW37: Ok
D38: 2020 | E38: $m Real 2010 | G38: =G37 -> 55 | H38: =S28 -> 2.453839091 | J38: =IF(OR(J$3<=$D38,$G38="n/a"),0,IF(SUM($D38,$G38)>J$3,$H38/$G38,$H38-SUM($I38:I38))) -> 0 | K38: =IF(OR(K$3<=$D38,$G38="n/a"),0,IF(SUM($D38,$G38)>K$3,$H38/$G38,$H38-SUM($I38:J38))) -> 0 | L38: =IF(OR(L$3<=$D38,$G38="n/a"),0,IF(SUM($D38,$G38)>L$3,$H38/$G38,$H38-SUM($I38:K38))) -> 0 | M38: =IF(OR(M$3<=$D38,$G38="n/a"),0,IF(SUM($D38,$G38)>M$3,$H38/$G38,$H38-SUM($I38:L38))) -> 0 | N38: =IF(OR(N$3<=$D38,$G38="n/a"),0,IF(SUM($D38,$G38)>N$3,$H38/$G38,$H38-SUM($I38:M38))) -> 0 | O38: =IF(OR(O$3<=$D38,$G38="n/a"),0,IF(SUM($D38,$G38)>O$3,$H38/$G38,$H38-SUM($I38:N38))) -> 0 | P38: =IF(OR(P$3<=$D38,$G38="n/a"),0,IF(SUM($D38,$G38)>P$3,$H38/$G38,$H38-SUM($I38:O38))) -> 0 | Q38: =IF(OR(Q$3<=$D38,$G38="n/a"),0,IF(SUM($D38,$G38)>Q$3,$H38/$G38,$H38-SUM($I38:P38))) -> 0 | R38: =IF(OR(R$3<=$D38,$G38="n/a"),0,IF(SUM($D38,$G38)>R$3,$H38/$G38,$H38-SUM($I38:Q38))) -> 0 | S38: =IF(OR(S$3<=$D38,$G38="n/a"),0,IF(SUM($D38,$G38)>S$3,$H38/$G38,$H38-SUM($I38:R38))) -> 0 | T38: =IF(OR(T$3<=$D38,$G38="n/a"),0,IF(SUM($D38,$G38)>T$3,$H38/$G38,$H38-SUM($I38:S38))) -> 0.04461525621 | U38: =IF(OR(U$3<=$D38,$G38="n/a"),0,IF(SUM($D38,$G38)>U$3,$H38/$G38,$H38-SUM($I38:T38))) -> 0.04461525621 | V38: =IF(OR(V$3<=$D38,$G38="n/a"),0,IF(SUM($D38,$G38)>V$3,$H38/$G38,$H38-SUM($I38:U38))) -> 0.04461525621 | W38: =IF(OR(W$3<=$D38,$G38="n/a"),0,IF(SUM($D38,$G38)>W$3,$H38/$G38,$H38-SUM($I38:V38))) -> 0.04461525621 | X38: =IF(OR(X$3<=$D38,$G38="n/a"),0,IF(SUM($D38,$G38)>X$3,$H38/$G38,$H38-SUM($I38:W38))) -> 0.04461525621 | Y38: =IF(OR(Y$3<=$D38,$G38="n/a"),0,IF(SUM($D38,$G38)>Y$3,$H38/$G38,$H38-SUM($I38:X38))) -> 0.04461525621 | Z38: =IF(OR(Z$3<=$D38,$G38="n/a"),0,IF(SUM($D38,$G38)>Z$3,$H38/$G38,$H38-SUM($I38:Y38))) -> 0.04461525621 | AA38: =IF(OR(AA$3<=$D38,$G38="n/a"),0,IF(SUM($D38,$G38)>AA$3,$H38/$G38,$H38-SUM($I38:Z38))) -> 0.04461525621 | AB38: =IF(OR(AB$3<=$D38,$G38="n/a"),0,IF(SUM($D38,$G38)>AB$3,$H38/$G38,$H38-SUM($I38:AA38))) -> 0.04461525621 | AC38: =IF(OR(AC$3<=$D38,$G38="n/a"),0,IF(SUM($D38,$G38)>AC$3,$H38/$G38,$H38-SUM($I38:AB38))) -> 0.04461525621 | AD38: =IF(OR(AD$3<=$D38,$G38="n/a"),0,IF(SUM($D38,$G38)>AD$3,$H38/$G38,$H38-SUM($I38:AC38))) -> 0.04461525621 | AE38: =IF(OR(AE$3<=$D38,$G38="n/a"),0,IF(SUM($D38,$G38)>AE$3,$H38/$G38,$H38-SUM($I38:AD38))) -> 0.04461525621 | AF38: =IF(OR(AF$3<=$D38,$G38="n/a"),0,IF(SUM($D38,$G38)>AF$3,$H38/$G38,$H38-SUM($I38:AE38))) -> 0.04461525621 | AG38: =IF(OR(AG$3<=$D38,$G38="n/a"),0,IF(SUM($D38,$G38)>AG$3,$H38/$G38,$H38-SUM($I38:AF38))) -> 0.04461525621 | AH38: =IF(OR(AH$3<=$D38,$G38="n/a"),0,IF(SUM($D38,$G38)>AH$3,$H38/$G38,$H38-SUM($I38:AG38))) -> 0.04461525621 | AI38: =IF(OR(AI$3<=$D38,$G38="n/a"),0,IF(SUM($D38,$G38)>AI$3,$H38/$G38,$H38-SUM($I38:AH38))) -> 0.04461525621 | AJ38: =IF(OR(AJ$3<=$D38,$G38="n/a"),0,IF(SUM($D38,$G38)>AJ$3,$H38/$G38,$H38-SUM($I38:AI38))) -> 0.04461525621 | AK38: =IF(OR(AK$3<=$D38,$G38="n/a"),0,IF(SUM($D38,$G38)>AK$3,$H38/$G38,$H38-SUM($I38:AJ38))) -> 0.04461525621 | AL38: =IF(OR(AL$3<=$D38,$G38="n/a"),0,IF(SUM($D38,$G38)>AL$3,$H38/$G38,$H38-SUM($I38:AK38))) -> 0.04461525621 | AM38: =IF(OR(AM$3<=$D38,$G38="n/a"),0,IF(SUM($D38,$G38)>AM$3,$H38/$G38,$H38-SUM($I38:AL38))) -> 0.04461525621 | AN38: =IF(OR(AN$3<=$D38,$G38="n/a"),0,IF(SUM($D38,$G38)>AN$3,$H38/$G38,$H38-SUM($I38:AM38))) -> 0.04461525621 | AO38: =IF(OR(AO$3<=$D38,$G38="n/a"),0,IF(SUM($D38,$G38)>AO$3,$H38/$G38,$H38-SUM($I38:AN38))) -> 0.04461525621 | AP38: =IF(OR(AP$3<=$D38,$G38="n/a"),0,IF(SUM($D38,$G38)>AP$3,$H38/$G38,$H38-SUM($I38:AO38))) -> 0.04461525621 | AQ38: =IF(OR(AQ$3<=$D38,$G38="n/a"),0,IF(SUM($D38,$G38)>AQ$3,$H38/$G38,$H38-SUM($I38:AP38))) -> 0.04461525621 | AR38: =IF(OR(AR$3<=$D38,$G38="n/a"),0,IF(SUM($D38,$G38)>AR$3,$H38/$G38,$H38-SUM($I38:AQ38))) -> 0.04461525621 | AS38: =IF(OR(AS$3<=$D38,$G38="n/a"),0,IF(SUM($D38,$G38)>AS$3,$H38/$G38,$H38-SUM($I38:AR38))) -> 0.04461525621 | AT38: =IF(OR(AT$3<=$D38,$G38="n/a"),0,IF(SUM($D38,$G38)>AT$3,$H38/$G38,$H38-SUM($I38:AS38))) -> 0.04461525621 | AU38: =IF(OR(AU$3<=$D38,$G38="n/a"),0,IF(SUM($D38,$G38)>AU$3,$H38/$G38,$H38-SUM($I38:AT38))) -> 0.04461525621 | AV38: =IF(OR(AV$3<=$D38,$G38="n/a"),0,IF(SUM($D38,$G38)>AV$3,$H38/$G38,$H38-SUM($I38:AU38))) -> 0.04461525621 | AW38: =IF(OR(AW$3<=$D38,$G38="n/a"),0,IF(SUM($D38,$G38)>AW$3,$H38/$G38,$H38-SUM($I38:AV38))) -> 0.04461525621 | AX38: =IF(OR(AX$3<=$D38,$G38="n/a"),0,IF(SUM($D38,$G38)>AX$3,$H38/$G38,$H38-SUM($I38:AW38))) -> 0.04461525621 | AY38: =IF(OR(AY$3<=$D38,$G38="n/a"),0,IF(SUM($D38,$G38)>AY$3,$H38/$G38,$H38-SUM($I38:AX38))) -> 0.04461525621 | AZ38: =IF(OR(AZ$3<=$D38,$G38="n/a"),0,IF(SUM($D38,$G38)>AZ$3,$H38/$G38,$H38-SUM($I38:AY38))) -> 0.04461525621 | BA38: =IF(OR(BA$3<=$D38,$G38="n/a"),0,IF(SUM($D38,$G38)>BA$3,$H38/$G38,$H38-SUM($I38:AZ38))) -> 0.04461525621 | BB38: =IF(OR(BB$3<=$D38,$G38="n/a"),0,IF(SUM($D38,$G38)>BB$3,$H38/$G38,$H38-SUM($I38:BA38))) -> 0.04461525621 | BC38: =IF(OR(BC$3<=$D38,$G38="n/a"),0,IF(SUM($D38,$G38)>BC$3,$H38/$G38,$H38-SUM($I38:BB38))) -> 0.04461525621 | BD38: =IF(OR(BD$3<=$D38,$G38="n/a"),0,IF(SUM($D38,$G38)>BD$3,$H38/$G38,$H38-SUM($I38:BC38))) -> 0.04461525621 | BE38: =IF(OR(BE$3<=$D38,$G38="n/a"),0,IF(SUM($D38,$G38)>BE$3,$H38/$G38,$H38-SUM($I38:BD38))) -> 0.04461525621 | BF38: =IF(OR(BF$3<=$D38,$G38="n/a"),0,IF(SUM($D38,$G38)>BF$3,$H38/$G38,$H38-SUM($I38:BE38))) -> 0.04461525621 | BG38: =IF(OR(BG$3<=$D38,$G38="n/a"),0,IF(SUM($D38,$G38)>BG$3,$H38/$G38,$H38-SUM($I38:BF38))) -> 0.04461525621 | BH38: =IF(OR(BH$3<=$D38,$G38="n/a"),0,IF(SUM($D38,$G38)>BH$3,$H38/$G38,$H38-SUM($I38:BG38))) -> 0.04461525621 | BI38: =IF(OR(BI$3<=$D38,$G38="n/a"),0,IF(SUM($D38,$G38)>BI$3,$H38/$G38,$H38-SUM($I38:BH38))) -> 0.04461525621 | BJ38: =IF(OR(BJ$3<=$D38,$G38="n/a"),0,IF(SUM($D38,$G38)>BJ$3,$H38/$G38,$H38-SUM($I38:BI38))) -> 0.04461525621 | BK38: =IF(OR(BK$3<=$D38,$G38="n/a"),0,IF(SUM($D38,$G38)>BK$3,$H38/$G38,$H38-SUM($I38:BJ38))) -> 0.04461525621 | BL38: =IF(OR(BL$3<=$D38,$G38="n/a"),0,IF(SUM($D38,$G38)>BL$3,$H38/$G38,$H38-SUM($I38:BK38))) -> 0.04461525621 | BM38: =IF(OR(BM$3<=$D38,$G38="n/a"),0,IF(SUM($D38,$G38)>BM$3,$H38/$G38,$H38-SUM($I38:BL38))) -> 0.04461525621 | BN38: =IF(OR(BN$3<=$D38,$G38="n/a"),0,IF(SUM($D38,$G38)>BN$3,$H38/$G38,$H38-SUM($I38:BM38))) -> 0.04461525621 | BO38: =IF(OR(BO$3<=$D38,$G38="n/a"),0,IF(SUM($D38,$G38)>BO$3,$H38/$G38,$H38-SUM($I38:BN38))) -> 0.04461525621 | BP38: =IF(OR(BP$3<=$D38,$G38="n/a"),0,IF(SUM($D38,$G38)>BP$3,$H38/$G38,$H38-SUM($I38:BO38))) -> 0.04461525621 | BQ38: =IF(OR(BQ$3<=$D38,$G38="n/a"),0,IF(SUM($D38,$G38)>BQ$3,$H38/$G38,$H38-SUM($I38:BP38))) -> 0.04461525621 | BR38: =IF(OR(BR$3<=$D38,$G38="n/a"),0,IF(SUM($D38,$G38)>BR$3,$H38/$G38,$H38-SUM($I38:BQ38))) -> 0.04461525621 | BS38: =IF(OR(BS$3<=$D38,$G38="n/a"),0,IF(SUM($D38,$G38)>BS$3,$H38/$G38,$H38-SUM($I38:BR38))) -> 0.04461525621 | BT38: =IF(OR(BT$3<=$D38,$G38="n/a"),0,IF(SUM($D38,$G38)>BT$3,$H38/$G38,$H38-SUM($I38:BS38))) -> 0.04461525621 | BU38: =IF(OR(BU$3<=$D38,$G38="n/a"),0,IF(SUM($D38,$G38)>BU$3,$H38/$G38,$H38-SUM($I38:BT38))) -> 0.04461525621 | BV38: =IF(OR(BV$3<=$D38,$G38="n/a"),0,IF(SUM($D38,$G38)>BV$3,$H38/$G38,$H38-SUM($I38:BU38))) -> 0.04461525621 | BW38: Ok
D39: 2021 | E39: $m Real 2010 | G39: =INDEX('I1|Lives '!$E$7:$E$22,A17) -> 55 | H39: =T28 -> 0 | J39: =IF(OR(J$3<=$D39,$G39="n/a"),0,IF(SUM($D39,$G39)>J$3,$H39/$G39,$H39-SUM($I39:I39))) -> 0 | K39: =IF(OR(K$3<=$D39,$G39="n/a"),0,IF(SUM($D39,$G39)>K$3,$H39/$G39,$H39-SUM($I39:J39))) -> 0 | L39: =IF(OR(L$3<=$D39,$G39="n/a"),0,IF(SUM($D39,$G39)>L$3,$H39/$G39,$H39-SUM($I39:K39))) -> 0 | M39: =IF(OR(M$3<=$D39,$G39="n/a"),0,IF(SUM($D39,$G39)>M$3,$H39/$G39,$H39-SUM($I39:L39))) -> 0 | N39: =IF(OR(N$3<=$D39,$G39="n/a"),0,IF(SUM($D39,$G39)>N$3,$H39/$G39,$H39-SUM($I39:M39))) -> 0 | O39: =IF(OR(O$3<=$D39,$G39="n/a"),0,IF(SUM($D39,$G39)>O$3,$H39/$G39,$H39-SUM($I39:N39))) -> 0 | P39: =IF(OR(P$3<=$D39,$G39="n/a"),0,IF(SUM($D39,$G39)>P$3,$H39/$G39,$H39-SUM($I39:O39))) -> 0 | Q39: =IF(OR(Q$3<=$D39,$G39="n/a"),0,IF(SUM($D39,$G39)>Q$3,$H39/$G39,$H39-SUM($I39:P39))) -> 0 | R39: =IF(OR(R$3<=$D39,$G39="n/a"),0,IF(SUM($D39,$G39)>R$3,$H39/$G39,$H39-SUM($I39:Q39))) -> 0 | S39: =IF(OR(S$3<=$D39,$G39="n/a"),0,IF(SUM($D39,$G39)>S$3,$H39/$G39,$H39-SUM($I39:R39))) -> 0 | T39: =IF(OR(T$3<=$D39,$G39="n/a"),0,IF(SUM($D39,$G39)>T$3,$H39/$G39,$H39-SUM($I39:S39))) -> 0 | U39: =IF(OR(U$3<=$D39,$G39="n/a"),0,IF(SUM($D39,$G39)>U$3,$H39/$G39,$H39-SUM($I39:T39))) -> 0 | V39: =IF(OR(V$3<=$D39,$G39="n/a"),0,IF(SUM($D39,$G39)>V$3,$H39/$G39,$H39-SUM($I39:U39))) -> 0 | W39: =IF(OR(W$3<=$D39,$G39="n/a"),0,IF(SUM($D39,$G39)>W$3,$H39/$G39,$H39-SUM($I39:V39))) -> 0 | X39: =IF(OR(X$3<=$D39,$G39="n/a"),0,IF(SUM($D39,$G39)>X$3,$H39/$G39,$H39-SUM($I39:W39))) -> 0 | Y39: =IF(OR(Y$3<=$D39,$G39="n/a"),0,IF(SUM($D39,$G39)>Y$3,$H39/$G39,$H39-SUM($I39:X39))) -> 0 | Z39: =IF(OR(Z$3<=$D39,$G39="n/a"),0,IF(SUM($D39,$G39)>Z$3,$H39/$G39,$H39-SUM($I39:Y39))) -> 0 | AA39: =IF(OR(AA$3<=$D39,$G39="n/a"),0,IF(SUM($D39,$G39)>AA$3,$H39/$G39,$H39-SUM($I39:Z39))) -> 0 | AB39: =IF(OR(AB$3<=$D39,$G39="n/a"),0,IF(SUM($D39,$G39)>AB$3,$H39/$G39,$H39-SUM($I39:AA39))) -> 0 | AC39: =IF(OR(AC$3<=$D39,$G39="n/a"),0,IF(SUM($D39,$G39)>AC$3,$H39/$G39,$H39-SUM($I39:AB39))) -> 0 | AD39: =IF(OR(AD$3<=$D39,$G39="n/a"),0,IF(SUM($D39,$G39)>AD$3,$H39/$G39,$H39-SUM($I39:AC39))) -> 0 | AE39: =IF(OR(AE$3<=$D39,$G39="n/a"),0,IF(SUM($D39,$G39)>AE$3,$H39/$G39,$H39-SUM($I39:AD39))) -> 0 | AF39: =IF(OR(AF$3<=$D39,$G39="n/a"),0,IF(SUM($D39,$G39)>AF$3,$H39/$G39,$H39-SUM($I39:AE39))) -> 0 | AG39: =IF(OR(AG$3<=$D39,$G39="n/a"),0,IF(SUM($D39,$G39)>AG$3,$H39/$G39,$H39-SUM($I39:AF39))) -> 0 | AH39: =IF(OR(AH$3<=$D39,$G39="n/a"),0,IF(SUM($D39,$G39)>AH$3,$H39/$G39,$H39-SUM($I39:AG39))) -> 0 | AI39: =IF(OR(AI$3<=$D39,$G39="n/a"),0,IF(SUM($D39,$G39)>AI$3,$H39/$G39,$H39-SUM($I39:AH39))) -> 0 | AJ39: =IF(OR(AJ$3<=$D39,$G39="n/a"),0,IF(SUM($D39,$G39)>AJ$3,$H39/$G39,$H39-SUM($I39:AI39))) -> 0 | AK39: =IF(OR(AK$3<=$D39,$G39="n/a"),0,IF(SUM($D39,$G39)>AK$3,$H39/$G39,$H39-SUM($I39:AJ39))) -> 0 | AL39: =IF(OR(AL$3<=$D39,$G39="n/a"),0,IF(SUM($D39,$G39)>AL$3,$H39/$G39,$H39-SUM($I39:AK39))) -> 0 | AM39: =IF(OR(AM$3<=$D39,$G39="n/a"),0,IF(SUM($D39,$G39)>AM$3,$H39/$G39,$H39-SUM($I39:AL39))) -> 0 | AN39: =IF(OR(AN$3<=$D39,$G39="n/a"),0,IF(SUM($D39,$G39)>AN$3,$H39/$G39,$H39-SUM($I39:AM39))) -> 0 | AO39: =IF(OR(AO$3<=$D39,$G39="n/a"),0,IF(SUM($D39,$G39)>AO$3,$H39/$G39,$H39-SUM($I39:AN39))) -> 0 | AP39: =IF(OR(AP$3<=$D39,$G39="n/a"),0,IF(SUM($D39,$G39)>AP$3,$H39/$G39,$H39-SUM($I39:AO39))) -> 0 | AQ39: =IF(OR(AQ$3<=$D39,$G39="n/a"),0,IF(SUM($D39,$G39)>AQ$3,$H39/$G39,$H39-SUM($I39:AP39))) -> 0 | AR39: =IF(OR(AR$3<=$D39,$G39="n/a"),0,IF(SUM($D39,$G39)>AR$3,$H39/$G39,$H39-SUM($I39:AQ39))) -> 0 | AS39: =IF(OR(AS$3<=$D39,$G39="n/a"),0,IF(SUM($D39,$G39)>AS$3,$H39/$G39,$H39-SUM($I39:AR39))) -> 0 | AT39: =IF(OR(AT$3<=$D39,$G39="n/a"),0,IF(SUM($D39,$G39)>AT$3,$H39/$G39,$H39-SUM($I39:AS39))) -> 0 | AU39: =IF(OR(AU$3<=$D39,$G39="n/a"),0,IF(SUM($D39,$G39)>AU$3,$H39/$G39,$H39-SUM($I39:AT39))) -> 0 | AV39: =IF(OR(AV$3<=$D39,$G39="n/a"),0,IF(SUM($D39,$G39)>AV$3,$H39/$G39,$H39-SUM($I39:AU39))) -> 0 | AW39: =IF(OR(AW$3<=$D39,$G39="n/a"),0,IF(SUM($D39,$G39)>AW$3,$H39/$G39,$H39-SUM($I39:AV39))) -> 0 | AX39: =IF(OR(AX$3<=$D39,$G39="n/a"),0,IF(SUM($D39,$G39)>AX$3,$H39/$G39,$H39-SUM($I39:AW39))) -> 0 | AY39: =IF(OR(AY$3<=$D39,$G39="n/a"),0,IF(SUM($D39,$G39)>AY$3,$H39/$G39,$H39-SUM($I39:AX39))) -> 0 | AZ39: =IF(OR(AZ$3<=$D39,$G39="n/a"),0,IF(SUM($D39,$G39)>AZ$3,$H39/$G39,$H39-SUM($I39:AY39))) -> 0 | BA39: =IF(OR(BA$3<=$D39,$G39="n/a"),0,IF(SUM($D39,$G39)>BA$3,$H39/$G39,$H39-SUM($I39:AZ39))) -> 0 | BB39: =IF(OR(BB$3<=$D39,$G39="n/a"),0,IF(SUM($D39,$G39)>BB$3,$H39/$G39,$H39-SUM($I39:BA39))) -> 0 | BC39: =IF(OR(BC$3<=$D39,$G39="n/a"),0,IF(SUM($D39,$G39)>BC$3,$H39/$G39,$H39-SUM($I39:BB39))) -> 0 | BD39: =IF(OR(BD$3<=$D39,$G39="n/a"),0,IF(SUM($D39,$G39)>BD$3,$H39/$G39,$H39-SUM($I39:BC39))) -> 0 | BE39: =IF(OR(BE$3<=$D39,$G39="n/a"),0,IF(SUM($D39,$G39)>BE$3,$H39/$G39,$H39-SUM($I39:BD39))) -> 0 | BF39: =IF(OR(BF$3<=$D39,$G39="n/a"),0,IF(SUM($D39,$G39)>BF$3,$H39/$G39,$H39-SUM($I39:BE39))) -> 0 | BG39: =IF(OR(BG$3<=$D39,$G39="n/a"),0,IF(SUM($D39,$G39)>BG$3,$H39/$G39,$H39-SUM($I39:BF39))) -> 0 | BH39: =IF(OR(BH$3<=$D39,$G39="n/a"),0,IF(SUM($D39,$G39)>BH$3,$H39/$G39,$H39-SUM($I39:BG39))) -> 0 | BI39: =IF(OR(BI$3<=$D39,$G39="n/a"),0,IF(SUM($D39,$G39)>BI$3,$H39/$G39,$H39-SUM($I39:BH39))) -> 0 | BJ39: =IF(OR(BJ$3<=$D39,$G39="n/a"),0,IF(SUM($D39,$G39)>BJ$3,$H39/$G39,$H39-SUM($I39:BI39))) -> 0 | BK39: =IF(OR(BK$3<=$D39,$G39="n/a"),0,IF(SUM($D39,$G39)>BK$3,$H39/$G39,$H39-SUM($I39:BJ39))) -> 0 | BL39: =IF(OR(BL$3<=$D39,$G39="n/a"),0,IF(SUM($D39,$G39)>BL$3,$H39/$G39,$H39-SUM($I39:BK39))) -> 0 | BM39: =IF(OR(BM$3<=$D39,$G39="n/a"),0,IF(SUM($D39,$G39)>BM$3,$H39/$G39,$H39-SUM($I39:BL39))) -> 0 | BN39: =IF(OR(BN$3<=$D39,$G39="n/a"),0,IF(SUM($D39,$G39)>BN$3,$H39/$G39,$H39-SUM($I39:BM39))) -> 0 | BO39: =IF(OR(BO$3<=$D39,$G39="n/a"),0,IF(SUM($D39,$G39)>BO$3,$H39/$G39,$H39-SUM($I39:BN39))) -> 0 | BP39: =IF(OR(BP$3<=$D39,$G39="n/a"),0,IF(SUM($D39,$G39)>BP$3,$H39/$G39,$H39-SUM($I39:BO39))) -> 0 | BQ39: =IF(OR(BQ$3<=$D39,$G39="n/a"),0,IF(SUM($D39,$G39)>BQ$3,$H39/$G39,$H39-SUM($I39:BP39))) -> 0 | BR39: =IF(OR(BR$3<=$D39,$G39="n/a"),0,IF(SUM($D39,$G39)>BR$3,$H39/$G39,$H39-SUM($I39:BQ39))) -> 0 | BS39: =IF(OR(BS$3<=$D39,$G39="n/a"),0,IF(SUM($D39,$G39)>BS$3,$H39/$G39,$H39-SUM($I39:BR39))) -> 0 | BT39: =IF(OR(BT$3<=$D39,$G39="n/a"),0,IF(SUM($D39,$G39)>BT$3,$H39/$G39,$H39-SUM($I39:BS39))) -> 0 | BU39: =IF(OR(BU$3<=$D39,$G39="n/a"),0,IF(SUM($D39,$G39)>BU$3,$H39/$G39,$H39-SUM($I39:BT39))) -> 0 | BV39: =IF(OR(BV$3<=$D39,$G39="n/a"),0,IF(SUM($D39,$G39)>BV$3,$H39/$G39,$H39-SUM($I39:BU39))) -> 0 | BW39: Ok
D40: 2022 | E40: $m Real 2010 | G40: =G39 -> 55 | H40: =U28 -> 0 | J40: =IF(OR(J$3<=$D40,$G40="n/a"),0,IF(SUM($D40,$G40)>J$3,$H40/$G40,$H40-SUM($I40:I40))) -> 0 | K40: =IF(OR(K$3<=$D40,$G40="n/a"),0,IF(SUM($D40,$G40)>K$3,$H40/$G40,$H40-SUM($I40:J40))) -> 0 | L40: =IF(OR(L$3<=$D40,$G40="n/a"),0,IF(SUM($D40,$G40)>L$3,$H40/$G40,$H40-SUM($I40:K40))) -> 0 | M40: =IF(OR(M$3<=$D40,$G40="n/a"),0,IF(SUM($D40,$G40)>M$3,$H40/$G40,$H40-SUM($I40:L40))) -> 0 | N40: =IF(OR(N$3<=$D40,$G40="n/a"),0,IF(SUM($D40,$G40)>N$3,$H40/$G40,$H40-SUM($I40:M40))) -> 0 | O40: =IF(OR(O$3<=$D40,$G40="n/a"),0,IF(SUM($D40,$G40)>O$3,$H40/$G40,$H40-SUM($I40:N40))) -> 0 | P40: =IF(OR(P$3<=$D40,$G40="n/a"),0,IF(SUM($D40,$G40)>P$3,$H40/$G40,$H40-SUM($I40:O40))) -> 0 | Q40: =IF(OR(Q$3<=$D40,$G40="n/a"),0,IF(SUM($D40,$G40)>Q$3,$H40/$G40,$H40-SUM($I40:P40))) -> 0 | R40: =IF(OR(R$3<=$D40,$G40="n/a"),0,IF(SUM($D40,$G40)>R$3,$H40/$G40,$H40-SUM($I40:Q40))) -> 0 | S40: =IF(OR(S$3<=$D40,$G40="n/a"),0,IF(SUM($D40,$G40)>S$3,$H40/$G40,$H40-SUM($I40:R40))) -> 0 | T40: =IF(OR(T$3<=$D40,$G40="n/a"),0,IF(SUM($D40,$G40)>T$3,$H40/$G40,$H40-SUM($I40:S40))) -> 0 | U40: =IF(OR(U$3<=$D40,$G40="n/a"),0,IF(SUM($D40,$G40)>U$3,$H40/$G40,$H40-SUM($I40:T40))) -> 0 | V40: =IF(OR(V$3<=$D40,$G40="n/a"),0,IF(SUM($D40,$G40)>V$3,$H40/$G40,$H40-SUM($I40:U40))) -> 0 | W40: =IF(OR(W$3<=$D40,$G40="n/a"),0,IF(SUM($D40,$G40)>W$3,$H40/$G40,$H40-SUM($I40:V40))) -> 0 | X40: =IF(OR(X$3<=$D40,$G40="n/a"),0,IF(SUM($D40,$G40)>X$3,$H40/$G40,$H40-SUM($I40:W40))) -> 0 | Y40: =IF(OR(Y$3<=$D40,$G40="n/a"),0,IF(SUM($D40,$G40)>Y$3,$H40/$G40,$H40-SUM($I40:X40))) -> 0 | Z40: =IF(OR(Z$3<=$D40,$G40="n/a"),0,IF(SUM($D40,$G40)>Z$3,$H40/$G40,$H40-SUM($I40:Y40))) -> 0 | AA40: =IF(OR(AA$3<=$D40,$G40="n/a"),0,IF(SUM($D40,$G40)>AA$3,$H40/$G40,$H40-SUM($I40:Z40))) -> 0 | AB40: =IF(OR(AB$3<=$D40,$G40="n/a"),0,IF(SUM($D40,$G40)>AB$3,$H40/$G40,$H40-SUM($I40:AA40))) -> 0 | AC40: =IF(OR(AC$3<=$D40,$G40="n/a"),0,IF(SUM($D40,$G40)>AC$3,$H40/$G40,$H40-SUM($I40:AB40))) -> 0 | AD40: =IF(OR(AD$3<=$D40,$G40="n/a"),0,IF(SUM($D40,$G40)>AD$3,$H40/$G40,$H40-SUM($I40:AC40))) -> 0 | AE40: =IF(OR(AE$3<=$D40,$G40="n/a"),0,IF(SUM($D40,$G40)>AE$3,$H40/$G40,$H40-SUM($I40:AD40))) -> 0 | AF40: =IF(OR(AF$3<=$D40,$G40="n/a"),0,IF(SUM($D40,$G40)>AF$3,$H40/$G40,$H40-SUM($I40:AE40))) -> 0 | AG40: =IF(OR(AG$3<=$D40,$G40="n/a"),0,IF(SUM($D40,$G40)>AG$3,$H40/$G40,$H40-SUM($I40:AF40))) -> 0 | AH40: =IF(OR(AH$3<=$D40,$G40="n/a"),0,IF(SUM($D40,$G40)>AH$3,$H40/$G40,$H40-SUM($I40:AG40))) -> 0 | AI40: =IF(OR(AI$3<=$D40,$G40="n/a"),0,IF(SUM($D40,$G40)>AI$3,$H40/$G40,$H40-SUM($I40:AH40))) -> 0 | AJ40: =IF(OR(AJ$3<=$D40,$G40="n/a"),0,IF(SUM($D40,$G40)>AJ$3,$H40/$G40,$H40-SUM($I40:AI40))) -> 0 | AK40: =IF(OR(AK$3<=$D40,$G40="n/a"),0,IF(SUM($D40,$G40)>AK$3,$H40/$G40,$H40-SUM($I40:AJ40))) -> 0 | AL40: =IF(OR(AL$3<=$D40,$G40="n/a"),0,IF(SUM($D40,$G40)>AL$3,$H40/$G40,$H40-SUM($I40:AK40))) -> 0 | AM40: =IF(OR(AM$3<=$D40,$G40="n/a"),0,IF(SUM($D40,$G40)>AM$3,$H40/$G40,$H40-SUM($I40:AL40))) -> 0 | AN40: =IF(OR(AN$3<=$D40,$G40="n/a"),0,IF(SUM($D40,$G40)>AN$3,$H40/$G40,$H40-SUM($I40:AM40))) -> 0 | AO40: =IF(OR(AO$3<=$D40,$G40="n/a"),0,IF(SUM($D40,$G40)>AO$3,$H40/$G40,$H40-SUM($I40:AN40))) -> 0 | AP40: =IF(OR(AP$3<=$D40,$G40="n/a"),0,IF(SUM($D40,$G40)>AP$3,$H40/$G40,$H40-SUM($I40:AO40))) -> 0 | AQ40: =IF(OR(AQ$3<=$D40,$G40="n/a"),0,IF(SUM($D40,$G40)>AQ$3,$H40/$G40,$H40-SUM($I40:AP40))) -> 0 | AR40: =IF(OR(AR$3<=$D40,$G40="n/a"),0,IF(SUM($D40,$G40)>AR$3,$H40/$G40,$H40-SUM($I40:AQ40))) -> 0 | AS40: =IF(OR(AS$3<=$D40,$G40="n/a"),0,IF(SUM($D40,$G40)>AS$3,$H40/$G40,$H40-SUM($I40:AR40))) -> 0 | AT40: =IF(OR(AT$3<=$D40,$G40="n/a"),0,IF(SUM($D40,$G40)>AT$3,$H40/$G40,$H40-SUM($I40:AS40))) -> 0 | AU40: =IF(OR(AU$3<=$D40,$G40="n/a"),0,IF(SUM($D40,$G40)>AU$3,$H40/$G40,$H40-SUM($I40:AT40))) -> 0 | AV40: =IF(OR(AV$3<=$D40,$G40="n/a"),0,IF(SUM($D40,$G40)>AV$3,$H40/$G40,$H40-SUM($I40:AU40))) -> 0 | AW40: =IF(OR(AW$3<=$D40,$G40="n/a"),0,IF(SUM($D40,$G40)>AW$3,$H40/$G40,$H40-SUM($I40:AV40))) -> 0 | AX40: =IF(OR(AX$3<=$D40,$G40="n/a"),0,IF(SUM($D40,$G40)>AX$3,$H40/$G40,$H40-SUM($I40:AW40))) -> 0 | AY40: =IF(OR(AY$3<=$D40,$G40="n/a"),0,IF(SUM($D40,$G40)>AY$3,$H40/$G40,$H40-SUM($I40:AX40))) -> 0 | AZ40: =IF(OR(AZ$3<=$D40,$G40="n/a"),0,IF(SUM($D40,$G40)>AZ$3,$H40/$G40,$H40-SUM($I40:AY40))) -> 0 | BA40: =IF(OR(BA$3<=$D40,$G40="n/a"),0,IF(SUM($D40,$G40)>BA$3,$H40/$G40,$H40-SUM($I40:AZ40))) -> 0 | BB40: =IF(OR(BB$3<=$D40,$G40="n/a"),0,IF(SUM($D40,$G40)>BB$3,$H40/$G40,$H40-SUM($I40:BA40))) -> 0 | BC40: =IF(OR(BC$3<=$D40,$G40="n/a"),0,IF(SUM($D40,$G40)>BC$3,$H40/$G40,$H40-SUM($I40:BB40))) -> 0 | BD40: =IF(OR(BD$3<=$D40,$G40="n/a"),0,IF(SUM($D40,$G40)>BD$3,$H40/$G40,$H40-SUM($I40:BC40))) -> 0 | BE40: =IF(OR(BE$3<=$D40,$G40="n/a"),0,IF(SUM($D40,$G40)>BE$3,$H40/$G40,$H40-SUM($I40:BD40))) -> 0 | BF40: =IF(OR(BF$3<=$D40,$G40="n/a"),0,IF(SUM($D40,$G40)>BF$3,$H40/$G40,$H40-SUM($I40:BE40))) -> 0 | BG40: =IF(OR(BG$3<=$D40,$G40="n/a"),0,IF(SUM($D40,$G40)>BG$3,$H40/$G40,$H40-SUM($I40:BF40))) -> 0 | BH40: =IF(OR(BH$3<=$D40,$G40="n/a"),0,IF(SUM($D40,$G40)>BH$3,$H40/$G40,$H40-SUM($I40:BG40))) -> 0 | BI40: =IF(OR(BI$3<=$D40,$G40="n/a"),0,IF(SUM($D40,$G40)>BI$3,$H40/$G40,$H40-SUM($I40:BH40))) -> 0 | BJ40: =IF(OR(BJ$3<=$D40,$G40="n/a"),0,IF(SUM($D40,$G40)>BJ$3,$H40/$G40,$H40-SUM($I40:BI40))) -> 0 | BK40: =IF(OR(BK$3<=$D40,$G40="n/a"),0,IF(SUM($D40,$G40)>BK$3,$H40/$G40,$H40-SUM($I40:BJ40))) -> 0 | BL40: =IF(OR(BL$3<=$D40,$G40="n/a"),0,IF(SUM($D40,$G40)>BL$3,$H40/$G40,$H40-SUM($I40:BK40))) -> 0 | BM40: =IF(OR(BM$3<=$D40,$G40="n/a"),0,IF(SUM($D40,$G40)>BM$3,$H40/$G40,$H40-SUM($I40:BL40))) -> 0 | BN40: =IF(OR(BN$3<=$D40,$G40="n/a"),0,IF(SUM($D40,$G40)>BN$3,$H40/$G40,$H40-SUM($I40:BM40))) -> 0 | BO40: =IF(OR(BO$3<=$D40,$G40="n/a"),0,IF(SUM($D40,$G40)>BO$3,$H40/$G40,$H40-SUM($I40:BN40))) -> 0 | BP40: =IF(OR(BP$3<=$D40,$G40="n/a"),0,IF(SUM($D40,$G40)>BP$3,$H40/$G40,$H40-SUM($I40:BO40))) -> 0 | BQ40: =IF(OR(BQ$3<=$D40,$G40="n/a"),0,IF(SUM($D40,$G40)>BQ$3,$H40/$G40,$H40-SUM($I40:BP40))) -> 0 | BR40: =IF(OR(BR$3<=$D40,$G40="n/a"),0,IF(SUM($D40,$G40)>BR$3,$H40/$G40,$H40-SUM($I40:BQ40))) -> 0 | BS40: =IF(OR(BS$3<=$D40,$G40="n/a"),0,IF(SUM($D40,$G40)>BS$3,$H40/$G40,$H40-SUM($I40:BR40))) -> 0 | BT40: =IF(OR(BT$3<=$D40,$G40="n/a"),0,IF(SUM($D40,$G40)>BT$3,$H40/$G40,$H40-SUM($I40:BS40))) -> 0 | BU40: =IF(OR(BU$3<=$D40,$G40="n/a"),0,IF(SUM($D40,$G40)>BU$3,$H40/$G40,$H40-SUM($I40:BT40))) -> 0 | BV40: =IF(OR(BV$3<=$D40,$G40="n/a"),0,IF(SUM($D40,$G40)>BV$3,$H40/$G40,$H40-SUM($I40:BU40))) -> 0 | BW40: Ok
D41: 2023 | E41: $m Real 2010 | G41: =G40 -> 55 | H41: =V28 -> 0 | J41: =IF(OR(J$3<=$D41,$G41="n/a"),0,IF(SUM($D41,$G41)>J$3,$H41/$G41,$H41-SUM($I41:I41))) -> 0 | K41: =IF(OR(K$3<=$D41,$G41="n/a"),0,IF(SUM($D41,$G41)>K$3,$H41/$G41,$H41-SUM($I41:J41))) -> 0 | L41: =IF(OR(L$3<=$D41,$G41="n/a"),0,IF(SUM($D41,$G41)>L$3,$H41/$G41,$H41-SUM($I41:K41))) -> 0 | M41: =IF(OR(M$3<=$D41,$G41="n/a"),0,IF(SUM($D41,$G41)>M$3,$H41/$G41,$H41-SUM($I41:L41))) -> 0 | N41: =IF(OR(N$3<=$D41,$G41="n/a"),0,IF(SUM($D41,$G41)>N$3,$H41/$G41,$H41-SUM($I41:M41))) -> 0 | O41: =IF(OR(O$3<=$D41,$G41="n/a"),0,IF(SUM($D41,$G41)>O$3,$H41/$G41,$H41-SUM($I41:N41))) -> 0 | P41: =IF(OR(P$3<=$D41,$G41="n/a"),0,IF(SUM($D41,$G41)>P$3,$H41/$G41,$H41-SUM($I41:O41))) -> 0 | Q41: =IF(OR(Q$3<=$D41,$G41="n/a"),0,IF(SUM($D41,$G41)>Q$3,$H41/$G41,$H41-SUM($I41:P41))) -> 0 | R41: =IF(OR(R$3<=$D41,$G41="n/a"),0,IF(SUM($D41,$G41)>R$3,$H41/$G41,$H41-SUM($I41:Q41))) -> 0 | S41: =IF(OR(S$3<=$D41,$G41="n/a"),0,IF(SUM($D41,$G41)>S$3,$H41/$G41,$H41-SUM($I41:R41))) -> 0 | T41: =IF(OR(T$3<=$D41,$G41="n/a"),0,IF(SUM($D41,$G41)>T$3,$H41/$G41,$H41-SUM($I41:S41))) -> 0 | U41: =IF(OR(U$3<=$D41,$G41="n/a"),0,IF(SUM($D41,$G41)>U$3,$H41/$G41,$H41-SUM($I41:T41))) -> 0 | V41: =IF(OR(V$3<=$D41,$G41="n/a"),0,IF(SUM($D41,$G41)>V$3,$H41/$G41,$H41-SUM($I41:U41))) -> 0 | W41: =IF(OR(W$3<=$D41,$G41="n/a"),0,IF(SUM($D41,$G41)>W$3,$H41/$G41,$H41-SUM($I41:V41))) -> 0 | X41: =IF(OR(X$3<=$D41,$G41="n/a"),0,IF(SUM($D41,$G41)>X$3,$H41/$G41,$H41-SUM($I41:W41))) -> 0 | Y41: =IF(OR(Y$3<=$D41,$G41="n/a"),0,IF(SUM($D41,$G41)>Y$3,$H41/$G41,$H41-SUM($I41:X41))) -> 0 | Z41: =IF(OR(Z$3<=$D41,$G41="n/a"),0,IF(SUM($D41,$G41)>Z$3,$H41/$G41,$H41-SUM($I41:Y41))) -> 0 | AA41: =IF(OR(AA$3<=$D41,$G41="n/a"),0,IF(SUM($D41,$G41)>AA$3,$H41/$G41,$H41-SUM($I41:Z41))) -> 0 | AB41: =IF(OR(AB$3<=$D41,$G41="n/a"),0,IF(SUM($D41,$G41)>AB$3,$H41/$G41,$H41-SUM($I41:AA41))) -> 0 | AC41: =IF(OR(AC$3<=$D41,$G41="n/a"),0,IF(SUM($D41,$G41)>AC$3,$H41/$G41,$H41-SUM($I41:AB41))) -> 0 | AD41: =IF(OR(AD$3<=$D41,$G41="n/a"),0,IF(SUM($D41,$G41)>AD$3,$H41/$G41,$H41-SUM($I41:AC41))) -> 0 | AE41: =IF(OR(AE$3<=$D41,$G41="n/a"),0,IF(SUM($D41,$G41)>AE$3,$H41/$G41,$H41-SUM($I41:AD41))) -> 0 | AF41: =IF(OR(AF$3<=$D41,$G41="n/a"),0,IF(SUM($D41,$G41)>AF$3,$H41/$G41,$H41-SUM($I41:AE41))) -> 0 | AG41: =IF(OR(AG$3<=$D41,$G41="n/a"),0,IF(SUM($D41,$G41)>AG$3,$H41/$G41,$H41-SUM($I41:AF41))) -> 0 | AH41: =IF(OR(AH$3<=$D41,$G41="n/a"),0,IF(SUM($D41,$G41)>AH$3,$H41/$G41,$H41-SUM($I41:AG41))) -> 0 | AI41: =IF(OR(AI$3<=$D41,$G41="n/a"),0,IF(SUM($D41,$G41)>AI$3,$H41/$G41,$H41-SUM($I41:AH41))) -> 0 | AJ41: =IF(OR(AJ$3<=$D41,$G41="n/a"),0,IF(SUM($D41,$G41)>AJ$3,$H41/$G41,$H41-SUM($I41:AI41))) -> 0 | AK41: =IF(OR(AK$3<=$D41,$G41="n/a"),0,IF(SUM($D41,$G41)>AK$3,$H41/$G41,$H41-SUM($I41:AJ41))) -> 0 | AL41: =IF(OR(AL$3<=$D41,$G41="n/a"),0,IF(SUM($D41,$G41)>AL$3,$H41/$G41,$H41-SUM($I41:AK41))) -> 0 | AM41: =IF(OR(AM$3<=$D41,$G41="n/a"),0,IF(SUM($D41,$G41)>AM$3,$H41/$G41,$H41-SUM($I41:AL41))) -> 0 | AN41: =IF(OR(AN$3<=$D41,$G41="n/a"),0,IF(SUM($D41,$G41)>AN$3,$H41/$G41,$H41-SUM($I41:AM41))) -> 0 | AO41: =IF(OR(AO$3<=$D41,$G41="n/a"),0,IF(SUM($D41,$G41)>AO$3,$H41/$G41,$H41-SUM($I41:AN41))) -> 0 | AP41: =IF(OR(AP$3<=$D41,$G41="n/a"),0,IF(SUM($D41,$G41)>AP$3,$H41/$G41,$H41-SUM($I41:AO41))) -> 0 | AQ41: =IF(OR(AQ$3<=$D41,$G41="n/a"),0,IF(SUM($D41,$G41)>AQ$3,$H41/$G41,$H41-SUM($I41:AP41))) -> 0 | AR41: =IF(OR(AR$3<=$D41,$G41="n/a"),0,IF(SUM($D41,$G41)>AR$3,$H41/$G41,$H41-SUM($I41:AQ41))) -> 0 | AS41: =IF(OR(AS$3<=$D41,$G41="n/a"),0,IF(SUM($D41,$G41)>AS$3,$H41/$G41,$H41-SUM($I41:AR41))) -> 0 | AT41: =IF(OR(AT$3<=$D41,$G41="n/a"),0,IF(SUM($D41,$G41)>AT$3,$H41/$G41,$H41-SUM($I41:AS41))) -> 0 | AU41: =IF(OR(AU$3<=$D41,$G41="n/a"),0,IF(SUM($D41,$G41)>AU$3,$H41/$G41,$H41-SUM($I41:AT41))) -> 0 | AV41: =IF(OR(AV$3<=$D41,$G41="n/a"),0,IF(SUM($D41,$G41)>AV$3,$H41/$G41,$H41-SUM($I41:AU41))) -> 0 | AW41: =IF(OR(AW$3<=$D41,$G41="n/a"),0,IF(SUM($D41,$G41)>AW$3,$H41/$G41,$H41-SUM($I41:AV41))) -> 0 | AX41: =IF(OR(AX$3<=$D41,$G41="n/a"),0,IF(SUM($D41,$G41)>AX$3,$H41/$G41,$H41-SUM($I41:AW41))) -> 0 | AY41: =IF(OR(AY$3<=$D41,$G41="n/a"),0,IF(SUM($D41,$G41)>AY$3,$H41/$G41,$H41-SUM($I41:AX41))) -> 0 | AZ41: =IF(OR(AZ$3<=$D41,$G41="n/a"),0,IF(SUM($D41,$G41)>AZ$3,$H41/$G41,$H41-SUM($I41:AY41))) -> 0 | BA41: =IF(OR(BA$3<=$D41,$G41="n/a"),0,IF(SUM($D41,$G41)>BA$3,$H41/$G41,$H41-SUM($I41:AZ41))) -> 0 | BB41: =IF(OR(BB$3<=$D41,$G41="n/a"),0,IF(SUM($D41,$G41)>BB$3,$H41/$G41,$H41-SUM($I41:BA41))) -> 0 | BC41: =IF(OR(BC$3<=$D41,$G41="n/a"),0,IF(SUM($D41,$G41)>BC$3,$H41/$G41,$H41-SUM($I41:BB41))) -> 0 | BD41: =IF(OR(BD$3<=$D41,$G41="n/a"),0,IF(SUM($D41,$G41)>BD$3,$H41/$G41,$H41-SUM($I41:BC41))) -> 0 | BE41: =IF(OR(BE$3<=$D41,$G41="n/a"),0,IF(SUM($D41,$G41)>BE$3,$H41/$G41,$H41-SUM($I41:BD41))) -> 0 | BF41: =IF(OR(BF$3<=$D41,$G41="n/a"),0,IF(SUM($D41,$G41)>BF$3,$H41/$G41,$H41-SUM($I41:BE41))) -> 0 | BG41: =IF(OR(BG$3<=$D41,$G41="n/a"),0,IF(SUM($D41,$G41)>BG$3,$H41/$G41,$H41-SUM($I41:BF41))) -> 0 | BH41: =IF(OR(BH$3<=$D41,$G41="n/a"),0,IF(SUM($D41,$G41)>BH$3,$H41/$G41,$H41-SUM($I41:BG41))) -> 0 | BI41: =IF(OR(BI$3<=$D41,$G41="n/a"),0,IF(SUM($D41,$G41)>BI$3,$H41/$G41,$H41-SUM($I41:BH41))) -> 0 | BJ41: =IF(OR(BJ$3<=$D41,$G41="n/a"),0,IF(SUM($D41,$G41)>BJ$3,$H41/$G41,$H41-SUM($I41:BI41))) -> 0 | BK41: =IF(OR(BK$3<=$D41,$G41="n/a"),0,IF(SUM($D41,$G41)>BK$3,$H41/$G41,$H41-SUM($I41:BJ41))) -> 0 | BL41: =IF(OR(BL$3<=$D41,$G41="n/a"),0,IF(SUM($D41,$G41)>BL$3,$H41/$G41,$H41-SUM($I41:BK41))) -> 0 | BM41: =IF(OR(BM$3<=$D41,$G41="n/a"),0,IF(SUM($D41,$G41)>BM$3,$H41/$G41,$H41-SUM($I41:BL41))) -> 0 | BN41: =IF(OR(BN$3<=$D41,$G41="n/a"),0,IF(SUM($D41,$G41)>BN$3,$H41/$G41,$H41-SUM($I41:BM41))) -> 0 | BO41: =IF(OR(BO$3<=$D41,$G41="n/a"),0,IF(SUM($D41,$G41)>BO$3,$H41/$G41,$H41-SUM($I41:BN41))) -> 0 | BP41: =IF(OR(BP$3<=$D41,$G41="n/a"),0,IF(SUM($D41,$G41)>BP$3,$H41/$G41,$H41-SUM($I41:BO41))) -> 0 | BQ41: =IF(OR(BQ$3<=$D41,$G41="n/a"),0,IF(SUM($D41,$G41)>BQ$3,$H41/$G41,$H41-SUM($I41:BP41))) -> 0 | BR41: =IF(OR(BR$3<=$D41,$G41="n/a"),0,IF(SUM($D41,$G41)>BR$3,$H41/$G41,$H41-SUM($I41:BQ41))) -> 0 | BS41: =IF(OR(BS$3<=$D41,$G41="n/a"),0,IF(SUM($D41,$G41)>BS$3,$H41/$G41,$H41-SUM($I41:BR41))) -> 0 | BT41: =IF(OR(BT$3<=$D41,$G41="n/a"),0,IF(SUM($D41,$G41)>BT$3,$H41/$G41,$H41-SUM($I41:BS41))) -> 0 | BU41: =IF(OR(BU$3<=$D41,$G41="n/a"),0,IF(SUM($D41,$G41)>BU$3,$H41/$G41,$H41-SUM($I41:BT41))) -> 0 | BV41: =IF(OR(BV$3<=$D41,$G41="n/a"),0,IF(SUM($D41,$G41)>BV$3,$H41/$G41,$H41-SUM($I41:BU41))) -> 0 | BW41: Ok
D42: 2024 | E42: $m Real 2010 | G42: =G41 -> 55 | H42: =W28 -> 0 | J42: =IF(OR(J$3<=$D42,$G42="n/a"),0,IF(SUM($D42,$G42)>J$3,$H42/$G42,$H42-SUM($I42:I42))) -> 0 | K42: =IF(OR(K$3<=$D42,$G42="n/a"),0,IF(SUM($D42,$G42)>K$3,$H42/$G42,$H42-SUM($I42:J42))) -> 0 | L42: =IF(OR(L$3<=$D42,$G42="n/a"),0,IF(SUM($D42,$G42)>L$3,$H42/$G42,$H42-SUM($I42:K42))) -> 0 | M42: =IF(OR(M$3<=$D42,$G42="n/a"),0,IF(SUM($D42,$G42)>M$3,$H42/$G42,$H42-SUM($I42:L42))) -> 0 | N42: =IF(OR(N$3<=$D42,$G42="n/a"),0,IF(SUM($D42,$G42)>N$3,$H42/$G42,$H42-SUM($I42:M42))) -> 0 | O42: =IF(OR(O$3<=$D42,$G42="n/a"),0,IF(SUM($D42,$G42)>O$3,$H42/$G42,$H42-SUM($I42:N42))) -> 0 | P42: =IF(OR(P$3<=$D42,$G42="n/a"),0,IF(SUM($D42,$G42)>P$3,$H42/$G42,$H42-SUM($I42:O42))) -> 0 | Q42: =IF(OR(Q$3<=$D42,$G42="n/a"),0,IF(SUM($D42,$G42)>Q$3,$H42/$G42,$H42-SUM($I42:P42))) -> 0 | R42: =IF(OR(R$3<=$D42,$G42="n/a"),0,IF(SUM($D42,$G42)>R$3,$H42/$G42,$H42-SUM($I42:Q42))) -> 0 | S42: =IF(OR(S$3<=$D42,$G42="n/a"),0,IF(SUM($D42,$G42)>S$3,$H42/$G42,$H42-SUM($I42:R42))) -> 0 | T42: =IF(OR(T$3<=$D42,$G42="n/a"),0,IF(SUM($D42,$G42)>T$3,$H42/$G42,$H42-SUM($I42:S42))) -> 0 | U42: =IF(OR(U$3<=$D42,$G42="n/a"),0,IF(SUM($D42,$G42)>U$3,$H42/$G42,$H42-SUM($I42:T42))) -> 0 | V42: =IF(OR(V$3<=$D42,$G42="n/a"),0,IF(SUM($D42,$G42)>V$3,$H42/$G42,$H42-SUM($I42:U42))) -> 0 | W42: =IF(OR(W$3<=$D42,$G42="n/a"),0,IF(SUM($D42,$G42)>W$3,$H42/$G42,$H42-SUM($I42:V42))) -> 0 | X42: =IF(OR(X$3<=$D42,$G42="n/a"),0,IF(SUM($D42,$G42)>X$3,$H42/$G42,$H42-SUM($I42:W42))) -> 0 | Y42: =IF(OR(Y$3<=$D42,$G42="n/a"),0,IF(SUM($D42,$G42)>Y$3,$H42/$G42,$H42-SUM($I42:X42))) -> 0 | Z42: =IF(OR(Z$3<=$D42,$G42="n/a"),0,IF(SUM($D42,$G42)>Z$3,$H42/$G42,$H42-SUM($I42:Y42))) -> 0 | AA42: =IF(OR(AA$3<=$D42,$G42="n/a"),0,IF(SUM($D42,$G42)>AA$3,$H42/$G42,$H42-SUM($I42:Z42))) -> 0 | AB42: =IF(OR(AB$3<=$D42,$G42="n/a"),0,IF(SUM($D42,$G42)>AB$3,$H42/$G42,$H42-SUM($I42:AA42))) -> 0 | AC42: =IF(OR(AC$3<=$D42,$G42="n/a"),0,IF(SUM($D42,$G42)>AC$3,$H42/$G42,$H42-SUM($I42:AB42))) -> 0 | AD42: =IF(OR(AD$3<=$D42,$G42="n/a"),0,IF(SUM($D42,$G42)>AD$3,$H42/$G42,$H42-SUM($I42:AC42))) -> 0 | AE42: =IF(OR(AE$3<=$D42,$G42="n/a"),0,IF(SUM($D42,$G42)>AE$3,$H42/$G42,$H42-SUM($I42:AD42))) -> 0 | AF42: =IF(OR(AF$3<=$D42,$G42="n/a"),0,IF(SUM($D42,$G42)>AF$3,$H42/$G42,$H42-SUM($I42:AE42))) -> 0 | AG42: =IF(OR(AG$3<=$D42,$G42="n/a"),0,IF(SUM($D42,$G42)>AG$3,$H42/$G42,$H42-SUM($I42:AF42))) -> 0 | AH42: =IF(OR(AH$3<=$D42,$G42="n/a"),0,IF(SUM($D42,$G42)>AH$3,$H42/$G42,$H42-SUM($I42:AG42))) -> 0 | AI42: =IF(OR(AI$3<=$D42,$G42="n/a"),0,IF(SUM($D42,$G42)>AI$3,$H42/$G42,$H42-SUM($I42:AH42))) -> 0 | AJ42: =IF(OR(AJ$3<=$D42,$G42="n/a"),0,IF(SUM($D42,$G42)>AJ$3,$H42/$G42,$H42-SUM($I42:AI42))) -> 0 | AK42: =IF(OR(AK$3<=$D42,$G42="n/a"),0,IF(SUM($D42,$G42)>AK$3,$H42/$G42,$H42-SUM($I42:AJ42))) -> 0 | AL42: =IF(OR(AL$3<=$D42,$G42="n/a"),0,IF(SUM($D42,$G42)>AL$3,$H42/$G42,$H42-SUM($I42:AK42))) -> 0 | AM42: =IF(OR(AM$3<=$D42,$G42="n/a"),0,IF(SUM($D42,$G42)>AM$3,$H42/$G42,$H42-SUM($I42:AL42))) -> 0 | AN42: =IF(OR(AN$3<=$D42,$G42="n/a"),0,IF(SUM($D42,$G42)>AN$3,$H42/$G42,$H42-SUM($I42:AM42))) -> 0 | AO42: =IF(OR(AO$3<=$D42,$G42="n/a"),0,IF(SUM($D42,$G42)>AO$3,$H42/$G42,$H42-SUM($I42:AN42))) -> 0 | AP42: =IF(OR(AP$3<=$D42,$G42="n/a"),0,IF(SUM($D42,$G42)>AP$3,$H42/$G42,$H42-SUM($I42:AO42))) -> 0 | AQ42: =IF(OR(AQ$3<=$D42,$G42="n/a"),0,IF(SUM($D42,$G42)>AQ$3,$H42/$G42,$H42-SUM($I42:AP42))) -> 0 | AR42: =IF(OR(AR$3<=$D42,$G42="n/a"),0,IF(SUM($D42,$G42)>AR$3,$H42/$G42,$H42-SUM($I42:AQ42))) -> 0 | AS42: =IF(OR(AS$3<=$D42,$G42="n/a"),0,IF(SUM($D42,$G42)>AS$3,$H42/$G42,$H42-SUM($I42:AR42))) -> 0 | AT42: =IF(OR(AT$3<=$D42,$G42="n/a"),0,IF(SUM($D42,$G42)>AT$3,$H42/$G42,$H42-SUM($I42:AS42))) -> 0 | AU42: =IF(OR(AU$3<=$D42,$G42="n/a"),0,IF(SUM($D42,$G42)>AU$3,$H42/$G42,$H42-SUM($I42:AT42))) -> 0 | AV42: =IF(OR(AV$3<=$D42,$G42="n/a"),0,IF(SUM($D42,$G42)>AV$3,$H42/$G42,$H42-SUM($I42:AU42))) -> 0 | AW42: =IF(OR(AW$3<=$D42,$G42="n/a"),0,IF(SUM($D42,$G42)>AW$3,$H42/$G42,$H42-SUM($I42:AV42))) -> 0 | AX42: =IF(OR(AX$3<=$D42,$G42="n/a"),0,IF(SUM($D42,$G42)>AX$3,$H42/$G42,$H42-SUM($I42:AW42))) -> 0 | AY42: =IF(OR(AY$3<=$D42,$G42="n/a"),0,IF(SUM($D42,$G42)>AY$3,$H42/$G42,$H42-SUM($I42:AX42))) -> 0 | AZ42: =IF(OR(AZ$3<=$D42,$G42="n/a"),0,IF(SUM($D42,$G42)>AZ$3,$H42/$G42,$H42-SUM($I42:AY42))) -> 0 | BA42: =IF(OR(BA$3<=$D42,$G42="n/a"),0,IF(SUM($D42,$G42)>BA$3,$H42/$G42,$H42-SUM($I42:AZ42))) -> 0 | BB42: =IF(OR(BB$3<=$D42,$G42="n/a"),0,IF(SUM($D42,$G42)>BB$3,$H42/$G42,$H42-SUM($I42:BA42))) -> 0 | BC42: =IF(OR(BC$3<=$D42,$G42="n/a"),0,IF(SUM($D42,$G42)>BC$3,$H42/$G42,$H42-SUM($I42:BB42))) -> 0 | BD42: =IF(OR(BD$3<=$D42,$G42="n/a"),0,IF(SUM($D42,$G42)>BD$3,$H42/$G42,$H42-SUM($I42:BC42))) -> 0 | BE42: =IF(OR(BE$3<=$D42,$G42="n/a"),0,IF(SUM($D42,$G42)>BE$3,$H42/$G42,$H42-SUM($I42:BD42))) -> 0 | BF42: =IF(OR(BF$3<=$D42,$G42="n/a"),0,IF(SUM($D42,$G42)>BF$3,$H42/$G42,$H42-SUM($I42:BE42))) -> 0 | BG42: =IF(OR(BG$3<=$D42,$G42="n/a"),0,IF(SUM($D42,$G42)>BG$3,$H42/$G42,$H42-SUM($I42:BF42))) -> 0 | BH42: =IF(OR(BH$3<=$D42,$G42="n/a"),0,IF(SUM($D42,$G42)>BH$3,$H42/$G42,$H42-SUM($I42:BG42))) -> 0 | BI42: =IF(OR(BI$3<=$D42,$G42="n/a"),0,IF(SUM($D42,$G42)>BI$3,$H42/$G42,$H42-SUM($I42:BH42))) -> 0 | BJ42: =IF(OR(BJ$3<=$D42,$G42="n/a"),0,IF(SUM($D42,$G42)>BJ$3,$H42/$G42,$H42-SUM($I42:BI42))) -> 0 | BK42: =IF(OR(BK$3<=$D42,$G42="n/a"),0,IF(SUM($D42,$G42)>BK$3,$H42/$G42,$H42-SUM($I42:BJ42))) -> 0 | BL42: =IF(OR(BL$3<=$D42,$G42="n/a"),0,IF(SUM($D42,$G42)>BL$3,$H42/$G42,$H42-SUM($I42:BK42))) -> 0 | BM42: =IF(OR(BM$3<=$D42,$G42="n/a"),0,IF(SUM($D42,$G42)>BM$3,$H42/$G42,$H42-SUM($I42:BL42))) -> 0 | BN42: =IF(OR(BN$3<=$D42,$G42="n/a"),0,IF(SUM($D42,$G42)>BN$3,$H42/$G42,$H42-SUM($I42:BM42))) -> 0 | BO42: =IF(OR(BO$3<=$D42,$G42="n/a"),0,IF(SUM($D42,$G42)>BO$3,$H42/$G42,$H42-SUM($I42:BN42))) -> 0 | BP42: =IF(OR(BP$3<=$D42,$G42="n/a"),0,IF(SUM($D42,$G42)>BP$3,$H42/$G42,$H42-SUM($I42:BO42))) -> 0 | BQ42: =IF(OR(BQ$3<=$D42,$G42="n/a"),0,IF(SUM($D42,$G42)>BQ$3,$H42/$G42,$H42-SUM($I42:BP42))) -> 0 | BR42: =IF(OR(BR$3<=$D42,$G42="n/a"),0,IF(SUM($D42,$G42)>BR$3,$H42/$G42,$H42-SUM($I42:BQ42))) -> 0 | BS42: =IF(OR(BS$3<=$D42,$G42="n/a"),0,IF(SUM($D42,$G42)>BS$3,$H42/$G42,$H42-SUM($I42:BR42))) -> 0 | BT42: =IF(OR(BT$3<=$D42,$G42="n/a"),0,IF(SUM($D42,$G42)>BT$3,$H42/$G42,$H42-SUM($I42:BS42))) -> 0 | BU42: =IF(OR(BU$3<=$D42,$G42="n/a"),0,IF(SUM($D42,$G42)>BU$3,$H42/$G42,$H42-SUM($I42:BT42))) -> 0 | BV42: =IF(OR(BV$3<=$D42,$G42="n/a"),0,IF(SUM($D42,$G42)>BV$3,$H42/$G42,$H42-SUM($I42:BU42))) -> 0 | BW42: Ok
D43: 2025 | E43: $m Real 2010 | G43: =G42 -> 55 | H43: =X28 -> 0 | J43: =IF(OR(J$3<=$D43,$G43="n/a"),0,IF(SUM($D43,$G43)>J$3,$H43/$G43,$H43-SUM($I43:I43))) -> 0 | K43: =IF(OR(K$3<=$D43,$G43="n/a"),0,IF(SUM($D43,$G43)>K$3,$H43/$G43,$H43-SUM($I43:J43))) -> 0 | L43: =IF(OR(L$3<=$D43,$G43="n/a"),0,IF(SUM($D43,$G43)>L$3,$H43/$G43,$H43-SUM($I43:K43))) -> 0 | M43: =IF(OR(M$3<=$D43,$G43="n/a"),0,IF(SUM($D43,$G43)>M$3,$H43/$G43,$H43-SUM($I43:L43))) -> 0 | N43: =IF(OR(N$3<=$D43,$G43="n/a"),0,IF(SUM($D43,$G43)>N$3,$H43/$G43,$H43-SUM($I43:M43))) -> 0 | O43: =IF(OR(O$3<=$D43,$G43="n/a"),0,IF(SUM($D43,$G43)>O$3,$H43/$G43,$H43-SUM($I43:N43))) -> 0 | P43: =IF(OR(P$3<=$D43,$G43="n/a"),0,IF(SUM($D43,$G43)>P$3,$H43/$G43,$H43-SUM($I43:O43))) -> 0 | Q43: =IF(OR(Q$3<=$D43,$G43="n/a"),0,IF(SUM($D43,$G43)>Q$3,$H43/$G43,$H43-SUM($I43:P43))) -> 0 | R43: =IF(OR(R$3<=$D43,$G43="n/a"),0,IF(SUM($D43,$G43)>R$3,$H43/$G43,$H43-SUM($I43:Q43))) -> 0 | S43: =IF(OR(S$3<=$D43,$G43="n/a"),0,IF(SUM($D43,$G43)>S$3,$H43/$G43,$H43-SUM($I43:R43))) -> 0 | T43: =IF(OR(T$3<=$D43,$G43="n/a"),0,IF(SUM($D43,$G43)>T$3,$H43/$G43,$H43-SUM($I43:S43))) -> 0 | U43: =IF(OR(U$3<=$D43,$G43="n/a"),0,IF(SUM($D43,$G43)>U$3,$H43/$G43,$H43-SUM($I43:T43))) -> 0 | V43: =IF(OR(V$3<=$D43,$G43="n/a"),0,IF(SUM($D43,$G43)>V$3,$H43/$G43,$H43-SUM($I43:U43))) -> 0 | W43: =IF(OR(W$3<=$D43,$G43="n/a"),0,IF(SUM($D43,$G43)>W$3,$H43/$G43,$H43-SUM($I43:V43))) -> 0 | X43: =IF(OR(X$3<=$D43,$G43="n/a"),0,IF(SUM($D43,$G43)>X$3,$H43/$G43,$H43-SUM($I43:W43))) -> 0 | Y43: =IF(OR(Y$3<=$D43,$G43="n/a"),0,IF(SUM($D43,$G43)>Y$3,$H43/$G43,$H43-SUM($I43:X43))) -> 0 | Z43: =IF(OR(Z$3<=$D43,$G43="n/a"),0,IF(SUM($D43,$G43)>Z$3,$H43/$G43,$H43-SUM($I43:Y43))) -> 0 | AA43: =IF(OR(AA$3<=$D43,$G43="n/a"),0,IF(SUM($D43,$G43)>AA$3,$H43/$G43,$H43-SUM($I43:Z43))) -> 0 | AB43: =IF(OR(AB$3<=$D43,$G43="n/a"),0,IF(SUM($D43,$G43)>AB$3,$H43/$G43,$H43-SUM($I43:AA43))) -> 0 | AC43: =IF(OR(AC$3<=$D43,$G43="n/a"),0,IF(SUM($D43,$G43)>AC$3,$H43/$G43,$H43-SUM($I43:AB43))) -> 0 | AD43: =IF(OR(AD$3<=$D43,$G43="n/a"),0,IF(SUM($D43,$G43)>AD$3,$H43/$G43,$H43-SUM($I43:AC43))) -> 0 | AE43: =IF(OR(AE$3<=$D43,$G43="n/a"),0,IF(SUM($D43,$G43)>AE$3,$H43/$G43,$H43-SUM($I43:AD43))) -> 0 | AF43: =IF(OR(AF$3<=$D43,$G43="n/a"),0,IF(SUM($D43,$G43)>AF$3,$H43/$G43,$H43-SUM($I43:AE43))) -> 0 | AG43: =IF(OR(AG$3<=$D43,$G43="n/a"),0,IF(SUM($D43,$G43)>AG$3,$H43/$G43,$H43-SUM($I43:AF43))) -> 0 | AH43: =IF(OR(AH$3<=$D43,$G43="n/a"),0,IF(SUM($D43,$G43)>AH$3,$H43/$G43,$H43-SUM($I43:AG43))) -> 0 | AI43: =IF(OR(AI$3<=$D43,$G43="n/a"),0,IF(SUM($D43,$G43)>AI$3,$H43/$G43,$H43-SUM($I43:AH43))) -> 0 | AJ43: =IF(OR(AJ$3<=$D43,$G43="n/a"),0,IF(SUM($D43,$G43)>AJ$3,$H43/$G43,$H43-SUM($I43:AI43))) -> 0 | AK43: =IF(OR(AK$3<=$D43,$G43="n/a"),0,IF(SUM($D43,$G43)>AK$3,$H43/$G43,$H43-SUM($I43:AJ43))) -> 0 | AL43: =IF(OR(AL$3<=$D43,$G43="n/a"),0,IF(SUM($D43,$G43)>AL$3,$H43/$G43,$H43-SUM($I43:AK43))) -> 0 | AM43: =IF(OR(AM$3<=$D43,$G43="n/a"),0,IF(SUM($D43,$G43)>AM$3,$H43/$G43,$H43-SUM($I43:AL43))) -> 0 | AN43: =IF(OR(AN$3<=$D43,$G43="n/a"),0,IF(SUM($D43,$G43)>AN$3,$H43/$G43,$H43-SUM($I43:AM43))) -> 0 | AO43: =IF(OR(AO$3<=$D43,$G43="n/a"),0,IF(SUM($D43,$G43)>AO$3,$H43/$G43,$H43-SUM($I43:AN43))) -> 0 | AP43: =IF(OR(AP$3<=$D43,$G43="n/a"),0,IF(SUM($D43,$G43)>AP$3,$H43/$G43,$H43-SUM($I43:AO43))) -> 0 | AQ43: =IF(OR(AQ$3<=$D43,$G43="n/a"),0,IF(SUM($D43,$G43)>AQ$3,$H43/$G43,$H43-SUM($I43:AP43))) -> 0 | AR43: =IF(OR(AR$3<=$D43,$G43="n/a"),0,IF(SUM($D43,$G43)>AR$3,$H43/$G43,$H43-SUM($I43:AQ43))) -> 0 | AS43: =IF(OR(AS$3<=$D43,$G43="n/a"),0,IF(SUM($D43,$G43)>AS$3,$H43/$G43,$H43-SUM($I43:AR43))) -> 0 | AT43: =IF(OR(AT$3<=$D43,$G43="n/a"),0,IF(SUM($D43,$G43)>AT$3,$H43/$G43,$H43-SUM($I43:AS43))) -> 0 | AU43: =IF(OR(AU$3<=$D43,$G43="n/a"),0,IF(SUM($D43,$G43)>AU$3,$H43/$G43,$H43-SUM($I43:AT43))) -> 0 | AV43: =IF(OR(AV$3<=$D43,$G43="n/a"),0,IF(SUM($D43,$G43)>AV$3,$H43/$G43,$H43-SUM($I43:AU43))) -> 0 | AW43: =IF(OR(AW$3<=$D43,$G43="n/a"),0,IF(SUM($D43,$G43)>AW$3,$H43/$G43,$H43-SUM($I43:AV43))) -> 0 | AX43: =IF(OR(AX$3<=$D43,$G43="n/a"),0,IF(SUM($D43,$G43)>AX$3,$H43/$G43,$H43-SUM($I43:AW43))) -> 0 | AY43: =IF(OR(AY$3<=$D43,$G43="n/a"),0,IF(SUM($D43,$G43)>AY$3,$H43/$G43,$H43-SUM($I43:AX43))) -> 0 | AZ43: =IF(OR(AZ$3<=$D43,$G43="n/a"),0,IF(SUM($D43,$G43)>AZ$3,$H43/$G43,$H43-SUM($I43:AY43))) -> 0 | BA43: =IF(OR(BA$3<=$D43,$G43="n/a"),0,IF(SUM($D43,$G43)>BA$3,$H43/$G43,$H43-SUM($I43:AZ43))) -> 0 | BB43: =IF(OR(BB$3<=$D43,$G43="n/a"),0,IF(SUM($D43,$G43)>BB$3,$H43/$G43,$H43-SUM($I43:BA43))) -> 0 | BC43: =IF(OR(BC$3<=$D43,$G43="n/a"),0,IF(SUM($D43,$G43)>BC$3,$H43/$G43,$H43-SUM($I43:BB43))) -> 0 | BD43: =IF(OR(BD$3<=$D43,$G43="n/a"),0,IF(SUM($D43,$G43)>BD$3,$H43/$G43,$H43-SUM($I43:BC43))) -> 0 | BE43: =IF(OR(BE$3<=$D43,$G43="n/a"),0,IF(SUM($D43,$G43)>BE$3,$H43/$G43,$H43-SUM($I43:BD43))) -> 0 | BF43: =IF(OR(BF$3<=$D43,$G43="n/a"),0,IF(SUM($D43,$G43)>BF$3,$H43/$G43,$H43-SUM($I43:BE43))) -> 0 | BG43: =IF(OR(BG$3<=$D43,$G43="n/a"),0,IF(SUM($D43,$G43)>BG$3,$H43/$G43,$H43-SUM($I43:BF43))) -> 0 | BH43: =IF(OR(BH$3<=$D43,$G43="n/a"),0,IF(SUM($D43,$G43)>BH$3,$H43/$G43,$H43-SUM($I43:BG43))) -> 0 | BI43: =IF(OR(BI$3<=$D43,$G43="n/a"),0,IF(SUM($D43,$G43)>BI$3,$H43/$G43,$H43-SUM($I43:BH43))) -> 0 | BJ43: =IF(OR(BJ$3<=$D43,$G43="n/a"),0,IF(SUM($D43,$G43)>BJ$3,$H43/$G43,$H43-SUM($I43:BI43))) -> 0 | BK43: =IF(OR(BK$3<=$D43,$G43="n/a"),0,IF(SUM($D43,$G43)>BK$3,$H43/$G43,$H43-SUM($I43:BJ43))) -> 0 | BL43: =IF(OR(BL$3<=$D43,$G43="n/a"),0,IF(SUM($D43,$G43)>BL$3,$H43/$G43,$H43-SUM($I43:BK43))) -> 0 | BM43: =IF(OR(BM$3<=$D43,$G43="n/a"),0,IF(SUM($D43,$G43)>BM$3,$H43/$G43,$H43-SUM($I43:BL43))) -> 0 | BN43: =IF(OR(BN$3<=$D43,$G43="n/a"),0,IF(SUM($D43,$G43)>BN$3,$H43/$G43,$H43-SUM($I43:BM43))) -> 0 | BO43: =IF(OR(BO$3<=$D43,$G43="n/a"),0,IF(SUM($D43,$G43)>BO$3,$H43/$G43,$H43-SUM($I43:BN43))) -> 0 | BP43: =IF(OR(BP$3<=$D43,$G43="n/a"),0,IF(SUM($D43,$G43)>BP$3,$H43/$G43,$H43-SUM($I43:BO43))) -> 0 | BQ43: =IF(OR(BQ$3<=$D43,$G43="n/a"),0,IF(SUM($D43,$G43)>BQ$3,$H43/$G43,$H43-SUM($I43:BP43))) -> 0 | BR43: =IF(OR(BR$3<=$D43,$G43="n/a"),0,IF(SUM($D43,$G43)>BR$3,$H43/$G43,$H43-SUM($I43:BQ43))) -> 0 | BS43: =IF(OR(BS$3<=$D43,$G43="n/a"),0,IF(SUM($D43,$G43)>BS$3,$H43/$G43,$H43-SUM($I43:BR43))) -> 0 | BT43: =IF(OR(BT$3<=$D43,$G43="n/a"),0,IF(SUM($D43,$G43)>BT$3,$H43/$G43,$H43-SUM($I43:BS43))) -> 0 | BU43: =IF(OR(BU$3<=$D43,$G43="n/a"),0,IF(SUM($D43,$G43)>BU$3,$H43/$G43,$H43-SUM($I43:BT43))) -> 0 | BV43: =IF(OR(BV$3<=$D43,$G43="n/a"),0,IF(SUM($D43,$G43)>BV$3,$H43/$G43,$H43-SUM($I43:BU43))) -> 0 | BW43: Ok
D44: 2026 | E44: $m Real 2010 | G44: =INDEX('I1|Lives '!$F$7:$F$22,A17) -> 55 | H44: =Y28 -> 0 | J44: =IF(OR(J$3<=$D44,$G44="n/a"),0,IF(SUM($D44,$G44)>J$3,$H44/$G44,$H44-SUM($I44:I44))) -> 0 | K44: =IF(OR(K$3<=$D44,$G44="n/a"),0,IF(SUM($D44,$G44)>K$3,$H44/$G44,$H44-SUM($I44:J44))) -> 0 | L44: =IF(OR(L$3<=$D44,$G44="n/a"),0,IF(SUM($D44,$G44)>L$3,$H44/$G44,$H44-SUM($I44:K44))) -> 0 | M44: =IF(OR(M$3<=$D44,$G44="n/a"),0,IF(SUM($D44,$G44)>M$3,$H44/$G44,$H44-SUM($I44:L44))) -> 0 | N44: =IF(OR(N$3<=$D44,$G44="n/a"),0,IF(SUM($D44,$G44)>N$3,$H44/$G44,$H44-SUM($I44:M44))) -> 0 | O44: =IF(OR(O$3<=$D44,$G44="n/a"),0,IF(SUM($D44,$G44)>O$3,$H44/$G44,$H44-SUM($I44:N44))) -> 0 | P44: =IF(OR(P$3<=$D44,$G44="n/a"),0,IF(SUM($D44,$G44)>P$3,$H44/$G44,$H44-SUM($I44:O44))) -> 0 | Q44: =IF(OR(Q$3<=$D44,$G44="n/a"),0,IF(SUM($D44,$G44)>Q$3,$H44/$G44,$H44-SUM($I44:P44))) -> 0 | R44: =IF(OR(R$3<=$D44,$G44="n/a"),0,IF(SUM($D44,$G44)>R$3,$H44/$G44,$H44-SUM($I44:Q44))) -> 0 | S44: =IF(OR(S$3<=$D44,$G44="n/a"),0,IF(SUM($D44,$G44)>S$3,$H44/$G44,$H44-SUM($I44:R44))) -> 0 | T44: =IF(OR(T$3<=$D44,$G44="n/a"),0,IF(SUM($D44,$G44)>T$3,$H44/$G44,$H44-SUM($I44:S44))) -> 0 | U44: =IF(OR(U$3<=$D44,$G44="n/a"),0,IF(SUM($D44,$G44)>U$3,$H44/$G44,$H44-SUM($I44:T44))) -> 0 | V44: =IF(OR(V$3<=$D44,$G44="n/a"),0,IF(SUM($D44,$G44)>V$3,$H44/$G44,$H44-SUM($I44:U44))) -> 0 | W44: =IF(OR(W$3<=$D44,$G44="n/a"),0,IF(SUM($D44,$G44)>W$3,$H44/$G44,$H44-SUM($I44:V44))) -> 0 | X44: =IF(OR(X$3<=$D44,$G44="n/a"),0,IF(SUM($D44,$G44)>X$3,$H44/$G44,$H44-SUM($I44:W44))) -> 0 | Y44: =IF(OR(Y$3<=$D44,$G44="n/a"),0,IF(SUM($D44,$G44)>Y$3,$H44/$G44,$H44-SUM($I44:X44))) -> 0 | Z44: =IF(OR(Z$3<=$D44,$G44="n/a"),0,IF(SUM($D44,$G44)>Z$3,$H44/$G44,$H44-SUM($I44:Y44))) -> 0 | AA44: =IF(OR(AA$3<=$D44,$G44="n/a"),0,IF(SUM($D44,$G44)>AA$3,$H44/$G44,$H44-SUM($I44:Z44))) -> 0 | AB44: =IF(OR(AB$3<=$D44,$G44="n/a"),0,IF(SUM($D44,$G44)>AB$3,$H44/$G44,$H44-SUM($I44:AA44))) -> 0 | AC44: =IF(OR(AC$3<=$D44,$G44="n/a"),0,IF(SUM($D44,$G44)>AC$3,$H44/$G44,$H44-SUM($I44:AB44))) -> 0 | AD44: =IF(OR(AD$3<=$D44,$G44="n/a"),0,IF(SUM($D44,$G44)>AD$3,$H44/$G44,$H44-SUM($I44:AC44))) -> 0 | AE44: =IF(OR(AE$3<=$D44,$G44="n/a"),0,IF(SUM($D44,$G44)>AE$3,$H44/$G44,$H44-SUM($I44:AD44))) -> 0 | AF44: =IF(OR(AF$3<=$D44,$G44="n/a"),0,IF(SUM($D44,$G44)>AF$3,$H44/$G44,$H44-SUM($I44:AE44))) -> 0 | AG44: =IF(OR(AG$3<=$D44,$G44="n/a"),0,IF(SUM($D44,$G44)>AG$3,$H44/$G44,$H44-SUM($I44:AF44))) -> 0 | AH44: =IF(OR(AH$3<=$D44,$G44="n/a"),0,IF(SUM($D44,$G44)>AH$3,$H44/$G44,$H44-SUM($I44:AG44))) -> 0 | AI44: =IF(OR(AI$3<=$D44,$G44="n/a"),0,IF(SUM($D44,$G44)>AI$3,$H44/$G44,$H44-SUM($I44:AH44))) -> 0 | AJ44: =IF(OR(AJ$3<=$D44,$G44="n/a"),0,IF(SUM($D44,$G44)>AJ$3,$H44/$G44,$H44-SUM($I44:AI44))) -> 0 | AK44: =IF(OR(AK$3<=$D44,$G44="n/a"),0,IF(SUM($D44,$G44)>AK$3,$H44/$G44,$H44-SUM($I44:AJ44))) -> 0 | AL44: =IF(OR(AL$3<=$D44,$G44="n/a"),0,IF(SUM($D44,$G44)>AL$3,$H44/$G44,$H44-SUM($I44:AK44))) -> 0 | AM44: =IF(OR(AM$3<=$D44,$G44="n/a"),0,IF(SUM($D44,$G44)>AM$3,$H44/$G44,$H44-SUM($I44:AL44))) -> 0 | AN44: =IF(OR(AN$3<=$D44,$G44="n/a"),0,IF(SUM($D44,$G44)>AN$3,$H44/$G44,$H44-SUM($I44:AM44))) -> 0 | AO44: =IF(OR(AO$3<=$D44,$G44="n/a"),0,IF(SUM($D44,$G44)>AO$3,$H44/$G44,$H44-SUM($I44:AN44))) -> 0 | AP44: =IF(OR(AP$3<=$D44,$G44="n/a"),0,IF(SUM($D44,$G44)>AP$3,$H44/$G44,$H44-SUM($I44:AO44))) -> 0 | AQ44: =IF(OR(AQ$3<=$D44,$G44="n/a"),0,IF(SUM($D44,$G44)>AQ$3,$H44/$G44,$H44-SUM($I44:AP44))) -> 0 | AR44: =IF(OR(AR$3<=$D44,$G44="n/a"),0,IF(SUM($D44,$G44)>AR$3,$H44/$G44,$H44-SUM($I44:AQ44))) -> 0 | AS44: =IF(OR(AS$3<=$D44,$G44="n/a"),0,IF(SUM($D44,$G44)>AS$3,$H44/$G44,$H44-SUM($I44:AR44))) -> 0 | AT44: =IF(OR(AT$3<=$D44,$G44="n/a"),0,IF(SUM($D44,$G44)>AT$3,$H44/$G44,$H44-SUM($I44:AS44))) -> 0 | AU44: =IF(OR(AU$3<=$D44,$G44="n/a"),0,IF(SUM($D44,$G44)>AU$3,$H44/$G44,$H44-SUM($I44:AT44))) -> 0 | AV44: =IF(OR(AV$3<=$D44,$G44="n/a"),0,IF(SUM($D44,$G44)>AV$3,$H44/$G44,$H44-SUM($I44:AU44))) -> 0 | AW44: =IF(OR(AW$3<=$D44,$G44="n/a"),0,IF(SUM($D44,$G44)>AW$3,$H44/$G44,$H44-SUM($I44:AV44))) -> 0 | AX44: =IF(OR(AX$3<=$D44,$G44="n/a"),0,IF(SUM($D44,$G44)>AX$3,$H44/$G44,$H44-SUM($I44:AW44))) -> 0 | AY44: =IF(OR(AY$3<=$D44,$G44="n/a"),0,IF(SUM($D44,$G44)>AY$3,$H44/$G44,$H44-SUM($I44:AX44))) -> 0 | AZ44: =IF(OR(AZ$3<=$D44,$G44="n/a"),0,IF(SUM($D44,$G44)>AZ$3,$H44/$G44,$H44-SUM($I44:AY44))) -> 0 | BA44: =IF(OR(BA$3<=$D44,$G44="n/a"),0,IF(SUM($D44,$G44)>BA$3,$H44/$G44,$H44-SUM($I44:AZ44))) -> 0 | BB44: =IF(OR(BB$3<=$D44,$G44="n/a"),0,IF(SUM($D44,$G44)>BB$3,$H44/$G44,$H44-SUM($I44:BA44))) -> 0 | BC44: =IF(OR(BC$3<=$D44,$G44="n/a"),0,IF(SUM($D44,$G44)>BC$3,$H44/$G44,$H44-SUM($I44:BB44))) -> 0 | BD44: =IF(OR(BD$3<=$D44,$G44="n/a"),0,IF(SUM($D44,$G44)>BD$3,$H44/$G44,$H44-SUM($I44:BC44))) -> 0 | BE44: =IF(OR(BE$3<=$D44,$G44="n/a"),0,IF(SUM($D44,$G44)>BE$3,$H44/$G44,$H44-SUM($I44:BD44))) -> 0 | BF44: =IF(OR(BF$3<=$D44,$G44="n/a"),0,IF(SUM($D44,$G44)>BF$3,$H44/$G44,$H44-SUM($I44:BE44))) -> 0 | BG44: =IF(OR(BG$3<=$D44,$G44="n/a"),0,IF(SUM($D44,$G44)>BG$3,$H44/$G44,$H44-SUM($I44:BF44))) -> 0 | BH44: =IF(OR(BH$3<=$D44,$G44="n/a"),0,IF(SUM($D44,$G44)>BH$3,$H44/$G44,$H44-SUM($I44:BG44))) -> 0 | BI44: =IF(OR(BI$3<=$D44,$G44="n/a"),0,IF(SUM($D44,$G44)>BI$3,$H44/$G44,$H44-SUM($I44:BH44))) -> 0 | BJ44: =IF(OR(BJ$3<=$D44,$G44="n/a"),0,IF(SUM($D44,$G44)>BJ$3,$H44/$G44,$H44-SUM($I44:BI44))) -> 0 | BK44: =IF(OR(BK$3<=$D44,$G44="n/a"),0,IF(SUM($D44,$G44)>BK$3,$H44/$G44,$H44-SUM($I44:BJ44))) -> 0 | BL44: =IF(OR(BL$3<=$D44,$G44="n/a"),0,IF(SUM($D44,$G44)>BL$3,$H44/$G44,$H44-SUM($I44:BK44))) -> 0 | BM44: =IF(OR(BM$3<=$D44,$G44="n/a"),0,IF(SUM($D44,$G44)>BM$3,$H44/$G44,$H44-SUM($I44:BL44))) -> 0 | BN44: =IF(OR(BN$3<=$D44,$G44="n/a"),0,IF(SUM($D44,$G44)>BN$3,$H44/$G44,$H44-SUM($I44:BM44))) -> 0 | BO44: =IF(OR(BO$3<=$D44,$G44="n/a"),0,IF(SUM($D44,$G44)>BO$3,$H44/$G44,$H44-SUM($I44:BN44))) -> 0 | BP44: =IF(OR(BP$3<=$D44,$G44="n/a"),0,IF(SUM($D44,$G44)>BP$3,$H44/$G44,$H44-SUM($I44:BO44))) -> 0 | BQ44: =IF(OR(BQ$3<=$D44,$G44="n/a"),0,IF(SUM($D44,$G44)>BQ$3,$H44/$G44,$H44-SUM($I44:BP44))) -> 0 | BR44: =IF(OR(BR$3<=$D44,$G44="n/a"),0,IF(SUM($D44,$G44)>BR$3,$H44/$G44,$H44-SUM($I44:BQ44))) -> 0 | BS44: =IF(OR(BS$3<=$D44,$G44="n/a"),0,IF(SUM($D44,$G44)>BS$3,$H44/$G44,$H44-SUM($I44:BR44))) -> 0 | BT44: =IF(OR(BT$3<=$D44,$G44="n/a"),0,IF(SUM($D44,$G44)>BT$3,$H44/$G44,$H44-SUM($I44:BS44))) -> 0 | BU44: =IF(OR(BU$3<=$D44,$G44="n/a"),0,IF(SUM($D44,$G44)>BU$3,$H44/$G44,$H44-SUM($I44:BT44))) -> 0 | BV44: =IF(OR(BV$3<=$D44,$G44="n/a"),0,IF(SUM($D44,$G44)>BV$3,$H44/$G44,$H44-SUM($I44:BU44))) -> 0 | BW44: Ok
D45: 2027 | E45: $m Real 2010 | G45: =G44 -> 55 | H45: =Z28 -> 0 | J45: =IF(OR(J$3<=$D45,$G45="n/a"),0,IF(SUM($D45,$G45)>J$3,$H45/$G45,$H45-SUM($I45:I45))) -> 0 | K45: =IF(OR(K$3<=$D45,$G45="n/a"),0,IF(SUM($D45,$G45)>K$3,$H45/$G45,$H45-SUM($I45:J45))) -> 0 | L45: =IF(OR(L$3<=$D45,$G45="n/a"),0,IF(SUM($D45,$G45)>L$3,$H45/$G45,$H45-SUM($I45:K45))) -> 0 | M45: =IF(OR(M$3<=$D45,$G45="n/a"),0,IF(SUM($D45,$G45)>M$3,$H45/$G45,$H45-SUM($I45:L45))) -> 0 | N45: =IF(OR(N$3<=$D45,$G45="n/a"),0,IF(SUM($D45,$G45)>N$3,$H45/$G45,$H45-SUM($I45:M45))) -> 0 | O45: =IF(OR(O$3<=$D45,$G45="n/a"),0,IF(SUM($D45,$G45)>O$3,$H45/$G45,$H45-SUM($I45:N45))) -> 0 | P45: =IF(OR(P$3<=$D45,$G45="n/a"),0,IF(SUM($D45,$G45)>P$3,$H45/$G45,$H45-SUM($I45:O45))) -> 0 | Q45: =IF(OR(Q$3<=$D45,$G45="n/a"),0,IF(SUM($D45,$G45)>Q$3,$H45/$G45,$H45-SUM($I45:P45))) -> 0 | R45: =IF(OR(R$3<=$D45,$G45="n/a"),0,IF(SUM($D45,$G45)>R$3,$H45/$G45,$H45-SUM($I45:Q45))) -> 0 | S45: =IF(OR(S$3<=$D45,$G45="n/a"),0,IF(SUM($D45,$G45)>S$3,$H45/$G45,$H45-SUM($I45:R45))) -> 0 | T45: =IF(OR(T$3<=$D45,$G45="n/a"),0,IF(SUM($D45,$G45)>T$3,$H45/$G45,$H45-SUM($I45:S45))) -> 0 | U45: =IF(OR(U$3<=$D45,$G45="n/a"),0,IF(SUM($D45,$G45)>U$3,$H45/$G45,$H45-SUM($I45:T45))) -> 0 | V45: =IF(OR(V$3<=$D45,$G45="n/a"),0,IF(SUM($D45,$G45)>V$3,$H45/$G45,$H45-SUM($I45:U45))) -> 0 | W45: =IF(OR(W$3<=$D45,$G45="n/a"),0,IF(SUM($D45,$G45)>W$3,$H45/$G45,$H45-SUM($I45:V45))) -> 0 | X45: =IF(OR(X$3<=$D45,$G45="n/a"),0,IF(SUM($D45,$G45)>X$3,$H45/$G45,$H45-SUM($I45:W45))) -> 0 | Y45: =IF(OR(Y$3<=$D45,$G45="n/a"),0,IF(SUM($D45,$G45)>Y$3,$H45/$G45,$H45-SUM($I45:X45))) -> 0 | Z45: =IF(OR(Z$3<=$D45,$G45="n/a"),0,IF(SUM($D45,$G45)>Z$3,$H45/$G45,$H45-SUM($I45:Y45))) -> 0 | AA45: =IF(OR(AA$3<=$D45,$G45="n/a"),0,IF(SUM($D45,$G45)>AA$3,$H45/$G45,$H45-SUM($I45:Z45))) -> 0 | AB45: =IF(OR(AB$3<=$D45,$G45="n/a"),0,IF(SUM($D45,$G45)>AB$3,$H45/$G45,$H45-SUM($I45:AA45))) -> 0 | AC45: =IF(OR(AC$3<=$D45,$G45="n/a"),0,IF(SUM($D45,$G45)>AC$3,$H45/$G45,$H45-SUM($I45:AB45))) -> 0 | AD45: =IF(OR(AD$3<=$D45,$G45="n/a"),0,IF(SUM($D45,$G45)>AD$3,$H45/$G45,$H45-SUM($I45:AC45))) -> 0 | AE45: =IF(OR(AE$3<=$D45,$G45="n/a"),0,IF(SUM($D45,$G45)>AE$3,$H45/$G45,$H45-SUM($I45:AD45))) -> 0 | AF45: =IF(OR(AF$3<=$D45,$G45="n/a"),0,IF(SUM($D45,$G45)>AF$3,$H45/$G45,$H45-SUM($I45:AE45))) -> 0 | AG45: =IF(OR(AG$3<=$D45,$G45="n/a"),0,IF(SUM($D45,$G45)>AG$3,$H45/$G45,$H45-SUM($I45:AF45))) -> 0 | AH45: =IF(OR(AH$3<=$D45,$G45="n/a"),0,IF(SUM($D45,$G45)>AH$3,$H45/$G45,$H45-SUM($I45:AG45))) -> 0 | AI45: =IF(OR(AI$3<=$D45,$G45="n/a"),0,IF(SUM($D45,$G45)>AI$3,$H45/$G45,$H45-SUM($I45:AH45))) -> 0 | AJ45: =IF(OR(AJ$3<=$D45,$G45="n/a"),0,IF(SUM($D45,$G45)>AJ$3,$H45/$G45,$H45-SUM($I45:AI45))) -> 0 | AK45: =IF(OR(AK$3<=$D45,$G45="n/a"),0,IF(SUM($D45,$G45)>AK$3,$H45/$G45,$H45-SUM($I45:AJ45))) -> 0 | AL45: =IF(OR(AL$3<=$D45,$G45="n/a"),0,IF(SUM($D45,$G45)>AL$3,$H45/$G45,$H45-SUM($I45:AK45))) -> 0 | AM45: =IF(OR(AM$3<=$D45,$G45="n/a"),0,IF(SUM($D45,$G45)>AM$3,$H45/$G45,$H45-SUM($I45:AL45))) -> 0 | AN45: =IF(OR(AN$3<=$D45,$G45="n/a"),0,IF(SUM($D45,$G45)>AN$3,$H45/$G45,$H45-SUM($I45:AM45))) -> 0 | AO45: =IF(OR(AO$3<=$D45,$G45="n/a"),0,IF(SUM($D45,$G45)>AO$3,$H45/$G45,$H45-SUM($I45:AN45))) -> 0 | AP45: =IF(OR(AP$3<=$D45,$G45="n/a"),0,IF(SUM($D45,$G45)>AP$3,$H45/$G45,$H45-SUM($I45:AO45))) -> 0 | AQ45: =IF(OR(AQ$3<=$D45,$G45="n/a"),0,IF(SUM($D45,$G45)>AQ$3,$H45/$G45,$H45-SUM($I45:AP45))) -> 0 | AR45: =IF(OR(AR$3<=$D45,$G45="n/a"),0,IF(SUM($D45,$G45)>AR$3,$H45/$G45,$H45-SUM($I45:AQ45))) -> 0 | AS45: =IF(OR(AS$3<=$D45,$G45="n/a"),0,IF(SUM($D45,$G45)>AS$3,$H45/$G45,$H45-SUM($I45:AR45))) -> 0 | AT45: =IF(OR(AT$3<=$D45,$G45="n/a"),0,IF(SUM($D45,$G45)>AT$3,$H45/$G45,$H45-SUM($I45:AS45))) -> 0 | AU45: =IF(OR(AU$3<=$D45,$G45="n/a"),0,IF(SUM($D45,$G45)>AU$3,$H45/$G45,$H45-SUM($I45:AT45))) -> 0 | AV45: =IF(OR(AV$3<=$D45,$G45="n/a"),0,IF(SUM($D45,$G45)>AV$3,$H45/$G45,$H45-SUM($I45:AU45))) -> 0 | AW45: =IF(OR(AW$3<=$D45,$G45="n/a"),0,IF(SUM($D45,$G45)>AW$3,$H45/$G45,$H45-SUM($I45:AV45))) -> 0 | AX45: =IF(OR(AX$3<=$D45,$G45="n/a"),0,IF(SUM($D45,$G45)>AX$3,$H45/$G45,$H45-SUM($I45:AW45))) -> 0 | AY45: =IF(OR(AY$3<=$D45,$G45="n/a"),0,IF(SUM($D45,$G45)>AY$3,$H45/$G45,$H45-SUM($I45:AX45))) -> 0 | AZ45: =IF(OR(AZ$3<=$D45,$G45="n/a"),0,IF(SUM($D45,$G45)>AZ$3,$H45/$G45,$H45-SUM($I45:AY45))) -> 0 | BA45: =IF(OR(BA$3<=$D45,$G45="n/a"),0,IF(SUM($D45,$G45)>BA$3,$H45/$G45,$H45-SUM($I45:AZ45))) -> 0 | BB45: =IF(OR(BB$3<=$D45,$G45="n/a"),0,IF(SUM($D45,$G45)>BB$3,$H45/$G45,$H45-SUM($I45:BA45))) -> 0 | BC45: =IF(OR(BC$3<=$D45,$G45="n/a"),0,IF(SUM($D45,$G45)>BC$3,$H45/$G45,$H45-SUM($I45:BB45))) -> 0 | BD45: =IF(OR(BD$3<=$D45,$G45="n/a"),0,IF(SUM($D45,$G45)>BD$3,$H45/$G45,$H45-SUM($I45:BC45))) -> 0 | BE45: =IF(OR(BE$3<=$D45,$G45="n/a"),0,IF(SUM($D45,$G45)>BE$3,$H45/$G45,$H45-SUM($I45:BD45))) -> 0 | BF45: =IF(OR(BF$3<=$D45,$G45="n/a"),0,IF(SUM($D45,$G45)>BF$3,$H45/$G45,$H45-SUM($I45:BE45))) -> 0 | BG45: =IF(OR(BG$3<=$D45,$G45="n/a"),0,IF(SUM($D45,$G45)>BG$3,$H45/$G45,$H45-SUM($I45:BF45))) -> 0 | BH45: =IF(OR(BH$3<=$D45,$G45="n/a"),0,IF(SUM($D45,$G45)>BH$3,$H45/$G45,$H45-SUM($I45:BG45))) -> 0 | BI45: =IF(OR(BI$3<=$D45,$G45="n/a"),0,IF(SUM($D45,$G45)>BI$3,$H45/$G45,$H45-SUM($I45:BH45))) -> 0 | BJ45: =IF(OR(BJ$3<=$D45,$G45="n/a"),0,IF(SUM($D45,$G45)>BJ$3,$H45/$G45,$H45-SUM($I45:BI45))) -> 0 | BK45: =IF(OR(BK$3<=$D45,$G45="n/a"),0,IF(SUM($D45,$G45)>BK$3,$H45/$G45,$H45-SUM($I45:BJ45))) -> 0 | BL45: =IF(OR(BL$3<=$D45,$G45="n/a"),0,IF(SUM($D45,$G45)>BL$3,$H45/$G45,$H45-SUM($I45:BK45))) -> 0 | BM45: =IF(OR(BM$3<=$D45,$G45="n/a"),0,IF(SUM($D45,$G45)>BM$3,$H45/$G45,$H45-SUM($I45:BL45))) -> 0 | BN45: =IF(OR(BN$3<=$D45,$G45="n/a"),0,IF(SUM($D45,$G45)>BN$3,$H45/$G45,$H45-SUM($I45:BM45))) -> 0 | BO45: =IF(OR(BO$3<=$D45,$G45="n/a"),0,IF(SUM($D45,$G45)>BO$3,$H45/$G45,$H45-SUM($I45:BN45))) -> 0 | BP45: =IF(OR(BP$3<=$D45,$G45="n/a"),0,IF(SUM($D45,$G45)>BP$3,$H45/$G45,$H45-SUM($I45:BO45))) -> 0 | BQ45: =IF(OR(BQ$3<=$D45,$G45="n/a"),0,IF(SUM($D45,$G45)>BQ$3,$H45/$G45,$H45-SUM($I45:BP45))) -> 0 | BR45: =IF(OR(BR$3<=$D45,$G45="n/a"),0,IF(SUM($D45,$G45)>BR$3,$H45/$G45,$H45-SUM($I45:BQ45))) -> 0 | BS45: =IF(OR(BS$3<=$D45,$G45="n/a"),0,IF(SUM($D45,$G45)>BS$3,$H45/$G45,$H45-SUM($I45:BR45))) -> 0 | BT45: =IF(OR(BT$3<=$D45,$G45="n/a"),0,IF(SUM($D45,$G45)>BT$3,$H45/$G45,$H45-SUM($I45:BS45))) -> 0 | BU45: =IF(OR(BU$3<=$D45,$G45="n/a"),0,IF(SUM($D45,$G45)>BU$3,$H45/$G45,$H45-SUM($I45:BT45))) -> 0 | BV45: =IF(OR(BV$3<=$D45,$G45="n/a"),0,IF(SUM($D45,$G45)>BV$3,$H45/$G45,$H45-SUM($I45:BU45))) -> 0 | BW45: Ok
D46: 2028 | E46: $m Real 2010 | G46: 55 | H46: =AA28 -> 0 | J46: =IF(OR(J$3<=$D46,$G46="n/a"),0,IF(SUM($D46,$G46)>J$3,$H46/$G46,$H46-SUM($I46:I46))) -> 0 | K46: =IF(OR(K$3<=$D46,$G46="n/a"),0,IF(SUM($D46,$G46)>K$3,$H46/$G46,$H46-SUM($I46:J46))) -> 0 | L46: =IF(OR(L$3<=$D46,$G46="n/a"),0,IF(SUM($D46,$G46)>L$3,$H46/$G46,$H46-SUM($I46:K46))) -> 0 | M46: =IF(OR(M$3<=$D46,$G46="n/a"),0,IF(SUM($D46,$G46)>M$3,$H46/$G46,$H46-SUM($I46:L46))) -> 0 | N46: =IF(OR(N$3<=$D46,$G46="n/a"),0,IF(SUM($D46,$G46)>N$3,$H46/$G46,$H46-SUM($I46:M46))) -> 0 | O46: =IF(OR(O$3<=$D46,$G46="n/a"),0,IF(SUM($D46,$G46)>O$3,$H46/$G46,$H46-SUM($I46:N46))) -> 0 | P46: =IF(OR(P$3<=$D46,$G46="n/a"),0,IF(SUM($D46,$G46)>P$3,$H46/$G46,$H46-SUM($I46:O46))) -> 0 | Q46: =IF(OR(Q$3<=$D46,$G46="n/a"),0,IF(SUM($D46,$G46)>Q$3,$H46/$G46,$H46-SUM($I46:P46))) -> 0 | R46: =IF(OR(R$3<=$D46,$G46="n/a"),0,IF(SUM($D46,$G46)>R$3,$H46/$G46,$H46-SUM($I46:Q46))) -> 0 | S46: =IF(OR(S$3<=$D46,$G46="n/a"),0,IF(SUM($D46,$G46)>S$3,$H46/$G46,$H46-SUM($I46:R46))) -> 0 | T46: =IF(OR(T$3<=$D46,$G46="n/a"),0,IF(SUM($D46,$G46)>T$3,$H46/$G46,$H46-SUM($I46:S46))) -> 0 | U46: =IF(OR(U$3<=$D46,$G46="n/a"),0,IF(SUM($D46,$G46)>U$3,$H46/$G46,$H46-SUM($I46:T46))) -> 0 | V46: =IF(OR(V$3<=$D46,$G46="n/a"),0,IF(SUM($D46,$G46)>V$3,$H46/$G46,$H46-SUM($I46:U46))) -> 0 | W46: =IF(OR(W$3<=$D46,$G46="n/a"),0,IF(SUM($D46,$G46)>W$3,$H46/$G46,$H46-SUM($I46:V46))) -> 0 | X46: =IF(OR(X$3<=$D46,$G46="n/a"),0,IF(SUM($D46,$G46)>X$3,$H46/$G46,$H46-SUM($I46:W46))) -> 0 | Y46: =IF(OR(Y$3<=$D46,$G46="n/a"),0,IF(SUM($D46,$G46)>Y$3,$H46/$G46,$H46-SUM($I46:X46))) -> 0 | Z46: =IF(OR(Z$3<=$D46,$G46="n/a"),0,IF(SUM($D46,$G46)>Z$3,$H46/$G46,$H46-SUM($I46:Y46))) -> 0 | AA46: =IF(OR(AA$3<=$D46,$G46="n/a"),0,IF(SUM($D46,$G46)>AA$3,$H46/$G46,$H46-SUM($I46:Z46))) -> 0 | AB46: =IF(OR(AB$3<=$D46,$G46="n/a"),0,IF(SUM($D46,$G46)>AB$3,$H46/$G46,$H46-SUM($I46:AA46))) -> 0 | AC46: =IF(OR(AC$3<=$D46,$G46="n/a"),0,IF(SUM($D46,$G46)>AC$3,$H46/$G46,$H46-SUM($I46:AB46))) -> 0 | AD46: =IF(OR(AD$3<=$D46,$G46="n/a"),0,IF(SUM($D46,$G46)>AD$3,$H46/$G46,$H46-SUM($I46:AC46))) -> 0 | AE46: =IF(OR(AE$3<=$D46,$G46="n/a"),0,IF(SUM($D46,$G46)>AE$3,$H46/$G46,$H46-SUM($I46:AD46))) -> 0 | AF46: =IF(OR(AF$3<=$D46,$G46="n/a"),0,IF(SUM($D46,$G46)>AF$3,$H46/$G46,$H46-SUM($I46:AE46))) -> 0 | AG46: =IF(OR(AG$3<=$D46,$G46="n/a"),0,IF(SUM($D46,$G46)>AG$3,$H46/$G46,$H46-SUM($I46:AF46))) -> 0 | AH46: =IF(OR(AH$3<=$D46,$G46="n/a"),0,IF(SUM($D46,$G46)>AH$3,$H46/$G46,$H46-SUM($I46:AG46))) -> 0 | AI46: =IF(OR(AI$3<=$D46,$G46="n/a"),0,IF(SUM($D46,$G46)>AI$3,$H46/$G46,$H46-SUM($I46:AH46))) -> 0 | AJ46: =IF(OR(AJ$3<=$D46,$G46="n/a"),0,IF(SUM($D46,$G46)>AJ$3,$H46/$G46,$H46-SUM($I46:AI46))) -> 0 | AK46: =IF(OR(AK$3<=$D46,$G46="n/a"),0,IF(SUM($D46,$G46)>AK$3,$H46/$G46,$H46-SUM($I46:AJ46))) -> 0 | AL46: =IF(OR(AL$3<=$D46,$G46="n/a"),0,IF(SUM($D46,$G46)>AL$3,$H46/$G46,$H46-SUM($I46:AK46))) -> 0 | AM46: =IF(OR(AM$3<=$D46,$G46="n/a"),0,IF(SUM($D46,$G46)>AM$3,$H46/$G46,$H46-SUM($I46:AL46))) -> 0 | AN46: =IF(OR(AN$3<=$D46,$G46="n/a"),0,IF(SUM($D46,$G46)>AN$3,$H46/$G46,$H46-SUM($I46:AM46))) -> 0 | AO46: =IF(OR(AO$3<=$D46,$G46="n/a"),0,IF(SUM($D46,$G46)>AO$3,$H46/$G46,$H46-SUM($I46:AN46))) -> 0 | AP46: =IF(OR(AP$3<=$D46,$G46="n/a"),0,IF(SUM($D46,$G46)>AP$3,$H46/$G46,$H46-SUM($I46:AO46))) -> 0 | AQ46: =IF(OR(AQ$3<=$D46,$G46="n/a"),0,IF(SUM($D46,$G46)>AQ$3,$H46/$G46,$H46-SUM($I46:AP46))) -> 0 | AR46: =IF(OR(AR$3<=$D46,$G46="n/a"),0,IF(SUM($D46,$G46)>AR$3,$H46/$G46,$H46-SUM($I46:AQ46))) -> 0 | AS46: =IF(OR(AS$3<=$D46,$G46="n/a"),0,IF(SUM($D46,$G46)>AS$3,$H46/$G46,$H46-SUM($I46:AR46))) -> 0 | AT46: =IF(OR(AT$3<=$D46,$G46="n/a"),0,IF(SUM($D46,$G46)>AT$3,$H46/$G46,$H46-SUM($I46:AS46))) -> 0 | AU46: =IF(OR(AU$3<=$D46,$G46="n/a"),0,IF(SUM($D46,$G46)>AU$3,$H46/$G46,$H46-SUM($I46:AT46))) -> 0 | AV46: =IF(OR(AV$3<=$D46,$G46="n/a"),0,IF(SUM($D46,$G46)>AV$3,$H46/$G46,$H46-SUM($I46:AU46))) -> 0 | AW46: =IF(OR(AW$3<=$D46,$G46="n/a"),0,IF(SUM($D46,$G46)>AW$3,$H46/$G46,$H46-SUM($I46:AV46))) -> 0 | AX46: =IF(OR(AX$3<=$D46,$G46="n/a"),0,IF(SUM($D46,$G46)>AX$3,$H46/$G46,$H46-SUM($I46:AW46))) -> 0 | AY46: =IF(OR(AY$3<=$D46,$G46="n/a"),0,IF(SUM($D46,$G46)>AY$3,$H46/$G46,$H46-SUM($I46:AX46))) -> 0 | AZ46: =IF(OR(AZ$3<=$D46,$G46="n/a"),0,IF(SUM($D46,$G46)>AZ$3,$H46/$G46,$H46-SUM($I46:AY46))) -> 0 | BA46: =IF(OR(BA$3<=$D46,$G46="n/a"),0,IF(SUM($D46,$G46)>BA$3,$H46/$G46,$H46-SUM($I46:AZ46))) -> 0 | BB46: =IF(OR(BB$3<=$D46,$G46="n/a"),0,IF(SUM($D46,$G46)>BB$3,$H46/$G46,$H46-SUM($I46:BA46))) -> 0 | BC46: =IF(OR(BC$3<=$D46,$G46="n/a"),0,IF(SUM($D46,$G46)>BC$3,$H46/$G46,$H46-SUM($I46:BB46))) -> 0 | BD46: =IF(OR(BD$3<=$D46,$G46="n/a"),0,IF(SUM($D46,$G46)>BD$3,$H46/$G46,$H46-SUM($I46:BC46))) -> 0 | BE46: =IF(OR(BE$3<=$D46,$G46="n/a"),0,IF(SUM($D46,$G46)>BE$3,$H46/$G46,$H46-SUM($I46:BD46))) -> 0 | BF46: =IF(OR(BF$3<=$D46,$G46="n/a"),0,IF(SUM($D46,$G46)>BF$3,$H46/$G46,$H46-SUM($I46:BE46))) -> 0 | BG46: =IF(OR(BG$3<=$D46,$G46="n/a"),0,IF(SUM($D46,$G46)>BG$3,$H46/$G46,$H46-SUM($I46:BF46))) -> 0 | BH46: =IF(OR(BH$3<=$D46,$G46="n/a"),0,IF(SUM($D46,$G46)>BH$3,$H46/$G46,$H46-SUM($I46:BG46))) -> 0 | BI46: =IF(OR(BI$3<=$D46,$G46="n/a"),0,IF(SUM($D46,$G46)>BI$3,$H46/$G46,$H46-SUM($I46:BH46))) -> 0 | BJ46: =IF(OR(BJ$3<=$D46,$G46="n/a"),0,IF(SUM($D46,$G46)>BJ$3,$H46/$G46,$H46-SUM($I46:BI46))) -> 0 | BK46: =IF(OR(BK$3<=$D46,$G46="n/a"),0,IF(SUM($D46,$G46)>BK$3,$H46/$G46,$H46-SUM($I46:BJ46))) -> 0 | BL46: =IF(OR(BL$3<=$D46,$G46="n/a"),0,IF(SUM($D46,$G46)>BL$3,$H46/$G46,$H46-SUM($I46:BK46))) -> 0 | BM46: =IF(OR(BM$3<=$D46,$G46="n/a"),0,IF(SUM($D46,$G46)>BM$3,$H46/$G46,$H46-SUM($I46:BL46))) -> 0 | BN46: =IF(OR(BN$3<=$D46,$G46="n/a"),0,IF(SUM($D46,$G46)>BN$3,$H46/$G46,$H46-SUM($I46:BM46))) -> 0 | BO46: =IF(OR(BO$3<=$D46,$G46="n/a"),0,IF(SUM($D46,$G46)>BO$3,$H46/$G46,$H46-SUM($I46:BN46))) -> 0 | BP46: =IF(OR(BP$3<=$D46,$G46="n/a"),0,IF(SUM($D46,$G46)>BP$3,$H46/$G46,$H46-SUM($I46:BO46))) -> 0 | BQ46: =IF(OR(BQ$3<=$D46,$G46="n/a"),0,IF(SUM($D46,$G46)>BQ$3,$H46/$G46,$H46-SUM($I46:BP46))) -> 0 | BR46: =IF(OR(BR$3<=$D46,$G46="n/a"),0,IF(SUM($D46,$G46)>BR$3,$H46/$G46,$H46-SUM($I46:BQ46))) -> 0 | BS46: =IF(OR(BS$3<=$D46,$G46="n/a"),0,IF(SUM($D46,$G46)>BS$3,$H46/$G46,$H46-SUM($I46:BR46))) -> 0 | BT46: =IF(OR(BT$3<=$D46,$G46="n/a"),0,IF(SUM($D46,$G46)>BT$3,$H46/$G46,$H46-SUM($I46:BS46))) -> 0 | BU46: =IF(OR(BU$3<=$D46,$G46="n/a"),0,IF(SUM($D46,$G46)>BU$3,$H46/$G46,$H46-SUM($I46:BT46))) -> 0 | BV46: =IF(OR(BV$3<=$D46,$G46="n/a"),0,IF(SUM($D46,$G46)>BV$3,$H46/$G46,$H46-SUM($I46:BU46))) -> 0 | BW46: Ok
D47: 2029 | E47: $m Real 2010 | G47: 55 | H47: =AB28 -> 0 | J47: =IF(OR(J$3<=$D47,$G47="n/a"),0,IF(SUM($D47,$G47)>J$3,$H47/$G47,$H47-SUM($I47:I47))) -> 0 | K47: =IF(OR(K$3<=$D47,$G47="n/a"),0,IF(SUM($D47,$G47)>K$3,$H47/$G47,$H47-SUM($I47:J47))) -> 0 | L47: =IF(OR(L$3<=$D47,$G47="n/a"),0,IF(SUM($D47,$G47)>L$3,$H47/$G47,$H47-SUM($I47:K47))) -> 0 | M47: =IF(OR(M$3<=$D47,$G47="n/a"),0,IF(SUM($D47,$G47)>M$3,$H47/$G47,$H47-SUM($I47:L47))) -> 0 | N47: =IF(OR(N$3<=$D47,$G47="n/a"),0,IF(SUM($D47,$G47)>N$3,$H47/$G47,$H47-SUM($I47:M47))) -> 0 | O47: =IF(OR(O$3<=$D47,$G47="n/a"),0,IF(SUM($D47,$G47)>O$3,$H47/$G47,$H47-SUM($I47:N47))) -> 0 | P47: =IF(OR(P$3<=$D47,$G47="n/a"),0,IF(SUM($D47,$G47)>P$3,$H47/$G47,$H47-SUM($I47:O47))) -> 0 | Q47: =IF(OR(Q$3<=$D47,$G47="n/a"),0,IF(SUM($D47,$G47)>Q$3,$H47/$G47,$H47-SUM($I47:P47))) -> 0 | R47: =IF(OR(R$3<=$D47,$G47="n/a"),0,IF(SUM($D47,$G47)>R$3,$H47/$G47,$H47-SUM($I47:Q47))) -> 0 | S47: =IF(OR(S$3<=$D47,$G47="n/a"),0,IF(SUM($D47,$G47)>S$3,$H47/$G47,$H47-SUM($I47:R47))) -> 0 | T47: =IF(OR(T$3<=$D47,$G47="n/a"),0,IF(SUM($D47,$G47)>T$3,$H47/$G47,$H47-SUM($I47:S47))) -> 0 | U47: =IF(OR(U$3<=$D47,$G47="n/a"),0,IF(SUM($D47,$G47)>U$3,$H47/$G47,$H47-SUM($I47:T47))) -> 0 | V47: =IF(OR(V$3<=$D47,$G47="n/a"),0,IF(SUM($D47,$G47)>V$3,$H47/$G47,$H47-SUM($I47:U47))) -> 0 | W47: =IF(OR(W$3<=$D47,$G47="n/a"),0,IF(SUM($D47,$G47)>W$3,$H47/$G47,$H47-SUM($I47:V47))) -> 0 | X47: =IF(OR(X$3<=$D47,$G47="n/a"),0,IF(SUM($D47,$G47)>X$3,$H47/$G47,$H47-SUM($I47:W47))) -> 0 | Y47: =IF(OR(Y$3<=$D47,$G47="n/a"),0,IF(SUM($D47,$G47)>Y$3,$H47/$G47,$H47-SUM($I47:X47))) -> 0 | Z47: =IF(OR(Z$3<=$D47,$G47="n/a"),0,IF(SUM($D47,$G47)>Z$3,$H47/$G47,$H47-SUM($I47:Y47))) -> 0 | AA47: =IF(OR(AA$3<=$D47,$G47="n/a"),0,IF(SUM($D47,$G47)>AA$3,$H47/$G47,$H47-SUM($I47:Z47))) -> 0 | AB47: =IF(OR(AB$3<=$D47,$G47="n/a"),0,IF(SUM($D47,$G47)>AB$3,$H47/$G47,$H47-SUM($I47:AA47))) -> 0 | AC47: =IF(OR(AC$3<=$D47,$G47="n/a"),0,IF(SUM($D47,$G47)>AC$3,$H47/$G47,$H47-SUM($I47:AB47))) -> 0 | AD47: =IF(OR(AD$3<=$D47,$G47="n/a"),0,IF(SUM($D47,$G47)>AD$3,$H47/$G47,$H47-SUM($I47:AC47))) -> 0 | AE47: =IF(OR(AE$3<=$D47,$G47="n/a"),0,IF(SUM($D47,$G47)>AE$3,$H47/$G47,$H47-SUM($I47:AD47))) -> 0 | AF47: =IF(OR(AF$3<=$D47,$G47="n/a"),0,IF(SUM($D47,$G47)>AF$3,$H47/$G47,$H47-SUM($I47:AE47))) -> 0 | AG47: =IF(OR(AG$3<=$D47,$G47="n/a"),0,IF(SUM($D47,$G47)>AG$3,$H47/$G47,$H47-SUM($I47:AF47))) -> 0 | AH47: =IF(OR(AH$3<=$D47,$G47="n/a"),0,IF(SUM($D47,$G47)>AH$3,$H47/$G47,$H47-SUM($I47:AG47))) -> 0 | AI47: =IF(OR(AI$3<=$D47,$G47="n/a"),0,IF(SUM($D47,$G47)>AI$3,$H47/$G47,$H47-SUM($I47:AH47))) -> 0 | AJ47: =IF(OR(AJ$3<=$D47,$G47="n/a"),0,IF(SUM($D47,$G47)>AJ$3,$H47/$G47,$H47-SUM($I47:AI47))) -> 0 | AK47: =IF(OR(AK$3<=$D47,$G47="n/a"),0,IF(SUM($D47,$G47)>AK$3,$H47/$G47,$H47-SUM($I47:AJ47))) -> 0 | AL47: =IF(OR(AL$3<=$D47,$G47="n/a"),0,IF(SUM($D47,$G47)>AL$3,$H47/$G47,$H47-SUM($I47:AK47))) -> 0 | AM47: =IF(OR(AM$3<=$D47,$G47="n/a"),0,IF(SUM($D47,$G47)>AM$3,$H47/$G47,$H47-SUM($I47:AL47))) -> 0 | AN47: =IF(OR(AN$3<=$D47,$G47="n/a"),0,IF(SUM($D47,$G47)>AN$3,$H47/$G47,$H47-SUM($I47:AM47))) -> 0 | AO47: =IF(OR(AO$3<=$D47,$G47="n/a"),0,IF(SUM($D47,$G47)>AO$3,$H47/$G47,$H47-SUM($I47:AN47))) -> 0 | AP47: =IF(OR(AP$3<=$D47,$G47="n/a"),0,IF(SUM($D47,$G47)>AP$3,$H47/$G47,$H47-SUM($I47:AO47))) -> 0 | AQ47: =IF(OR(AQ$3<=$D47,$G47="n/a"),0,IF(SUM($D47,$G47)>AQ$3,$H47/$G47,$H47-SUM($I47:AP47))) -> 0 | AR47: =IF(OR(AR$3<=$D47,$G47="n/a"),0,IF(SUM($D47,$G47)>AR$3,$H47/$G47,$H47-SUM($I47:AQ47))) -> 0 | AS47: =IF(OR(AS$3<=$D47,$G47="n/a"),0,IF(SUM($D47,$G47)>AS$3,$H47/$G47,$H47-SUM($I47:AR47))) -> 0 | AT47: =IF(OR(AT$3<=$D47,$G47="n/a"),0,IF(SUM($D47,$G47)>AT$3,$H47/$G47,$H47-SUM($I47:AS47))) -> 0 | AU47: =IF(OR(AU$3<=$D47,$G47="n/a"),0,IF(SUM($D47,$G47)>AU$3,$H47/$G47,$H47-SUM($I47:AT47))) -> 0 | AV47: =IF(OR(AV$3<=$D47,$G47="n/a"),0,IF(SUM($D47,$G47)>AV$3,$H47/$G47,$H47-SUM($I47:AU47))) -> 0 | AW47: =IF(OR(AW$3<=$D47,$G47="n/a"),0,IF(SUM($D47,$G47)>AW$3,$H47/$G47,$H47-SUM($I47:AV47))) -> 0 | AX47: =IF(OR(AX$3<=$D47,$G47="n/a"),0,IF(SUM($D47,$G47)>AX$3,$H47/$G47,$H47-SUM($I47:AW47))) -> 0 | AY47: =IF(OR(AY$3<=$D47,$G47="n/a"),0,IF(SUM($D47,$G47)>AY$3,$H47/$G47,$H47-SUM($I47:AX47))) -> 0 | AZ47: =IF(OR(AZ$3<=$D47,$G47="n/a"),0,IF(SUM($D47,$G47)>AZ$3,$H47/$G47,$H47-SUM($I47:AY47))) -> 0 | BA47: =IF(OR(BA$3<=$D47,$G47="n/a"),0,IF(SUM($D47,$G47)>BA$3,$H47/$G47,$H47-SUM($I47:AZ47))) -> 0 | BB47: =IF(OR(BB$3<=$D47,$G47="n/a"),0,IF(SUM($D47,$G47)>BB$3,$H47/$G47,$H47-SUM($I47:BA47))) -> 0 | BC47: =IF(OR(BC$3<=$D47,$G47="n/a"),0,IF(SUM($D47,$G47)>BC$3,$H47/$G47,$H47-SUM($I47:BB47))) -> 0 | BD47: =IF(OR(BD$3<=$D47,$G47="n/a"),0,IF(SUM($D47,$G47)>BD$3,$H47/$G47,$H47-SUM($I47:BC47))) -> 0 | BE47: =IF(OR(BE$3<=$D47,$G47="n/a"),0,IF(SUM($D47,$G47)>BE$3,$H47/$G47,$H47-SUM($I47:BD47))) -> 0 | BF47: =IF(OR(BF$3<=$D47,$G47="n/a"),0,IF(SUM($D47,$G47)>BF$3,$H47/$G47,$H47-SUM($I47:BE47))) -> 0 | BG47: =IF(OR(BG$3<=$D47,$G47="n/a"),0,IF(SUM($D47,$G47)>BG$3,$H47/$G47,$H47-SUM($I47:BF47))) -> 0 | BH47: =IF(OR(BH$3<=$D47,$G47="n/a"),0,IF(SUM($D47,$G47)>BH$3,$H47/$G47,$H47-SUM($I47:BG47))) -> 0 | BI47: =IF(OR(BI$3<=$D47,$G47="n/a"),0,IF(SUM($D47,$G47)>BI$3,$H47/$G47,$H47-SUM($I47:BH47))) -> 0 | BJ47: =IF(OR(BJ$3<=$D47,$G47="n/a"),0,IF(SUM($D47,$G47)>BJ$3,$H47/$G47,$H47-SUM($I47:BI47))) -> 0 | BK47: =IF(OR(BK$3<=$D47,$G47="n/a"),0,IF(SUM($D47,$G47)>BK$3,$H47/$G47,$H47-SUM($I47:BJ47))) -> 0 | BL47: =IF(OR(BL$3<=$D47,$G47="n/a"),0,IF(SUM($D47,$G47)>BL$3,$H47/$G47,$H47-SUM($I47:BK47))) -> 0 | BM47: =IF(OR(BM$3<=$D47,$G47="n/a"),0,IF(SUM($D47,$G47)>BM$3,$H47/$G47,$H47-SUM($I47:BL47))) -> 0 | BN47: =IF(OR(BN$3<=$D47,$G47="n/a"),0,IF(SUM($D47,$G47)>BN$3,$H47/$G47,$H47-SUM($I47:BM47))) -> 0 | BO47: =IF(OR(BO$3<=$D47,$G47="n/a"),0,IF(SUM($D47,$G47)>BO$3,$H47/$G47,$H47-SUM($I47:BN47))) -> 0 | BP47: =IF(OR(BP$3<=$D47,$G47="n/a"),0,IF(SUM($D47,$G47)>BP$3,$H47/$G47,$H47-SUM($I47:BO47))) -> 0 | BQ47: =IF(OR(BQ$3<=$D47,$G47="n/a"),0,IF(SUM($D47,$G47)>BQ$3,$H47/$G47,$H47-SUM($I47:BP47))) -> 0 | BR47: =IF(OR(BR$3<=$D47,$G47="n/a"),0,IF(SUM($D47,$G47)>BR$3,$H47/$G47,$H47-SUM($I47:BQ47))) -> 0 | BS47: =IF(OR(BS$3<=$D47,$G47="n/a"),0,IF(SUM($D47,$G47)>BS$3,$H47/$G47,$H47-SUM($I47:BR47))) -> 0 | BT47: =IF(OR(BT$3<=$D47,$G47="n/a"),0,IF(SUM($D47,$G47)>BT$3,$H47/$G47,$H47-SUM($I47:BS47))) -> 0 | BU47: =IF(OR(BU$3<=$D47,$G47="n/a"),0,IF(SUM($D47,$G47)>BU$3,$H47/$G47,$H47-SUM($I47:BT47))) -> 0 | BV47: =IF(OR(BV$3<=$D47,$G47="n/a"),0,IF(SUM($D47,$G47)>BV$3,$H47/$G47,$H47-SUM($I47:BU47))) -> 0 | BW47: Ok
D48: 2030 | E48: $m Real 2010 | G48: 55 | H48: =AC28 -> 0 | J48: =IF(OR(J$3<=$D48,$G48="n/a"),0,IF(SUM($D48,$G48)>J$3,$H48/$G48,$H48-SUM($I48:I48))) -> 0 | K48: =IF(OR(K$3<=$D48,$G48="n/a"),0,IF(SUM($D48,$G48)>K$3,$H48/$G48,$H48-SUM($I48:J48))) -> 0 | L48: =IF(OR(L$3<=$D48,$G48="n/a"),0,IF(SUM($D48,$G48)>L$3,$H48/$G48,$H48-SUM($I48:K48))) -> 0 | M48: =IF(OR(M$3<=$D48,$G48="n/a"),0,IF(SUM($D48,$G48)>M$3,$H48/$G48,$H48-SUM($I48:L48))) -> 0 | N48: =IF(OR(N$3<=$D48,$G48="n/a"),0,IF(SUM($D48,$G48)>N$3,$H48/$G48,$H48-SUM($I48:M48))) -> 0 | O48: =IF(OR(O$3<=$D48,$G48="n/a"),0,IF(SUM($D48,$G48)>O$3,$H48/$G48,$H48-SUM($I48:N48))) -> 0 | P48: =IF(OR(P$3<=$D48,$G48="n/a"),0,IF(SUM($D48,$G48)>P$3,$H48/$G48,$H48-SUM($I48:O48))) -> 0 | Q48: =IF(OR(Q$3<=$D48,$G48="n/a"),0,IF(SUM($D48,$G48)>Q$3,$H48/$G48,$H48-SUM($I48:P48))) -> 0 | R48: =IF(OR(R$3<=$D48,$G48="n/a"),0,IF(SUM($D48,$G48)>R$3,$H48/$G48,$H48-SUM($I48:Q48))) -> 0 | S48: =IF(OR(S$3<=$D48,$G48="n/a"),0,IF(SUM($D48,$G48)>S$3,$H48/$G48,$H48-SUM($I48:R48))) -> 0 | T48: =IF(OR(T$3<=$D48,$G48="n/a"),0,IF(SUM($D48,$G48)>T$3,$H48/$G48,$H48-SUM($I48:S48))) -> 0 | U48: =IF(OR(U$3<=$D48,$G48="n/a"),0,IF(SUM($D48,$G48)>U$3,$H48/$G48,$H48-SUM($I48:T48))) -> 0 | V48: =IF(OR(V$3<=$D48,$G48="n/a"),0,IF(SUM($D48,$G48)>V$3,$H48/$G48,$H48-SUM($I48:U48))) -> 0 | W48: =IF(OR(W$3<=$D48,$G48="n/a"),0,IF(SUM($D48,$G48)>W$3,$H48/$G48,$H48-SUM($I48:V48))) -> 0 | X48: =IF(OR(X$3<=$D48,$G48="n/a"),0,IF(SUM($D48,$G48)>X$3,$H48/$G48,$H48-SUM($I48:W48))) -> 0 | Y48: =IF(OR(Y$3<=$D48,$G48="n/a"),0,IF(SUM($D48,$G48)>Y$3,$H48/$G48,$H48-SUM($I48:X48))) -> 0 | Z48: =IF(OR(Z$3<=$D48,$G48="n/a"),0,IF(SUM($D48,$G48)>Z$3,$H48/$G48,$H48-SUM($I48:Y48))) -> 0 | AA48: =IF(OR(AA$3<=$D48,$G48="n/a"),0,IF(SUM($D48,$G48)>AA$3,$H48/$G48,$H48-SUM($I48:Z48))) -> 0 | AB48: =IF(OR(AB$3<=$D48,$G48="n/a"),0,IF(SUM($D48,$G48)>AB$3,$H48/$G48,$H48-SUM($I48:AA48))) -> 0 | AC48: =IF(OR(AC$3<=$D48,$G48="n/a"),0,IF(SUM($D48,$G48)>AC$3,$H48/$G48,$H48-SUM($I48:AB48))) -> 0 | AD48: =IF(OR(AD$3<=$D48,$G48="n/a"),0,IF(SUM($D48,$G48)>AD$3,$H48/$G48,$H48-SUM($I48:AC48))) -> 0 | AE48: =IF(OR(AE$3<=$D48,$G48="n/a"),0,IF(SUM($D48,$G48)>AE$3,$H48/$G48,$H48-SUM($I48:AD48))) -> 0 | AF48: =IF(OR(AF$3<=$D48,$G48="n/a"),0,IF(SUM($D48,$G48)>AF$3,$H48/$G48,$H48-SUM($I48:AE48))) -> 0 | AG48: =IF(OR(AG$3<=$D48,$G48="n/a"),0,IF(SUM($D48,$G48)>AG$3,$H48/$G48,$H48-SUM($I48:AF48))) -> 0 | AH48: =IF(OR(AH$3<=$D48,$G48="n/a"),0,IF(SUM($D48,$G48)>AH$3,$H48/$G48,$H48-SUM($I48:AG48))) -> 0 | AI48: =IF(OR(AI$3<=$D48,$G48="n/a"),0,IF(SUM($D48,$G48)>AI$3,$H48/$G48,$H48-SUM($I48:AH48))) -> 0 | AJ48: =IF(OR(AJ$3<=$D48,$G48="n/a"),0,IF(SUM($D48,$G48)>AJ$3,$H48/$G48,$H48-SUM($I48:AI48))) -> 0 | AK48: =IF(OR(AK$3<=$D48,$G48="n/a"),0,IF(SUM($D48,$G48)>AK$3,$H48/$G48,$H48-SUM($I48:AJ48))) -> 0 | AL48: =IF(OR(AL$3<=$D48,$G48="n/a"),0,IF(SUM($D48,$G48)>AL$3,$H48/$G48,$H48-SUM($I48:AK48))) -> 0 | AM48: =IF(OR(AM$3<=$D48,$G48="n/a"),0,IF(SUM($D48,$G48)>AM$3,$H48/$G48,$H48-SUM($I48:AL48))) -> 0 | AN48: =IF(OR(AN$3<=$D48,$G48="n/a"),0,IF(SUM($D48,$G48)>AN$3,$H48/$G48,$H48-SUM($I48:AM48))) -> 0 | AO48: =IF(OR(AO$3<=$D48,$G48="n/a"),0,IF(SUM($D48,$G48)>AO$3,$H48/$G48,$H48-SUM($I48:AN48))) -> 0 | AP48: =IF(OR(AP$3<=$D48,$G48="n/a"),0,IF(SUM($D48,$G48)>AP$3,$H48/$G48,$H48-SUM($I48:AO48))) -> 0 | AQ48: =IF(OR(AQ$3<=$D48,$G48="n/a"),0,IF(SUM($D48,$G48)>AQ$3,$H48/$G48,$H48-SUM($I48:AP48))) -> 0 | AR48: =IF(OR(AR$3<=$D48,$G48="n/a"),0,IF(SUM($D48,$G48)>AR$3,$H48/$G48,$H48-SUM($I48:AQ48))) -> 0 | AS48: =IF(OR(AS$3<=$D48,$G48="n/a"),0,IF(SUM($D48,$G48)>AS$3,$H48/$G48,$H48-SUM($I48:AR48))) -> 0 | AT48: =IF(OR(AT$3<=$D48,$G48="n/a"),0,IF(SUM($D48,$G48)>AT$3,$H48/$G48,$H48-SUM($I48:AS48))) -> 0 | AU48: =IF(OR(AU$3<=$D48,$G48="n/a"),0,IF(SUM($D48,$G48)>AU$3,$H48/$G48,$H48-SUM($I48:AT48))) -> 0 | AV48: =IF(OR(AV$3<=$D48,$G48="n/a"),0,IF(SUM($D48,$G48)>AV$3,$H48/$G48,$H48-SUM($I48:AU48))) -> 0 | AW48: =IF(OR(AW$3<=$D48,$G48="n/a"),0,IF(SUM($D48,$G48)>AW$3,$H48/$G48,$H48-SUM($I48:AV48))) -> 0 | AX48: =IF(OR(AX$3<=$D48,$G48="n/a"),0,IF(SUM($D48,$G48)>AX$3,$H48/$G48,$H48-SUM($I48:AW48))) -> 0 | AY48: =IF(OR(AY$3<=$D48,$G48="n/a"),0,IF(SUM($D48,$G48)>AY$3,$H48/$G48,$H48-SUM($I48:AX48))) -> 0 | AZ48: =IF(OR(AZ$3<=$D48,$G48="n/a"),0,IF(SUM($D48,$G48)>AZ$3,$H48/$G48,$H48-SUM($I48:AY48))) -> 0 | BA48: =IF(OR(BA$3<=$D48,$G48="n/a"),0,IF(SUM($D48,$G48)>BA$3,$H48/$G48,$H48-SUM($I48:AZ48))) -> 0 | BB48: =IF(OR(BB$3<=$D48,$G48="n/a"),0,IF(SUM($D48,$G48)>BB$3,$H48/$G48,$H48-SUM($I48:BA48))) -> 0 | BC48: =IF(OR(BC$3<=$D48,$G48="n/a"),0,IF(SUM($D48,$G48)>BC$3,$H48/$G48,$H48-SUM($I48:BB48))) -> 0 | BD48: =IF(OR(BD$3<=$D48,$G48="n/a"),0,IF(SUM($D48,$G48)>BD$3,$H48/$G48,$H48-SUM($I48:BC48))) -> 0 | BE48: =IF(OR(BE$3<=$D48,$G48="n/a"),0,IF(SUM($D48,$G48)>BE$3,$H48/$G48,$H48-SUM($I48:BD48))) -> 0 | BF48: =IF(OR(BF$3<=$D48,$G48="n/a"),0,IF(SUM($D48,$G48)>BF$3,$H48/$G48,$H48-SUM($I48:BE48))) -> 0 | BG48: =IF(OR(BG$3<=$D48,$G48="n/a"),0,IF(SUM($D48,$G48)>BG$3,$H48/$G48,$H48-SUM($I48:BF48))) -> 0 | BH48: =IF(OR(BH$3<=$D48,$G48="n/a"),0,IF(SUM($D48,$G48)>BH$3,$H48/$G48,$H48-SUM($I48:BG48))) -> 0 | BI48: =IF(OR(BI$3<=$D48,$G48="n/a"),0,IF(SUM($D48,$G48)>BI$3,$H48/$G48,$H48-SUM($I48:BH48))) -> 0 | BJ48: =IF(OR(BJ$3<=$D48,$G48="n/a"),0,IF(SUM($D48,$G48)>BJ$3,$H48/$G48,$H48-SUM($I48:BI48))) -> 0 | BK48: =IF(OR(BK$3<=$D48,$G48="n/a"),0,IF(SUM($D48,$G48)>BK$3,$H48/$G48,$H48-SUM($I48:BJ48))) -> 0 | BL48: =IF(OR(BL$3<=$D48,$G48="n/a"),0,IF(SUM($D48,$G48)>BL$3,$H48/$G48,$H48-SUM($I48:BK48))) -> 0 | BM48: =IF(OR(BM$3<=$D48,$G48="n/a"),0,IF(SUM($D48,$G48)>BM$3,$H48/$G48,$H48-SUM($I48:BL48))) -> 0 | BN48: =IF(OR(BN$3<=$D48,$G48="n/a"),0,IF(SUM($D48,$G48)>BN$3,$H48/$G48,$H48-SUM($I48:BM48))) -> 0 | BO48: =IF(OR(BO$3<=$D48,$G48="n/a"),0,IF(SUM($D48,$G48)>BO$3,$H48/$G48,$H48-SUM($I48:BN48))) -> 0 | BP48: =IF(OR(BP$3<=$D48,$G48="n/a"),0,IF(SUM($D48,$G48)>BP$3,$H48/$G48,$H48-SUM($I48:BO48))) -> 0 | BQ48: =IF(OR(BQ$3<=$D48,$G48="n/a"),0,IF(SUM($D48,$G48)>BQ$3,$H48/$G48,$H48-SUM($I48:BP48))) -> 0 | BR48: =IF(OR(BR$3<=$D48,$G48="n/a"),0,IF(SUM($D48,$G48)>BR$3,$H48/$G48,$H48-SUM($I48:BQ48))) -> 0 | BS48: =IF(OR(BS$3<=$D48,$G48="n/a"),0,IF(SUM($D48,$G48)>BS$3,$H48/$G48,$H48-SUM($I48:BR48))) -> 0 | BT48: =IF(OR(BT$3<=$D48,$G48="n/a"),0,IF(SUM($D48,$G48)>BT$3,$H48/$G48,$H48-SUM($I48:BS48))) -> 0 | BU48: =IF(OR(BU$3<=$D48,$G48="n/a"),0,IF(SUM($D48,$G48)>BU$3,$H48/$G48,$H48-SUM($I48:BT48))) -> 0 | BV48: =IF(OR(BV$3<=$D48,$G48="n/a"),0,IF(SUM($D48,$G48)>BV$3,$H48/$G48,$H48-SUM($I48:BU48))) -> 0 | BW48: Ok
D49: 2031 | E49: $m Real 2010 | G49: 55 | H49: =AD28 -> 0 | J49: =IF(OR(J$3<=$D49,$G49="n/a"),0,IF(SUM($D49,$G49)>J$3,$H49/$G49,$H49-SUM($I49:I49))) -> 0 | K49: =IF(OR(K$3<=$D49,$G49="n/a"),0,IF(SUM($D49,$G49)>K$3,$H49/$G49,$H49-SUM($I49:J49))) -> 0 | L49: =IF(OR(L$3<=$D49,$G49="n/a"),0,IF(SUM($D49,$G49)>L$3,$H49/$G49,$H49-SUM($I49:K49))) -> 0 | M49: =IF(OR(M$3<=$D49,$G49="n/a"),0,IF(SUM($D49,$G49)>M$3,$H49/$G49,$H49-SUM($I49:L49))) -> 0 | N49: =IF(OR(N$3<=$D49,$G49="n/a"),0,IF(SUM($D49,$G49)>N$3,$H49/$G49,$H49-SUM($I49:M49))) -> 0 | O49: =IF(OR(O$3<=$D49,$G49="n/a"),0,IF(SUM($D49,$G49)>O$3,$H49/$G49,$H49-SUM($I49:N49))) -> 0 | P49: =IF(OR(P$3<=$D49,$G49="n/a"),0,IF(SUM($D49,$G49)>P$3,$H49/$G49,$H49-SUM($I49:O49))) -> 0 | Q49: =IF(OR(Q$3<=$D49,$G49="n/a"),0,IF(SUM($D49,$G49)>Q$3,$H49/$G49,$H49-SUM($I49:P49))) -> 0 | R49: =IF(OR(R$3<=$D49,$G49="n/a"),0,IF(SUM($D49,$G49)>R$3,$H49/$G49,$H49-SUM($I49:Q49))) -> 0 | S49: =IF(OR(S$3<=$D49,$G49="n/a"),0,IF(SUM($D49,$G49)>S$3,$H49/$G49,$H49-SUM($I49:R49))) -> 0 | T49: =IF(OR(T$3<=$D49,$G49="n/a"),0,IF(SUM($D49,$G49)>T$3,$H49/$G49,$H49-SUM($I49:S49))) -> 0 | U49: =IF(OR(U$3<=$D49,$G49="n/a"),0,IF(SUM($D49,$G49)>U$3,$H49/$G49,$H49-SUM($I49:T49))) -> 0 | V49: =IF(OR(V$3<=$D49,$G49="n/a"),0,IF(SUM($D49,$G49)>V$3,$H49/$G49,$H49-SUM($I49:U49))) -> 0 | W49: =IF(OR(W$3<=$D49,$G49="n/a"),0,IF(SUM($D49,$G49)>W$3,$H49/$G49,$H49-SUM($I49:V49))) -> 0 | X49: =IF(OR(X$3<=$D49,$G49="n/a"),0,IF(SUM($D49,$G49)>X$3,$H49/$G49,$H49-SUM($I49:W49))) -> 0 | Y49: =IF(OR(Y$3<=$D49,$G49="n/a"),0,IF(SUM($D49,$G49)>Y$3,$H49/$G49,$H49-SUM($I49:X49))) -> 0 | Z49: =IF(OR(Z$3<=$D49,$G49="n/a"),0,IF(SUM($D49,$G49)>Z$3,$H49/$G49,$H49-SUM($I49:Y49))) -> 0 | AA49: =IF(OR(AA$3<=$D49,$G49="n/a"),0,IF(SUM($D49,$G49)>AA$3,$H49/$G49,$H49-SUM($I49:Z49))) -> 0 | AB49: =IF(OR(AB$3<=$D49,$G49="n/a"),0,IF(SUM($D49,$G49)>AB$3,$H49/$G49,$H49-SUM($I49:AA49))) -> 0 | AC49: =IF(OR(AC$3<=$D49,$G49="n/a"),0,IF(SUM($D49,$G49)>AC$3,$H49/$G49,$H49-SUM($I49:AB49))) -> 0 | AD49: =IF(OR(AD$3<=$D49,$G49="n/a"),0,IF(SUM($D49,$G49)>AD$3,$H49/$G49,$H49-SUM($I49:AC49))) -> 0 | AE49: =IF(OR(AE$3<=$D49,$G49="n/a"),0,IF(SUM($D49,$G49)>AE$3,$H49/$G49,$H49-SUM($I49:AD49))) -> 0 | AF49: =IF(OR(AF$3<=$D49,$G49="n/a"),0,IF(SUM($D49,$G49)>AF$3,$H49/$G49,$H49-SUM($I49:AE49))) -> 0 | AG49: =IF(OR(AG$3<=$D49,$G49="n/a"),0,IF(SUM($D49,$G49)>AG$3,$H49/$G49,$H49-SUM($I49:AF49))) -> 0 | AH49: =IF(OR(AH$3<=$D49,$G49="n/a"),0,IF(SUM($D49,$G49)>AH$3,$H49/$G49,$H49-SUM($I49:AG49))) -> 0 | AI49: =IF(OR(AI$3<=$D49,$G49="n/a"),0,IF(SUM($D49,$G49)>AI$3,$H49/$G49,$H49-SUM($I49:AH49))) -> 0 | AJ49: =IF(OR(AJ$3<=$D49,$G49="n/a"),0,IF(SUM($D49,$G49)>AJ$3,$H49/$G49,$H49-SUM($I49:AI49))) -> 0 | AK49: =IF(OR(AK$3<=$D49,$G49="n/a"),0,IF(SUM($D49,$G49)>AK$3,$H49/$G49,$H49-SUM($I49:AJ49))) -> 0 | AL49: =IF(OR(AL$3<=$D49,$G49="n/a"),0,IF(SUM($D49,$G49)>AL$3,$H49/$G49,$H49-SUM($I49:AK49))) -> 0 | AM49: =IF(OR(AM$3<=$D49,$G49="n/a"),0,IF(SUM($D49,$G49)>AM$3,$H49/$G49,$H49-SUM($I49:AL49))) -> 0 | AN49: =IF(OR(AN$3<=$D49,$G49="n/a"),0,IF(SUM($D49,$G49)>AN$3,$H49/$G49,$H49-SUM($I49:AM49))) -> 0 | AO49: =IF(OR(AO$3<=$D49,$G49="n/a"),0,IF(SUM($D49,$G49)>AO$3,$H49/$G49,$H49-SUM($I49:AN49))) -> 0 | AP49: =IF(OR(AP$3<=$D49,$G49="n/a"),0,IF(SUM($D49,$G49)>AP$3,$H49/$G49,$H49-SUM($I49:AO49))) -> 0 | AQ49: =IF(OR(AQ$3<=$D49,$G49="n/a"),0,IF(SUM($D49,$G49)>AQ$3,$H49/$G49,$H49-SUM($I49:AP49))) -> 0 | AR49: =IF(OR(AR$3<=$D49,$G49="n/a"),0,IF(SUM($D49,$G49)>AR$3,$H49/$G49,$H49-SUM($I49:AQ49))) -> 0 | AS49: =IF(OR(AS$3<=$D49,$G49="n/a"),0,IF(SUM($D49,$G49)>AS$3,$H49/$G49,$H49-SUM($I49:AR49))) -> 0 | AT49: =IF(OR(AT$3<=$D49,$G49="n/a"),0,IF(SUM($D49,$G49)>AT$3,$H49/$G49,$H49-SUM($I49:AS49))) -> 0 | AU49: =IF(OR(AU$3<=$D49,$G49="n/a"),0,IF(SUM($D49,$G49)>AU$3,$H49/$G49,$H49-SUM($I49:AT49))) -> 0 | AV49: =IF(OR(AV$3<=$D49,$G49="n/a"),0,IF(SUM($D49,$G49)>AV$3,$H49/$G49,$H49-SUM($I49:AU49))) -> 0 | AW49: =IF(OR(AW$3<=$D49,$G49="n/a"),0,IF(SUM($D49,$G49)>AW$3,$H49/$G49,$H49-SUM($I49:AV49))) -> 0 | AX49: =IF(OR(AX$3<=$D49,$G49="n/a"),0,IF(SUM($D49,$G49)>AX$3,$H49/$G49,$H49-SUM($I49:AW49))) -> 0 | AY49: =IF(OR(AY$3<=$D49,$G49="n/a"),0,IF(SUM($D49,$G49)>AY$3,$H49/$G49,$H49-SUM($I49:AX49))) -> 0 | AZ49: =IF(OR(AZ$3<=$D49,$G49="n/a"),0,IF(SUM($D49,$G49)>AZ$3,$H49/$G49,$H49-SUM($I49:AY49))) -> 0 | BA49: =IF(OR(BA$3<=$D49,$G49="n/a"),0,IF(SUM($D49,$G49)>BA$3,$H49/$G49,$H49-SUM($I49:AZ49))) -> 0 | BB49: =IF(OR(BB$3<=$D49,$G49="n/a"),0,IF(SUM($D49,$G49)>BB$3,$H49/$G49,$H49-SUM($I49:BA49))) -> 0 | BC49: =IF(OR(BC$3<=$D49,$G49="n/a"),0,IF(SUM($D49,$G49)>BC$3,$H49/$G49,$H49-SUM($I49:BB49))) -> 0 | BD49: =IF(OR(BD$3<=$D49,$G49="n/a"),0,IF(SUM($D49,$G49)>BD$3,$H49/$G49,$H49-SUM($I49:BC49))) -> 0 | BE49: =IF(OR(BE$3<=$D49,$G49="n/a"),0,IF(SUM($D49,$G49)>BE$3,$H49/$G49,$H49-SUM($I49:BD49))) -> 0 | BF49: =IF(OR(BF$3<=$D49,$G49="n/a"),0,IF(SUM($D49,$G49)>BF$3,$H49/$G49,$H49-SUM($I49:BE49))) -> 0 | BG49: =IF(OR(BG$3<=$D49,$G49="n/a"),0,IF(SUM($D49,$G49)>BG$3,$H49/$G49,$H49-SUM($I49:BF49))) -> 0 | BH49: =IF(OR(BH$3<=$D49,$G49="n/a"),0,IF(SUM($D49,$G49)>BH$3,$H49/$G49,$H49-SUM($I49:BG49))) -> 0 | BI49: =IF(OR(BI$3<=$D49,$G49="n/a"),0,IF(SUM($D49,$G49)>BI$3,$H49/$G49,$H49-SUM($I49:BH49))) -> 0 | BJ49: =IF(OR(BJ$3<=$D49,$G49="n/a"),0,IF(SUM($D49,$G49)>BJ$3,$H49/$G49,$H49-SUM($I49:BI49))) -> 0 | BK49: =IF(OR(BK$3<=$D49,$G49="n/a"),0,IF(SUM($D49,$G49)>BK$3,$H49/$G49,$H49-SUM($I49:BJ49))) -> 0 | BL49: =IF(OR(BL$3<=$D49,$G49="n/a"),0,IF(SUM($D49,$G49)>BL$3,$H49/$G49,$H49-SUM($I49:BK49))) -> 0 | BM49: =IF(OR(BM$3<=$D49,$G49="n/a"),0,IF(SUM($D49,$G49)>BM$3,$H49/$G49,$H49-SUM($I49:BL49))) -> 0 | BN49: =IF(OR(BN$3<=$D49,$G49="n/a"),0,IF(SUM($D49,$G49)>BN$3,$H49/$G49,$H49-SUM($I49:BM49))) -> 0 | BO49: =IF(OR(BO$3<=$D49,$G49="n/a"),0,IF(SUM($D49,$G49)>BO$3,$H49/$G49,$H49-SUM($I49:BN49))) -> 0 | BP49: =IF(OR(BP$3<=$D49,$G49="n/a"),0,IF(SUM($D49,$G49)>BP$3,$H49/$G49,$H49-SUM($I49:BO49))) -> 0 | BQ49: =IF(OR(BQ$3<=$D49,$G49="n/a"),0,IF(SUM($D49,$G49)>BQ$3,$H49/$G49,$H49-SUM($I49:BP49))) -> 0 | BR49: =IF(OR(BR$3<=$D49,$G49="n/a"),0,IF(SUM($D49,$G49)>BR$3,$H49/$G49,$H49-SUM($I49:BQ49))) -> 0 | BS49: =IF(OR(BS$3<=$D49,$G49="n/a"),0,IF(SUM($D49,$G49)>BS$3,$H49/$G49,$H49-SUM($I49:BR49))) -> 0 | BT49: =IF(OR(BT$3<=$D49,$G49="n/a"),0,IF(SUM($D49,$G49)>BT$3,$H49/$G49,$H49-SUM($I49:BS49))) -> 0 | BU49: =IF(OR(BU$3<=$D49,$G49="n/a"),0,IF(SUM($D49,$G49)>BU$3,$H49/$G49,$H49-SUM($I49:BT49))) -> 0 | BV49: =IF(OR(BV$3<=$D49,$G49="n/a"),0,IF(SUM($D49,$G49)>BV$3,$H49/$G49,$H49-SUM($I49:BU49))) -> 0 | BW49: Ok
D50: 2032 | E50: $m Real 2010 | G50: 55 | H50: =AE28 -> 0 | J50: =IF(OR(J$3<=$D50,$G50="n/a"),0,IF(SUM($D50,$G50)>J$3,$H50/$G50,$H50-SUM($I50:I50))) -> 0 | K50: =IF(OR(K$3<=$D50,$G50="n/a"),0,IF(SUM($D50,$G50)>K$3,$H50/$G50,$H50-SUM($I50:J50))) -> 0 | L50: =IF(OR(L$3<=$D50,$G50="n/a"),0,IF(SUM($D50,$G50)>L$3,$H50/$G50,$H50-SUM($I50:K50))) -> 0 | M50: =IF(OR(M$3<=$D50,$G50="n/a"),0,IF(SUM($D50,$G50)>M$3,$H50/$G50,$H50-SUM($I50:L50))) -> 0 | N50: =IF(OR(N$3<=$D50,$G50="n/a"),0,IF(SUM($D50,$G50)>N$3,$H50/$G50,$H50-SUM($I50:M50))) -> 0 | O50: =IF(OR(O$3<=$D50,$G50="n/a"),0,IF(SUM($D50,$G50)>O$3,$H50/$G50,$H50-SUM($I50:N50))) -> 0 | P50: =IF(OR(P$3<=$D50,$G50="n/a"),0,IF(SUM($D50,$G50)>P$3,$H50/$G50,$H50-SUM($I50:O50))) -> 0 | Q50: =IF(OR(Q$3<=$D50,$G50="n/a"),0,IF(SUM($D50,$G50)>Q$3,$H50/$G50,$H50-SUM($I50:P50))) -> 0 | R50: =IF(OR(R$3<=$D50,$G50="n/a"),0,IF(SUM($D50,$G50)>R$3,$H50/$G50,$H50-SUM($I50:Q50))) -> 0 | S50: =IF(OR(S$3<=$D50,$G50="n/a"),0,IF(SUM($D50,$G50)>S$3,$H50/$G50,$H50-SUM($I50:R50))) -> 0 | T50: =IF(OR(T$3<=$D50,$G50="n/a"),0,IF(SUM($D50,$G50)>T$3,$H50/$G50,$H50-SUM($I50:S50))) -> 0 | U50: =IF(OR(U$3<=$D50,$G50="n/a"),0,IF(SUM($D50,$G50)>U$3,$H50/$G50,$H50-SUM($I50:T50))) -> 0 | V50: =IF(OR(V$3<=$D50,$G50="n/a"),0,IF(SUM($D50,$G50)>V$3,$H50/$G50,$H50-SUM($I50:U50))) -> 0 | W50: =IF(OR(W$3<=$D50,$G50="n/a"),0,IF(SUM($D50,$G50)>W$3,$H50/$G50,$H50-SUM($I50:V50))) -> 0 | X50: =IF(OR(X$3<=$D50,$G50="n/a"),0,IF(SUM($D50,$G50)>X$3,$H50/$G50,$H50-SUM($I50:W50))) -> 0 | Y50: =IF(OR(Y$3<=$D50,$G50="n/a"),0,IF(SUM($D50,$G50)>Y$3,$H50/$G50,$H50-SUM($I50:X50))) -> 0 | Z50: =IF(OR(Z$3<=$D50,$G50="n/a"),0,IF(SUM($D50,$G50)>Z$3,$H50/$G50,$H50-SUM($I50:Y50))) -> 0 | AA50: =IF(OR(AA$3<=$D50,$G50="n/a"),0,IF(SUM($D50,$G50)>AA$3,$H50/$G50,$H50-SUM($I50:Z50))) -> 0 | AB50: =IF(OR(AB$3<=$D50,$G50="n/a"),0,IF(SUM($D50,$G50)>AB$3,$H50/$G50,$H50-SUM($I50:AA50))) -> 0 | AC50: =IF(OR(AC$3<=$D50,$G50="n/a"),0,IF(SUM($D50,$G50)>AC$3,$H50/$G50,$H50-SUM($I50:AB50))) -> 0 | AD50: =IF(OR(AD$3<=$D50,$G50="n/a"),0,IF(SUM($D50,$G50)>AD$3,$H50/$G50,$H50-SUM($I50:AC50))) -> 0 | AE50: =IF(OR(AE$3<=$D50,$G50="n/a"),0,IF(SUM($D50,$G50)>AE$3,$H50/$G50,$H50-SUM($I50:AD50))) -> 0 | AF50: =IF(OR(AF$3<=$D50,$G50="n/a"),0,IF(SUM($D50,$G50)>AF$3,$H50/$G50,$H50-SUM($I50:AE50))) -> 0 | AG50: =IF(OR(AG$3<=$D50,$G50="n/a"),0,IF(SUM($D50,$G50)>AG$3,$H50/$G50,$H50-SUM($I50:AF50))) -> 0 | AH50: =IF(OR(AH$3<=$D50,$G50="n/a"),0,IF(SUM($D50,$G50)>AH$3,$H50/$G50,$H50-SUM($I50:AG50))) -> 0 | AI50: =IF(OR(AI$3<=$D50,$G50="n/a"),0,IF(SUM($D50,$G50)>AI$3,$H50/$G50,$H50-SUM($I50:AH50))) -> 0 | AJ50: =IF(OR(AJ$3<=$D50,$G50="n/a"),0,IF(SUM($D50,$G50)>AJ$3,$H50/$G50,$H50-SUM($I50:AI50))) -> 0 | AK50: =IF(OR(AK$3<=$D50,$G50="n/a"),0,IF(SUM($D50,$G50)>AK$3,$H50/$G50,$H50-SUM($I50:AJ50))) -> 0 | AL50: =IF(OR(AL$3<=$D50,$G50="n/a"),0,IF(SUM($D50,$G50)>AL$3,$H50/$G50,$H50-SUM($I50:AK50))) -> 0 | AM50: =IF(OR(AM$3<=$D50,$G50="n/a"),0,IF(SUM($D50,$G50)>AM$3,$H50/$G50,$H50-SUM($I50:AL50))) -> 0 | AN50: =IF(OR(AN$3<=$D50,$G50="n/a"),0,IF(SUM($D50,$G50)>AN$3,$H50/$G50,$H50-SUM($I50:AM50))) -> 0 | AO50: =IF(OR(AO$3<=$D50,$G50="n/a"),0,IF(SUM($D50,$G50)>AO$3,$H50/$G50,$H50-SUM($I50:AN50))) -> 0 | AP50: =IF(OR(AP$3<=$D50,$G50="n/a"),0,IF(SUM($D50,$G50)>AP$3,$H50/$G50,$H50-SUM($I50:AO50))) -> 0 | AQ50: =IF(OR(AQ$3<=$D50,$G50="n/a"),0,IF(SUM($D50,$G50)>AQ$3,$H50/$G50,$H50-SUM($I50:AP50))) -> 0 | AR50: =IF(OR(AR$3<=$D50,$G50="n/a"),0,IF(SUM($D50,$G50)>AR$3,$H50/$G50,$H50-SUM($I50:AQ50))) -> 0 | AS50: =IF(OR(AS$3<=$D50,$G50="n/a"),0,IF(SUM($D50,$G50)>AS$3,$H50/$G50,$H50-SUM($I50:AR50))) -> 0 | AT50: =IF(OR(AT$3<=$D50,$G50="n/a"),0,IF(SUM($D50,$G50)>AT$3,$H50/$G50,$H50-SUM($I50:AS50))) -> 0 | AU50: =IF(OR(AU$3<=$D50,$G50="n/a"),0,IF(SUM($D50,$G50)>AU$3,$H50/$G50,$H50-SUM($I50:AT50))) -> 0 | AV50: =IF(OR(AV$3<=$D50,$G50="n/a"),0,IF(SUM($D50,$G50)>AV$3,$H50/$G50,$H50-SUM($I50:AU50))) -> 0 | AW50: =IF(OR(AW$3<=$D50,$G50="n/a"),0,IF(SUM($D50,$G50)>AW$3,$H50/$G50,$H50-SUM($I50:AV50))) -> 0 | AX50: =IF(OR(AX$3<=$D50,$G50="n/a"),0,IF(SUM($D50,$G50)>AX$3,$H50/$G50,$H50-SUM($I50:AW50))) -> 0 | AY50: =IF(OR(AY$3<=$D50,$G50="n/a"),0,IF(SUM($D50,$G50)>AY$3,$H50/$G50,$H50-SUM($I50:AX50))) -> 0 | AZ50: =IF(OR(AZ$3<=$D50,$G50="n/a"),0,IF(SUM($D50,$G50)>AZ$3,$H50/$G50,$H50-SUM($I50:AY50))) -> 0 | BA50: =IF(OR(BA$3<=$D50,$G50="n/a"),0,IF(SUM($D50,$G50)>BA$3,$H50/$G50,$H50-SUM($I50:AZ50))) -> 0 | BB50: =IF(OR(BB$3<=$D50,$G50="n/a"),0,IF(SUM($D50,$G50)>BB$3,$H50/$G50,$H50-SUM($I50:BA50))) -> 0 | BC50: =IF(OR(BC$3<=$D50,$G50="n/a"),0,IF(SUM($D50,$G50)>BC$3,$H50/$G50,$H50-SUM($I50:BB50))) -> 0 | BD50: =IF(OR(BD$3<=$D50,$G50="n/a"),0,IF(SUM($D50,$G50)>BD$3,$H50/$G50,$H50-SUM($I50:BC50))) -> 0 | BE50: =IF(OR(BE$3<=$D50,$G50="n/a"),0,IF(SUM($D50,$G50)>BE$3,$H50/$G50,$H50-SUM($I50:BD50))) -> 0 | BF50: =IF(OR(BF$3<=$D50,$G50="n/a"),0,IF(SUM($D50,$G50)>BF$3,$H50/$G50,$H50-SUM($I50:BE50))) -> 0 | BG50: =IF(OR(BG$3<=$D50,$G50="n/a"),0,IF(SUM($D50,$G50)>BG$3,$H50/$G50,$H50-SUM($I50:BF50))) -> 0 | BH50: =IF(OR(BH$3<=$D50,$G50="n/a"),0,IF(SUM($D50,$G50)>BH$3,$H50/$G50,$H50-SUM($I50:BG50))) -> 0 | BI50: =IF(OR(BI$3<=$D50,$G50="n/a"),0,IF(SUM($D50,$G50)>BI$3,$H50/$G50,$H50-SUM($I50:BH50))) -> 0 | BJ50: =IF(OR(BJ$3<=$D50,$G50="n/a"),0,IF(SUM($D50,$G50)>BJ$3,$H50/$G50,$H50-SUM($I50:BI50))) -> 0 | BK50: =IF(OR(BK$3<=$D50,$G50="n/a"),0,IF(SUM($D50,$G50)>BK$3,$H50/$G50,$H50-SUM($I50:BJ50))) -> 0 | BL50: =IF(OR(BL$3<=$D50,$G50="n/a"),0,IF(SUM($D50,$G50)>BL$3,$H50/$G50,$H50-SUM($I50:BK50))) -> 0 | BM50: =IF(OR(BM$3<=$D50,$G50="n/a"),0,IF(SUM($D50,$G50)>BM$3,$H50/$G50,$H50-SUM($I50:BL50))) -> 0 | BN50: =IF(OR(BN$3<=$D50,$G50="n/a"),0,IF(SUM($D50,$G50)>BN$3,$H50/$G50,$H50-SUM($I50:BM50))) -> 0 | BO50: =IF(OR(BO$3<=$D50,$G50="n/a"),0,IF(SUM($D50,$G50)>BO$3,$H50/$G50,$H50-SUM($I50:BN50))) -> 0 | BP50: =IF(OR(BP$3<=$D50,$G50="n/a"),0,IF(SUM($D50,$G50)>BP$3,$H50/$G50,$H50-SUM($I50:BO50))) -> 0 | BQ50: =IF(OR(BQ$3<=$D50,$G50="n/a"),0,IF(SUM($D50,$G50)>BQ$3,$H50/$G50,$H50-SUM($I50:BP50))) -> 0 | BR50: =IF(OR(BR$3<=$D50,$G50="n/a"),0,IF(SUM($D50,$G50)>BR$3,$H50/$G50,$H50-SUM($I50:BQ50))) -> 0 | BS50: =IF(OR(BS$3<=$D50,$G50="n/a"),0,IF(SUM($D50,$G50)>BS$3,$H50/$G50,$H50-SUM($I50:BR50))) -> 0 | BT50: =IF(OR(BT$3<=$D50,$G50="n/a"),0,IF(SUM($D50,$G50)>BT$3,$H50/$G50,$H50-SUM($I50:BS50))) -> 0 | BU50: =IF(OR(BU$3<=$D50,$G50="n/a"),0,IF(SUM($D50,$G50)>BU$3,$H50/$G50,$H50-SUM($I50:BT50))) -> 0 | BV50: =IF(OR(BV$3<=$D50,$G50="n/a"),0,IF(SUM($D50,$G50)>BV$3,$H50/$G50,$H50-SUM($I50:BU50))) -> 0 | BW50: Ok
D51: 2033 | E51: $m Real 2010 | G51: 55 | H51: =AF28 -> 0 | J51: =IF(OR(J$3<=$D51,$G51="n/a"),0,IF(SUM($D51,$G51)>J$3,$H51/$G51,$H51-SUM($I51:I51))) -> 0 | K51: =IF(OR(K$3<=$D51,$G51="n/a"),0,IF(SUM($D51,$G51)>K$3,$H51/$G51,$H51-SUM($I51:J51))) -> 0 | L51: =IF(OR(L$3<=$D51,$G51="n/a"),0,IF(SUM($D51,$G51)>L$3,$H51/$G51,$H51-SUM($I51:K51))) -> 0 | M51: =IF(OR(M$3<=$D51,$G51="n/a"),0,IF(SUM($D51,$G51)>M$3,$H51/$G51,$H51-SUM($I51:L51))) -> 0 | N51: =IF(OR(N$3<=$D51,$G51="n/a"),0,IF(SUM($D51,$G51)>N$3,$H51/$G51,$H51-SUM($I51:M51))) -> 0 | O51: =IF(OR(O$3<=$D51,$G51="n/a"),0,IF(SUM($D51,$G51)>O$3,$H51/$G51,$H51-SUM($I51:N51))) -> 0 | P51: =IF(OR(P$3<=$D51,$G51="n/a"),0,IF(SUM($D51,$G51)>P$3,$H51/$G51,$H51-SUM($I51:O51))) -> 0 | Q51: =IF(OR(Q$3<=$D51,$G51="n/a"),0,IF(SUM($D51,$G51)>Q$3,$H51/$G51,$H51-SUM($I51:P51))) -> 0 | R51: =IF(OR(R$3<=$D51,$G51="n/a"),0,IF(SUM($D51,$G51)>R$3,$H51/$G51,$H51-SUM($I51:Q51))) -> 0 | S51: =IF(OR(S$3<=$D51,$G51="n/a"),0,IF(SUM($D51,$G51)>S$3,$H51/$G51,$H51-SUM($I51:R51))) -> 0 | T51: =IF(OR(T$3<=$D51,$G51="n/a"),0,IF(SUM($D51,$G51)>T$3,$H51/$G51,$H51-SUM($I51:S51))) -> 0 | U51: =IF(OR(U$3<=$D51,$G51="n/a"),0,IF(SUM($D51,$G51)>U$3,$H51/$G51,$H51-SUM($I51:T51))) -> 0 | V51: =IF(OR(V$3<=$D51,$G51="n/a"),0,IF(SUM($D51,$G51)>V$3,$H51/$G51,$H51-SUM($I51:U51))) -> 0 | W51: =IF(OR(W$3<=$D51,$G51="n/a"),0,IF(SUM($D51,$G51)>W$3,$H51/$G51,$H51-SUM($I51:V51))) -> 0 | X51: =IF(OR(X$3<=$D51,$G51="n/a"),0,IF(SUM($D51,$G51)>X$3,$H51/$G51,$H51-SUM($I51:W51))) -> 0 | Y51: =IF(OR(Y$3<=$D51,$G51="n/a"),0,IF(SUM($D51,$G51)>Y$3,$H51/$G51,$H51-SUM($I51:X51))) -> 0 | Z51: =IF(OR(Z$3<=$D51,$G51="n/a"),0,IF(SUM($D51,$G51)>Z$3,$H51/$G51,$H51-SUM($I51:Y51))) -> 0 | AA51: =IF(OR(AA$3<=$D51,$G51="n/a"),0,IF(SUM($D51,$G51)>AA$3,$H51/$G51,$H51-SUM($I51:Z51))) -> 0 | AB51: =IF(OR(AB$3<=$D51,$G51="n/a"),0,IF(SUM($D51,$G51)>AB$3,$H51/$G51,$H51-SUM($I51:AA51))) -> 0 | AC51: =IF(OR(AC$3<=$D51,$G51="n/a"),0,IF(SUM($D51,$G51)>AC$3,$H51/$G51,$H51-SUM($I51:AB51))) -> 0 | AD51: =IF(OR(AD$3<=$D51,$G51="n/a"),0,IF(SUM($D51,$G51)>AD$3,$H51/$G51,$H51-SUM($I51:AC51))) -> 0 | AE51: =IF(OR(AE$3<=$D51,$G51="n/a"),0,IF(SUM($D51,$G51)>AE$3,$H51/$G51,$H51-SUM($I51:AD51))) -> 0 | AF51: =IF(OR(AF$3<=$D51,$G51="n/a"),0,IF(SUM($D51,$G51)>AF$3,$H51/$G51,$H51-SUM($I51:AE51))) -> 0 | AG51: =IF(OR(AG$3<=$D51,$G51="n/a"),0,IF(SUM($D51,$G51)>AG$3,$H51/$G51,$H51-SUM($I51:AF51))) -> 0 | AH51: =IF(OR(AH$3<=$D51,$G51="n/a"),0,IF(SUM($D51,$G51)>AH$3,$H51/$G51,$H51-SUM($I51:AG51))) -> 0 | AI51: =IF(OR(AI$3<=$D51,$G51="n/a"),0,IF(SUM($D51,$G51)>AI$3,$H51/$G51,$H51-SUM($I51:AH51))) -> 0 | AJ51: =IF(OR(AJ$3<=$D51,$G51="n/a"),0,IF(SUM($D51,$G51)>AJ$3,$H51/$G51,$H51-SUM($I51:AI51))) -> 0 | AK51: =IF(OR(AK$3<=$D51,$G51="n/a"),0,IF(SUM($D51,$G51)>AK$3,$H51/$G51,$H51-SUM($I51:AJ51))) -> 0 | AL51: =IF(OR(AL$3<=$D51,$G51="n/a"),0,IF(SUM($D51,$G51)>AL$3,$H51/$G51,$H51-SUM($I51:AK51))) -> 0 | AM51: =IF(OR(AM$3<=$D51,$G51="n/a"),0,IF(SUM($D51,$G51)>AM$3,$H51/$G51,$H51-SUM($I51:AL51))) -> 0 | AN51: =IF(OR(AN$3<=$D51,$G51="n/a"),0,IF(SUM($D51,$G51)>AN$3,$H51/$G51,$H51-SUM($I51:AM51))) -> 0 | AO51: =IF(OR(AO$3<=$D51,$G51="n/a"),0,IF(SUM($D51,$G51)>AO$3,$H51/$G51,$H51-SUM($I51:AN51))) -> 0 | AP51: =IF(OR(AP$3<=$D51,$G51="n/a"),0,IF(SUM($D51,$G51)>AP$3,$H51/$G51,$H51-SUM($I51:AO51))) -> 0 | AQ51: =IF(OR(AQ$3<=$D51,$G51="n/a"),0,IF(SUM($D51,$G51)>AQ$3,$H51/$G51,$H51-SUM($I51:AP51))) -> 0 | AR51: =IF(OR(AR$3<=$D51,$G51="n/a"),0,IF(SUM($D51,$G51)>AR$3,$H51/$G51,$H51-SUM($I51:AQ51))) -> 0 | AS51: =IF(OR(AS$3<=$D51,$G51="n/a"),0,IF(SUM($D51,$G51)>AS$3,$H51/$G51,$H51-SUM($I51:AR51))) -> 0 | AT51: =IF(OR(AT$3<=$D51,$G51="n/a"),0,IF(SUM($D51,$G51)>AT$3,$H51/$G51,$H51-SUM($I51:AS51))) -> 0 | AU51: =IF(OR(AU$3<=$D51,$G51="n/a"),0,IF(SUM($D51,$G51)>AU$3,$H51/$G51,$H51-SUM($I51:AT51))) -> 0 | AV51: =IF(OR(AV$3<=$D51,$G51="n/a"),0,IF(SUM($D51,$G51)>AV$3,$H51/$G51,$H51-SUM($I51:AU51))) -> 0 | AW51: =IF(OR(AW$3<=$D51,$G51="n/a"),0,IF(SUM($D51,$G51)>AW$3,$H51/$G51,$H51-SUM($I51:AV51))) -> 0 | AX51: =IF(OR(AX$3<=$D51,$G51="n/a"),0,IF(SUM($D51,$G51)>AX$3,$H51/$G51,$H51-SUM($I51:AW51))) -> 0 | AY51: =IF(OR(AY$3<=$D51,$G51="n/a"),0,IF(SUM($D51,$G51)>AY$3,$H51/$G51,$H51-SUM($I51:AX51))) -> 0 | AZ51: =IF(OR(AZ$3<=$D51,$G51="n/a"),0,IF(SUM($D51,$G51)>AZ$3,$H51/$G51,$H51-SUM($I51:AY51))) -> 0 | BA51: =IF(OR(BA$3<=$D51,$G51="n/a"),0,IF(SUM($D51,$G51)>BA$3,$H51/$G51,$H51-SUM($I51:AZ51))) -> 0 | BB51: =IF(OR(BB$3<=$D51,$G51="n/a"),0,IF(SUM($D51,$G51)>BB$3,$H51/$G51,$H51-SUM($I51:BA51))) -> 0 | BC51: =IF(OR(BC$3<=$D51,$G51="n/a"),0,IF(SUM($D51,$G51)>BC$3,$H51/$G51,$H51-SUM($I51:BB51))) -> 0 | BD51: =IF(OR(BD$3<=$D51,$G51="n/a"),0,IF(SUM($D51,$G51)>BD$3,$H51/$G51,$H51-SUM($I51:BC51))) -> 0 | BE51: =IF(OR(BE$3<=$D51,$G51="n/a"),0,IF(SUM($D51,$G51)>BE$3,$H51/$G51,$H51-SUM($I51:BD51))) -> 0 | BF51: =IF(OR(BF$3<=$D51,$G51="n/a"),0,IF(SUM($D51,$G51)>BF$3,$H51/$G51,$H51-SUM($I51:BE51))) -> 0 | BG51: =IF(OR(BG$3<=$D51,$G51="n/a"),0,IF(SUM($D51,$G51)>BG$3,$H51/$G51,$H51-SUM($I51:BF51))) -> 0 | BH51: =IF(OR(BH$3<=$D51,$G51="n/a"),0,IF(SUM($D51,$G51)>BH$3,$H51/$G51,$H51-SUM($I51:BG51))) -> 0 | BI51: =IF(OR(BI$3<=$D51,$G51="n/a"),0,IF(SUM($D51,$G51)>BI$3,$H51/$G51,$H51-SUM($I51:BH51))) -> 0 | BJ51: =IF(OR(BJ$3<=$D51,$G51="n/a"),0,IF(SUM($D51,$G51)>BJ$3,$H51/$G51,$H51-SUM($I51:BI51))) -> 0 | BK51: =IF(OR(BK$3<=$D51,$G51="n/a"),0,IF(SUM($D51,$G51)>BK$3,$H51/$G51,$H51-SUM($I51:BJ51))) -> 0 | BL51: =IF(OR(BL$3<=$D51,$G51="n/a"),0,IF(SUM($D51,$G51)>BL$3,$H51/$G51,$H51-SUM($I51:BK51))) -> 0 | BM51: =IF(OR(BM$3<=$D51,$G51="n/a"),0,IF(SUM($D51,$G51)>BM$3,$H51/$G51,$H51-SUM($I51:BL51))) -> 0 | BN51: =IF(OR(BN$3<=$D51,$G51="n/a"),0,IF(SUM($D51,$G51)>BN$3,$H51/$G51,$H51-SUM($I51:BM51))) -> 0 | BO51: =IF(OR(BO$3<=$D51,$G51="n/a"),0,IF(SUM($D51,$G51)>BO$3,$H51/$G51,$H51-SUM($I51:BN51))) -> 0 | BP51: =IF(OR(BP$3<=$D51,$G51="n/a"),0,IF(SUM($D51,$G51)>BP$3,$H51/$G51,$H51-SUM($I51:BO51))) -> 0 | BQ51: =IF(OR(BQ$3<=$D51,$G51="n/a"),0,IF(SUM($D51,$G51)>BQ$3,$H51/$G51,$H51-SUM($I51:BP51))) -> 0 | BR51: =IF(OR(BR$3<=$D51,$G51="n/a"),0,IF(SUM($D51,$G51)>BR$3,$H51/$G51,$H51-SUM($I51:BQ51))) -> 0 | BS51: =IF(OR(BS$3<=$D51,$G51="n/a"),0,IF(SUM($D51,$G51)>BS$3,$H51/$G51,$H51-SUM($I51:BR51))) -> 0 | BT51: =IF(OR(BT$3<=$D51,$G51="n/a"),0,IF(SUM($D51,$G51)>BT$3,$H51/$G51,$H51-SUM($I51:BS51))) -> 0 | BU51: =IF(OR(BU$3<=$D51,$G51="n/a"),0,IF(SUM($D51,$G51)>BU$3,$H51/$G51,$H51-SUM($I51:BT51))) -> 0 | BV51: =IF(OR(BV$3<=$D51,$G51="n/a"),0,IF(SUM($D51,$G51)>BV$3,$H51/$G51,$H51-SUM($I51:BU51))) -> 0 | BW51: Ok
D52: 2034 | E52: $m Real 2010 | G52: 55 | H52: =AG28 -> 0 | J52: =IF(OR(J$3<=$D52,$G52="n/a"),0,IF(SUM($D52,$G52)>J$3,$H52/$G52,$H52-SUM($I52:I52))) -> 0 | K52: =IF(OR(K$3<=$D52,$G52="n/a"),0,IF(SUM($D52,$G52)>K$3,$H52/$G52,$H52-SUM($I52:J52))) -> 0 | L52: =IF(OR(L$3<=$D52,$G52="n/a"),0,IF(SUM($D52,$G52)>L$3,$H52/$G52,$H52-SUM($I52:K52))) -> 0 | M52: =IF(OR(M$3<=$D52,$G52="n/a"),0,IF(SUM($D52,$G52)>M$3,$H52/$G52,$H52-SUM($I52:L52))) -> 0 | N52: =IF(OR(N$3<=$D52,$G52="n/a"),0,IF(SUM($D52,$G52)>N$3,$H52/$G52,$H52-SUM($I52:M52))) -> 0 | O52: =IF(OR(O$3<=$D52,$G52="n/a"),0,IF(SUM($D52,$G52)>O$3,$H52/$G52,$H52-SUM($I52:N52))) -> 0 | P52: =IF(OR(P$3<=$D52,$G52="n/a"),0,IF(SUM($D52,$G52)>P$3,$H52/$G52,$H52-SUM($I52:O52))) -> 0 | Q52: =IF(OR(Q$3<=$D52,$G52="n/a"),0,IF(SUM($D52,$G52)>Q$3,$H52/$G52,$H52-SUM($I52:P52))) -> 0 | R52: =IF(OR(R$3<=$D52,$G52="n/a"),0,IF(SUM($D52,$G52)>R$3,$H52/$G52,$H52-SUM($I52:Q52))) -> 0 | S52: =IF(OR(S$3<=$D52,$G52="n/a"),0,IF(SUM($D52,$G52)>S$3,$H52/$G52,$H52-SUM($I52:R52))) -> 0 | T52: =IF(OR(T$3<=$D52,$G52="n/a"),0,IF(SUM($D52,$G52)>T$3,$H52/$G52,$H52-SUM($I52:S52))) -> 0 | U52: =IF(OR(U$3<=$D52,$G52="n/a"),0,IF(SUM($D52,$G52)>U$3,$H52/$G52,$H52-SUM($I52:T52))) -> 0 | V52: =IF(OR(V$3<=$D52,$G52="n/a"),0,IF(SUM($D52,$G52)>V$3,$H52/$G52,$H52-SUM($I52:U52))) -> 0 | W52: =IF(OR(W$3<=$D52,$G52="n/a"),0,IF(SUM($D52,$G52)>W$3,$H52/$G52,$H52-SUM($I52:V52))) -> 0 | X52: =IF(OR(X$3<=$D52,$G52="n/a"),0,IF(SUM($D52,$G52)>X$3,$H52/$G52,$H52-SUM($I52:W52))) -> 0 | Y52: =IF(OR(Y$3<=$D52,$G52="n/a"),0,IF(SUM($D52,$G52)>Y$3,$H52/$G52,$H52-SUM($I52:X52))) -> 0 | Z52: =IF(OR(Z$3<=$D52,$G52="n/a"),0,IF(SUM($D52,$G52)>Z$3,$H52/$G52,$H52-SUM($I52:Y52))) -> 0 | AA52: =IF(OR(AA$3<=$D52,$G52="n/a"),0,IF(SUM($D52,$G52)>AA$3,$H52/$G52,$H52-SUM($I52:Z52))) -> 0 | AB52: =IF(OR(AB$3<=$D52,$G52="n/a"),0,IF(SUM($D52,$G52)>AB$3,$H52/$G52,$H52-SUM($I52:AA52))) -> 0 | AC52: =IF(OR(AC$3<=$D52,$G52="n/a"),0,IF(SUM($D52,$G52)>AC$3,$H52/$G52,$H52-SUM($I52:AB52))) -> 0 | AD52: =IF(OR(AD$3<=$D52,$G52="n/a"),0,IF(SUM($D52,$G52)>AD$3,$H52/$G52,$H52-SUM($I52:AC52))) -> 0 | AE52: =IF(OR(AE$3<=$D52,$G52="n/a"),0,IF(SUM($D52,$G52)>AE$3,$H52/$G52,$H52-SUM($I52:AD52))) -> 0 | AF52: =IF(OR(AF$3<=$D52,$G52="n/a"),0,IF(SUM($D52,$G52)>AF$3,$H52/$G52,$H52-SUM($I52:AE52))) -> 0 | AG52: =IF(OR(AG$3<=$D52,$G52="n/a"),0,IF(SUM($D52,$G52)>AG$3,$H52/$G52,$H52-SUM($I52:AF52))) -> 0 | AH52: =IF(OR(AH$3<=$D52,$G52="n/a"),0,IF(SUM($D52,$G52)>AH$3,$H52/$G52,$H52-SUM($I52:AG52))) -> 0 | AI52: =IF(OR(AI$3<=$D52,$G52="n/a"),0,IF(SUM($D52,$G52)>AI$3,$H52/$G52,$H52-SUM($I52:AH52))) -> 0 | AJ52: =IF(OR(AJ$3<=$D52,$G52="n/a"),0,IF(SUM($D52,$G52)>AJ$3,$H52/$G52,$H52-SUM($I52:AI52))) -> 0 | AK52: =IF(OR(AK$3<=$D52,$G52="n/a"),0,IF(SUM($D52,$G52)>AK$3,$H52/$G52,$H52-SUM($I52:AJ52))) -> 0 | AL52: =IF(OR(AL$3<=$D52,$G52="n/a"),0,IF(SUM($D52,$G52)>AL$3,$H52/$G52,$H52-SUM($I52:AK52))) -> 0 | AM52: =IF(OR(AM$3<=$D52,$G52="n/a"),0,IF(SUM($D52,$G52)>AM$3,$H52/$G52,$H52-SUM($I52:AL52))) -> 0 | AN52: =IF(OR(AN$3<=$D52,$G52="n/a"),0,IF(SUM($D52,$G52)>AN$3,$H52/$G52,$H52-SUM($I52:AM52))) -> 0 | AO52: =IF(OR(AO$3<=$D52,$G52="n/a"),0,IF(SUM($D52,$G52)>AO$3,$H52/$G52,$H52-SUM($I52:AN52))) -> 0 | AP52: =IF(OR(AP$3<=$D52,$G52="n/a"),0,IF(SUM($D52,$G52)>AP$3,$H52/$G52,$H52-SUM($I52:AO52))) -> 0 | AQ52: =IF(OR(AQ$3<=$D52,$G52="n/a"),0,IF(SUM($D52,$G52)>AQ$3,$H52/$G52,$H52-SUM($I52:AP52))) -> 0 | AR52: =IF(OR(AR$3<=$D52,$G52="n/a"),0,IF(SUM($D52,$G52)>AR$3,$H52/$G52,$H52-SUM($I52:AQ52))) -> 0 | AS52: =IF(OR(AS$3<=$D52,$G52="n/a"),0,IF(SUM($D52,$G52)>AS$3,$H52/$G52,$H52-SUM($I52:AR52))) -> 0 | AT52: =IF(OR(AT$3<=$D52,$G52="n/a"),0,IF(SUM($D52,$G52)>AT$3,$H52/$G52,$H52-SUM($I52:AS52))) -> 0 | AU52: =IF(OR(AU$3<=$D52,$G52="n/a"),0,IF(SUM($D52,$G52)>AU$3,$H52/$G52,$H52-SUM($I52:AT52))) -> 0 | AV52: =IF(OR(AV$3<=$D52,$G52="n/a"),0,IF(SUM($D52,$G52)>AV$3,$H52/$G52,$H52-SUM($I52:AU52))) -> 0 | AW52: =IF(OR(AW$3<=$D52,$G52="n/a"),0,IF(SUM($D52,$G52)>AW$3,$H52/$G52,$H52-SUM($I52:AV52))) -> 0 | AX52: =IF(OR(AX$3<=$D52,$G52="n/a"),0,IF(SUM($D52,$G52)>AX$3,$H52/$G52,$H52-SUM($I52:AW52))) -> 0 | AY52: =IF(OR(AY$3<=$D52,$G52="n/a"),0,IF(SUM($D52,$G52)>AY$3,$H52/$G52,$H52-SUM($I52:AX52))) -> 0 | AZ52: =IF(OR(AZ$3<=$D52,$G52="n/a"),0,IF(SUM($D52,$G52)>AZ$3,$H52/$G52,$H52-SUM($I52:AY52))) -> 0 | BA52: =IF(OR(BA$3<=$D52,$G52="n/a"),0,IF(SUM($D52,$G52)>BA$3,$H52/$G52,$H52-SUM($I52:AZ52))) -> 0 | BB52: =IF(OR(BB$3<=$D52,$G52="n/a"),0,IF(SUM($D52,$G52)>BB$3,$H52/$G52,$H52-SUM($I52:BA52))) -> 0 | BC52: =IF(OR(BC$3<=$D52,$G52="n/a"),0,IF(SUM($D52,$G52)>BC$3,$H52/$G52,$H52-SUM($I52:BB52))) -> 0 | BD52: =IF(OR(BD$3<=$D52,$G52="n/a"),0,IF(SUM($D52,$G52)>BD$3,$H52/$G52,$H52-SUM($I52:BC52))) -> 0 | BE52: =IF(OR(BE$3<=$D52,$G52="n/a"),0,IF(SUM($D52,$G52)>BE$3,$H52/$G52,$H52-SUM($I52:BD52))) -> 0 | BF52: =IF(OR(BF$3<=$D52,$G52="n/a"),0,IF(SUM($D52,$G52)>BF$3,$H52/$G52,$H52-SUM($I52:BE52))) -> 0 | BG52: =IF(OR(BG$3<=$D52,$G52="n/a"),0,IF(SUM($D52,$G52)>BG$3,$H52/$G52,$H52-SUM($I52:BF52))) -> 0 | BH52: =IF(OR(BH$3<=$D52,$G52="n/a"),0,IF(SUM($D52,$G52)>BH$3,$H52/$G52,$H52-SUM($I52:BG52))) -> 0 | BI52: =IF(OR(BI$3<=$D52,$G52="n/a"),0,IF(SUM($D52,$G52)>BI$3,$H52/$G52,$H52-SUM($I52:BH52))) -> 0 | BJ52: =IF(OR(BJ$3<=$D52,$G52="n/a"),0,IF(SUM($D52,$G52)>BJ$3,$H52/$G52,$H52-SUM($I52:BI52))) -> 0 | BK52: =IF(OR(BK$3<=$D52,$G52="n/a"),0,IF(SUM($D52,$G52)>BK$3,$H52/$G52,$H52-SUM($I52:BJ52))) -> 0 | BL52: =IF(OR(BL$3<=$D52,$G52="n/a"),0,IF(SUM($D52,$G52)>BL$3,$H52/$G52,$H52-SUM($I52:BK52))) -> 0 | BM52: =IF(OR(BM$3<=$D52,$G52="n/a"),0,IF(SUM($D52,$G52)>BM$3,$H52/$G52,$H52-SUM($I52:BL52))) -> 0 | BN52: =IF(OR(BN$3<=$D52,$G52="n/a"),0,IF(SUM($D52,$G52)>BN$3,$H52/$G52,$H52-SUM($I52:BM52))) -> 0 | BO52: =IF(OR(BO$3<=$D52,$G52="n/a"),0,IF(SUM($D52,$G52)>BO$3,$H52/$G52,$H52-SUM($I52:BN52))) -> 0 | BP52: =IF(OR(BP$3<=$D52,$G52="n/a"),0,IF(SUM($D52,$G52)>BP$3,$H52/$G52,$H52-SUM($I52:BO52))) -> 0 | BQ52: =IF(OR(BQ$3<=$D52,$G52="n/a"),0,IF(SUM($D52,$G52)>BQ$3,$H52/$G52,$H52-SUM($I52:BP52))) -> 0 | BR52: =IF(OR(BR$3<=$D52,$G52="n/a"),0,IF(SUM($D52,$G52)>BR$3,$H52/$G52,$H52-SUM($I52:BQ52))) -> 0 | BS52: =IF(OR(BS$3<=$D52,$G52="n/a"),0,IF(SUM($D52,$G52)>BS$3,$H52/$G52,$H52-SUM($I52:BR52))) -> 0 | BT52: =IF(OR(BT$3<=$D52,$G52="n/a"),0,IF(SUM($D52,$G52)>BT$3,$H52/$G52,$H52-SUM($I52:BS52))) -> 0 | BU52: =IF(OR(BU$3<=$D52,$G52="n/a"),0,IF(SUM($D52,$G52)>BU$3,$H52/$G52,$H52-SUM($I52:BT52))) -> 0 | BV52: =IF(OR(BV$3<=$D52,$G52="n/a"),0,IF(SUM($D52,$G52)>BV$3,$H52/$G52,$H52-SUM($I52:BU52))) -> 0 | BW52: Ok
D53: 2035 | E53: $m Real 2010 | G53: 55 | H53: =AH28 -> 0 | J53: =IF(OR(J$3<=$D53,$G53="n/a"),0,IF(SUM($D53,$G53)>J$3,$H53/$G53,$H53-SUM($I53:I53))) -> 0 | K53: =IF(OR(K$3<=$D53,$G53="n/a"),0,IF(SUM($D53,$G53)>K$3,$H53/$G53,$H53-SUM($I53:J53))) -> 0 | L53: =IF(OR(L$3<=$D53,$G53="n/a"),0,IF(SUM($D53,$G53)>L$3,$H53/$G53,$H53-SUM($I53:K53))) -> 0 | M53: =IF(OR(M$3<=$D53,$G53="n/a"),0,IF(SUM($D53,$G53)>M$3,$H53/$G53,$H53-SUM($I53:L53))) -> 0 | N53: =IF(OR(N$3<=$D53,$G53="n/a"),0,IF(SUM($D53,$G53)>N$3,$H53/$G53,$H53-SUM($I53:M53))) -> 0 | O53: =IF(OR(O$3<=$D53,$G53="n/a"),0,IF(SUM($D53,$G53)>O$3,$H53/$G53,$H53-SUM($I53:N53))) -> 0 | P53: =IF(OR(P$3<=$D53,$G53="n/a"),0,IF(SUM($D53,$G53)>P$3,$H53/$G53,$H53-SUM($I53:O53))) -> 0 | Q53: =IF(OR(Q$3<=$D53,$G53="n/a"),0,IF(SUM($D53,$G53)>Q$3,$H53/$G53,$H53-SUM($I53:P53))) -> 0 | R53: =IF(OR(R$3<=$D53,$G53="n/a"),0,IF(SUM($D53,$G53)>R$3,$H53/$G53,$H53-SUM($I53:Q53))) -> 0 | S53: =IF(OR(S$3<=$D53,$G53="n/a"),0,IF(SUM($D53,$G53)>S$3,$H53/$G53,$H53-SUM($I53:R53))) -> 0 | T53: =IF(OR(T$3<=$D53,$G53="n/a"),0,IF(SUM($D53,$G53)>T$3,$H53/$G53,$H53-SUM($I53:S53))) -> 0 | U53: =IF(OR(U$3<=$D53,$G53="n/a"),0,IF(SUM($D53,$G53)>U$3,$H53/$G53,$H53-SUM($I53:T53))) -> 0 | V53: =IF(OR(V$3<=$D53,$G53="n/a"),0,IF(SUM($D53,$G53)>V$3,$H53/$G53,$H53-SUM($I53:U53))) -> 0 | W53: =IF(OR(W$3<=$D53,$G53="n/a"),0,IF(SUM($D53,$G53)>W$3,$H53/$G53,$H53-SUM($I53:V53))) -> 0 | X53: =IF(OR(X$3<=$D53,$G53="n/a"),0,IF(SUM($D53,$G53)>X$3,$H53/$G53,$H53-SUM($I53:W53))) -> 0 | Y53: =IF(OR(Y$3<=$D53,$G53="n/a"),0,IF(SUM($D53,$G53)>Y$3,$H53/$G53,$H53-SUM($I53:X53))) -> 0 | Z53: =IF(OR(Z$3<=$D53,$G53="n/a"),0,IF(SUM($D53,$G53)>Z$3,$H53/$G53,$H53-SUM($I53:Y53))) -> 0 | AA53: =IF(OR(AA$3<=$D53,$G53="n/a"),0,IF(SUM($D53,$G53)>AA$3,$H53/$G53,$H53-SUM($I53:Z53))) -> 0 | AB53: =IF(OR(AB$3<=$D53,$G53="n/a"),0,IF(SUM($D53,$G53)>AB$3,$H53/$G53,$H53-SUM($I53:AA53))) -> 0 | AC53: =IF(OR(AC$3<=$D53,$G53="n/a"),0,IF(SUM($D53,$G53)>AC$3,$H53/$G53,$H53-SUM($I53:AB53))) -> 0 | AD53: =IF(OR(AD$3<=$D53,$G53="n/a"),0,IF(SUM($D53,$G53)>AD$3,$H53/$G53,$H53-SUM($I53:AC53))) -> 0 | AE53: =IF(OR(AE$3<=$D53,$G53="n/a"),0,IF(SUM($D53,$G53)>AE$3,$H53/$G53,$H53-SUM($I53:AD53))) -> 0 | AF53: =IF(OR(AF$3<=$D53,$G53="n/a"),0,IF(SUM($D53,$G53)>AF$3,$H53/$G53,$H53-SUM($I53:AE53))) -> 0 | AG53: =IF(OR(AG$3<=$D53,$G53="n/a"),0,IF(SUM($D53,$G53)>AG$3,$H53/$G53,$H53-SUM($I53:AF53))) -> 0 | AH53: =IF(OR(AH$3<=$D53,$G53="n/a"),0,IF(SUM($D53,$G53)>AH$3,$H53/$G53,$H53-SUM($I53:AG53))) -> 0 | AI53: =IF(OR(AI$3<=$D53,$G53="n/a"),0,IF(SUM($D53,$G53)>AI$3,$H53/$G53,$H53-SUM($I53:AH53))) -> 0 | AJ53: =IF(OR(AJ$3<=$D53,$G53="n/a"),0,IF(SUM($D53,$G53)>AJ$3,$H53/$G53,$H53-SUM($I53:AI53))) -> 0 | AK53: =IF(OR(AK$3<=$D53,$G53="n/a"),0,IF(SUM($D53,$G53)>AK$3,$H53/$G53,$H53-SUM($I53:AJ53))) -> 0 | AL53: =IF(OR(AL$3<=$D53,$G53="n/a"),0,IF(SUM($D53,$G53)>AL$3,$H53/$G53,$H53-SUM($I53:AK53))) -> 0 | AM53: =IF(OR(AM$3<=$D53,$G53="n/a"),0,IF(SUM($D53,$G53)>AM$3,$H53/$G53,$H53-SUM($I53:AL53))) -> 0 | AN53: =IF(OR(AN$3<=$D53,$G53="n/a"),0,IF(SUM($D53,$G53)>AN$3,$H53/$G53,$H53-SUM($I53:AM53))) -> 0 | AO53: =IF(OR(AO$3<=$D53,$G53="n/a"),0,IF(SUM($D53,$G53)>AO$3,$H53/$G53,$H53-SUM($I53:AN53))) -> 0 | AP53: =IF(OR(AP$3<=$D53,$G53="n/a"),0,IF(SUM($D53,$G53)>AP$3,$H53/$G53,$H53-SUM($I53:AO53))) -> 0 | AQ53: =IF(OR(AQ$3<=$D53,$G53="n/a"),0,IF(SUM($D53,$G53)>AQ$3,$H53/$G53,$H53-SUM($I53:AP53))) -> 0 | AR53: =IF(OR(AR$3<=$D53,$G53="n/a"),0,IF(SUM($D53,$G53)>AR$3,$H53/$G53,$H53-SUM($I53:AQ53))) -> 0 | AS53: =IF(OR(AS$3<=$D53,$G53="n/a"),0,IF(SUM($D53,$G53)>AS$3,$H53/$G53,$H53-SUM($I53:AR53))) -> 0 | AT53: =IF(OR(AT$3<=$D53,$G53="n/a"),0,IF(SUM($D53,$G53)>AT$3,$H53/$G53,$H53-SUM($I53:AS53))) -> 0 | AU53: =IF(OR(AU$3<=$D53,$G53="n/a"),0,IF(SUM($D53,$G53)>AU$3,$H53/$G53,$H53-SUM($I53:AT53))) -> 0 | AV53: =IF(OR(AV$3<=$D53,$G53="n/a"),0,IF(SUM($D53,$G53)>AV$3,$H53/$G53,$H53-SUM($I53:AU53))) -> 0 | AW53: =IF(OR(AW$3<=$D53,$G53="n/a"),0,IF(SUM($D53,$G53)>AW$3,$H53/$G53,$H53-SUM($I53:AV53))) -> 0 | AX53: =IF(OR(AX$3<=$D53,$G53="n/a"),0,IF(SUM($D53,$G53)>AX$3,$H53/$G53,$H53-SUM($I53:AW53))) -> 0 | AY53: =IF(OR(AY$3<=$D53,$G53="n/a"),0,IF(SUM($D53,$G53)>AY$3,$H53/$G53,$H53-SUM($I53:AX53))) -> 0 | AZ53: =IF(OR(AZ$3<=$D53,$G53="n/a"),0,IF(SUM($D53,$G53)>AZ$3,$H53/$G53,$H53-SUM($I53:AY53))) -> 0 | BA53: =IF(OR(BA$3<=$D53,$G53="n/a"),0,IF(SUM($D53,$G53)>BA$3,$H53/$G53,$H53-SUM($I53:AZ53))) -> 0 | BB53: =IF(OR(BB$3<=$D53,$G53="n/a"),0,IF(SUM($D53,$G53)>BB$3,$H53/$G53,$H53-SUM($I53:BA53))) -> 0 | BC53: =IF(OR(BC$3<=$D53,$G53="n/a"),0,IF(SUM($D53,$G53)>BC$3,$H53/$G53,$H53-SUM($I53:BB53))) -> 0 | BD53: =IF(OR(BD$3<=$D53,$G53="n/a"),0,IF(SUM($D53,$G53)>BD$3,$H53/$G53,$H53-SUM($I53:BC53))) -> 0 | BE53: =IF(OR(BE$3<=$D53,$G53="n/a"),0,IF(SUM($D53,$G53)>BE$3,$H53/$G53,$H53-SUM($I53:BD53))) -> 0 | BF53: =IF(OR(BF$3<=$D53,$G53="n/a"),0,IF(SUM($D53,$G53)>BF$3,$H53/$G53,$H53-SUM($I53:BE53))) -> 0 | BG53: =IF(OR(BG$3<=$D53,$G53="n/a"),0,IF(SUM($D53,$G53)>BG$3,$H53/$G53,$H53-SUM($I53:BF53))) -> 0 | BH53: =IF(OR(BH$3<=$D53,$G53="n/a"),0,IF(SUM($D53,$G53)>BH$3,$H53/$G53,$H53-SUM($I53:BG53))) -> 0 | BI53: =IF(OR(BI$3<=$D53,$G53="n/a"),0,IF(SUM($D53,$G53)>BI$3,$H53/$G53,$H53-SUM($I53:BH53))) -> 0 | BJ53: =IF(OR(BJ$3<=$D53,$G53="n/a"),0,IF(SUM($D53,$G53)>BJ$3,$H53/$G53,$H53-SUM($I53:BI53))) -> 0 | BK53: =IF(OR(BK$3<=$D53,$G53="n/a"),0,IF(SUM($D53,$G53)>BK$3,$H53/$G53,$H53-SUM($I53:BJ53))) -> 0 | BL53: =IF(OR(BL$3<=$D53,$G53="n/a"),0,IF(SUM($D53,$G53)>BL$3,$H53/$G53,$H53-SUM($I53:BK53))) -> 0 | BM53: =IF(OR(BM$3<=$D53,$G53="n/a"),0,IF(SUM($D53,$G53)>BM$3,$H53/$G53,$H53-SUM($I53:BL53))) -> 0 | BN53: =IF(OR(BN$3<=$D53,$G53="n/a"),0,IF(SUM($D53,$G53)>BN$3,$H53/$G53,$H53-SUM($I53:BM53))) -> 0 | BO53: =IF(OR(BO$3<=$D53,$G53="n/a"),0,IF(SUM($D53,$G53)>BO$3,$H53/$G53,$H53-SUM($I53:BN53))) -> 0 | BP53: =IF(OR(BP$3<=$D53,$G53="n/a"),0,IF(SUM($D53,$G53)>BP$3,$H53/$G53,$H53-SUM($I53:BO53))) -> 0 | BQ53: =IF(OR(BQ$3<=$D53,$G53="n/a"),0,IF(SUM($D53,$G53)>BQ$3,$H53/$G53,$H53-SUM($I53:BP53))) -> 0 | BR53: =IF(OR(BR$3<=$D53,$G53="n/a"),0,IF(SUM($D53,$G53)>BR$3,$H53/$G53,$H53-SUM($I53:BQ53))) -> 0 | BS53: =IF(OR(BS$3<=$D53,$G53="n/a"),0,IF(SUM($D53,$G53)>BS$3,$H53/$G53,$H53-SUM($I53:BR53))) -> 0 | BT53: =IF(OR(BT$3<=$D53,$G53="n/a"),0,IF(SUM($D53,$G53)>BT$3,$H53/$G53,$H53-SUM($I53:BS53))) -> 0 | BU53: =IF(OR(BU$3<=$D53,$G53="n/a"),0,IF(SUM($D53,$G53)>BU$3,$H53/$G53,$H53-SUM($I53:BT53))) -> 0 | BV53: =IF(OR(BV$3<=$D53,$G53="n/a"),0,IF(SUM($D53,$G53)>BV$3,$H53/$G53,$H53-SUM($I53:BU53))) -> 0 | BW53: Ok
D54: 2036 | E54: $m Real 2010 | G54: 55 | H54: =AI28 -> 0 | J54: =IF(OR(J$3<=$D54,$G54="n/a"),0,IF(SUM($D54,$G54)>J$3,$H54/$G54,$H54-SUM($I54:I54))) -> 0 | K54: =IF(OR(K$3<=$D54,$G54="n/a"),0,IF(SUM($D54,$G54)>K$3,$H54/$G54,$H54-SUM($I54:J54))) -> 0 | L54: =IF(OR(L$3<=$D54,$G54="n/a"),0,IF(SUM($D54,$G54)>L$3,$H54/$G54,$H54-SUM($I54:K54))) -> 0 | M54: =IF(OR(M$3<=$D54,$G54="n/a"),0,IF(SUM($D54,$G54)>M$3,$H54/$G54,$H54-SUM($I54:L54))) -> 0 | N54: =IF(OR(N$3<=$D54,$G54="n/a"),0,IF(SUM($D54,$G54)>N$3,$H54/$G54,$H54-SUM($I54:M54))) -> 0 | O54: =IF(OR(O$3<=$D54,$G54="n/a"),0,IF(SUM($D54,$G54)>O$3,$H54/$G54,$H54-SUM($I54:N54))) -> 0 | P54: =IF(OR(P$3<=$D54,$G54="n/a"),0,IF(SUM($D54,$G54)>P$3,$H54/$G54,$H54-SUM($I54:O54))) -> 0 | Q54: =IF(OR(Q$3<=$D54,$G54="n/a"),0,IF(SUM($D54,$G54)>Q$3,$H54/$G54,$H54-SUM($I54:P54))) -> 0 | R54: =IF(OR(R$3<=$D54,$G54="n/a"),0,IF(SUM($D54,$G54)>R$3,$H54/$G54,$H54-SUM($I54:Q54))) -> 0 | S54: =IF(OR(S$3<=$D54,$G54="n/a"),0,IF(SUM($D54,$G54)>S$3,$H54/$G54,$H54-SUM($I54:R54))) -> 0 | T54: =IF(OR(T$3<=$D54,$G54="n/a"),0,IF(SUM($D54,$G54)>T$3,$H54/$G54,$H54-SUM($I54:S54))) -> 0 | U54: =IF(OR(U$3<=$D54,$G54="n/a"),0,IF(SUM($D54,$G54)>U$3,$H54/$G54,$H54-SUM($I54:T54))) -> 0 | V54: =IF(OR(V$3<=$D54,$G54="n/a"),0,IF(SUM($D54,$G54)>V$3,$H54/$G54,$H54-SUM($I54:U54))) -> 0 | W54: =IF(OR(W$3<=$D54,$G54="n/a"),0,IF(SUM($D54,$G54)>W$3,$H54/$G54,$H54-SUM($I54:V54))) -> 0 | X54: =IF(OR(X$3<=$D54,$G54="n/a"),0,IF(SUM($D54,$G54)>X$3,$H54/$G54,$H54-SUM($I54:W54))) -> 0 | Y54: =IF(OR(Y$3<=$D54,$G54="n/a"),0,IF(SUM($D54,$G54)>Y$3,$H54/$G54,$H54-SUM($I54:X54))) -> 0 | Z54: =IF(OR(Z$3<=$D54,$G54="n/a"),0,IF(SUM($D54,$G54)>Z$3,$H54/$G54,$H54-SUM($I54:Y54))) -> 0 | AA54: =IF(OR(AA$3<=$D54,$G54="n/a"),0,IF(SUM($D54,$G54)>AA$3,$H54/$G54,$H54-SUM($I54:Z54))) -> 0 | AB54: =IF(OR(AB$3<=$D54,$G54="n/a"),0,IF(SUM($D54,$G54)>AB$3,$H54/$G54,$H54-SUM($I54:AA54))) -> 0 | AC54: =IF(OR(AC$3<=$D54,$G54="n/a"),0,IF(SUM($D54,$G54)>AC$3,$H54/$G54,$H54-SUM($I54:AB54))) -> 0 | AD54: =IF(OR(AD$3<=$D54,$G54="n/a"),0,IF(SUM($D54,$G54)>AD$3,$H54/$G54,$H54-SUM($I54:AC54))) -> 0 | AE54: =IF(OR(AE$3<=$D54,$G54="n/a"),0,IF(SUM($D54,$G54)>AE$3,$H54/$G54,$H54-SUM($I54:AD54))) -> 0 | AF54: =IF(OR(AF$3<=$D54,$G54="n/a"),0,IF(SUM($D54,$G54)>AF$3,$H54/$G54,$H54-SUM($I54:AE54))) -> 0 | AG54: =IF(OR(AG$3<=$D54,$G54="n/a"),0,IF(SUM($D54,$G54)>AG$3,$H54/$G54,$H54-SUM($I54:AF54))) -> 0 | AH54: =IF(OR(AH$3<=$D54,$G54="n/a"),0,IF(SUM($D54,$G54)>AH$3,$H54/$G54,$H54-SUM($I54:AG54))) -> 0 | AI54: =IF(OR(AI$3<=$D54,$G54="n/a"),0,IF(SUM($D54,$G54)>AI$3,$H54/$G54,$H54-SUM($I54:AH54))) -> 0 | AJ54: =IF(OR(AJ$3<=$D54,$G54="n/a"),0,IF(SUM($D54,$G54)>AJ$3,$H54/$G54,$H54-SUM($I54:AI54))) -> 0 | AK54: =IF(OR(AK$3<=$D54,$G54="n/a"),0,IF(SUM($D54,$G54)>AK$3,$H54/$G54,$H54-SUM($I54:AJ54))) -> 0 | AL54: =IF(OR(AL$3<=$D54,$G54="n/a"),0,IF(SUM($D54,$G54)>AL$3,$H54/$G54,$H54-SUM($I54:AK54))) -> 0 | AM54: =IF(OR(AM$3<=$D54,$G54="n/a"),0,IF(SUM($D54,$G54)>AM$3,$H54/$G54,$H54-SUM($I54:AL54))) -> 0 | AN54: =IF(OR(AN$3<=$D54,$G54="n/a"),0,IF(SUM($D54,$G54)>AN$3,$H54/$G54,$H54-SUM($I54:AM54))) -> 0 | AO54: =IF(OR(AO$3<=$D54,$G54="n/a"),0,IF(SUM($D54,$G54)>AO$3,$H54/$G54,$H54-SUM($I54:AN54))) -> 0 | AP54: =IF(OR(AP$3<=$D54,$G54="n/a"),0,IF(SUM($D54,$G54)>AP$3,$H54/$G54,$H54-SUM($I54:AO54))) -> 0 | AQ54: =IF(OR(AQ$3<=$D54,$G54="n/a"),0,IF(SUM($D54,$G54)>AQ$3,$H54/$G54,$H54-SUM($I54:AP54))) -> 0 | AR54: =IF(OR(AR$3<=$D54,$G54="n/a"),0,IF(SUM($D54,$G54)>AR$3,$H54/$G54,$H54-SUM($I54:AQ54))) -> 0 | AS54: =IF(OR(AS$3<=$D54,$G54="n/a"),0,IF(SUM($D54,$G54)>AS$3,$H54/$G54,$H54-SUM($I54:AR54))) -> 0 | AT54: =IF(OR(AT$3<=$D54,$G54="n/a"),0,IF(SUM($D54,$G54)>AT$3,$H54/$G54,$H54-SUM($I54:AS54))) -> 0 | AU54: =IF(OR(AU$3<=$D54,$G54="n/a"),0,IF(SUM($D54,$G54)>AU$3,$H54/$G54,$H54-SUM($I54:AT54))) -> 0 | AV54: =IF(OR(AV$3<=$D54,$G54="n/a"),0,IF(SUM($D54,$G54)>AV$3,$H54/$G54,$H54-SUM($I54:AU54))) -> 0 | AW54: =IF(OR(AW$3<=$D54,$G54="n/a"),0,IF(SUM($D54,$G54)>AW$3,$H54/$G54,$H54-SUM($I54:AV54))) -> 0 | AX54: =IF(OR(AX$3<=$D54,$G54="n/a"),0,IF(SUM($D54,$G54)>AX$3,$H54/$G54,$H54-SUM($I54:AW54))) -> 0 | AY54: =IF(OR(AY$3<=$D54,$G54="n/a"),0,IF(SUM($D54,$G54)>AY$3,$H54/$G54,$H54-SUM($I54:AX54))) -> 0 | AZ54: =IF(OR(AZ$3<=$D54,$G54="n/a"),0,IF(SUM($D54,$G54)>AZ$3,$H54/$G54,$H54-SUM($I54:AY54))) -> 0 | BA54: =IF(OR(BA$3<=$D54,$G54="n/a"),0,IF(SUM($D54,$G54)>BA$3,$H54/$G54,$H54-SUM($I54:AZ54))) -> 0 | BB54: =IF(OR(BB$3<=$D54,$G54="n/a"),0,IF(SUM($D54,$G54)>BB$3,$H54/$G54,$H54-SUM($I54:BA54))) -> 0 | BC54: =IF(OR(BC$3<=$D54,$G54="n/a"),0,IF(SUM($D54,$G54)>BC$3,$H54/$G54,$H54-SUM($I54:BB54))) -> 0 | BD54: =IF(OR(BD$3<=$D54,$G54="n/a"),0,IF(SUM($D54,$G54)>BD$3,$H54/$G54,$H54-SUM($I54:BC54))) -> 0 | BE54: =IF(OR(BE$3<=$D54,$G54="n/a"),0,IF(SUM($D54,$G54)>BE$3,$H54/$G54,$H54-SUM($I54:BD54))) -> 0 | BF54: =IF(OR(BF$3<=$D54,$G54="n/a"),0,IF(SUM($D54,$G54)>BF$3,$H54/$G54,$H54-SUM($I54:BE54))) -> 0 | BG54: =IF(OR(BG$3<=$D54,$G54="n/a"),0,IF(SUM($D54,$G54)>BG$3,$H54/$G54,$H54-SUM($I54:BF54))) -> 0 | BH54: =IF(OR(BH$3<=$D54,$G54="n/a"),0,IF(SUM($D54,$G54)>BH$3,$H54/$G54,$H54-SUM($I54:BG54))) -> 0 | BI54: =IF(OR(BI$3<=$D54,$G54="n/a"),0,IF(SUM($D54,$G54)>BI$3,$H54/$G54,$H54-SUM($I54:BH54))) -> 0 | BJ54: =IF(OR(BJ$3<=$D54,$G54="n/a"),0,IF(SUM($D54,$G54)>BJ$3,$H54/$G54,$H54-SUM($I54:BI54))) -> 0 | BK54: =IF(OR(BK$3<=$D54,$G54="n/a"),0,IF(SUM($D54,$G54)>BK$3,$H54/$G54,$H54-SUM($I54:BJ54))) -> 0 | BL54: =IF(OR(BL$3<=$D54,$G54="n/a"),0,IF(SUM($D54,$G54)>BL$3,$H54/$G54,$H54-SUM($I54:BK54))) -> 0 | BM54: =IF(OR(BM$3<=$D54,$G54="n/a"),0,IF(SUM($D54,$G54)>BM$3,$H54/$G54,$H54-SUM($I54:BL54))) -> 0 | BN54: =IF(OR(BN$3<=$D54,$G54="n/a"),0,IF(SUM($D54,$G54)>BN$3,$H54/$G54,$H54-SUM($I54:BM54))) -> 0 | BO54: =IF(OR(BO$3<=$D54,$G54="n/a"),0,IF(SUM($D54,$G54)>BO$3,$H54/$G54,$H54-SUM($I54:BN54))) -> 0 | BP54: =IF(OR(BP$3<=$D54,$G54="n/a"),0,IF(SUM($D54,$G54)>BP$3,$H54/$G54,$H54-SUM($I54:BO54))) -> 0 | BQ54: =IF(OR(BQ$3<=$D54,$G54="n/a"),0,IF(SUM($D54,$G54)>BQ$3,$H54/$G54,$H54-SUM($I54:BP54))) -> 0 | BR54: =IF(OR(BR$3<=$D54,$G54="n/a"),0,IF(SUM($D54,$G54)>BR$3,$H54/$G54,$H54-SUM($I54:BQ54))) -> 0 | BS54: =IF(OR(BS$3<=$D54,$G54="n/a"),0,IF(SUM($D54,$G54)>BS$3,$H54/$G54,$H54-SUM($I54:BR54))) -> 0 | BT54: =IF(OR(BT$3<=$D54,$G54="n/a"),0,IF(SUM($D54,$G54)>BT$3,$H54/$G54,$H54-SUM($I54:BS54))) -> 0 | BU54: =IF(OR(BU$3<=$D54,$G54="n/a"),0,IF(SUM($D54,$G54)>BU$3,$H54/$G54,$H54-SUM($I54:BT54))) -> 0 | BV54: =IF(OR(BV$3<=$D54,$G54="n/a"),0,IF(SUM($D54,$G54)>BV$3,$H54/$G54,$H54-SUM($I54:BU54))) -> 0 | BW54: Ok
D55: 2037 | E55: $m Real 2010 | G55: 55 | H55: =AJ28 -> 0 | J55: =IF(OR(J$3<=$D55,$G55="n/a"),0,IF(SUM($D55,$G55)>J$3,$H55/$G55,$H55-SUM($I55:I55))) -> 0 | K55: =IF(OR(K$3<=$D55,$G55="n/a"),0,IF(SUM($D55,$G55)>K$3,$H55/$G55,$H55-SUM($I55:J55))) -> 0 | L55: =IF(OR(L$3<=$D55,$G55="n/a"),0,IF(SUM($D55,$G55)>L$3,$H55/$G55,$H55-SUM($I55:K55))) -> 0 | M55: =IF(OR(M$3<=$D55,$G55="n/a"),0,IF(SUM($D55,$G55)>M$3,$H55/$G55,$H55-SUM($I55:L55))) -> 0 | N55: =IF(OR(N$3<=$D55,$G55="n/a"),0,IF(SUM($D55,$G55)>N$3,$H55/$G55,$H55-SUM($I55:M55))) -> 0 | O55: =IF(OR(O$3<=$D55,$G55="n/a"),0,IF(SUM($D55,$G55)>O$3,$H55/$G55,$H55-SUM($I55:N55))) -> 0 | P55: =IF(OR(P$3<=$D55,$G55="n/a"),0,IF(SUM($D55,$G55)>P$3,$H55/$G55,$H55-SUM($I55:O55))) -> 0 | Q55: =IF(OR(Q$3<=$D55,$G55="n/a"),0,IF(SUM($D55,$G55)>Q$3,$H55/$G55,$H55-SUM($I55:P55))) -> 0 | R55: =IF(OR(R$3<=$D55,$G55="n/a"),0,IF(SUM($D55,$G55)>R$3,$H55/$G55,$H55-SUM($I55:Q55))) -> 0 | S55: =IF(OR(S$3<=$D55,$G55="n/a"),0,IF(SUM($D55,$G55)>S$3,$H55/$G55,$H55-SUM($I55:R55))) -> 0 | T55: =IF(OR(T$3<=$D55,$G55="n/a"),0,IF(SUM($D55,$G55)>T$3,$H55/$G55,$H55-SUM($I55:S55))) -> 0 | U55: =IF(OR(U$3<=$D55,$G55="n/a"),0,IF(SUM($D55,$G55)>U$3,$H55/$G55,$H55-SUM($I55:T55))) -> 0 | V55: =IF(OR(V$3<=$D55,$G55="n/a"),0,IF(SUM($D55,$G55)>V$3,$H55/$G55,$H55-SUM($I55:U55))) -> 0 | W55: =IF(OR(W$3<=$D55,$G55="n/a"),0,IF(SUM($D55,$G55)>W$3,$H55/$G55,$H55-SUM($I55:V55))) -> 0 | X55: =IF(OR(X$3<=$D55,$G55="n/a"),0,IF(SUM($D55,$G55)>X$3,$H55/$G55,$H55-SUM($I55:W55))) -> 0 | Y55: =IF(OR(Y$3<=$D55,$G55="n/a"),0,IF(SUM($D55,$G55)>Y$3,$H55/$G55,$H55-SUM($I55:X55))) -> 0 | Z55: =IF(OR(Z$3<=$D55,$G55="n/a"),0,IF(SUM($D55,$G55)>Z$3,$H55/$G55,$H55-SUM($I55:Y55))) -> 0 | AA55: =IF(OR(AA$3<=$D55,$G55="n/a"),0,IF(SUM($D55,$G55)>AA$3,$H55/$G55,$H55-SUM($I55:Z55))) -> 0 | AB55: =IF(OR(AB$3<=$D55,$G55="n/a"),0,IF(SUM($D55,$G55)>AB$3,$H55/$G55,$H55-SUM($I55:AA55))) -> 0 | AC55: =IF(OR(AC$3<=$D55,$G55="n/a"),0,IF(SUM($D55,$G55)>AC$3,$H55/$G55,$H55-SUM($I55:AB55))) -> 0 | AD55: =IF(OR(AD$3<=$D55,$G55="n/a"),0,IF(SUM($D55,$G55)>AD$3,$H55/$G55,$H55-SUM($I55:AC55))) -> 0 | AE55: =IF(OR(AE$3<=$D55,$G55="n/a"),0,IF(SUM($D55,$G55)>AE$3,$H55/$G55,$H55-SUM($I55:AD55))) -> 0 | AF55: =IF(OR(AF$3<=$D55,$G55="n/a"),0,IF(SUM($D55,$G55)>AF$3,$H55/$G55,$H55-SUM($I55:AE55))) -> 0 | AG55: =IF(OR(AG$3<=$D55,$G55="n/a"),0,IF(SUM($D55,$G55)>AG$3,$H55/$G55,$H55-SUM($I55:AF55))) -> 0 | AH55: =IF(OR(AH$3<=$D55,$G55="n/a"),0,IF(SUM($D55,$G55)>AH$3,$H55/$G55,$H55-SUM($I55:AG55))) -> 0 | AI55: =IF(OR(AI$3<=$D55,$G55="n/a"),0,IF(SUM($D55,$G55)>AI$3,$H55/$G55,$H55-SUM($I55:AH55))) -> 0 | AJ55: =IF(OR(AJ$3<=$D55,$G55="n/a"),0,IF(SUM($D55,$G55)>AJ$3,$H55/$G55,$H55-SUM($I55:AI55))) -> 0 | AK55: =IF(OR(AK$3<=$D55,$G55="n/a"),0,IF(SUM($D55,$G55)>AK$3,$H55/$G55,$H55-SUM($I55:AJ55))) -> 0 | AL55: =IF(OR(AL$3<=$D55,$G55="n/a"),0,IF(SUM($D55,$G55)>AL$3,$H55/$G55,$H55-SUM($I55:AK55))) -> 0 | AM55: =IF(OR(AM$3<=$D55,$G55="n/a"),0,IF(SUM($D55,$G55)>AM$3,$H55/$G55,$H55-SUM($I55:AL55))) -> 0 | AN55: =IF(OR(AN$3<=$D55,$G55="n/a"),0,IF(SUM($D55,$G55)>AN$3,$H55/$G55,$H55-SUM($I55:AM55))) -> 0 | AO55: =IF(OR(AO$3<=$D55,$G55="n/a"),0,IF(SUM($D55,$G55)>AO$3,$H55/$G55,$H55-SUM($I55:AN55))) -> 0 | AP55: =IF(OR(AP$3<=$D55,$G55="n/a"),0,IF(SUM($D55,$G55)>AP$3,$H55/$G55,$H55-SUM($I55:AO55))) -> 0 | AQ55: =IF(OR(AQ$3<=$D55,$G55="n/a"),0,IF(SUM($D55,$G55)>AQ$3,$H55/$G55,$H55-SUM($I55:AP55))) -> 0 | AR55: =IF(OR(AR$3<=$D55,$G55="n/a"),0,IF(SUM($D55,$G55)>AR$3,$H55/$G55,$H55-SUM($I55:AQ55))) -> 0 | AS55: =IF(OR(AS$3<=$D55,$G55="n/a"),0,IF(SUM($D55,$G55)>AS$3,$H55/$G55,$H55-SUM($I55:AR55))) -> 0 | AT55: =IF(OR(AT$3<=$D55,$G55="n/a"),0,IF(SUM($D55,$G55)>AT$3,$H55/$G55,$H55-SUM($I55:AS55))) -> 0 | AU55: =IF(OR(AU$3<=$D55,$G55="n/a"),0,IF(SUM($D55,$G55)>AU$3,$H55/$G55,$H55-SUM($I55:AT55))) -> 0 | AV55: =IF(OR(AV$3<=$D55,$G55="n/a"),0,IF(SUM($D55,$G55)>AV$3,$H55/$G55,$H55-SUM($I55:AU55))) -> 0 | AW55: =IF(OR(AW$3<=$D55,$G55="n/a"),0,IF(SUM($D55,$G55)>AW$3,$H55/$G55,$H55-SUM($I55:AV55))) -> 0 | AX55: =IF(OR(AX$3<=$D55,$G55="n/a"),0,IF(SUM($D55,$G55)>AX$3,$H55/$G55,$H55-SUM($I55:AW55))) -> 0 | AY55: =IF(OR(AY$3<=$D55,$G55="n/a"),0,IF(SUM($D55,$G55)>AY$3,$H55/$G55,$H55-SUM($I55:AX55))) -> 0 | AZ55: =IF(OR(AZ$3<=$D55,$G55="n/a"),0,IF(SUM($D55,$G55)>AZ$3,$H55/$G55,$H55-SUM($I55:AY55))) -> 0 | BA55: =IF(OR(BA$3<=$D55,$G55="n/a"),0,IF(SUM($D55,$G55)>BA$3,$H55/$G55,$H55-SUM($I55:AZ55))) -> 0 | BB55: =IF(OR(BB$3<=$D55,$G55="n/a"),0,IF(SUM($D55,$G55)>BB$3,$H55/$G55,$H55-SUM($I55:BA55))) -> 0 | BC55: =IF(OR(BC$3<=$D55,$G55="n/a"),0,IF(SUM($D55,$G55)>BC$3,$H55/$G55,$H55-SUM($I55:BB55))) -> 0 | BD55: =IF(OR(BD$3<=$D55,$G55="n/a"),0,IF(SUM($D55,$G55)>BD$3,$H55/$G55,$H55-SUM($I55:BC55))) -> 0 | BE55: =IF(OR(BE$3<=$D55,$G55="n/a"),0,IF(SUM($D55,$G55)>BE$3,$H55/$G55,$H55-SUM($I55:BD55))) -> 0 | BF55: =IF(OR(BF$3<=$D55,$G55="n/a"),0,IF(SUM($D55,$G55)>BF$3,$H55/$G55,$H55-SUM($I55:BE55))) -> 0 | BG55: =IF(OR(BG$3<=$D55,$G55="n/a"),0,IF(SUM($D55,$G55)>BG$3,$H55/$G55,$H55-SUM($I55:BF55))) -> 0 | BH55: =IF(OR(BH$3<=$D55,$G55="n/a"),0,IF(SUM($D55,$G55)>BH$3,$H55/$G55,$H55-SUM($I55:BG55))) -> 0 | BI55: =IF(OR(BI$3<=$D55,$G55="n/a"),0,IF(SUM($D55,$G55)>BI$3,$H55/$G55,$H55-SUM($I55:BH55))) -> 0 | BJ55: =IF(OR(BJ$3<=$D55,$G55="n/a"),0,IF(SUM($D55,$G55)>BJ$3,$H55/$G55,$H55-SUM($I55:BI55))) -> 0 | BK55: =IF(OR(BK$3<=$D55,$G55="n/a"),0,IF(SUM($D55,$G55)>BK$3,$H55/$G55,$H55-SUM($I55:BJ55))) -> 0 | BL55: =IF(OR(BL$3<=$D55,$G55="n/a"),0,IF(SUM($D55,$G55)>BL$3,$H55/$G55,$H55-SUM($I55:BK55))) -> 0 | BM55: =IF(OR(BM$3<=$D55,$G55="n/a"),0,IF(SUM($D55,$G55)>BM$3,$H55/$G55,$H55-SUM($I55:BL55))) -> 0 | BN55: =IF(OR(BN$3<=$D55,$G55="n/a"),0,IF(SUM($D55,$G55)>BN$3,$H55/$G55,$H55-SUM($I55:BM55))) -> 0 | BO55: =IF(OR(BO$3<=$D55,$G55="n/a"),0,IF(SUM($D55,$G55)>BO$3,$H55/$G55,$H55-SUM($I55:BN55))) -> 0 | BP55: =IF(OR(BP$3<=$D55,$G55="n/a"),0,IF(SUM($D55,$G55)>BP$3,$H55/$G55,$H55-SUM($I55:BO55))) -> 0 | BQ55: =IF(OR(BQ$3<=$D55,$G55="n/a"),0,IF(SUM($D55,$G55)>BQ$3,$H55/$G55,$H55-SUM($I55:BP55))) -> 0 | BR55: =IF(OR(BR$3<=$D55,$G55="n/a"),0,IF(SUM($D55,$G55)>BR$3,$H55/$G55,$H55-SUM($I55:BQ55))) -> 0 | BS55: =IF(OR(BS$3<=$D55,$G55="n/a"),0,IF(SUM($D55,$G55)>BS$3,$H55/$G55,$H55-SUM($I55:BR55))) -> 0 | BT55: =IF(OR(BT$3<=$D55,$G55="n/a"),0,IF(SUM($D55,$G55)>BT$3,$H55/$G55,$H55-SUM($I55:BS55))) -> 0 | BU55: =IF(OR(BU$3<=$D55,$G55="n/a"),0,IF(SUM($D55,$G55)>BU$3,$H55/$G55,$H55-SUM($I55:BT55))) -> 0 | BV55: =IF(OR(BV$3<=$D55,$G55="n/a"),0,IF(SUM($D55,$G55)>BV$3,$H55/$G55,$H55-SUM($I55:BU55))) -> 0 | BW55: Ok
D56: 2038 | E56: $m Real 2010 | G56: 55 | H56: =AK28 -> 0 | J56: =IF(OR(J$3<=$D56,$G56="n/a"),0,IF(SUM($D56,$G56)>J$3,$H56/$G56,$H56-SUM($I56:I56))) -> 0 | K56: =IF(OR(K$3<=$D56,$G56="n/a"),0,IF(SUM($D56,$G56)>K$3,$H56/$G56,$H56-SUM($I56:J56))) -> 0 | L56: =IF(OR(L$3<=$D56,$G56="n/a"),0,IF(SUM($D56,$G56)>L$3,$H56/$G56,$H56-SUM($I56:K56))) -> 0 | M56: =IF(OR(M$3<=$D56,$G56="n/a"),0,IF(SUM($D56,$G56)>M$3,$H56/$G56,$H56-SUM($I56:L56))) -> 0 | N56: =IF(OR(N$3<=$D56,$G56="n/a"),0,IF(SUM($D56,$G56)>N$3,$H56/$G56,$H56-SUM($I56:M56))) -> 0 | O56: =IF(OR(O$3<=$D56,$G56="n/a"),0,IF(SUM($D56,$G56)>O$3,$H56/$G56,$H56-SUM($I56:N56))) -> 0 | P56: =IF(OR(P$3<=$D56,$G56="n/a"),0,IF(SUM($D56,$G56)>P$3,$H56/$G56,$H56-SUM($I56:O56))) -> 0 | Q56: =IF(OR(Q$3<=$D56,$G56="n/a"),0,IF(SUM($D56,$G56)>Q$3,$H56/$G56,$H56-SUM($I56:P56))) -> 0 | R56: =IF(OR(R$3<=$D56,$G56="n/a"),0,IF(SUM($D56,$G56)>R$3,$H56/$G56,$H56-SUM($I56:Q56))) -> 0 | S56: =IF(OR(S$3<=$D56,$G56="n/a"),0,IF(SUM($D56,$G56)>S$3,$H56/$G56,$H56-SUM($I56:R56))) -> 0 | T56: =IF(OR(T$3<=$D56,$G56="n/a"),0,IF(SUM($D56,$G56)>T$3,$H56/$G56,$H56-SUM($I56:S56))) -> 0 | U56: =IF(OR(U$3<=$D56,$G56="n/a"),0,IF(SUM($D56,$G56)>U$3,$H56/$G56,$H56-SUM($I56:T56))) -> 0 | V56: =IF(OR(V$3<=$D56,$G56="n/a"),0,IF(SUM($D56,$G56)>V$3,$H56/$G56,$H56-SUM($I56:U56))) -> 0 | W56: =IF(OR(W$3<=$D56,$G56="n/a"),0,IF(SUM($D56,$G56)>W$3,$H56/$G56,$H56-SUM($I56:V56))) -> 0 | X56: =IF(OR(X$3<=$D56,$G56="n/a"),0,IF(SUM($D56,$G56)>X$3,$H56/$G56,$H56-SUM($I56:W56))) -> 0 | Y56: =IF(OR(Y$3<=$D56,$G56="n/a"),0,IF(SUM($D56,$G56)>Y$3,$H56/$G56,$H56-SUM($I56:X56))) -> 0 | Z56: =IF(OR(Z$3<=$D56,$G56="n/a"),0,IF(SUM($D56,$G56)>Z$3,$H56/$G56,$H56-SUM($I56:Y56))) -> 0 | AA56: =IF(OR(AA$3<=$D56,$G56="n/a"),0,IF(SUM($D56,$G56)>AA$3,$H56/$G56,$H56-SUM($I56:Z56))) -> 0 | AB56: =IF(OR(AB$3<=$D56,$G56="n/a"),0,IF(SUM($D56,$G56)>AB$3,$H56/$G56,$H56-SUM($I56:AA56))) -> 0 | AC56: =IF(OR(AC$3<=$D56,$G56="n/a"),0,IF(SUM($D56,$G56)>AC$3,$H56/$G56,$H56-SUM($I56:AB56))) -> 0 | AD56: =IF(OR(AD$3<=$D56,$G56="n/a"),0,IF(SUM($D56,$G56)>AD$3,$H56/$G56,$H56-SUM($I56:AC56))) -> 0 | AE56: =IF(OR(AE$3<=$D56,$G56="n/a"),0,IF(SUM($D56,$G56)>AE$3,$H56/$G56,$H56-SUM($I56:AD56))) -> 0 | AF56: =IF(OR(AF$3<=$D56,$G56="n/a"),0,IF(SUM($D56,$G56)>AF$3,$H56/$G56,$H56-SUM($I56:AE56))) -> 0 | AG56: =IF(OR(AG$3<=$D56,$G56="n/a"),0,IF(SUM($D56,$G56)>AG$3,$H56/$G56,$H56-SUM($I56:AF56))) -> 0 | AH56: =IF(OR(AH$3<=$D56,$G56="n/a"),0,IF(SUM($D56,$G56)>AH$3,$H56/$G56,$H56-SUM($I56:AG56))) -> 0 | AI56: =IF(OR(AI$3<=$D56,$G56="n/a"),0,IF(SUM($D56,$G56)>AI$3,$H56/$G56,$H56-SUM($I56:AH56))) -> 0 | AJ56: =IF(OR(AJ$3<=$D56,$G56="n/a"),0,IF(SUM($D56,$G56)>AJ$3,$H56/$G56,$H56-SUM($I56:AI56))) -> 0 | AK56: =IF(OR(AK$3<=$D56,$G56="n/a"),0,IF(SUM($D56,$G56)>AK$3,$H56/$G56,$H56-SUM($I56:AJ56))) -> 0 | AL56: =IF(OR(AL$3<=$D56,$G56="n/a"),0,IF(SUM($D56,$G56)>AL$3,$H56/$G56,$H56-SUM($I56:AK56))) -> 0 | AM56: =IF(OR(AM$3<=$D56,$G56="n/a"),0,IF(SUM($D56,$G56)>AM$3,$H56/$G56,$H56-SUM($I56:AL56))) -> 0 | AN56: =IF(OR(AN$3<=$D56,$G56="n/a"),0,IF(SUM($D56,$G56)>AN$3,$H56/$G56,$H56-SUM($I56:AM56))) -> 0 | AO56: =IF(OR(AO$3<=$D56,$G56="n/a"),0,IF(SUM($D56,$G56)>AO$3,$H56/$G56,$H56-SUM($I56:AN56))) -> 0 | AP56: =IF(OR(AP$3<=$D56,$G56="n/a"),0,IF(SUM($D56,$G56)>AP$3,$H56/$G56,$H56-SUM($I56:AO56))) -> 0 | AQ56: =IF(OR(AQ$3<=$D56,$G56="n/a"),0,IF(SUM($D56,$G56)>AQ$3,$H56/$G56,$H56-SUM($I56:AP56))) -> 0 | AR56: =IF(OR(AR$3<=$D56,$G56="n/a"),0,IF(SUM($D56,$G56)>AR$3,$H56/$G56,$H56-SUM($I56:AQ56))) -> 0 | AS56: =IF(OR(AS$3<=$D56,$G56="n/a"),0,IF(SUM($D56,$G56)>AS$3,$H56/$G56,$H56-SUM($I56:AR56))) -> 0 | AT56: =IF(OR(AT$3<=$D56,$G56="n/a"),0,IF(SUM($D56,$G56)>AT$3,$H56/$G56,$H56-SUM($I56:AS56))) -> 0 | AU56: =IF(OR(AU$3<=$D56,$G56="n/a"),0,IF(SUM($D56,$G56)>AU$3,$H56/$G56,$H56-SUM($I56:AT56))) -> 0 | AV56: =IF(OR(AV$3<=$D56,$G56="n/a"),0,IF(SUM($D56,$G56)>AV$3,$H56/$G56,$H56-SUM($I56:AU56))) -> 0 | AW56: =IF(OR(AW$3<=$D56,$G56="n/a"),0,IF(SUM($D56,$G56)>AW$3,$H56/$G56,$H56-SUM($I56:AV56))) -> 0 | AX56: =IF(OR(AX$3<=$D56,$G56="n/a"),0,IF(SUM($D56,$G56)>AX$3,$H56/$G56,$H56-SUM($I56:AW56))) -> 0 | AY56: =IF(OR(AY$3<=$D56,$G56="n/a"),0,IF(SUM($D56,$G56)>AY$3,$H56/$G56,$H56-SUM($I56:AX56))) -> 0 | AZ56: =IF(OR(AZ$3<=$D56,$G56="n/a"),0,IF(SUM($D56,$G56)>AZ$3,$H56/$G56,$H56-SUM($I56:AY56))) -> 0 | BA56: =IF(OR(BA$3<=$D56,$G56="n/a"),0,IF(SUM($D56,$G56)>BA$3,$H56/$G56,$H56-SUM($I56:AZ56))) -> 0 | BB56: =IF(OR(BB$3<=$D56,$G56="n/a"),0,IF(SUM($D56,$G56)>BB$3,$H56/$G56,$H56-SUM($I56:BA56))) -> 0 | BC56: =IF(OR(BC$3<=$D56,$G56="n/a"),0,IF(SUM($D56,$G56)>BC$3,$H56/$G56,$H56-SUM($I56:BB56))) -> 0 | BD56: =IF(OR(BD$3<=$D56,$G56="n/a"),0,IF(SUM($D56,$G56)>BD$3,$H56/$G56,$H56-SUM($I56:BC56))) -> 0 | BE56: =IF(OR(BE$3<=$D56,$G56="n/a"),0,IF(SUM($D56,$G56)>BE$3,$H56/$G56,$H56-SUM($I56:BD56))) -> 0 | BF56: =IF(OR(BF$3<=$D56,$G56="n/a"),0,IF(SUM($D56,$G56)>BF$3,$H56/$G56,$H56-SUM($I56:BE56))) -> 0 | BG56: =IF(OR(BG$3<=$D56,$G56="n/a"),0,IF(SUM($D56,$G56)>BG$3,$H56/$G56,$H56-SUM($I56:BF56))) -> 0 | BH56: =IF(OR(BH$3<=$D56,$G56="n/a"),0,IF(SUM($D56,$G56)>BH$3,$H56/$G56,$H56-SUM($I56:BG56))) -> 0 | BI56: =IF(OR(BI$3<=$D56,$G56="n/a"),0,IF(SUM($D56,$G56)>BI$3,$H56/$G56,$H56-SUM($I56:BH56))) -> 0 | BJ56: =IF(OR(BJ$3<=$D56,$G56="n/a"),0,IF(SUM($D56,$G56)>BJ$3,$H56/$G56,$H56-SUM($I56:BI56))) -> 0 | BK56: =IF(OR(BK$3<=$D56,$G56="n/a"),0,IF(SUM($D56,$G56)>BK$3,$H56/$G56,$H56-SUM($I56:BJ56))) -> 0 | BL56: =IF(OR(BL$3<=$D56,$G56="n/a"),0,IF(SUM($D56,$G56)>BL$3,$H56/$G56,$H56-SUM($I56:BK56))) -> 0 | BM56: =IF(OR(BM$3<=$D56,$G56="n/a"),0,IF(SUM($D56,$G56)>BM$3,$H56/$G56,$H56-SUM($I56:BL56))) -> 0 | BN56: =IF(OR(BN$3<=$D56,$G56="n/a"),0,IF(SUM($D56,$G56)>BN$3,$H56/$G56,$H56-SUM($I56:BM56))) -> 0 | BO56: =IF(OR(BO$3<=$D56,$G56="n/a"),0,IF(SUM($D56,$G56)>BO$3,$H56/$G56,$H56-SUM($I56:BN56))) -> 0 | BP56: =IF(OR(BP$3<=$D56,$G56="n/a"),0,IF(SUM($D56,$G56)>BP$3,$H56/$G56,$H56-SUM($I56:BO56))) -> 0 | BQ56: =IF(OR(BQ$3<=$D56,$G56="n/a"),0,IF(SUM($D56,$G56)>BQ$3,$H56/$G56,$H56-SUM($I56:BP56))) -> 0 | BR56: =IF(OR(BR$3<=$D56,$G56="n/a"),0,IF(SUM($D56,$G56)>BR$3,$H56/$G56,$H56-SUM($I56:BQ56))) -> 0 | BS56: =IF(OR(BS$3<=$D56,$G56="n/a"),0,IF(SUM($D56,$G56)>BS$3,$H56/$G56,$H56-SUM($I56:BR56))) -> 0 | BT56: =IF(OR(BT$3<=$D56,$G56="n/a"),0,IF(SUM($D56,$G56)>BT$3,$H56/$G56,$H56-SUM($I56:BS56))) -> 0 | BU56: =IF(OR(BU$3<=$D56,$G56="n/a"),0,IF(SUM($D56,$G56)>BU$3,$H56/$G56,$H56-SUM($I56:BT56))) -> 0 | BV56: =IF(OR(BV$3<=$D56,$G56="n/a"),0,IF(SUM($D56,$G56)>BV$3,$H56/$G56,$H56-SUM($I56:BU56))) -> 0 | BW56: Ok
D57: 2039 | E57: $m Real 2010 | G57: 55 | H57: =AL28 -> 0 | J57: =IF(OR(J$3<=$D57,$G57="n/a"),0,IF(SUM($D57,$G57)>J$3,$H57/$G57,$H57-SUM($I57:I57))) -> 0 | K57: =IF(OR(K$3<=$D57,$G57="n/a"),0,IF(SUM($D57,$G57)>K$3,$H57/$G57,$H57-SUM($I57:J57))) -> 0 | L57: =IF(OR(L$3<=$D57,$G57="n/a"),0,IF(SUM($D57,$G57)>L$3,$H57/$G57,$H57-SUM($I57:K57))) -> 0 | M57: =IF(OR(M$3<=$D57,$G57="n/a"),0,IF(SUM($D57,$G57)>M$3,$H57/$G57,$H57-SUM($I57:L57))) -> 0 | N57: =IF(OR(N$3<=$D57,$G57="n/a"),0,IF(SUM($D57,$G57)>N$3,$H57/$G57,$H57-SUM($I57:M57))) -> 0 | O57: =IF(OR(O$3<=$D57,$G57="n/a"),0,IF(SUM($D57,$G57)>O$3,$H57/$G57,$H57-SUM($I57:N57))) -> 0 | P57: =IF(OR(P$3<=$D57,$G57="n/a"),0,IF(SUM($D57,$G57)>P$3,$H57/$G57,$H57-SUM($I57:O57))) -> 0 | Q57: =IF(OR(Q$3<=$D57,$G57="n/a"),0,IF(SUM($D57,$G57)>Q$3,$H57/$G57,$H57-SUM($I57:P57))) -> 0 | R57: =IF(OR(R$3<=$D57,$G57="n/a"),0,IF(SUM($D57,$G57)>R$3,$H57/$G57,$H57-SUM($I57:Q57))) -> 0 | S57: =IF(OR(S$3<=$D57,$G57="n/a"),0,IF(SUM($D57,$G57)>S$3,$H57/$G57,$H57-SUM($I57:R57))) -> 0 | T57: =IF(OR(T$3<=$D57,$G57="n/a"),0,IF(SUM($D57,$G57)>T$3,$H57/$G57,$H57-SUM($I57:S57))) -> 0 | U57: =IF(OR(U$3<=$D57,$G57="n/a"),0,IF(SUM($D57,$G57)>U$3,$H57/$G57,$H57-SUM($I57:T57))) -> 0 | V57: =IF(OR(V$3<=$D57,$G57="n/a"),0,IF(SUM($D57,$G57)>V$3,$H57/$G57,$H57-SUM($I57:U57))) -> 0 | W57: =IF(OR(W$3<=$D57,$G57="n/a"),0,IF(SUM($D57,$G57)>W$3,$H57/$G57,$H57-SUM($I57:V57))) -> 0 | X57: =IF(OR(X$3<=$D57,$G57="n/a"),0,IF(SUM($D57,$G57)>X$3,$H57/$G57,$H57-SUM($I57:W57))) -> 0 | Y57: =IF(OR(Y$3<=$D57,$G57="n/a"),0,IF(SUM($D57,$G57)>Y$3,$H57/$G57,$H57-SUM($I57:X57))) -> 0 | Z57: =IF(OR(Z$3<=$D57,$G57="n/a"),0,IF(SUM($D57,$G57)>Z$3,$H57/$G57,$H57-SUM($I57:Y57))) -> 0 | AA57: =IF(OR(AA$3<=$D57,$G57="n/a"),0,IF(SUM($D57,$G57)>AA$3,$H57/$G57,$H57-SUM($I57:Z57))) -> 0 | AB57: =IF(OR(AB$3<=$D57,$G57="n/a"),0,IF(SUM($D57,$G57)>AB$3,$H57/$G57,$H57-SUM($I57:AA57))) -> 0 | AC57: =IF(OR(AC$3<=$D57,$G57="n/a"),0,IF(SUM($D57,$G57)>AC$3,$H57/$G57,$H57-SUM($I57:AB57))) -> 0 | AD57: =IF(OR(AD$3<=$D57,$G57="n/a"),0,IF(SUM($D57,$G57)>AD$3,$H57/$G57,$H57-SUM($I57:AC57))) -> 0 | AE57: =IF(OR(AE$3<=$D57,$G57="n/a"),0,IF(SUM($D57,$G57)>AE$3,$H57/$G57,$H57-SUM($I57:AD57))) -> 0 | AF57: =IF(OR(AF$3<=$D57,$G57="n/a"),0,IF(SUM($D57,$G57)>AF$3,$H57/$G57,$H57-SUM($I57:AE57))) -> 0 | AG57: =IF(OR(AG$3<=$D57,$G57="n/a"),0,IF(SUM($D57,$G57)>AG$3,$H57/$G57,$H57-SUM($I57:AF57))) -> 0 | AH57: =IF(OR(AH$3<=$D57,$G57="n/a"),0,IF(SUM($D57,$G57)>AH$3,$H57/$G57,$H57-SUM($I57:AG57))) -> 0 | AI57: =IF(OR(AI$3<=$D57,$G57="n/a"),0,IF(SUM($D57,$G57)>AI$3,$H57/$G57,$H57-SUM($I57:AH57))) -> 0 | AJ57: =IF(OR(AJ$3<=$D57,$G57="n/a"),0,IF(SUM($D57,$G57)>AJ$3,$H57/$G57,$H57-SUM($I57:AI57))) -> 0 | AK57: =IF(OR(AK$3<=$D57,$G57="n/a"),0,IF(SUM($D57,$G57)>AK$3,$H57/$G57,$H57-SUM($I57:AJ57))) -> 0 | AL57: =IF(OR(AL$3<=$D57,$G57="n/a"),0,IF(SUM($D57,$G57)>AL$3,$H57/$G57,$H57-SUM($I57:AK57))) -> 0 | AM57: =IF(OR(AM$3<=$D57,$G57="n/a"),0,IF(SUM($D57,$G57)>AM$3,$H57/$G57,$H57-SUM($I57:AL57))) -> 0 | AN57: =IF(OR(AN$3<=$D57,$G57="n/a"),0,IF(SUM($D57,$G57)>AN$3,$H57/$G57,$H57-SUM($I57:AM57))) -> 0 | AO57: =IF(OR(AO$3<=$D57,$G57="n/a"),0,IF(SUM($D57,$G57)>AO$3,$H57/$G57,$H57-SUM($I57:AN57))) -> 0 | AP57: =IF(OR(AP$3<=$D57,$G57="n/a"),0,IF(SUM($D57,$G57)>AP$3,$H57/$G57,$H57-SUM($I57:AO57))) -> 0 | AQ57: =IF(OR(AQ$3<=$D57,$G57="n/a"),0,IF(SUM($D57,$G57)>AQ$3,$H57/$G57,$H57-SUM($I57:AP57))) -> 0 | AR57: =IF(OR(AR$3<=$D57,$G57="n/a"),0,IF(SUM($D57,$G57)>AR$3,$H57/$G57,$H57-SUM($I57:AQ57))) -> 0 | AS57: =IF(OR(AS$3<=$D57,$G57="n/a"),0,IF(SUM($D57,$G57)>AS$3,$H57/$G57,$H57-SUM($I57:AR57))) -> 0 | AT57: =IF(OR(AT$3<=$D57,$G57="n/a"),0,IF(SUM($D57,$G57)>AT$3,$H57/$G57,$H57-SUM($I57:AS57))) -> 0 | AU57: =IF(OR(AU$3<=$D57,$G57="n/a"),0,IF(SUM($D57,$G57)>AU$3,$H57/$G57,$H57-SUM($I57:AT57))) -> 0 | AV57: =IF(OR(AV$3<=$D57,$G57="n/a"),0,IF(SUM($D57,$G57)>AV$3,$H57/$G57,$H57-SUM($I57:AU57))) -> 0 | AW57: =IF(OR(AW$3<=$D57,$G57="n/a"),0,IF(SUM($D57,$G57)>AW$3,$H57/$G57,$H57-SUM($I57:AV57))) -> 0 | AX57: =IF(OR(AX$3<=$D57,$G57="n/a"),0,IF(SUM($D57,$G57)>AX$3,$H57/$G57,$H57-SUM($I57:AW57))) -> 0 | AY57: =IF(OR(AY$3<=$D57,$G57="n/a"),0,IF(SUM($D57,$G57)>AY$3,$H57/$G57,$H57-SUM($I57:AX57))) -> 0 | AZ57: =IF(OR(AZ$3<=$D57,$G57="n/a"),0,IF(SUM($D57,$G57)>AZ$3,$H57/$G57,$H57-SUM($I57:AY57))) -> 0 | BA57: =IF(OR(BA$3<=$D57,$G57="n/a"),0,IF(SUM($D57,$G57)>BA$3,$H57/$G57,$H57-SUM($I57:AZ57))) -> 0 | BB57: =IF(OR(BB$3<=$D57,$G57="n/a"),0,IF(SUM($D57,$G57)>BB$3,$H57/$G57,$H57-SUM($I57:BA57))) -> 0 | BC57: =IF(OR(BC$3<=$D57,$G57="n/a"),0,IF(SUM($D57,$G57)>BC$3,$H57/$G57,$H57-SUM($I57:BB57))) -> 0 | BD57: =IF(OR(BD$3<=$D57,$G57="n/a"),0,IF(SUM($D57,$G57)>BD$3,$H57/$G57,$H57-SUM($I57:BC57))) -> 0 | BE57: =IF(OR(BE$3<=$D57,$G57="n/a"),0,IF(SUM($D57,$G57)>BE$3,$H57/$G57,$H57-SUM($I57:BD57))) -> 0 | BF57: =IF(OR(BF$3<=$D57,$G57="n/a"),0,IF(SUM($D57,$G57)>BF$3,$H57/$G57,$H57-SUM($I57:BE57))) -> 0 | BG57: =IF(OR(BG$3<=$D57,$G57="n/a"),0,IF(SUM($D57,$G57)>BG$3,$H57/$G57,$H57-SUM($I57:BF57))) -> 0 | BH57: =IF(OR(BH$3<=$D57,$G57="n/a"),0,IF(SUM($D57,$G57)>BH$3,$H57/$G57,$H57-SUM($I57:BG57))) -> 0 | BI57: =IF(OR(BI$3<=$D57,$G57="n/a"),0,IF(SUM($D57,$G57)>BI$3,$H57/$G57,$H57-SUM($I57:BH57))) -> 0 | BJ57: =IF(OR(BJ$3<=$D57,$G57="n/a"),0,IF(SUM($D57,$G57)>BJ$3,$H57/$G57,$H57-SUM($I57:BI57))) -> 0 | BK57: =IF(OR(BK$3<=$D57,$G57="n/a"),0,IF(SUM($D57,$G57)>BK$3,$H57/$G57,$H57-SUM($I57:BJ57))) -> 0 | BL57: =IF(OR(BL$3<=$D57,$G57="n/a"),0,IF(SUM($D57,$G57)>BL$3,$H57/$G57,$H57-SUM($I57:BK57))) -> 0 | BM57: =IF(OR(BM$3<=$D57,$G57="n/a"),0,IF(SUM($D57,$G57)>BM$3,$H57/$G57,$H57-SUM($I57:BL57))) -> 0 | BN57: =IF(OR(BN$3<=$D57,$G57="n/a"),0,IF(SUM($D57,$G57)>BN$3,$H57/$G57,$H57-SUM($I57:BM57))) -> 0 | BO57: =IF(OR(BO$3<=$D57,$G57="n/a"),0,IF(SUM($D57,$G57)>BO$3,$H57/$G57,$H57-SUM($I57:BN57))) -> 0 | BP57: =IF(OR(BP$3<=$D57,$G57="n/a"),0,IF(SUM($D57,$G57)>BP$3,$H57/$G57,$H57-SUM($I57:BO57))) -> 0 | BQ57: =IF(OR(BQ$3<=$D57,$G57="n/a"),0,IF(SUM($D57,$G57)>BQ$3,$H57/$G57,$H57-SUM($I57:BP57))) -> 0 | BR57: =IF(OR(BR$3<=$D57,$G57="n/a"),0,IF(SUM($D57,$G57)>BR$3,$H57/$G57,$H57-SUM($I57:BQ57))) -> 0 | BS57: =IF(OR(BS$3<=$D57,$G57="n/a"),0,IF(SUM($D57,$G57)>BS$3,$H57/$G57,$H57-SUM($I57:BR57))) -> 0 | BT57: =IF(OR(BT$3<=$D57,$G57="n/a"),0,IF(SUM($D57,$G57)>BT$3,$H57/$G57,$H57-SUM($I57:BS57))) -> 0 | BU57: =IF(OR(BU$3<=$D57,$G57="n/a"),0,IF(SUM($D57,$G57)>BU$3,$H57/$G57,$H57-SUM($I57:BT57))) -> 0 | BV57: =IF(OR(BV$3<=$D57,$G57="n/a"),0,IF(SUM($D57,$G57)>BV$3,$H57/$G57,$H57-SUM($I57:BU57))) -> 0 | BW57: Ok
D58: 2040 | E58: $m Real 2010 | G58: 55 | H58: =AM28 -> 0 | J58: =IF(OR(J$3<=$D58,$G58="n/a"),0,IF(SUM($D58,$G58)>J$3,$H58/$G58,$H58-SUM($I58:I58))) -> 0 | K58: =IF(OR(K$3<=$D58,$G58="n/a"),0,IF(SUM($D58,$G58)>K$3,$H58/$G58,$H58-SUM($I58:J58))) -> 0 | L58: =IF(OR(L$3<=$D58,$G58="n/a"),0,IF(SUM($D58,$G58)>L$3,$H58/$G58,$H58-SUM($I58:K58))) -> 0 | M58: =IF(OR(M$3<=$D58,$G58="n/a"),0,IF(SUM($D58,$G58)>M$3,$H58/$G58,$H58-SUM($I58:L58))) -> 0 | N58: =IF(OR(N$3<=$D58,$G58="n/a"),0,IF(SUM($D58,$G58)>N$3,$H58/$G58,$H58-SUM($I58:M58))) -> 0 | O58: =IF(OR(O$3<=$D58,$G58="n/a"),0,IF(SUM($D58,$G58)>O$3,$H58/$G58,$H58-SUM($I58:N58))) -> 0 | P58: =IF(OR(P$3<=$D58,$G58="n/a"),0,IF(SUM($D58,$G58)>P$3,$H58/$G58,$H58-SUM($I58:O58))) -> 0 | Q58: =IF(OR(Q$3<=$D58,$G58="n/a"),0,IF(SUM($D58,$G58)>Q$3,$H58/$G58,$H58-SUM($I58:P58))) -> 0 | R58: =IF(OR(R$3<=$D58,$G58="n/a"),0,IF(SUM($D58,$G58)>R$3,$H58/$G58,$H58-SUM($I58:Q58))) -> 0 | S58: =IF(OR(S$3<=$D58,$G58="n/a"),0,IF(SUM($D58,$G58)>S$3,$H58/$G58,$H58-SUM($I58:R58))) -> 0 | T58: =IF(OR(T$3<=$D58,$G58="n/a"),0,IF(SUM($D58,$G58)>T$3,$H58/$G58,$H58-SUM($I58:S58))) -> 0 | U58: =IF(OR(U$3<=$D58,$G58="n/a"),0,IF(SUM($D58,$G58)>U$3,$H58/$G58,$H58-SUM($I58:T58))) -> 0 | V58: =IF(OR(V$3<=$D58,$G58="n/a"),0,IF(SUM($D58,$G58)>V$3,$H58/$G58,$H58-SUM($I58:U58))) -> 0 | W58: =IF(OR(W$3<=$D58,$G58="n/a"),0,IF(SUM($D58,$G58)>W$3,$H58/$G58,$H58-SUM($I58:V58))) -> 0 | X58: =IF(OR(X$3<=$D58,$G58="n/a"),0,IF(SUM($D58,$G58)>X$3,$H58/$G58,$H58-SUM($I58:W58))) -> 0 | Y58: =IF(OR(Y$3<=$D58,$G58="n/a"),0,IF(SUM($D58,$G58)>Y$3,$H58/$G58,$H58-SUM($I58:X58))) -> 0 | Z58: =IF(OR(Z$3<=$D58,$G58="n/a"),0,IF(SUM($D58,$G58)>Z$3,$H58/$G58,$H58-SUM($I58:Y58))) -> 0 | AA58: =IF(OR(AA$3<=$D58,$G58="n/a"),0,IF(SUM($D58,$G58)>AA$3,$H58/$G58,$H58-SUM($I58:Z58))) -> 0 | AB58: =IF(OR(AB$3<=$D58,$G58="n/a"),0,IF(SUM($D58,$G58)>AB$3,$H58/$G58,$H58-SUM($I58:AA58))) -> 0 | AC58: =IF(OR(AC$3<=$D58,$G58="n/a"),0,IF(SUM($D58,$G58)>AC$3,$H58/$G58,$H58-SUM($I58:AB58))) -> 0 | AD58: =IF(OR(AD$3<=$D58,$G58="n/a"),0,IF(SUM($D58,$G58)>AD$3,$H58/$G58,$H58-SUM($I58:AC58))) -> 0 | AE58: =IF(OR(AE$3<=$D58,$G58="n/a"),0,IF(SUM($D58,$G58)>AE$3,$H58/$G58,$H58-SUM($I58:AD58))) -> 0 | AF58: =IF(OR(AF$3<=$D58,$G58="n/a"),0,IF(SUM($D58,$G58)>AF$3,$H58/$G58,$H58-SUM($I58:AE58))) -> 0 | AG58: =IF(OR(AG$3<=$D58,$G58="n/a"),0,IF(SUM($D58,$G58)>AG$3,$H58/$G58,$H58-SUM($I58:AF58))) -> 0 | AH58: =IF(OR(AH$3<=$D58,$G58="n/a"),0,IF(SUM($D58,$G58)>AH$3,$H58/$G58,$H58-SUM($I58:AG58))) -> 0 | AI58: =IF(OR(AI$3<=$D58,$G58="n/a"),0,IF(SUM($D58,$G58)>AI$3,$H58/$G58,$H58-SUM($I58:AH58))) -> 0 | AJ58: =IF(OR(AJ$3<=$D58,$G58="n/a"),0,IF(SUM($D58,$G58)>AJ$3,$H58/$G58,$H58-SUM($I58:AI58))) -> 0 | AK58: =IF(OR(AK$3<=$D58,$G58="n/a"),0,IF(SUM($D58,$G58)>AK$3,$H58/$G58,$H58-SUM($I58:AJ58))) -> 0 | AL58: =IF(OR(AL$3<=$D58,$G58="n/a"),0,IF(SUM($D58,$G58)>AL$3,$H58/$G58,$H58-SUM($I58:AK58))) -> 0 | AM58: =IF(OR(AM$3<=$D58,$G58="n/a"),0,IF(SUM($D58,$G58)>AM$3,$H58/$G58,$H58-SUM($I58:AL58))) -> 0 | AN58: =IF(OR(AN$3<=$D58,$G58="n/a"),0,IF(SUM($D58,$G58)>AN$3,$H58/$G58,$H58-SUM($I58:AM58))) -> 0 | AO58: =IF(OR(AO$3<=$D58,$G58="n/a"),0,IF(SUM($D58,$G58)>AO$3,$H58/$G58,$H58-SUM($I58:AN58))) -> 0 | AP58: =IF(OR(AP$3<=$D58,$G58="n/a"),0,IF(SUM($D58,$G58)>AP$3,$H58/$G58,$H58-SUM($I58:AO58))) -> 0 | AQ58: =IF(OR(AQ$3<=$D58,$G58="n/a"),0,IF(SUM($D58,$G58)>AQ$3,$H58/$G58,$H58-SUM($I58:AP58))) -> 0 | AR58: =IF(OR(AR$3<=$D58,$G58="n/a"),0,IF(SUM($D58,$G58)>AR$3,$H58/$G58,$H58-SUM($I58:AQ58))) -> 0 | AS58: =IF(OR(AS$3<=$D58,$G58="n/a"),0,IF(SUM($D58,$G58)>AS$3,$H58/$G58,$H58-SUM($I58:AR58))) -> 0 | AT58: =IF(OR(AT$3<=$D58,$G58="n/a"),0,IF(SUM($D58,$G58)>AT$3,$H58/$G58,$H58-SUM($I58:AS58))) -> 0 | AU58: =IF(OR(AU$3<=$D58,$G58="n/a"),0,IF(SUM($D58,$G58)>AU$3,$H58/$G58,$H58-SUM($I58:AT58))) -> 0 | AV58: =IF(OR(AV$3<=$D58,$G58="n/a"),0,IF(SUM($D58,$G58)>AV$3,$H58/$G58,$H58-SUM($I58:AU58))) -> 0 | AW58: =IF(OR(AW$3<=$D58,$G58="n/a"),0,IF(SUM($D58,$G58)>AW$3,$H58/$G58,$H58-SUM($I58:AV58))) -> 0 | AX58: =IF(OR(AX$3<=$D58,$G58="n/a"),0,IF(SUM($D58,$G58)>AX$3,$H58/$G58,$H58-SUM($I58:AW58))) -> 0 | AY58: =IF(OR(AY$3<=$D58,$G58="n/a"),0,IF(SUM($D58,$G58)>AY$3,$H58/$G58,$H58-SUM($I58:AX58))) -> 0 | AZ58: =IF(OR(AZ$3<=$D58,$G58="n/a"),0,IF(SUM($D58,$G58)>AZ$3,$H58/$G58,$H58-SUM($I58:AY58))) -> 0 | BA58: =IF(OR(BA$3<=$D58,$G58="n/a"),0,IF(SUM($D58,$G58)>BA$3,$H58/$G58,$H58-SUM($I58:AZ58))) -> 0 | BB58: =IF(OR(BB$3<=$D58,$G58="n/a"),0,IF(SUM($D58,$G58)>BB$3,$H58/$G58,$H58-SUM($I58:BA58))) -> 0 | BC58: =IF(OR(BC$3<=$D58,$G58="n/a"),0,IF(SUM($D58,$G58)>BC$3,$H58/$G58,$H58-SUM($I58:BB58))) -> 0 | BD58: =IF(OR(BD$3<=$D58,$G58="n/a"),0,IF(SUM($D58,$G58)>BD$3,$H58/$G58,$H58-SUM($I58:BC58))) -> 0 | BE58: =IF(OR(BE$3<=$D58,$G58="n/a"),0,IF(SUM($D58,$G58)>BE$3,$H58/$G58,$H58-SUM($I58:BD58))) -> 0 | BF58: =IF(OR(BF$3<=$D58,$G58="n/a"),0,IF(SUM($D58,$G58)>BF$3,$H58/$G58,$H58-SUM($I58:BE58))) -> 0 | BG58: =IF(OR(BG$3<=$D58,$G58="n/a"),0,IF(SUM($D58,$G58)>BG$3,$H58/$G58,$H58-SUM($I58:BF58))) -> 0 | BH58: =IF(OR(BH$3<=$D58,$G58="n/a"),0,IF(SUM($D58,$G58)>BH$3,$H58/$G58,$H58-SUM($I58:BG58))) -> 0 | BI58: =IF(OR(BI$3<=$D58,$G58="n/a"),0,IF(SUM($D58,$G58)>BI$3,$H58/$G58,$H58-SUM($I58:BH58))) -> 0 | BJ58: =IF(OR(BJ$3<=$D58,$G58="n/a"),0,IF(SUM($D58,$G58)>BJ$3,$H58/$G58,$H58-SUM($I58:BI58))) -> 0 | BK58: =IF(OR(BK$3<=$D58,$G58="n/a"),0,IF(SUM($D58,$G58)>BK$3,$H58/$G58,$H58-SUM($I58:BJ58))) -> 0 | BL58: =IF(OR(BL$3<=$D58,$G58="n/a"),0,IF(SUM($D58,$G58)>BL$3,$H58/$G58,$H58-SUM($I58:BK58))) -> 0 | BM58: =IF(OR(BM$3<=$D58,$G58="n/a"),0,IF(SUM($D58,$G58)>BM$3,$H58/$G58,$H58-SUM($I58:BL58))) -> 0 | BN58: =IF(OR(BN$3<=$D58,$G58="n/a"),0,IF(SUM($D58,$G58)>BN$3,$H58/$G58,$H58-SUM($I58:BM58))) -> 0 | BO58: =IF(OR(BO$3<=$D58,$G58="n/a"),0,IF(SUM($D58,$G58)>BO$3,$H58/$G58,$H58-SUM($I58:BN58))) -> 0 | BP58: =IF(OR(BP$3<=$D58,$G58="n/a"),0,IF(SUM($D58,$G58)>BP$3,$H58/$G58,$H58-SUM($I58:BO58))) -> 0 | BQ58: =IF(OR(BQ$3<=$D58,$G58="n/a"),0,IF(SUM($D58,$G58)>BQ$3,$H58/$G58,$H58-SUM($I58:BP58))) -> 0 | BR58: =IF(OR(BR$3<=$D58,$G58="n/a"),0,IF(SUM($D58,$G58)>BR$3,$H58/$G58,$H58-SUM($I58:BQ58))) -> 0 | BS58: =IF(OR(BS$3<=$D58,$G58="n/a"),0,IF(SUM($D58,$G58)>BS$3,$H58/$G58,$H58-SUM($I58:BR58))) -> 0 | BT58: =IF(OR(BT$3<=$D58,$G58="n/a"),0,IF(SUM($D58,$G58)>BT$3,$H58/$G58,$H58-SUM($I58:BS58))) -> 0 | BU58: =IF(OR(BU$3<=$D58,$G58="n/a"),0,IF(SUM($D58,$G58)>BU$3,$H58/$G58,$H58-SUM($I58:BT58))) -> 0 | BV58: =IF(OR(BV$3<=$D58,$G58="n/a"),0,IF(SUM($D58,$G58)>BV$3,$H58/$G58,$H58-SUM($I58:BU58))) -> 0 | BW58: Ok
